Workbook

Sheet Summary (W)
H16: Error | M16: -9.5 | R16: Low Case
B17: 0.9 | M17: 16 | N17: 17 | O17: 18 | P17: 19 | Q17: 20 | R17: 113 | S17: 114 | T17: 115 | U17: 116 | V17: 117 | W17: 118 | X17: 119 | Y17: 120 | Z17: 121 | AA17: 122 | AB17: 123 | AC17: 113 | AD17: 114 | AE17: 115 | AF17: 116 | AG17: 117 | AH17: 118 | AI17: 119 | AJ17: 120 | AK17: 121 | AL17: 122 | AM17: 123 | AN17: 24 | AO17: 25 | AP17: 26 | AQ17: 27 | AR17: 28 | AS17: 29 | AT17: 30 | AU17: 31 | AV17: 32 | AW17: 33 | AX17: 34 | AY17: 35 | AZ17: 36 | BA17: 37 | BB17: 38 | BC17: 39
D20: Planner Actuals | R20: P50 | AC20: P10 | AN20: Customers
B21: STD | C21: Locked | D21: 2006 | E21: 2007 | F21: 2008 | G21: 2009 | H21: 2010 | I21: 2011 | J21: 2012 | K21: 2013 | L21: 2014 | M21: 2010 | N21: 2011 | O21: 2012 | P21: 2013 | Q21: 2014 | R21: 2015 | S21: 2016 | T21: 2017 | U21: 2018 | V21: 2019 | W21: 2020 | X21: 2021 | Y21: 2022 | Z21: 2023 | AA21: 2024 | AB21: 2025 | AC21: 2015 | AD21: 2016 | AE21: 2017 | AF21: 2018 | AG21: 2019 | AH21: 2020 | AI21: 2021 | AJ21: 2022 | AK21: 2023 | AL21: 2024 | AM21: 2025 | AN21: 2010 | AO21: 2011 | AP21: 2012 | AQ21: 2013 | AR21: 2014 | AS21: 2015 | AT21: 2016 | AU21: 2017 | AV21: 2018 | AW21: 2019 | AX21: 2020 | AY21: 2021 | AZ21: 2022 | BA21: 2023 | BB21: 2024 | BC21: 2025
A22: bdl | B22: 50.95434856 | C22: N | D22: 0 | E22: 0 | F22: 0 | G22: 56.00942853 | H22: 47.44369852 | I22: 44.16043038 | J22: 37.84059618 | K22: 51.2412663 | L22: 55.5 | M22: 0 | N22: 0 | O22: 42.64 | P22: 51.24 | Q22: 55.56 | R22: 50.95434856 | S22: 51.07346694 | T22: 51.09394313 | U22: 51.03321586 | V22: 50.90864832 | W22: 50.73376258 | X22: 50.51769371 | Y22: 50.28138507 | Z22: 50.03211476 | AA22: 49.77391829 | AB22: 49.513702 | AC22: 56.44748352 | AD22: 56.57944346 | AE22: 56.60212709 | AF22: 56.53485311 | AG22: 56.39685656 | AH22: 56.20311726 | AI22: 55.96375509 | AJ22: 55.70197118 | AK22: 55.42582828 | AL22: 55.13979694 | AM22: 54.85152802 | AN22: 18657 | AO22: 21015 | AP22: 21401 | AQ22: 21606 | AR22: 21874 | AS22: 22136.3224 | AT22: 22398.64479 | AU22: 22622.68602 | AV22: 22814.84478 | AW22: 22982.06828 | AX22: 23129.46778 | AY22: 23259.79716 | AZ22: 23383.77407 | BA22: 23504.04851 | BB22: 23621.20186 | BC22: 23737.55602
A23: bge | C23: N | D23: 0 | E23: 0 | F23: 0 | G23: 33.03248515 | H23: 29.25535981 | I23: 25.00262212 | J23: 26.68304586 | K23: 29.54418533 | L23: 34.7 | M23: 0 | N23: 0 | O23: 30.168 | P23: 29.472 | Q23: 34.608 | R23: 24.76696337 | S23: 24.67533202 | T23: 24.57103404 | U23: 24.45571593 | V23: 24.3305483 | W23: 24.19740494 | X23: 24.05807429 | Y23: 23.91438891 | Z23: 23.76744092 | AA23: 23.6189372 | AB23: 23.47042706 | AC23: 27.43696655 | AD23: 27.33545687 | AE23: 27.21991505 | AF23: 27.09216507 | AG23: 26.95350373 | AH23: 26.80600685 | AI23: 26.65165566 | AJ23: 26.49248028 | AK23: 26.32969055 | AL23: 26.16517738 | AM23: 26.0006571 | AN23: 8590 | AO23: 12136 | AP23: 12178 | AQ23: 12177 | AR23: 12185 | AS23: 12234.8019 | AT23: 12284.60379 | AU23: 12334.6225 | AV23: 12385.02999 | AW23: 12435.55209 | AX23: 12486.32742 | AY23: 12537.35726 | AZ23: 12588.78375 | BA23: 12640.32716 | BB23: 12692.12892 | BC23: 12744.19034
A24: bn | C24: N | D24: 0 | E24: 0 | F24: 0 | G24: 39.69883037 | H24: 37.41331963 | I24: 36.20904483 | J24: 32.01484964 | K24: 33.04014757 | L24: 34.9 | M24: 0 | N24: 0 | O24: 31.08 | P24: 32.55 | Q24: 34.98 | R24: 24.81189436 | S24: 24.73689643 | T24: 24.64768317 | U24: 24.54671824 | V24: 24.43518179 | W24: 24.31508291 | X24: 24.18861709 | Y24: 24.05789287 | Z24: 23.92393222 | AA24: 23.78848002 | AB24: 23.65308764 | AC24: 27.48674132 | AD24: 27.40365823 | AE24: 27.30482734 | AF24: 27.19297788 | AG24: 27.06941724 | AH24: 26.9363711 | AI24: 26.79627163 | AJ24: 26.65145468 | AK24: 26.50305239 | AL24: 26.35299777 | AM24: 26.20300941 | AN24: 10551 | AO24: 11723 | AP24: 11823 | AQ24: 11835 | AR24: 11856 | AS24: 11917.35029 | AT24: 11978.70058 | AU24: 12039.47109 | AV24: 12100.33485 | AW24: 12160.95663 | AX24: 12221.50364 | AY24: 12282.20968 | AZ24: 12343.38758 | BA24: 12404.70456 | BB24: 12466.3289 | BC24: 12528.26212
A25: bra | C25: N | D25: 0 | E25: 0 | F25: 0 | G25: 78.86110985 | H25: 74.62245998 | I25: 65.09665539 | J25: 65.17608919 | K25: 69.93892858 | L25: 73.7 | M25: 73.4745 | N25: 57.9195 | O25: 68.8995 | P25: 69.21975 | Q25: 75.396 | R25: 52.09058262 | S25: 52.04426411 | T25: 51.91178578 | U25: 51.79170511 | V25: 51.69536335 | W25: 51.46023126 | X25: 51.20963095 | Y25: 50.96418586 | Z25: 50.71187088 | AA25: 50.45561127 | AB25: 50.19834298 | AC25: 57.70620932 | AD25: 57.65489744 | AE25: 57.50813729 | AF25: 57.37511132 | AG25: 57.26838343 | AH25: 57.00790292 | AI25: 56.73028664 | AJ25: 56.45838134 | AK25: 56.17886553 | AL25: 55.89497985 | AM25: 55.60997674 | AN25: 20869 | AO25: 22239 | AP25: 22558 | AQ25: 22774 | AR25: 22901 | AS25: 23105.59767 | AT25: 23310.19534 | AU25: 23475.78116 | AV25: 23668.93242 | AW25: 23896.06046 | AX25: 24035.01252 | AY25: 24172.76351 | AZ25: 24321.90136 | BA25: 24471.26401 | BB25: 24620.66467 | BC25: 24769.87467
A26: brt | B26: 14.18924289 | C26: N | D26: 0 | E26: 0 | F26: 0 | G26: 0 | H26: 8.121988758 | I26: 7.700244243 | J26: 8.716778802 | K26: 9.291729288 | L26: 8.8 | M26: 0 | N26: 0 | O26: 6.93 | P26: 9.387 | Q26: 8.823 | R26: 14.18924289 | S26: 14.14223021 | T26: 14.08172433 | U26: 14.01467484 | V26: 13.94199906 | W26: 13.86476103 | X26: 13.78397819 | Y26: 13.70069376 | Z26: 13.61553862 | AA26: 13.52948753 | AB26: 13.44342771 | AC26: 15.71891461 | AD26: 15.66683373 | AE26: 15.59980501 | AF26: 15.52552725 | AG26: 15.44501665 | AH26: 15.35945198 | AI26: 15.26996034 | AJ26: 15.17769743 | AK26: 15.08336214 | AL26: 14.98803431 | AM26: 14.89269681 | AN26: 2484 | AO26: 3985 | AP26: 4048 | AQ26: 4060 | AR26: 4077 | AS26: 4100.585844 | AT26: 4124.171687 | AU26: 4144.706482 | AV26: 4165.272911 | AW26: 4185.886097 | AX26: 4206.602606 | AY26: 4227.422957 | AZ26: 4248.405141 | BA26: 4269.435025 | BB26: 4290.570322 | BC26: 4311.81156
A27: bwa | C27: N | D27: 0 | E27: 0 | F27: 0 | G27: 13.61524138 | H27: 13.24651237 | I27: 11.513006 | J27: 10.73632229 | K27: 12.26999953 | L27: 12.4 | M27: 9.42 | N27: 11.43 | O27: 10.44 | P27: 11.73 | Q27: 11.76 | R27: 9.986819666 | S27: 9.930788677 | T27: 9.87010449 | U27: 9.805084269 | V27: 9.736325687 | W27: 9.664428692 | X27: 9.59000058 | Y27: 9.513672105 | Z27: 9.435983916 | AA27: 9.357575364 | AB27: 9.279071936 | AC27: 11.06344904 | AD27: 11.00137763 | AE27: 10.93415138 | AF27: 10.86212165 | AG27: 10.78595055 | AH27: 10.7063027 | AI27: 10.62385086 | AJ27: 10.53929379 | AK27: 10.45323042 | AL27: 10.36636904 | AM27: 10.27940254 | AN27: 1768 | AO27: 1780 | AP27: 1802 | AQ27: 1812 | AR27: 1814 | AS27: 1821.066761 | AT27: 1828.133522 | AU27: 1835.293328 | AV27: 1842.42475 | AW27: 1849.572385 | AX27: 1856.755847 | AY27: 1863.975315 | AZ27: 1871.2509 | BA27: 1878.543025 | BB27: 1885.871702 | BC27: 1893.237113
A28: bwn | C28: N | D28: 0 | E28: 0 | F28: 0 | G28: 32.24570193 | H28: 23.93610664 | I28: 18.05481815 | J28: 19.06221429 | K28: 23.39818419 | L28: 22.3 | M28: 0 | N28: 0 | O28: 19.2125 | P28: 22.32969 | Q28: 22.3375 | R28: 12.7324398 | S28: 12.70564553 | T28: 12.6666003 | U28: 12.62131273 | V28: 12.57078809 | W28: 12.5161066 | X28: 12.45827311 | Y28: 12.39831087 | Z28: 12.33670543 | AA28: 12.27437076 | AB28: 12.2121024 | AC28: 14.10506083 | AD28: 14.075378 | AE28: 14.03212349 | AF28: 13.98195369 | AG28: 13.92598225 | AH28: 13.86540582 | AI28: 13.80133759 | AJ28: 13.73491112 | AK28: 13.6666643 | AL28: 13.59760964 | AM28: 13.52862844 | AN28: 4173 | AO28: 7023 | AP28: 7084 | AQ28: 7110 | AR28: 7173 | AS28: 7212.456567 | AT28: 7251.913134 | AU28: 7287.777398 | AV28: 7323.630326 | AW28: 7359.564762 | AX28: 7395.679319 | AY28: 7431.9749 | AZ28: 7468.5526 | BA28: 7505.213458 | BB28: 7542.058077 | BC28: 7579.087379
A29: bwr | B29: 57.53479434 | C29: N | D29: 0 | E29: 0 | F29: 0 | G29: 62.9194899 | H29: 67.85578889 | I29: 69.77025785 | J29: 62.8028554 | K29: 64.85876908 | L29: 64.8 | M29: 0 | N29: 0 | O29: 64.50938 | P29: 61.97813 | Q29: 63.40625 | R29: 57.53479434 | S29: 57.47509656 | T29: 57.3995087 | U29: 56.97629356 | V29: 56.7285293 | W29: 56.53695707 | X29: 56.32465333 | Y29: 56.11090136 | Z29: 55.88638274 | AA29: 55.65517892 | AB29: 55.42114494 | AC29: 63.73733444 | AD29: 63.67120094 | AE29: 63.58746433 | AF29: 63.11862447 | AG29: 62.84414998 | AH29: 62.6319253 | AI29: 62.39673415 | AJ29: 62.15993864 | AK29: 61.91121578 | AL29: 61.65508703 | AM29: 61.39582301 | AN29: 15658 | AO29: 15785 | AP29: 16084 | AQ29: 16158 | AR29: 16329 | AS29: 16456.98931 | AT29: 16584.97862 | AU29: 16720.25653 | AV29: 16722.99775 | AW29: 16808.92972 | AX29: 16927.3334 | AY29: 17043.49591 | AZ29: 17163.90284 | BA29: 17283.08962 | BB29: 17401.30131 | BC29: 17518.65375
A30: cf | B30: 7.778174639 | C30: N | M30: 0 | N30: 0 | O30: 0 | P30: 0 | Q30: 0 | R30: 7.778174639 | S30: 7.770104048 | T30: 7.759885266 | U30: 7.702670474 | V30: 7.669175027 | W30: 7.643276224 | X30: 7.614574713 | Y30: 7.585677413 | Z30: 7.555324562 | AA30: 7.524067935 | AB30: 7.492428694 | AC30: 8.616700972 | AD30: 8.607760331 | AE30: 8.596439913 | AF30: 8.533057078 | AG30: 8.495950654 | AH30: 8.46725983 | AI30: 8.435464151 | AJ30: 8.403451578 | AK30: 8.369826536 | AL30: 8.335200288 | AM30: 8.300150177 | AN30: 702 | AO30: 703 | AP30: 0 | AQ30: 709 | AR30: 715 | AS30: 718.6916211 | AT30: 722.3832422 | AU30: 726.0046375 | AV30: 729.6541813 | AW30: 733.3120221 | AX30: 736.9979277 | AY30: 740.7754244 | AZ30: 744.6743149 | BA30: 748.6823951 | BB30: 752.8193012 | BC30: 757.0942795
A31: cln | C31: N | D31: 0 | E31: 0 | F31: 0 | G31: 60.16598495 | H31: 70.18948252 | I31: 52.10172899 | J31: 59.77276816 | K31: 42.08784737 | L31: 47.3 | M31: 0 | N31: 0 | O31: 37.4 | P31: 41.975 | Q31: 47.3125 | R31: 32.09644627 | S31: 34.39663473 | T31: 36.81379039 | U31: 39.21240511 | V31: 41.36953575 | W31: 43.07399146 | X31: 44.87394645 | Y31: 46.77261517 | Z31: 48.74964877 | AA31: 50.80325203 | AB31: 52.93375971 | AC31: 35.55660456 | AD31: 38.10476489 | AE31: 40.78250208 | AF31: 43.43969953 | AG31: 45.8293797 | AH31: 47.7175843 | AI31: 49.71158349 | AJ31: 51.81493825 | AK31: 54.005106 | AL31: 56.28009803 | AM31: 58.64028515 | AN31: 12773 | AO31: 14882 | AP31: 15889 | AQ31: 16908 | AR31: 18399 | AS31: 20113.3535 | AT31: 21827.707 | AU31: 23676.00348 | AV31: 25557.78353 | AW31: 27300.51856 | AX31: 28733.5341 | AY31: 30247.36628 | AZ31: 31838.44421 | BA31: 33490.43591 | BB31: 35200.67628 | BC31: 36968.04534
A32: cnr | B32: 2.569953507 | C32: N | D32: 0 | E32: 0 | F32: 0 | G32: 3.155326108 | H32: 2.891364277 | I32: 2.319156076 | J32: 2.561667625 | K32: 2.974538816 | L32: 2.7 | M32: 0 | N32: 0 | O32: 0 | P32: 0 | Q32: 0 | R32: 2.569953507 | S32: 2.566895466 | T32: 2.565313073 | U32: 2.564542916 | V32: 2.564639311 | W32: 2.565656616 | X32: 2.567666892 | Y32: 2.570535131 | Z32: 2.573351265 | AA32: 2.575913636 | AB32: 2.578382131 | AC32: 2.847007416 | AD32: 2.843619703 | AE32: 2.84186672 | AF32: 2.841013536 | AG32: 2.841120323 | AH32: 2.842247298 | AI32: 2.844474293 | AJ32: 2.847651742 | AK32: 2.85077147 | AL32: 2.853610078 | AM32: 2.856344689 | AN32: 1376 | AO32: 1386 | AP32: 1403 | AQ32: 1409 | AR32: 1409 | AS32: 1417.161536 | AT32: 1425.323073 | AU32: 1432.469808 | AV32: 1439.672094 | AW32: 1446.890754 | AX32: 1454.145597 | AY32: 1461.436805 | AZ32: 1468.784687 | BA32: 1476.149273 | BB32: 1483.550774 | BC32: 1490.989375
A33: cre | B33: 29.53758983 | C33: N | D33: 0 | E33: 0 | F33: 0 | G33: 0 | H33: 0 | I33: 0 | J33: 14.73881978 | K33: 42.34301134 | L33: 45.7 | M33: 0 | N33: 0 | O33: 32.77 | P33: 41.59 | Q33: 46.16 | R33: 29.53758983 | S33: 29.83998211 | T33: 29.99750826 | U33: 30.07665558 | V33: 30.16889897 | W33: 30.2742098 | X33: 30.13826755 | Y33: 29.9757538 | Z33: 29.80941905 | AA33: 29.64128754 | AB33: 29.47318082 | AC33: 32.72189052 | AD33: 33.05688221 | AE33: 33.23139047 | AF33: 33.31907027 | AG33: 33.42125796 | AH33: 33.53792182 | AI33: 33.38732432 | AJ33: 33.20729077 | AK33: 33.02302429 | AL33: 32.83676737 | AM33: 32.6505379 | AN33: 0 | AO33: 0 | AP33: 0 | AQ33: 15532 | AR33: 15913 | AS33: 16391.05335 | AT33: 16869.10671 | AU33: 17228.72485 | AV33: 17528.66312 | AW33: 17857.43798 | AX33: 18212.21882 | AY33: 18325.42923 | AZ33: 18417.02709 | BA33: 18508.83319 | BB33: 18601.09947 | BC33: 18693.82824
A34: cyn | B34: 64.21471722 | C34: N | D34: 0 | E34: 0 | F34: 0 | G34: 91.19460208 | H34: 83.18307407 | I34: 82.09252333 | J34: 77.1298255 | K34: 78.04947432 | L34: 80.4 | M34: 0 | N34: 0 | O34: 74.65 | P34: 76.45 | Q34: 79.65 | R34: 64.21471722 | S34: 64.13830679 | T34: 64.09876798 | U34: 64.07952427 | V34: 64.08193286 | W34: 64.10735198 | X34: 64.15758221 | Y34: 64.2292501 | Z34: 64.29961606 | AA34: 64.36364133 | AB34: 64.42532092 | AC34: 71.13738659 | AD34: 71.05273873 | AE34: 71.00893744 | AF34: 70.98761917 | AG34: 70.99028742 | AH34: 71.01844684 | AI34: 71.07409214 | AJ34: 71.15348619 | AK34: 71.23143795 | AL34: 71.30236547 | AM34: 71.37069443 | AN34: 23736 | AO34: 23959 | AP34: 24475 | AQ34: 26955 | AR34: 27095 | AS34: 27261.5908 | AT34: 27428.1816 | AU34: 27631.18634 | AV34: 27861.62694 | AW34: 28118.38575 | AX34: 28399.58761 | AY34: 28702.87597 | AZ34: 29023.7112 | BA34: 29348.43013 | BB34: 29672.42171 | BC34: 29995.68231
A35: drn | B35: 40.75048742 | C35: N | D35: 0 | E35: 0 | F35: 0 | G35: 25.77256353 | H35: 41.43394349 | I35: 40.05241828 | J35: 52.75624262 | K35: 63.68600958 | L35: 54.5 | M35: 41.04 | N35: 41.88 | O35: 55.35 | P35: 63.54 | Q35: 55.29 | R35: 40.75048742 | S35: 40.78413692 | T35: 40.94213615 | U35: 41.08921195 | V35: 41.23627353 | W35: 41.37398573 | X35: 41.49716916 | Y35: 41.59746216 | Z35: 41.67857186 | AA35: 41.7131259 | AB35: 41.72457862 | AC35: 45.14359485 | AD35: 45.18087193 | AE35: 45.35590427 | AF35: 45.51883558 | AG35: 45.68175115 | AH35: 45.83430941 | AI35: 45.97077263 | AJ35: 46.08187773 | AK35: 46.17173146 | AL35: 46.2100106 | AM35: 46.22269797 | AN35: 10376 | AO35: 12321 | AP35: 14557 | AQ35: 15917 | AR35: 16945 | AS35: 17296.0458 | AT35: 17647.09159 | AU35: 18176.4885 | AV35: 18723.64541 | AW35: 19297.30526 | AX35: 19880.47052 | AY35: 20460.29968 | AZ35: 21021.55533 | BA35: 21565.85823 | BB35: 22055.94173 | BC35: 22517.91984
A36: elm | C36: N | D36: 0 | E36: 0 | F36: 0 | G36: 76.27871831 | H36: 75.54584808 | I36: 61.08538952 | J36: 65.18179735 | K36: 69.37895919 | L36: 71.5 | M36: 0 | N36: 0 | O36: 70.05 | P36: 69.2 | Q36: 72.2 | R36: 51.17576555 | S36: 51.14956308 | T36: 51.08814463 | U36: 51.00657465 | V36: 50.91671394 | W36: 50.82366222 | X36: 50.72837735 | Y36: 50.49182703 | Z36: 50.2331721 | AA36: 49.95553138 | AB36: 49.66238946 | AC36: 56.69277038 | AD36: 56.66374315 | AE36: 56.59570347 | AF36: 56.50533985 | AG36: 56.4057917 | AH36: 56.30270854 | AI36: 56.19715148 | AJ36: 55.93509985 | AK36: 55.64856061 | AL36: 55.34098883 | AM36: 55.01624473 | AN36: 25094 | AO36: 25287 | AP36: 25542 | AQ36: 25665 | AR36: 25769 | AS36: 25983.16967 | AT36: 26197.33934 | AU36: 26408.27942 | AV36: 26624.07259 | AW36: 26850.59124 | AX36: 27088.56157 | AY36: 27335.25724 | AZ36: 27485.03681 | BA36: 27623.69157 | BB36: 27751.21984 | BC36: 27867.84128
A37: epg | C37: N | D37: 0 | E37: 0 | F37: 0 | G37: 91.66112838 | H37: 81.05852858 | I37: 55.39440873 | J37: 59.15892564 | K37: 67.84983936 | L37: 49 | M37: 0 | N37: 0 | O37: 64.64475 | P37: 66.29175 | Q37: 49.08975 | R37: 41.80023601 | S37: 41.76641092 | T37: 42.04202563 | U37: 42.13777676 | V37: 42.01940813 | W37: 41.83029731 | X37: 41.61098429 | Y37: 41.41689877 | Z37: 41.20117523 | AA37: 40.9899103 | AB37: 40.78647251 | AC37: 46.30651161 | AD37: 46.26904001 | AE37: 46.57436737 | AF37: 46.68044095 | AG37: 46.54931159 | AH37: 46.33981367 | AI37: 46.0968576 | AJ37: 45.88184869 | AK37: 45.64286907 | AL37: 45.40882872 | AM37: 45.18345931 | AN37: 13580 | AO37: 16142 | AP37: 17260 | AQ37: 18128 | AR37: 18855 | AS37: 19021.46027 | AT37: 19187.92055 | AU37: 19589.49876 | AV37: 19882.43024 | AW37: 20034.72695 | AX37: 20145.89342 | AY37: 20242.95236 | AZ37: 20364.72878 | BA37: 20474.77285 | BB37: 20590.47939 | BC37: 20712.41307
A38: fgy | C38: N | D38: 0 | E38: 0 | F38: 0 | G38: 77.61011829 | H38: 75.50854259 | I38: 60.17607497 | J38: 59.83518881 | K38: 64.03586963 | L38: 73.4 | M38: 0 | N38: 54.3 | O38: 59.6 | P38: 62.1 | Q38: 73.5 | R38: 51.32538577 | S38: 51.25669061 | T38: 51.17089849 | U38: 51.09468921 | V38: 50.82978802 | W38: 50.61812389 | X38: 50.39159525 | Y38: 50.1771455 | Z38: 49.95828046 | AA38: 49.7381061 | AB38: 49.51987533 | AC38: 56.85852041 | AD38: 56.78241956 | AE38: 56.68737863 | AF38: 56.6029536 | AG38: 56.30949473 | AH38: 56.07501214 | AI38: 55.82406258 | AJ38: 55.58649407 | AK38: 55.34403427 | AL38: 55.10012401 | AM38: 54.85836687 | AN38: 17644 | AO38: 22403 | AP38: 22751 | AQ38: 22718 | AR38: 22782 | AS38: 22967.86634 | AT38: 23153.73268 | AU38: 23348.48282 | AV38: 23569.16119 | AW38: 23669.12963 | AX38: 23820.91914 | AY38: 23971.85654 | AZ38: 24139.18773 | BA38: 24308.48159 | BB38: 24479.71824 | BC38: 24652.93731
A39: ftr | C39: N | D39: 0 | E39: 0 | F39: 0 | G39: 18.60089471 | H39: 19.20937313 | I39: 18.57165957 | J39: 17.35789327 | K39: 19.58238175 | L39: 17.5 | M39: 0 | N39: 17.76 | O39: 17.4 | P39: 19.56 | Q39: 18.48 | R39: 15.85747514 | S39: 15.83538155 | T39: 15.80503866 | U39: 15.77353136 | V39: 15.74215485 | W39: 15.71300529 | X39: 15.68821397 | Y39: 15.67014004 | Z39: 15.65994123 | AA39: 15.65983795 | AB39: 15.67185465 | AC39: 17.56699068 | AD39: 17.5425153 | AE39: 17.50890129 | AF39: 17.47399735 | AG39: 17.43923829 | AH39: 17.40694626 | AI39: 17.37948231 | AJ39: 17.35945992 | AK39: 17.34816162 | AL39: 17.34804721 | AM39: 17.36135938 | AN39: 8538 | AO39: 8555 | AP39: 8655 | AQ39: 8680 | AR39: 8700 | AS39: 8756.832139 | AT39: 8813.664277 | AU39: 8871.139232 | AV39: 8933.607409 | AW39: 9001.303245 | AX39: 9074.894496 | AY39: 9154.922417 | AZ39: 9242.220997 | BA39: 9336.951481 | BB39: 9440.039093 | BC39: 9552.249123
A40: hpk | C40: N | D40: 0 | E40: 0 | F40: 0 | G40: 88.08860598 | H40: 75.91997765 | I40: 57.58793002 | J40: 55.18098707 | K40: 50.24351818 | L40: 53.4 | M40: 0 | N40: 0 | O40: 44.97225 | P40: 49.08975 | Q40: 54.0765 | R40: 28.51299441 | S40: 28.70709572 | T40: 28.87587017 | U40: 29.06634403 | V40: 29.3870747 | W40: 30.0722346 | X40: 30.9529806 | Y40: 31.74062449 | Z40: 32.436894 | AA40: 33.04835358 | AB40: 33.57804412 | AC40: 31.58683856 | AD40: 31.80186498 | AE40: 31.98883416 | AF40: 32.19984206 | AG40: 32.5551491 | AH40: 33.31417269 | AI40: 34.28986754 | AJ40: 35.1624234 | AK40: 35.93375425 | AL40: 36.61113225 | AM40: 37.1979261 | AN40: 21862 | AO40: 22267 | AP40: 22622 | AQ40: 22810 | AR40: 23059 | AS40: 23320.66842 | AT40: 23582.33683 | AU40: 23841.6262 | AV40: 24130.12415 | AW40: 24525.52106 | AX40: 25199.5022 | AY40: 26025.48516 | AZ40: 26786.80523 | BA40: 27483.50136 | BB40: 28119.14801 | BC40: 28694.68962
A41: klk | C41: N | D41: 0 | E41: 0 | F41: 0 | G41: 5.682288431 | H41: 4.908462269 | I41: 3.908068522 | J41: 4.678653845 | K41: 4.816845271 | L41: 5.2 | M41: 0 | N41: 0 | O41: 4.5 | P41: 4.77 | Q41: 5.16 | R41: 4.739677347 | S41: 4.729595831 | T41: 4.712218863 | U41: 4.692704265 | V41: 4.67127485 | W41: 4.648310099 | X41: 4.624167466 | Y41: 4.599212071 | Z41: 4.573638988 | AA41: 4.547781211 | AB41: 4.521934817 | AC41: 5.250638396 | AD41: 5.239470041 | AE41: 5.220219748 | AF41: 5.198601379 | AG41: 5.174861765 | AH41: 5.149421299 | AI41: 5.122675969 | AJ41: 5.095030256 | AK41: 5.066700266 | AL41: 5.038054891 | AM41: 5.009422126 | AN41: 2065 | AO41: 2201 | AP41: 2297 | AQ41: 2320 | AR41: 2346 | AS41: 2360.61461 | AT41: 2375.22922 | AU41: 2386.580475 | AV41: 2398.019962 | AW41: 2409.485456 | AX41: 2421.00842 | AY41: 2432.589143 | AZ41: 2444.259881 | BA41: 2455.957152 | BB41: 2467.713055 | BC41: 2479.527884
A42: Klo | C42: N | D42: 0 | E42: 0 | F42: 0 | G42: 0 | H42: 0 | I42: 10.94132038 | J42: 13.51480596 | K42: 14.86659315 | L42: 21.1 | M42: 10.9 | N42: 11.5 | O42: 13.4 | P42: 14.8 | Q42: 20.6 | R42: 16.74295453 | S42: 16.76723833 | T42: 18.02409702 | U42: 19.8318441 | V42: 21.77340509 | W42: 23.81133278 | X42: 25.92979506 | Y42: 28.09199281 | Z42: 30.33477172 | AA42: 32.47814727 | AB42: 34.67905914 | AC42: 18.5479292 | AD42: 18.57483092 | AE42: 19.96718529 | AF42: 21.9698166 | AG42: 24.12068763 | AH42: 26.37831417 | AI42: 28.72515733 | AJ42: 31.12045087 | AK42: 33.60501262 | AL42: 35.97945484 | AM42: 38.41763607 | AN42: 0 | AO42: 5484 | AP42: 5932 | AQ42: 6298 | AR42: 6550 | AS42: 6642.478334 | AT42: 6734.956667 | AU42: 7702.26505 | AV42: 9089.998779 | AW42: 10601.28755 | AX42: 12201.94211 | AY42: 13870.46852 | AZ42: 15573.73415 | BA42: 17338.2278 | BB42: 19030.23467 | BC42: 20764.92378
A43: kms | B43: 8.699867246 | C43: N | D43: 0 | E43: 0 | F43: 0 | G43: 8.928606107 | H43: 8.99633795 | I43: 9.059374593 | J43: 55.30000067 | K43: 7.912016059 | L43: 8.6 | M43: 0 | N43: 0 | O43: 8.115625 | P43: 7.792593 | Q43: 8.7 | R43: 8.699867246 | S43: 8.703209136 | T43: 8.701920782 | U43: 8.683903087 | V43: 8.650520372 | W43: 8.604803762 | X43: 8.555180143 | Y43: 8.504026354 | Z43: 8.451729268 | AA43: 8.398883506 | AB43: 8.346030989 | AC43: 9.637756676 | AD43: 9.641458839 | AE43: 9.640031593 | AF43: 9.620071501 | AG43: 9.58308996 | AH43: 9.532444871 | AI43: 9.477471576 | AJ43: 9.420803151 | AK43: 9.362868177 | AL43: 9.304325376 | AM43: 9.245775092 | AN43: 2179 | AO43: 2246 | AP43: 2346 | AQ43: 3492 | AR43: 3599 | AS43: 3645.114372 | AT43: 3691.228744 | AU43: 3737.930805 | AV43: 3775.128805 | AW43: 3803.039741 | AX43: 3823.363584 | AY43: 3842.365372 | AZ43: 3861.514857 | BA43: 3880.707878 | BB43: 3899.997102 | BC43: 3919.383014
A44: ldl | C44: N | D44: 0 | E44: 0 | F44: 0 | G44: 82.76509624 | H44: 81.7404498 | I44: 66.66881576 | J44: 67.58500805 | K44: 75.05020131 | L44: 78.8 | M44: 0 | N44: 0 | O44: 73.0125 | P44: 74.65312 | Q44: 80.95313 | R44: 53.54385164 | S44: 53.61557842 | T44: 53.64757557 | U44: 53.62811952 | V44: 53.56064641 | W44: 53.45314326 | X44: 53.3155018 | Y44: 53.16282322 | Z44: 52.99850041 | AA44: 52.82671706 | AB44: 52.65091179 | AC44: 59.31614805 | AD44: 59.39560734 | AE44: 59.43105394 | AF44: 59.40950044 | AG44: 59.33475338 | AH44: 59.21566085 | AI44: 59.06318095 | AJ44: 58.89404285 | AK44: 58.71200522 | AL44: 58.52170276 | AM44: 58.32694479 | AN44: 25306 | AO44: 25539 | AP44: 25951 | AQ44: 26131 | AR44: 26375 | AS44: 26666.69876 | AT44: 26958.39752 | AU44: 27246.31982 | AV44: 27518.86747 | AW44: 27774.64615 | AX44: 28015.54802 | AY44: 28244.99507 | AZ44: 28471.10569 | BA44: 28694.0495 | BB44: 28914.50939 | BC44: 29132.56678
A45: lga | B45: 36.31833741 | C45: N | D45: 0 | E45: 0 | F45: 0 | G45: 39.58604475 | H45: 37.40302158 | I45: 33.88783885 | J45: 34.12662844 | K45: 39.82685282 | L45: 39.6 | M45: 0 | N45: 0 | O45: 28.55959 | P45: 39.81725 | Q45: 39.35915 | R45: 36.31833741 | S45: 36.12995528 | T45: 35.92407066 | U45: 35.70266668 | V45: 35.46747957 | W45: 35.22081703 | X45: 34.96497949 | Y45: 34.70234839 | Z45: 34.43480836 | AA45: 34.16472426 | AB45: 33.89437014 | AC45: 40.23363678 | AD45: 40.02494612 | AE45: 39.79686609 | AF45: 39.55159365 | AG45: 39.29105219 | AH45: 39.01779819 | AI45: 38.73438008 | AJ45: 38.44343602 | AK45: 38.14705383 | AL45: 37.8478533 | AM45: 37.54835365 | AN45: 2 | AO45: 11081 | AP45: 22345 | AQ45: 11243 | AR45: 11290 | AS45: 11346.66258 | AT45: 11403.32516 | AU45: 11460.27176 | AV45: 11517.661 | AW45: 11575.18071 | AX45: 11632.98873 | AY45: 11691.08652 | AZ45: 11749.63589 | BA45: 11808.31837 | BB45: 11867.29499 | BC45: 11926.56724
A46: BRA23 | B46: 17.9625616 | C46: N | D46: 0 | E46: 0 | F46: 0 | G46: 0 | H46: 0 | I46: 218 | J46: 183 | K46: 154 | L46: 161 | M46: 160.8 | N46: 139.5 | O46: 154.8 | P46: 154.2 | Q46: 160.8 | R46: 17.9625616 | S46: 17.89451403 | T46: 17.81606191 | U46: 17.72965371 | V46: 17.63613897 | W46: 17.5368527 | X46: 17.43307421 | Y46: 17.32611599 | Z46: 17.21678508 | AA46: 17.10631199 | AB46: 16.99582041 | AC46: 19.89901605 | AD46: 19.82363261 | AE46: 19.73672296 | AF46: 19.64099953 | AG46: 19.53740342 | AH46: 19.42741359 | AI46: 19.31244726 | AJ46: 19.19395841 | AK46: 19.07284107 | AL46: 18.95045843 | AM46: 18.8280553 | AN46: 1708 | AO46: 1709 | AP46: 1713 | AQ46: 1719 | AR46: 1724 | AS46: 1732.870226 | AT46: 1741.740451 | AU46: 1750.426501 | AV46: 1759.180066 | AW46: 1767.953531 | AX46: 1776.770973 | AY46: 1785.632613 | AZ46: 1794.563133 | BA46: 1803.513955 | BB46: 1812.509644 | BC46: 1821.550423
A47: lyd | C47: N | D47: 0 | E47: 0 | F47: 0 | G47: 0 | H47: 0 | I47: 16.95405629 | J47: 19.86554812 | K47: 21.3728943 | L47: 22.3 | M47: 0 | N47: 0 | O47: 19.29167 | P47: 20.4 | Q47: 22.31429 | R47: 16.96231495 | S47: 16.96104668 | T47: 16.93074163 | U47: 16.88729866 | V47: 16.8415579 | W47: 16.79549993 | X47: 16.75111849 | Y47: 16.6607757 | Z47: 16.56700365 | AA47: 16.47104376 | AB47: 16.37405344 | AC47: 18.79093778 | AD47: 18.78953279 | AE47: 18.75596071 | AF47: 18.70783436 | AG47: 18.65716252 | AH47: 18.60613926 | AI47: 18.55697328 | AJ47: 18.45689109 | AK47: 18.35300994 | AL47: 18.24670509 | AM47: 18.13925872 | AN47: 0 | AO47: 7223 | AP47: 7341 | AQ47: 7361 | AR47: 7396 | AS47: 7472.045406 | AT47: 7548.090812 | AU47: 7610.970273 | AV47: 7670.673013 | AW47: 7734.073149 | AX47: 7801.699481 | AY47: 7873.964892 | AZ47: 7914.742486 | BA47: 7954.711105 | BB47: 7994.023957 | BC47: 8032.755993
A48: lys | C48: N | M48: 0 | N48: 0 | O48: 0 | P48: 0 | Q48: 0 | R48: 0 | S48: 0 | T48: 0 | U48: 0 | V48: 0 | W48: 0 | X48: 0 | Y48: 0 | Z48: 0.2348316287 | AA48: 0.2461327345 | AB48: 0.2705964553 | AC48: 0 | AD48: 0 | AE48: 0 | AF48: 0 | AG48: 0 | AH48: 0 | AI48: 0 | AJ48: 0 | AK48: 0.2601476589 | AL48: 0.2726670808 | AM48: 0.2997681137 | AN48: 1 | AO48: 1 | AP48: 1 | AQ48: 1 | AR48: 2 | AS48: 59.92902877 | AT48: 117.8580575 | AU48: 154.0137048 | AV48: 154.478342 | AW48: 154.562948 | AX48: 155.4444853 | AY48: 156.7897427 | AZ48: 159.0297358 | BA48: 163.1684223 | BB48: 171.5170162 | BC48: 189.5893774
A49: mby | B49: 8.982337188 | C49: N | D49: 0 | E49: 0 | F49: 0 | G49: 0 | H49: 0 | I49: 4.488909979 | J49: 4.007993138 | K49: 5.463363638 | L49: 5.1 | M49: 0 | N49: 0 | O49: 3.943 | P49: 6.844 | Q49: 4.262 | R49: 8.982337188 | S49: 8.938387788 | T49: 8.889648952 | U49: 8.836690179 | V49: 8.780213137 | W49: 8.72089113 | X49: 8.659303512 | Y49: 8.596049164 | Z49: 8.531584913 | AA49: 8.46650009 | AB49: 8.401356991 | AC49: 9.950678298 | AD49: 9.901990931 | AE49: 9.847997804 | AF49: 9.789329809 | AG49: 9.726764258 | AH49: 9.66104704 | AI49: 9.592819968 | AJ49: 9.522746482 | AK49: 9.451332661 | AL49: 9.379231367 | AM49: 9.307065515 | AN49: 1293 | AO49: 2012 | AP49: 2039 | AQ49: 2025 | AR49: 2033 | AS49: 2043.825684 | AT49: 2054.651367 | AU49: 2065.239588 | AV49: 2075.653001 | AW49: 2086.026105 | AX49: 2096.451205 | AY49: 2106.92856 | AZ49: 2117.487355 | BA49: 2128.070153 | BB49: 2138.705998 | BC49: 2149.395155
A50: mdg | C50: N | D50: 0 | E50: 0 | F50: 0 | G50: 0 | H50: 0 | I50: 1.154585068 | J50: 1.166016604 | K50: 1.143153533 | L50: 1.314626563 | M50: 0 | N50: 0 | O50: 0 | P50: 0 | Q50: 0 | R50: 1.247344912 | S50: 1.248279776 | T50: 1.24872074 | U50: 1.248747824 | V50: 1.248399932 | W50: 1.247772371 | X50: 1.246949346 | Y50: 1.246013971 | Z50: 0.05971057498 | AA50: 0.07206233768 | AB50: 0.08644614322 | AC50: 1.381814964 | AD50: 1.382850612 | AE50: 1.383339114 | AF50: 1.383369118 | AG50: 1.382983721 | AH50: 1.382288506 | AI50: 1.381376755 | AJ50: 1.380340542 | AK50: 0.06614767517 | AL50: 0.07983101999 | AM50: 0.09576547209 | AN50: 764 | AO50: 762 | AP50: 774 | AQ50: 762 | AR50: 760 | AS50: 763.8225135 | AT50: 767.6450271 | AU50: 771.4867009 | AV50: 775.3582355 | AW50: 779.2385717 | AX50: 783.512241 | AY50: 788.8235966 | AZ50: 795.3105752 | BA50: 803.0510817 | BB50: 812.1758391 | BC50: 822.8017505
A51: mdi | C51: N | M51: 0 | N51: 0 | O51: 0 | P51: 0 | Q51: 0 | R51: 0.1558793465 | S51: 0.1497699034 | T51: 0.1431692533 | U51: 0.1361299165 | V51: 0.1287023137 | W51: 0.1209473562 | X51: 0.1129273021 | Y51: 0.1047067742 | Z51: 0.003584174825 | AA51: 0.003980017165 | AB51: 0.004377843659 | AC51: 0.1726839238 | AD51: 0.165915852 | AE51: 0.1586036187 | AF51: 0.1508054059 | AG51: 0.1425770702 | AH51: 0.1339860893 | AI51: 0.125101433 | AJ51: 0.1159946909 | AK51: 0.003970566892 | AL51: 0.004409083026 | AM51: 0.004849797216 | AN51: 57 | AO51: 59 | AP51: 57 | AQ51: 56 | AR51: 56 | AS51: 56.28095132 | AT51: 56.56190264 | AU51: 56.84426222 | AV51: 57.12881654 | AW51: 57.41401777 | AX51: 57.70064857 | AY51: 57.98871611 | AZ51: 58.27902274 | BA51: 58.56998937 | BB51: 58.86241446 | BC51: 59.15630533
A52: mfa | C52: N | D52: 0 | E52: 0 | F52: 0 | G52: 26.36904773 | H52: 30 | I52: 27.07378989 | J52: 25.86015639 | K52: 30.22593427 | L52: 26.8 | M52: 26.82 | N52: 26.982 | O52: 27.612 | P52: 29.07 | Q52: 27.738 | R52: 23.96004146 | S52: 23.8760386 | T52: 23.77592402 | U52: 23.66544027 | V52: 23.54574767 | W52: 23.41870914 | X52: 23.27809414 | Y52: 23.13430684 | Z52: 22.98960597 | AA52: 22.84524681 | AB52: 22.70283545 | AC52: 26.54305439 | AD52: 26.44999561 | AE52: 26.33908817 | AF52: 26.21669372 | AG52: 26.08409766 | AH52: 25.94336373 | AI52: 25.78758972 | AJ52: 25.62830143 | AK52: 25.46800108 | AL52: 25.30807928 | AM52: 25.15031526 | AN52: 6338 | AO52: 7972 | AP52: 8032 | AQ52: 8059 | AR52: 8091 | AS52: 8142.346103 | AT52: 8193.692206 | AU52: 8242.610137 | AV52: 8292.12333 | AW52: 8341.990973 | AX52: 8392.384505 | AY52: 8437.419928 | AZ52: 8483.607075 | BA52: 8531.563658 | BB52: 8581.13418 | BC52: 8632.399358
A53: mjg | B53: 14.75554462 | C53: N | D53: 0 | E53: 0 | F53: 0 | G53: 2.387529908 | H53: 2.14783637 | I53: 2.65618623 | J53: 2.734695849 | K53: 2.993129662 | L53: 1.7 | M53: 0 | N53: 0 | O53: 2.505 | P53: 12.51 | Q53: 1.605 | R53: 14.75554462 | S53: 14.703773 | T53: 14.62466083 | U53: 14.52621247 | V53: 14.42134185 | W53: 14.31186053 | X53: 14.19864156 | Y53: 14.08259372 | Z53: 13.96453323 | AA53: 13.84539302 | AB53: 13.72609519 | AC53: 16.34626652 | AD53: 16.28891366 | AE53: 16.20127279 | AF53: 16.0922112 | AG53: 15.97603501 | AH53: 15.85475106 | AI53: 15.72932651 | AJ53: 15.60076813 | AK53: 15.46998012 | AL53: 15.337996 | AM53: 15.20583727 | AN53: 1266 | AO53: 1277 | AP53: 1288 | AQ53: 1309 | AR53: 1329 | AS53: 1356.551189 | AT53: 1384.102379 | AU53: 1399.661046 | AV53: 1407.20895 | AW53: 1414.173189 | AX53: 1421.172337 | AY53: 1428.206567 | AZ53: 1435.295474 | BA53: 1442.400496 | BB53: 1449.541132 | BC53: 1456.717561
A54: moe | C54: N | D54: 0 | E54: 0 | F54: 0 | G54: 34.71082956 | H54: 32.34877465 | I54: 26.94003797 | J54: 28.2038839 | K54: 31.01320263 | L54: 33.3 | M54: 0 | N54: 23.37 | O54: 28.2 | P54: 30.69 | Q54: 33.48 | R54: 23.21057426 | S54: 23.18624322 | T54: 23.13421229 | U54: 23.06402212 | V54: 22.98389613 | W54: 22.89614582 | X54: 22.80267624 | Y54: 22.70542233 | Z54: 22.60520332 | AA54: 22.50371638 | AB54: 22.40241044 | AC54: 25.71279086 | AD54: 25.68583682 | AE54: 25.62819669 | AF54: 25.55043967 | AG54: 25.4616757 | AH54: 25.36446546 | AI54: 25.26091939 | AJ54: 25.15318101 | AK54: 25.0421579 | AL54: 24.92973015 | AM54: 24.81750292 | AN54: 11773 | AO54: 14347 | AP54: 14490 | AQ54: 14540 | AR54: 14597 | AS54: 14685.64648 | AT54: 14774.29295 | AU54: 14853.0181 | AV54: 14927.12175 | AW54: 15001.21981 | AX54: 15075.68929 | AY54: 15150.53204 | AZ54: 15225.95653 | BA54: 15301.5525 | BB54: 15377.52739 | BC54: 15453.8831
A55: msd | B55: 17.19026383 | C55: N | D55: 0 | E55: 0 | F55: 0 | G55: 14.03303114 | H55: 9.379274981 | I55: 15.09325312 | J55: 15.35932033 | K55: 17.48105985 | L55: 16.1 | M55: 0 | N55: 0 | O55: 11.042 | P55: 16.893 | Q55: 15.416 | R55: 17.19026383 | S55: 17.28050536 | T55: 17.35803361 | U55: 17.43164718 | V55: 17.50215475 | W55: 17.57229366 | X55: 17.6445201 | Y55: 17.72140278 | Z55: 17.80303871 | AA55: 17.89139169 | AB55: 17.98786231 | AC55: 19.0434607 | AD55: 19.14343072 | AE55: 19.22931691 | AF55: 19.31086638 | AG55: 19.38897503 | AH55: 19.46667526 | AI55: 19.54668808 | AJ55: 19.6318591 | AK55: 19.72229579 | AL55: 19.82017367 | AM55: 19.9270443 | AN55: 5642.86367 | AO55: 5722.757388 | AP55: 5844.077477 | AQ55: 5931.368761 | AR55: 5958 | AS55: 6049.898209 | AT55: 6141.796418 | AU55: 6233.639936 | AV55: 6328.81539 | AW55: 6426.927135 | AX55: 6528.360915 | AY55: 6633.252775 | AZ55: 6742.047471 | BA55: 6854.300001 | BB55: 6970.458845 | BC55: 7090.687648
A56: mwe | C56: N | M56: 0 | N56: 0 | O56: 0 | P56: 0 | Q56: 0 | R56: 0 | S56: 0 | T56: 0 | U56: 0 | V56: 0 | W56: 0 | X56: 0 | Y56: 0 | Z56: 0.002659560001 | AA56: 0.002950896322 | AB56: 0.00325733594 | AC56: 0 | AD56: 0 | AE56: 0 | AF56: 0 | AG56: 0 | AH56: 0 | AI56: 0 | AJ56: 0 | AK56: 0.00294627394 | AL56: 0.003269017782 | AM56: 0.003608493131 | AN56: 27 | AO56: 33 | AP56: 34 | AQ56: 33 | AR56: 35 | AS56: 35.30009702 | AT56: 35.60019404 | AU56: 35.77988364 | AV56: 35.95349862 | AW56: 36.12752883 | AX56: 36.3061941 | AY56: 36.49280513 | AZ56: 36.68869396 | BA56: 36.89358473 | BB56: 37.1088069 | BC56: 37.33518651
A57: mwts | C57: N | M57: 0 | N57: 0 | O57: 0 | P57: 0 | Q57: 0 | R57: 44.76613687 | S57: 45.00110968 | T57: 45.37879939 | U57: 45.93644226 | V57: 46.71162024 | W57: 47.27818231 | X57: 47.82382809 | Y57: 48.3456643 | Z57: 14.54332486 | AA57: 15.7617269 | AB57: 17.0039911 | AC57: 49.5921515 | AD57: 49.85245556 | AE57: 50.27086212 | AF57: 50.88862169 | AG57: 51.74736775 | AH57: 52.37500807 | AI57: 52.97947721 | AJ57: 53.55756998 | AK57: 16.1111684 | AL57: 17.46092031 | AM57: 18.83710684 | AN57: 110436 | AO57: 135988 | AP57: 149591 | AQ57: 139367 | AR57: 147025 | AS57: 148518.4185 | AT57: 150011.837 | AU57: 151396.1681 | AV57: 152705.4011 | AW57: 153725.1954 | AX57: 154683.0636 | AY57: 155594.0078 | AZ57: 156485.1582 | BA57: 157375.224 | BB57: 158275.3079 | BC57: 159193.0198
A58: myt | B58: 16.31622256 | C58: N | D58: 0 | E58: 0 | F58: 0 | G58: 15.66919892 | H58: 14.36231224 | I58: 13.21226737 | J58: 12.83462287 | K58: 14.07839268 | L58: 14.9 | M58: 0 | N58: 0 | O58: 11.88 | P58: 14.04 | Q58: 14.28 | R58: 16.31622256 | S58: 16.29159646 | T58: 16.25556605 | U58: 16.20945809 | V58: 16.15405237 | W58: 16.09083362 | X58: 16.02112971 | Y58: 15.94625823 | Z58: 15.86683022 | AA58: 15.78404082 | AB58: 15.69894088 | AC58: 18.07519339 | AD58: 18.04791246 | AE58: 18.0079978 | AF58: 17.95691916 | AG58: 17.89554043 | AH58: 17.82550638 | AI58: 17.74828805 | AJ58: 17.66534504 | AK58: 17.5773543 | AL58: 17.48563978 | AM58: 17.39136564 | AN58: 4916 | AO58: 5653 | AP58: 5720 | AQ58: 5739 | AR58: 5754 | AS58: 5797.772872 | AT58: 5841.545743 | AU58: 5884.228411 | AV58: 5925.908498 | AW58: 5966.322837 | AX58: 6005.560242 | AY58: 6043.603072 | AZ58: 6080.54211 | BA58: 6116.176245 | BB58: 6150.618 | BC58: 6183.886399
A59: nla | B59: 8.264789338 | C59: N | D59: 0 | E59: 0 | F59: 0 | G59: 7.829818372 | H59: 7.253689103 | I59: 6.504132936 | J59: 6.498105903 | K59: 7.348488604 | L59: 7.1 | M59: 0 | N59: 0 | O59: 5.664 | P59: 7.332 | Q59: 7.368 | R59: 8.264789338 | S59: 8.26766093 | T59: 8.269591154 | U59: 8.279544992 | V59: 8.301182006 | W59: 8.307187955 | X59: 8.31027519 | Y59: 8.310738473 | Z59: 8.308897142 | AA59: 8.304348126 | AB59: 8.295853532 | AC59: 9.155775182 | AD59: 9.158956346 | AE59: 9.161094658 | AF59: 9.172121569 | AG59: 9.196091162 | AH59: 9.202744583 | AI59: 9.206164637 | AJ59: 9.206677865 | AK59: 9.204638029 | AL59: 9.199598606 | AM59: 9.190188252 | AN59: 2079 | AO59: 3569 | AP59: 3600 | AQ59: 3605 | AR59: 3586 | AS59: 3614.355584 | AT59: 3642.711168 | AU59: 3673.175585 | AV59: 3710.147119 | AW59: 3755.37508 | AX59: 3794.111275 | AY59: 3832.537057 | AZ59: 3870.432566 | BA59: 3907.70781 | BB59: 3943.881212 | BC59: 3978.022115
A60: nrn | C60: N | D60: 0 | E60: 0 | F60: 0 | G60: 39.03853197 | H60: 39.27279624 | I60: 18.2204493 | J60: 19.22840899 | K60: 23.04861179 | L60: 24.7 | M60: 9.3 | N60: 16.35 | O60: 18.45 | P60: 20.76 | Q60: 23.61 | R60: 17.17028675 | S60: 17.10007053 | T60: 17.01967436 | U60: 16.93138952 | V60: 16.836529 | W60: 16.7376561 | X60: 16.63638483 | Y60: 16.53417513 | Z60: 16.43201708 | AA60: 16.33130838 | AB60: 16.23335486 | AC60: 19.02132999 | AD60: 18.94354411 | AE60: 18.85448083 | AF60: 18.75667844 | AG60: 18.65159147 | AH60: 18.54205959 | AI60: 18.42987075 | AJ60: 18.31664234 | AK60: 18.20347114 | AL60: 18.09190553 | AM60: 17.98339213 | AN60: 5715 | AO60: 5743 | AP60: 5757 | AQ60: 5674 | AR60: 5680 | AS60: 5709.963083 | AT60: 5739.926166 | AU60: 5768.945446 | AV60: 5797.941055 | AW60: 5827.109659 | AX60: 5857.515736 | AY60: 5889.480875 | AZ60: 5923.25902 | BA60: 5958.828022 | BB60: 5996.443987 | BC60: 6036.278689
A61: ofr | B61: 31.18589426 | C61: N | D61: 0 | E61: 0 | F61: 0 | G61: 0 | H61: 29.48219764 | I61: 30.70846752 | J61: 32.10436104 | K61: 42.37381571 | L61: 38.8 | M61: 25.3 | N61: 28 | O61: 31.4 | P61: 34.3 | Q61: 41.9 | R61: 31.18589426 | S61: 31.74756711 | T61: 32.35346471 | U61: 32.91132024 | V61: 33.43319753 | W61: 33.93147936 | X61: 34.41952143 | Y61: 34.90147857 | Z61: 35.37920555 | AA61: 35.85454594 | AB61: 36.32940485 | AC61: 34.54789046 | AD61: 35.17011446 | AE61: 35.84133087 | AF61: 36.45932603 | AG61: 37.03746432 | AH61: 37.58946344 | AI61: 38.13011889 | AJ61: 38.66403343 | AK61: 39.19326179 | AL61: 39.71984626 | AM61: 40.24589735 | AN61: 8465 | AO61: 11882 | AP61: 12630 | AQ61: 13164 | AR61: 13725 | AS61: 14495.54367 | AT61: 15266.08735 | AU61: 16115.56635 | AV61: 16944.99419 | AW61: 17760.5366 | AX61: 18568.62533 | AY61: 19376.67065 | AZ61: 20184.64829 | BA61: 20992.606 | BB61: 21800.51963 | BC61: 22608.38896
A62: phi | B62: 15.97203789 | C62: N | D62: 0 | E62: 0 | F62: 0 | G62: 14.89744735 | H62: 19.30504544 | I62: 16.8098077 | J62: 16.72715351 | K62: 19.18012901 | L62: 19.1 | M62: 0 | N62: 0 | O62: 14.76 | P62: 18.72 | Q62: 19.08 | R62: 15.97203789 | S62: 16.157672 | T62: 16.29989834 | U62: 16.42418965 | V62: 16.53741678 | W62: 16.64227656 | X62: 16.74092228 | Y62: 16.83543099 | Z62: 16.92527674 | AA62: 17.01185389 | AB62: 17.09595205 | AC62: 17.69390388 | AD62: 17.89955028 | AE62: 18.05710933 | AF62: 18.19479987 | AG62: 18.32023346 | AH62: 18.43639765 | AI62: 18.54567787 | AJ62: 18.6503751 | AK62: 18.74990667 | AL62: 18.84581727 | AM62: 18.93898164 | AN62: 9102 | AO62: 9255 | AP62: 9458 | AQ62: 9555 | AR62: 9723 | AS62: 9859.819358 | AT62: 9996.638716 | AU62: 10119.27327 | AV62: 10238.75083 | AW62: 10357.37915 | AX62: 10475.37742 | AY62: 10592.63901 | AZ62: 10709.37665 | BA62: 10824.84922 | BB62: 10939.27629 | BC62: 11052.55998
A63: phm | C63: N | D63: 0 | E63: 0 | F63: 0 | G63: 48.029391 | H63: 33.43326084 | I63: 32.9419793 | J63: 33.72577645 | K63: 39.87546131 | L63: 42.7 | M63: 27.42 | N63: 29.58 | O63: 33.6 | P63: 39.87 | Q63: 41.22 | R63: 33.4010943 | S63: 34.40812298 | T63: 35.25884171 | U63: 36.10223702 | V63: 36.9363481 | W63: 37.76002877 | X63: 38.57183755 | Y63: 39.37710331 | Z63: 40.17786398 | AA63: 40.97603022 | AB63: 41.77361619 | AC63: 37.0019002 | AD63: 38.11749163 | AE63: 39.05992211 | AF63: 39.99423968 | AG63: 40.91827213 | AH63: 41.83074972 | AI63: 42.73007556 | AJ63: 43.62215302 | AK63: 44.50923972 | AL63: 45.39345229 | AM63: 46.27702204 | AN63: 5720 | AO63: 11787 | AP63: 12837 | AQ63: 13398 | AR63: 13674 | AS63: 14512.2815 | AT63: 15350.56301 | AU63: 16109.78549 | AV63: 16888.86637 | AW63: 17681.77586 | AX63: 18482.01346 | AY63: 19282.16829 | AZ63: 20082.19413 | BA63: 20882.18194 | BB63: 21682.08572 | BC63: 22481.90506
A64: RUB | B64: msd | C64: N | H64: 8.939132967 | I64: 8.303663878 | J64: 9.390970053 | K64: 9.50787232 | L64: 9.5 | M64: 0 | N64: 0 | O64: 0 | P64: 0 | Q64: 0 | R64: 6.649845459 | S64: 6.684229959 | T64: 6.713705545 | U64: 6.741655656 | V64: 6.768393802 | W64: 6.794974863 | X64: 6.822345981 | Y64: 6.851497206 | Z64: 0.3103593243 | AA64: 0.343931115 | AB64: 0.3776711838 | AC64: 7.366732233 | AD64: 7.404823556 | AE64: 7.437476758 | AF64: 7.468440031 | AG64: 7.498060684 | AH64: 7.527507317 | AI64: 7.557829178 | AJ64: 7.590123053 | AK64: 0.3438176199 | AL64: 0.3810086184 | AM64: 0.4183860363 | AN64: 4387 | AO64: 4533 | AP64: 4667 | AQ64: 4694 | AR64: 4724 | AS64: 4749.989343 | AT64: 4775.978685 | AU64: 4799.925888 | AV64: 4824.059229 | AW64: 4848.247435 | AX64: 4872.556884 | AY64: 4896.988184 | AZ64: 4921.609385 | BA64: 4946.28656 | BB64: 4971.087428 | BC64: 4996.012611
A65: rwn | C65: N | D65: 0 | E65: 0 | F65: 0 | G65: 55.37835253 | H65: 58.25782515 | I65: 44.25219802 | J65: 50.47075523 | K65: 54.44617377 | L65: 58.1 | M65: 0 | N65: 0 | O65: 53.07 | P65: 53.43 | Q65: 23.43 | R65: 24.10524743 | S65: 24.31724419 | T65: 24.47631187 | U65: 24.58763182 | V65: 24.65364684 | W65: 24.68063135 | X65: 24.67517643 | Y65: 24.64631587 | Z65: 24.61519156 | AA65: 24.58982044 | AB65: 24.57210436 | AC65: 26.7039143 | AD65: 26.93876537 | AE65: 27.11498136 | AF65: 27.23830215 | AG65: 27.31143392 | AH65: 27.3413275 | AI65: 27.33528451 | AJ65: 27.30331264 | AK65: 27.26883297 | AL65: 27.24072672 | AM65: 27.22110075 | AN65: 19204 | AO65: 19368 | AP65: 19569 | AQ65: 19761 | AR65: 19853 | AS65: 20106.88826 | AT65: 20360.77652 | AU65: 20591.26627 | AV65: 20799.2061 | AW65: 20983.5993 | AX65: 21146.45326 | AY65: 21290.35295 | AZ65: 21420.43407 | BA65: 21551.27103 | BB65: 21687.71062 | BC65: 21830.05935
A66: rwt | C66: N | M66: 0 | N66: 0 | O66: 0 | P66: 0 | Q66: 0 | R66: 73.87370866 | S66: 74.09850744 | T66: 74.34134957 | U66: 74.49569445 | V66: 74.59943075 | W66: 74.65132338 | X66: 74.65699643 | Y66: 74.62595626 | Z66: 1.200184019 | AA66: 1.297052364 | AB66: 1.392351608 | AC66: 81.83766588 | AD66: 82.0866991 | AE66: 82.35572082 | AF66: 82.52670486 | AG66: 82.64162445 | AH66: 82.69911137 | AI66: 82.705396 | AJ66: 82.67100954 | AK66: 1.329569891 | AL66: 1.43688113 | AM66: 1.542454112 | AN66: 11841 | AO66: 14193 | AP66: 14348 | AQ66: 14359 | AR66: 14683 | AS66: 14792.49115 | AT66: 14901.98231 | AU66: 15015.55474 | AV66: 15116.95894 | AW66: 15213.43881 | AX66: 15303.5456 | AY66: 15387.20149 | AZ66: 15465.46085 | BA66: 15539.66754 | BB66: 15611.22819 | BC66: 15681.62968
A67: sfs | C67: N | D67: 0 | E67: 0 | F67: 0 | G67: 0 | H67: 0 | I67: 1.520394199 | J67: 1.520394199 | K67: 1.428941916 | L67: 1.54325727 | R67: 1.454025763 | S67: 1.456172169 | T67: 1.457793233 | U67: 1.458978472 | V67: 1.459767012 | W67: 1.460265664 | X67: 1.460567296 | Y67: 1.460763371 | Z67: 277.7483269 | AA67: 275.1233175 | AB67: 272.4940107 | AC67: 1.610777051 | AD67: 1.61315485 | AE67: 1.614950673 | AF67: 1.616263687 | AG67: 1.617137235 | AH67: 1.617689645 | AI67: 1.618023794 | AJ67: 1.618241007 | AK67: 307.690993 | AL67: 304.7829943 | AM67: 301.870235 | AN67: 0 | AO67: 0 | AP67: 0 | AQ67: 0 | AR67: 0 | AS67: 0 | AT67: 0 | AU67: 0 | AV67: 0 | AW67: 0 | AX67: 0 | AY67: 0 | AZ67: 0 | BA67: 0 | BB67: 0 | BC67: 0
A68: sle | C68: N | D68: 0 | E68: 0 | F68: 0 | G68: 25.46036131 | H68: 24.19580923 | I68: 22.4178504 | J68: 24.00940616 | K68: 25.55696897 | L68: 30.1 | M68: 0 | N68: 0 | O68: 24 | P68: 24 | Q68: 24 | R68: 19.69978245 | S68: 19.7443373 | T68: 19.7526552 | U68: 19.74089036 | V68: 19.71829682 | W68: 19.6868609 | X68: 19.6482983 | Y68: 19.60430955 | Z68: 19.55522122 | AA68: 19.50244181 | AB68: 19.44708548 | AC68: 21.82351805 | AD68: 21.87287613 | AE68: 21.88209074 | AF68: 21.86905759 | AG68: 21.84402836 | AH68: 21.80920349 | AI68: 21.76648364 | AJ68: 21.71775269 | AK68: 21.66337239 | AL68: 21.60490309 | AM68: 21.54357907 | AN68: 9914 | AO68: 11797 | AP68: 11979 | AQ68: 12036 | AR68: 12214 | AS68: 12333.71084 | AT68: 12453.42168 | AU68: 12556.83048 | AV68: 12653.69783 | AW68: 12749.3242 | AX68: 12843.82119 | AY68: 12937.04618 | AZ68: 13029.11944 | BA68: 13119.42326 | BB68: 13208.11315 | BC68: 13295.10838
A69: smg | B69: 23.98772275 | C69: N | D69: 0 | E69: 0 | F69: 0 | G69: 0 | H69: 0 | I69: 0 | J69: 0 | K69: 0 | L69: 37.47000122 | M69: 0 | N69: 0 | O69: 0 | P69: 0 | Q69: 0 | R69: 23.98772275 | S69: 24.41051545 | T69: 24.83330814 | U69: 24.97934658 | V69: 25.08660017 | W69: 25.19436799 | X69: 25.30267725 | Y69: 25.41180535 | Z69: 25.52123211 | AA69: 25.63118354 | AB69: 25.74168736 | AC69: 26.57371987 | AD69: 27.04209174 | AE69: 27.51046362 | AF69: 27.67224574 | AG69: 27.79106179 | AH69: 27.91044754 | AI69: 28.03043307 | AJ69: 28.15132573 | AK69: 28.27254925 | AL69: 28.39435399 | AM69: 28.51677068 | AN69: 0 | AO69: 0 | AP69: 0 | AQ69: 0 | AR69: 10846 | AS69: 12051.18441 | AT69: 13256.36882 | AU69: 13485.97053 | AV69: 13565.27813 | AW69: 13623.52323 | AX69: 13682.0476 | AY69: 13740.866 | AZ69: 13800.12908 | BA69: 13859.55435 | BB69: 13919.26455 | BC69: 13979.27473
A70: smr | C70: N | D70: 0 | E70: 0 | F70: 0 | G70: 36.87224566 | H70: 36.2654712 | I70: 34.95227087 | J70: 30.27600545 | K70: 32.74626162 | L70: 35.9 | M70: 0 | N70: 0 | O70: 30.6 | P70: 32.7 | Q70: 35.94 | R70: 25.18809098 | S70: 25.17405651 | T70: 25.13403382 | U70: 25.06124653 | V70: 24.95871662 | W70: 24.83372284 | X70: 24.70013219 | Y70: 24.5621865 | Z70: 24.42095092 | AA70: 24.27817701 | AB70: 24.13543552 | AC70: 27.90349383 | AD70: 27.88794637 | AE70: 27.84360903 | AF70: 27.76297491 | AG70: 27.64939176 | AH70: 27.51092302 | AI70: 27.36293062 | AJ70: 27.2101137 | AK70: 27.05365221 | AL70: 26.89548655 | AM70: 26.73735681 | AN70: 8025 | AO70: 10860 | AP70: 11062 | AQ70: 11120 | AR70: 11165 | AS70: 11269.63559 | AT70: 11374.27119 | AU70: 11471.20859 | AV70: 11553.98706 | AW70: 11622.96559 | AX70: 11681.78525 | AY70: 11739.16971 | AZ70: 11797.00021 | BA70: 11854.96218 | BB70: 11913.21468 | BC70: 11971.75917
A71: tgn | B71: sle | C71: N | D71: 0 | E71: 0 | F71: 0 | G71: 43.32138671 | H71: 40.89660361 | I71: 31.65388143 | J71: 37.56275265 | K71: 41.28301782 | L71: 33.8 | M71: 0 | N71: 0 | O71: 33.69 | P71: 41.01 | Q71: 0 | R71: 27.0188196 | S71: 27.07992785 | T71: 27.0913361 | U71: 27.07520028 | V71: 27.04421259 | W71: 27.00109732 | X71: 26.9482076 | Y71: 26.88787577 | Z71: 55.39974577 | AA71: 54.95580771 | AB71: 54.51138682 | AC71: 29.9315842 | AD71: 29.99928023 | AE71: 30.01191834 | AF71: 29.994043 | AG71: 29.95971468 | AH71: 29.91195137 | AI71: 29.85335987 | AJ71: 29.78652396 | AK71: 61.3721169 | AL71: 60.88032009 | AM71: 60.38798839 | AN71: 9912 | AO71: 10137 | AP71: 10323 | AQ71: 10341 | AR71: 16601 | AS71: 16678.31141 | AT71: 16755.62282 | AU71: 16825.74002 | AV71: 16889.19082 | AW71: 16946.15456 | AX71: 16998.77001 | AY71: 17051.36234 | AZ71: 17104.36345 | BA71: 17157.48506 | BB71: 17210.87294 | BC71: 17264.52842
A72: trc | C72: N | M72: 0 | N72: 0 | O72: 0 | P72: 0 | Q72: 0 | Z72: 0.01540459263 | AA72: 0.01710590194 | AB72: 0.01881573903 | AC72: 0 | AD72: 0 | AE72: 0 | AF72: 0 | AG72: 0 | AH72: 0 | AI72: 0 | AJ72: 0 | AK72: 0.01706528517 | AL72: 0.01895000417 | AM72: 0.0208441703 | AN72: 231 | AO72: 233 | AP72: 239 | AQ72: 239 | AR72: 234 | AS72: 235.2075138 | AT72: 236.4150276 | AU72: 237.6285941 | AV72: 238.8515934 | AW72: 240.0773731 | AX72: 241.3092971 | AY72: 242.547396 | AZ72: 243.7951185 | BA72: 245.0456775 | BB72: 246.302505 | BC72: 247.5656323
A73: tt | B73: 65.0006923 | C73: N | D73: 0 | E73: 0 | F73: 0 | G73: 88.86990495 | H73: 78.91831372 | I73: 72.52234138 | J73: 69.74847363 | K73: 71.5118172 | L73: 76.6 | M73: 0 | N73: 0 | O73: 68.7 | P73: 71.5 | Q73: 77.7 | R73: 65.0006923 | S73: 64.89838589 | T73: 65.03873673 | U73: 65.00937295 | V73: 65.06701504 | W73: 65.04321212 | X73: 64.94333111 | Y73: 64.77645313 | Z73: 64.5525739 | AA73: 64.28231135 | AB73: 63.9775038 | AC73: 72.00809374 | AD73: 71.89475818 | AE73: 72.05023955 | AF73: 72.0177102 | AG73: 72.08156641 | AH73: 72.0551974 | AI73: 71.94454872 | AJ73: 71.75968045 | AK73: 71.51166593 | AL73: 71.21226772 | AM73: 70.87460038 | AN73: 12272 | AO73: 12466 | AP73: 12788 | AQ73: 12985 | AR73: 13228 | AS73: 13388.54618 | AT73: 13549.09236 | AU73: 13850.20041 | AV73: 14084.11927 | AW73: 14379.12229 | AX73: 14644.7127 | AY73: 14879.77228 | AZ73: 15086.26639 | BA73: 15267.434 | BB73: 15426.78042 | BC73: 15568.40999
A74: uwy | C74: N | D74: 0 | E74: 0 | F74: 0 | G74: 0 | H74: 0 | I74: 1.577551876 | J74: 1.497531128 | K74: 1.486099593 | L74: 1.600414946 | R74: 1.536112356 | S74: 1.539264022 | T74: 1.540951322 | U74: 1.542193642 | V74: 1.543030887 | W74: 1.543572296 | X74: 1.543912807 | Y74: 1.544145913 | Z74: 191.2191119 | AA74: 189.4118932 | AB74: 187.6017159 | AC74: 1.701712992 | AD74: 1.705204423 | AE74: 1.707073622 | AF74: 1.70844987 | AG74: 1.709377375 | AH74: 1.70997715 | AI74: 1.71035437 | AJ74: 1.710612606 | AK74: 211.8334936 | AL74: 209.8314476 | AM74: 207.8261241 | AN74: 0 | AO74: 0 | AP74: 0 | AQ74: 0 | AR74: 0 | AS74: 0 | AT74: 0 | AU74: 0 | AV74: 0 | AW74: 0 | AX74: 0 | AY74: 0 | AZ74: 0 | BA74: 0 | BB74: 0 | BC74: 0
A75: wgi | B75: 32.59414047 | C75: N | D75: 0 | E75: 0 | F75: 0 | G75: 33.9614035 | H75: 36.20879045 | I75: 32.13201694 | J75: 32.1046176 | K75: 35.9353935 | L75: 41.1 | M75: 0 | N75: 0 | O75: 25.35 | P75: 35.4 | Q75: 39.9 | R75: 32.59414047 | S75: 32.49299598 | T75: 32.36476305 | U75: 32.22190027 | V75: 32.06597093 | W75: 31.89951346 | X75: 31.7249339 | Y75: 31.54469429 | Z75: 31.36018346 | AA75: 31.1736704 | AB75: 30.98719301 | AC75: 36.10795269 | AD75: 35.99590431 | AE75: 35.85384723 | AF75: 35.69558312 | AG75: 35.52284382 | AH75: 35.3384414 | AI75: 35.14504128 | AJ75: 34.94537094 | AK75: 34.74096891 | AL75: 34.5343488 | AM75: 34.32776821 | AN75: 14222 | AO75: 17785 | AP75: 18211 | AQ75: 18260 | AR75: 18537 | AS75: 18591.0879 | AT75: 18645.17579 | AU75: 18694.64546 | AV75: 18744.4862 | AW75: 18794.44025 | AX75: 18844.64469 | AY75: 18895.10078 | AZ75: 18945.94906 | BA75: 18996.91294 | BB75: 19048.13227 | BC75: 19099.60834
A76: wgl | C76: N | D76: 0 | E76: 0 | F76: 0 | G76: 56.5240637 | H76: 58.31845884 | I76: 45.49734149 | J76: 49.05097259 | K76: 58.9834708 | L76: 63.4 | M76: 0 | N76: 0 | O76: 51.55 | P76: 57.6 | Q76: 62.5 | R76: 45.70564329 | S76: 46.12789806 | T76: 46.51748478 | U76: 46.87500488 | V76: 46.83587398 | W76: 46.72862894 | X76: 46.56843178 | Y76: 46.36894609 | Z76: 46.155942 | AA76: 45.9414821 | AB76: 45.72842657 | AC76: 50.63294143 | AD76: 51.10071739 | AE76: 51.53230351 | AF76: 51.92836608 | AG76: 51.88501668 | AH76: 51.76621008 | AI76: 51.58874286 | AJ76: 51.36775161 | AK76: 51.13178461 | AL76: 50.89420485 | AM76: 50.65818087 | AN76: 18522 | AO76: 19088 | AP76: 19693 | AQ76: 20032 | AR76: 20401 | AS76: 20896.23314 | AT76: 21391.46628 | AU76: 21890.2945 | AV76: 22389.61956 | AW76: 22619.30549 | AX76: 22811.3241 | AY76: 22973.33786 | AZ76: 23112.90801 | BA76: 23247.09346 | BB76: 23382.76674 | BC76: 23519.95896
A77: wn | C77: N | D77: 0 | E77: 0 | F77: 0 | G77: 52.51604284 | H77: 49.43162532 | I77: 47.89340547 | J77: 42.16685565 | K77: 46.75882911 | L77: 47.6 | M77: 35.64 | N77: 46.86 | O77: 42.3 | P77: 46.38 | Q77: 47.52 | R77: 41.9050986 | S77: 41.80201542 | T77: 41.67071061 | U77: 41.5195429 | V77: 41.35048747 | W77: 41.16709378 | X77: 40.97266353 | Y77: 40.77056207 | Z77: 40.56261581 | AA77: 40.35189433 | AB77: 40.14099545 | AC77: 46.42267891 | AD77: 46.30848285 | AE77: 46.16302272 | AF77: 45.99555837 | AG77: 45.80827792 | AH77: 45.60511347 | AI77: 45.38972266 | AJ77: 45.16583364 | AK77: 44.93546974 | AL77: 44.70203141 | AM77: 44.46839658 | AN77: 13996 | AO77: 16590 | AP77: 16850 | AQ77: 16888 | AR77: 17021 | AS77: 17140.69891 | AT77: 17260.39781 | AU77: 17376.54125 | AV77: 17493.10251 | AW77: 17609.43859 | AX77: 17725.86834 | AY77: 17842.39926 | AZ77: 17959.3696 | BA77: 18076.2926 | BB77: 18193.54408 | BC77: 18311.11131
A78: wo | B78: 35.49454107 | C78: N | D78: 0 | E78: 0 | F78: 0 | G78: 57.73268139 | H78: 54.2753397 | I78: 54.29530359 | J78: 46.25083777 | K78: 49.39068736 | L78: 47.1 | M78: 0 | N78: 53.35 | O78: 46.7 | P78: 49 | Q78: 46.85 | R78: 35.49454107 | S78: 35.38062503 | T78: 35.23216984 | U78: 35.05353544 | V78: 34.85283604 | W78: 34.64004961 | X78: 34.41769389 | Y78: 34.18826724 | Z78: 33.95349585 | AA78: 33.71581345 | AB78: 33.4775085 | AC78: 39.32103106 | AD78: 39.1948343 | AE78: 39.03037489 | AF78: 38.8324828 | AG78: 38.61014699 | AH78: 38.37442112 | AI78: 38.12809433 | AJ78: 37.87393434 | AK78: 37.61385342 | AL78: 37.35054765 | AM78: 37.08655223 | AN78: 11327 | AO78: 11555 | AP78: 11792 | AQ78: 11839 | AR78: 11929 | AS78: 12025.93517 | AT78: 12122.87034 | AU78: 12207.07156 | AV78: 12279.89864 | AW78: 12345.9838 | AX78: 12411.74633 | AY78: 12477.26326 | AZ78: 12542.7251 | BA78: 12607.80455 | BB78: 12672.72779 | BC78: 12737.55653
A79: wots | C79: N | M79: 0 | N79: 0 | O79: 0 | P79: 0 | Q79: 0 | R79: 43.96027923 | S79: 44.06194602 | T79: 44.17841236 | U79: 44.53203265 | V79: 44.70665619 | W79: 44.7617172 | X79: 44.78968948 | Y79: 44.81481348 | Z79: 1.05802673 | AA79: 1.15753212 | AB79: 1.256967844 | AC79: 48.69941835 | AD79: 48.81204534 | AE79: 48.94106734 | AF79: 49.33280967 | AG79: 49.5262585 | AH79: 49.58725537 | AI79: 49.61824319 | AJ79: 49.64607569 | AK79: 1.172087331 | AL79: 1.282319902 | AM79: 1.392475297 | AN79: 13326 | AO79: 13568 | AP79: 13833 | AQ79: 13890 | AR79: 13977 | AS79: 14082.20944 | AT79: 14187.41889 | AU79: 14279.99348 | AV79: 14361.17499 | AW79: 14435.63356 | AX79: 14509.81148 | AY79: 14583.78597 | AZ79: 14657.77112 | BA79: 14731.39325 | BB79: 14804.902 | BC79: 14878.35927
A80: wt | C80: N | D80: 0 | E80: 0 | F80: 0 | G80: 0 | H80: 67.37704756 | I80: 59.85910952 | J80: 58.67176307 | K80: 65.67315407 | L80: 67.7 | M80: 49.82 | N80: 51.75312 | O80: 57.15562 | P80: 64.32813 | Q80: 67.25563 | R80: 46.67766934 | S80: 46.74169821 | T80: 46.90079723 | U80: 47.01034801 | V80: 47.05321745 | W80: 47.05168613 | X80: 47.02966511 | Y80: 46.99974479 | Z80: 46.97084117 | AA80: 47.14624059 | AB80: 47.32857526 | AC80: 51.70975677 | AD80: 51.78068828 | AE80: 51.95693898 | AF80: 52.07829988 | AG80: 52.12579087 | AH80: 52.12409446 | AI80: 52.09969946 | AJ80: 52.06655358 | AK80: 52.03453401 | AL80: 52.22884236 | AM80: 52.43083363 | AN80: 18984 | AO80: 21769 | AP80: 21979 | AQ80: 22139 | AR80: 22546 | AS80: 22801.31587 | AT80: 23056.63175 | AU80: 23399.94057 | AV80: 23728.37859 | AW80: 24025.50885 | AX80: 24303.38884 | AY80: 24575.77777 | AZ80: 24849.10638 | BA80: 25127.92421 | BB80: 25560.30829 | BC80: 25998.31145
A81: wyk | B81: 26.66008 | C81: N | D81: 0 | E81: 0 | F81: 0 | G81: 32.81059794 | H81: 32.66327288 | I81: 24.29887946 | J81: 27.09285319 | K81: 28.16663607 | L81: 32.3 | M81: 0 | N81: 21.24 | O81: 26.304 | P81: 27.312 | Q81: 30.912 | R81: 26.66008 | S81: 26.63709455 | T81: 26.62297217 | U81: 26.62328984 | V81: 26.64282488 | W81: 26.6891219 | X81: 26.94496104 | Y81: 27.20869438 | Z81: 27.47362904 | AA81: 27.73742949 | AB81: 28.0016107 | AC81: 29.53417066 | AD81: 29.50870726 | AE81: 29.49306242 | AF81: 29.49341434 | AG81: 29.51505536 | AH81: 29.56634342 | AI81: 29.84976331 | AJ81: 30.14192843 | AK81: 30.43542439 | AL81: 30.72766385 | AM81: 31.02032512 | AN81: 12357 | AO81: 12434 | AP81: 12533 | AQ81: 12552 | AR81: 12595 | AS81: 12682.17822 | AT81: 12769.35643 | AU81: 12870.87234 | AV81: 12989.53534 | AW81: 13127.44503 | AX81: 13288.026 | AY81: 13581.53013 | AZ81: 13883.07963 | BA81: 14187.61175 | BB81: 14492.70142 | BC81: 14798.25927
A82: yn | C82: N | M82: 0 | N82: 0 | O82: 0 | P82: 0 | Q82: 0 | AN82: 23 | AO82: 24 | AP82: 24 | AQ82: 24 | AR82: 24 | AS82: 24.12030136 | AT82: 24.24060273 | AU82: 24.3615071 | AV82: 24.48335125 | AW82: 24.6054724 | AX82: 24.72820567 | AY82: 24.85155415 | AZ82: 24.9758614 | BA82: 25.10045124 | BB82: 25.2256656 | BC82: 25.35150759
A83: 0 | C83: N
A84: 0 | C84: N
A85: 0 | C85: N
A86: 0 | C86: N
A87: 0 | C87: N
A88: 0 | C88: N
A89: 0 | C89: N
R106: 12
R107: 18 | S107: 19 | T107: 20 | U107: 21 | V107: 22 | W107: 23 | X107: 24 | Y107: 25 | Z107: 26 | AA107: 27 | AB107: 28 | AC107: 29 | AD107: 30 | AE107: 31 | AF107: 32 | AG107: 33 | AH107: 34 | AI107: 35 | AJ107: 36 | AK107: 37 | AL107: 38 | AM107: 39
I110: 54196 | J110: 50526 | K110: 53901 | L110: 54167 | M110: 55594.53192 | N110: 43153.61614 | O110: 48397.58295 | P110: 57799.81881 | Q110: 58328.24423 | R110: 57798.47545 | S110: 58473.71705 | T110: 59178.98085 | U110: 59837.93657 | V110: 60446.818 | W110: 61020.84691 | X110: 61584.50656 | Y110: 62131.6883 | Z110: 62668.5567 | AA110: 63209.88785 | AB110: 63748.97484 | AC110: 64696.92283 | AD110: 65366.27879 | AE110: 66063.17069 | AF110: 66710.09416 | AG110: 67300.73568 | AH110: 67849.65394 | AI110: 68383.57375 | AJ110: 68897.81078 | AK110: 69400.1928 | AL110: 69906.67223 | AM110: 70410.75653
I111: 38.10511777 | J111: 38.10511777 | K111: 38.10511777 | L111: 38.10511777 | M111: 38.10511777 | N111: 38.10511777 | O111: 38.10511777 | P111: 38.10511777 | Q111: 38.10511777 | R111: 38.10511777 | S111: 38.10511777 | T111: 38.10511777 | U111: 38.10511777 | V111: 38.10511777 | W111: 38.10511777 | X111: 38.10511777 | Y111: 38.10511777 | Z111: 38.10511777 | AA111: 38.10511777 | AB111: 38.10511777 | AC111: 38.10511777 | AD111: 38.10511777 | AE111: 38.10511777 | AF111: 38.10511777 | AG111: 38.10511777 | AH111: 38.10511777 | AI111: 38.10511777 | AJ111: 38.10511777 | AK111: 38.10511777 | AL111: 38.10511777 | AM111: 38.10511777
I112: 1422.276145 | J112: 1325.963623 | K112: 1414.534403 | L112: 1421.515092 | M112: 1458.978089 | N112: 1132.488723 | O112: 1270.107161 | P112: 1516.851861 | Q112: 1530.719432 | R112: 1516.816607 | S112: 1534.537104 | T112: 1553.045478 | U112: 1570.338581 | V112: 1586.317575 | W112: 1601.381927 | X112: 1616.174156 | Y112: 1630.533953 | Z112: 1644.623094 | AA112: 1658.829353 | AB112: 1672.976717 | AC112: 1697.853901 | AD112: 1715.419939 | AE112: 1733.708608 | AF112: 1750.685946 | AG112: 1766.186266 | AH112: 1780.591635 | AI112: 1794.603396 | AJ112: 1808.098618 | AK112: 1821.282727 | AL112: 1834.574365 | AM112: 1847.803147
R114: 0.06704221114 | S114: 0.01168268872 | T114: 0.01206121045 | U114: 0.01113496226 | V114: 0.01017550837 | W114: 0.009496429005 | X114: 0.00923716531 | Y114: 0.008885055157 | Z114: 0.008640814524 | AA114: 0.008638002646 | AB114: 0.008528523009 | AC114: 0.1943973791 | AD114: 0.01034602461 | AE114: 0.01066133665 | AF114: 0.009792498025 | AG114: 0.008853855252 | AH114: 0.008156200041 | AI114: 0.007869160316 | AJ114: 0.007519891176 | AK114: 0.007291697945 | AL114: 0.007297954179 | AM114: 0.007210818056
I115: 0.9376717911 | J115: 0.8741753066 | K115: 0.9325678503 | L115: 0.9371700478
I116: 0.9945567939 | J116: 1.066797292 | K116: 1 | L116: 0.995089261
H120: 1740.300577 | I120: 1541.106198 | J120: 1615.658399 | K120: 1734.522661 | L120: 1812.5283 | M120: 351.7845 | N120: 492.27462 | O120: 1542.121385 | P120: 1693.845163 | Q120: 1684.2827 | R120: 1541.146458 | S120: 1550.408793 | T120: 1557.308483 | U120: 1563.296729 | V120: 1568.128237 | W120: 1571.963239 | X120: 1575.441867 | Y120: 1578.460878 | Z120: 1884.471562 | AA120: 1883.280058 | AB120: 1882.118232 | AC120: 1707.289795 | AD120: 1717.550656 | AE120: 1725.194168 | AF120: 1731.827976 | AG120: 1737.180345 | AH120: 1741.428779 | AI120: 1745.282421 | AJ120: 1748.626897 | AK120: 2087.627071 | AL120: 2086.307117 | AM120: 2085.02004
L121: 1531.939458 | S121: 9.262334261 | T121: 6.899690587 | U121: 5.988245426 | V121: 4.831507908 | W121: 3.835002106 | X121: 3.478627996 | Y121: 3.019011201 | Z121: 306.0106842 | AA121: -1.191504043 | AB121: -1.161826151 | AD121: 10.26086046 | AE121: 7.643511922 | AF121: 6.63380839 | AG121: 5.352368752 | AH121: 4.248434614 | AI121: 3.853641583 | AJ121: 3.344475787 | AK121: 339.0001745 | AL121: -1.31995417 | AM121: -1.287076852
R122: 0 | S122: 0 | T122: 0 | U122: 0 | V122: 0 | W122: 0 | X122: 0 | Y122: 0 | Z122: 0 | AA122: 0 | AB122: 0 | AD122: 1.006010029 | AE122: 1.00445024 | AF122: 1.003845253 | AG122: 1.003090589 | AH122: 1.002445592 | AI122: 1.002212919 | AJ122: 1.001916295 | AK122: 1.193866499 | AL122: 0.9993677251 | AM122: 0.9993830837
R123: 1.006010029 | S123: 1.006010029 | T123: 1.00445024 | U123: 1.003845253 | V123: 1.003090589 | W123: 1.002445592 | X123: 1.002212919 | Y123: 1.001916295 | Z123: 1.193866499 | AA123: 0.9993677251 | AB123: 0.9993830837

Sheet Summary
D20: Planner Actuals | L20: =L6/M8 ->  | M20: Extracted Actuals | R20: P50 | AC20: P10 | AN20: Customers
B21: STD | C21: Locked | D21: 2006 | E21: 2007 | F21: 2008 | G21: 2009 | H21: 2010 | I21: 2011 | J21: 2012 | K21: 2013 | L21: 2014 | M21: 2010 | N21: 2011 | O21: 2012 | P21: 2013 | Q21: 2014 | R21: 2015 | S21: 2016 | T21: 2017 | U21: 2018 | V21: 2019 | W21: 2020 | X21: 2021 | Y21: 2022 | Z21: 2023 | AA21: 2024 | AB21: 2025 | AC21: =R21 -> 2015 | AD21: 2016 | AE21: 2017 | AF21: 2018 | AG21: 2019 | AH21: 2020 | AI21: 2021 | AJ21: 2022 | AK21: 2023 | AL21: 2024 | AM21: 2025 | AN21: 2010 | AO21: =AN21+1 -> 2011 | AP21: =AO21+1 -> 2012 | AQ21: 2013 | AR21: 2014 | AS21: 2015 | AT21: 2016 | AU21: 2017 | AV21: 2018 | AW21: 2019 | AX21: 2020 | AY21: 2021 | AZ21: 2022 | BA21: 2023 | BB21: 2024 | BC21: 2025
A22: bdl | C22: N | D22: 0 | E22: 0 | F22: 0 | G22: 56.00942853 | H22: 47.44369852 | I22: 44.16043038 | J22: 37.84059618 | K22: 51.2412663 | L22: 55.5 | M22: 0 | N22: 0 | O22: 42.64 | P22: 51.24 | Q22: 55.56 | R22: 51.92958518 | S22: 52.35049019 | T22: 52.65468229 | U22: 52.86439719 | V22: 53.00152506 | W22: 53.08255113 | X22: 53.11785992 | Y22: 53.13354551 | Z22: 53.13711605 | AA22: 53.1316376 | AB22: 53.12399671 | AC22: 57.52785555 | AD22: 57.93581378 | AE22: 58.21520922 | AF22: 58.39001969 | AG22: 58.48398841 | AH22: 58.515115 | AI22: 58.49486581 | AJ22: 58.45191602 | AK22: 58.39483851 | AL22: 58.32739144 | AM22: 58.25749375 | AN22: 18657 | AO22: 21015 | AP22: 21401 | AQ22: 21606 | AR22: 21874 | AS22: 22136.3224 | AT22: 22398.64479 | AU22: 22622.68602 | AV22: 22814.84478 | AW22: 22982.06828 | AX22: 23129.46778 | AY22: 23259.79716 | AZ22: 23383.77407 | BA22: 23504.04851 | BB22: 23621.20186 | BC22: 23737.55602
A23: bge | C23: N | D23: 0 | E23: 0 | F23: 0 | G23: 33.03248515 | H23: 29.25535981 | I23: 25.00262212 | J23: 26.68304586 | K23: 29.54418533 | L23: 34.7 | M23: 0 | N23: 0 | O23: 30.168 | P23: 29.472 | Q23: 34.608 | R23: 31.90682203 | S23: 31.93728805 | T23: 31.95805406 | U23: 31.9708105 | V23: 31.97629432 | W23: 31.97641937 | X23: 31.9728619 | Y23: 31.96727098 | Z23: 31.95986738 | AA23: 31.95192448 | AB23: 31.94439419 | AC23: 36.62111971 | AD23: 36.62861028 | AE23: 36.62377781 | AF23: 36.60863565 | AG23: 36.58413974 | AH23: 36.55256305 | AI23: 36.5159207 | AJ23: 36.47624084 | AK23: 36.43400056 | AL23: 36.39085935 | AM23: 36.34812278 | AN23: 8590 | AO23: 12136 | AP23: 12178 | AQ23: 12177 | AR23: 12185 | AS23: 12234.8019 | AT23: 12284.60379 | AU23: 12334.6225 | AV23: 12385.02999 | AW23: 12435.55209 | AX23: 12486.32742 | AY23: 12537.35726 | AZ23: 12588.78375 | BA23: 12640.32716 | BB23: 12692.12892 | BC23: 12744.19034
A24: bn | C24: N | D24: 0 | E24: 0 | F24: 0 | G24: 39.69883037 | H24: 37.41331963 | I24: 36.20904483 | J24: 32.01484964 | K24: 33.04014757 | L24: 34.9 | M24: 0 | N24: 0 | O24: 31.08 | P24: 32.55 | Q24: 34.98 | R24: 32.48320743 | S24: 32.54295543 | T24: 32.58909808 | U24: 32.62503625 | V24: 32.65161023 | W24: 32.67115294 | X24: 32.68626514 | Y24: 32.69926718 | Z24: 32.71029974 | AA24: 32.72082988 | AB24: 32.73191524 | AC24: 36.87737834 | AD24: 36.91425533 | AE24: 36.93480612 | AF24: 36.94284522 | AG24: 36.93941986 | AH24: 36.92720295 | AI24: 36.90916746 | AJ24: 36.88803005 | AK24: 36.8641868 | AL24: 36.83948251 | AM24: 36.81532241 | AN24: 10551 | AO24: 11723 | AP24: 11823 | AQ24: 11835 | AR24: 11856 | AS24: 11917.35029 | AT24: 11978.70058 | AU24: 12039.47109 | AV24: 12100.33485 | AW24: 12160.95663 | AX24: 12221.50364 | AY24: 12282.20968 | AZ24: 12343.38758 | BA24: 12404.70456 | BB24: 12466.3289 | BC24: 12528.26212
A25: bra | C25: N | D25: 0 | E25: 0 | F25: 0 | G25: 78.86110985 | H25: 74.62245998 | I25: 65.09665539 | J25: 65.17608919 | K25: 69.93892858 | L25: 73.7 | M25: 73.4745 | N25: 57.9195 | O25: 68.8995 | P25: 69.21975 | Q25: 75.396 | R25: 71.49481572 | S25: 71.92441973 | T25: 72.20007213 | U25: 72.53498751 | V25: 72.95019481 | W25: 73.08546942 | X25: 73.20706399 | Y25: 73.35569766 | Z25: 73.50028721 | AA25: 73.64236551 | AB25: 73.78338539 | AC25: 80.10122175 | AD25: 80.4939664 | AE25: 80.72063663 | AF25: 81.00703214 | AG25: 81.37588561 | AH25: 81.44533143 | AI25: 81.49803827 | AJ25: 81.57765018 | AK25: 81.65171689 | AL25: 81.72242037 | AM25: 81.79186944 | AN25: 20869 | AO25: 22239 | AP25: 22558 | AQ25: 22774 | AR25: 22901 | AS25: 23105.59767 | AT25: 23310.19534 | AU25: 23475.78116 | AV25: 23668.93242 | AW25: 23896.06046 | AX25: 24035.01252 | AY25: 24172.76351 | AZ25: 24321.90136 | BA25: 24471.26401 | BB25: 24620.66467 | BC25: 24769.87467
A26: brt | C26: N | D26: 0 | E26: 0 | F26: 0 | G26: 0 | H26: 8.121988758 | I26: 7.700244243 | J26: 8.716778802 | K26: 9.291729288 | L26: 8.8 | M26: 0 | N26: 0 | O26: 6.93 | P26: 9.566 | Q26: 8.533 | R26: 8.006836144 | S26: 8.020420268 | T26: 8.024711352 | U26: 8.026186318 | V26: 8.025328092 | W26: 8.022736117 | X26: 8.018938103 | Y26: 8.01445524 | Z26: 8.009374114 | AA26: 8.004103444 | AB26: 7.998954165 | AC26: 8.933810892 | AD26: 8.93985265 | AE26: 8.935320863 | AF26: 8.927266047 | AG26: 8.916259324 | AH26: 8.903000871 | AI26: 8.888115624 | AJ26: 8.872233643 | AK26: 8.855524938 | AL26: 8.838511895 | AM26: 8.821612294 | AN26: 2484 | AO26: 3985 | AP26: 4048 | AQ26: 4060 | AR26: 4077 | AS26: 4100.585844 | AT26: 4124.171687 | AU26: 4144.706482 | AV26: 4165.272911 | AW26: 4185.886097 | AX26: 4206.602606 | AY26: 4227.422957 | AZ26: 4248.405141 | BA26: 4269.435025 | BB26: 4290.570322 | BC26: 4311.81156
A27: bwa | C27: N | D27: 0 | E27: 0 | F27: 0 | G27: 13.61524138 | H27: 13.24651237 | I27: 11.513006 | J27: 10.73632229 | K27: 12.26999953 | L27: 12.4 | M27: 9.42 | N27: 11.43 | O27: 10.44 | P27: 11.73 | Q27: 11.76 | R27: 12.33694934 | S27: 12.3617223 | T27: 12.3843641 | U27: 12.40444281 | V27: 12.42266366 | W27: 12.43960476 | X27: 12.45575264 | Y27: 12.47157969 | Z27: 12.48704217 | AA27: 12.5024704 | AB27: 12.51807665 | AC27: 13.47709709 | AD27: 13.49910838 | AE27: 13.51856809 | AF27: 13.53502642 | AG27: 13.54926471 | AH27: 13.56192735 | AI27: 13.57355999 | AJ27: 13.58470513 | AK27: 13.595357 | AL27: 13.60591756 | AM27: 13.61666141 | AN27: 1768 | AO27: 1780 | AP27: 1802 | AQ27: 1812 | AR27: 1814 | AS27: 1821.066761 | AT27: 1828.133522 | AU27: 1835.293328 | AV27: 1842.42475 | AW27: 1849.572385 | AX27: 1856.755847 | AY27: 1863.975315 | AZ27: 1871.2509 | BA27: 1878.543025 | BB27: 1885.871702 | BC27: 1893.237113
A28: bwn | C28: N | D28: 0 | E28: 0 | F28: 0 | G28: 32.24570193 | H28: 23.93610664 | I28: 18.05481815 | J28: 19.06221429 | K28: 23.39818419 | L28: 22.3 | M28: 0 | N28: 0 | O28: 19.2125 | P28: 22.32969 | Q28: 22.3375 | R28: 22.11745598 | S28: 22.16199938 | T28: 22.1890079 | U28: 22.20963065 | V28: 22.22516651 | W28: 22.23701666 | X28: 22.2463948 | Y28: 22.25448988 | Z28: 22.26138656 | AA28: 22.26797832 | AB28: 22.27490896 | AC28: 23.39870693 | AD28: 23.43644095 | AE28: 23.45409396 | AF28: 23.46409197 | AG28: 23.46792268 | AH28: 23.46718928 | AI28: 23.46328759 | AJ28: 23.45761574 | AK28: 23.45036974 | AL28: 23.44265181 | AM28: 23.43528762 | AN28: 4173 | AO28: 7023 | AP28: 7084 | AQ28: 7110 | AR28: 7173 | AS28: 7212.456567 | AT28: 7251.913134 | AU28: 7287.777398 | AV28: 7323.630326 | AW28: 7359.564762 | AX28: 7395.679319 | AY28: 7431.9749 | AZ28: 7468.5526 | BA28: 7505.213458 | BB28: 7542.058077 | BC28: 7579.087379
A29: bwr | C29: N | D29: 0 | E29: 0 | F29: 0 | G29: 62.9194899 | H29: 67.85578889 | I29: 69.77025785 | J29: 62.8028554 | K29: 64.85876908 | L29: 64.8 | M29: 0 | N29: 0 | O29: 0 | P29: 53.6 | Q29: 63.40625 | R29: 60.63166762 | S29: 60.93369395 | T29: 61.23824348 | U29: 61.05385679 | V29: 61.1489082 | W29: 61.34455566 | X29: 61.52451747 | Y29: 61.71390364 | Z29: 61.89553101 | AA29: 62.07182439 | AB29: 62.24479956 | AC29: 65.91967652 | AD29: 66.19782054 | AE29: 66.4765652 | AF29: 66.23544234 | AG29: 66.28846761 | AH29: 66.44654884 | AI29: 66.58652748 | AJ29: 66.73531087 | AK29: 66.87502234 | AL29: 67.00860632 | AM29: 67.13858102 | AN29: 15658 | AO29: 15785 | AP29: 16084 | AQ29: 16158 | AR29: 16329 | AS29: 16456.98931 | AT29: 16584.97862 | AU29: 16720.25653 | AV29: 16722.99775 | AW29: 16808.92972 | AX29: 16927.3334 | AY29: 17043.49591 | AZ29: 17163.90284 | BA29: 17283.08962 | BB29: 17401.30131 | BC29: 17518.65375
A30: cf | C30: N | M30: 0 | N30: 0 | O30: 0 | P30: 0 | Q30: 0 | AN30: 702 | AO30: 703 | AP30: 0 | AQ30: 709 | AR30: 715 | AS30: 718.6916211 | AT30: 722.3832422 | AU30: 726.0046375 | AV30: 729.6541813 | AW30: 733.3120221 | AX30: 736.9979277 | AY30: 740.7754244 | AZ30: 744.6743149 | BA30: 748.6823951 | BB30: 752.8193012 | BC30: 757.0942795
A31: cln | C31: N | D31: 0 | E31: 0 | F31: 0 | G31: 60.16598495 | H31: 70.18948252 | I31: 52.10172899 | J31: 59.77276816 | K31: 42.08784737 | L31: 47.3 | M31: 0 | N31: 0 | O31: 37.4 | P31: 41.975 | Q31: 47.3125 | R31: 46.84023859 | S31: 50.82572979 | T31: 55.00946357 | U31: 59.16686716 | V31: 62.93044413 | W31: 65.95311966 | X31: 69.13902437 | Y31: 72.49275578 | Z31: 75.97923037 | AA31: 79.59389152 | AB31: 83.33565859 | AC31: 55.16754007 | AD31: 59.54871779 | AE31: 64.15552566 | AF31: 68.73760777 | AG31: 72.88360004 | AH31: 76.20365677 | AI31: 79.7051993 | AJ31: 83.39283341 | AK31: 87.22777795 | AL31: 91.20535242 | AM31: 95.32476648 | AN31: 12773 | AO31: 14882 | AP31: 15889 | AQ31: 16908 | AR31: 18399 | AS31: 20113.3535 | AT31: 21827.707 | AU31: 23676.00348 | AV31: 25557.78353 | AW31: 27300.51856 | AX31: 28733.5341 | AY31: 30247.36628 | AZ31: 31838.44421 | BA31: 33490.43591 | BB31: 35200.67628 | BC31: 36968.04534
A32: cnr | C32: N | D32: 0 | E32: 0 | F32: 0 | G32: 3.155326108 | H32: 2.891364277 | I32: 2.319156076 | J32: 2.561667625 | K32: 2.974538816 | L32: 2.7 | M32: 0 | N32: 0 | O32: 0 | P32: 0 | Q32: 0 | R32: 3.061953643 | S32: 3.086242272 | T32: 3.104904996 | U32: 3.118526864 | V32: 3.127428023 | W32: 3.132198081 | X32: 3.133305189 | Y32: 3.131164048 | Z32: 3.125949482 | AA32: 3.118048999 | AB32: 3.109231767 | AC32: 3.294408744 | AD32: 3.316849579 | AE32: 3.333009557 | AF32: 3.343525525 | AG32: 3.348750637 | AH32: 3.349334926 | AI32: 3.345801933 | AJ32: 3.338627876 | AK32: 3.328036164 | AL32: 3.31448234 | AM32: 3.299924144 | AN32: 1376 | AO32: 1386 | AP32: 1403 | AQ32: 1409 | AR32: 1409 | AS32: 1417.161536 | AT32: 1425.323073 | AU32: 1432.469808 | AV32: 1439.672094 | AW32: 1446.890754 | AX32: 1454.145597 | AY32: 1461.436805 | AZ32: 1468.784687 | BA32: 1476.149273 | BB32: 1483.550774 | BC32: 1490.989375
A33: cre | C33: N | D33: 0 | E33: 0 | F33: 0 | G33: 0 | H33: 0 | I33: 0 | J33: 14.73881978 | K33: 42.34301134 | L33: 45.7 | M33: 0 | N33: 0 | O33: 32.77 | P33: 41.59 | Q33: 46.16 | R33: 42.86702913 | S33: 44.03829537 | T33: 44.85300075 | U33: 45.48411946 | V33: 46.16895604 | W33: 46.9047743 | X33: 47.0242711 | Y33: 47.08547242 | Z33: 47.14448116 | AA33: 47.20313512 | AB33: 47.26266915 | AC33: 50.7504445 | AD33: 52.01192491 | AE33: 52.8765977 | AF33: 53.53592826 | AG33: 54.25409875 | AH33: 55.02808067 | AI33: 55.11260612 | AJ33: 55.13088645 | AK33: 55.14591549 | AL33: 55.16010114 | AM33: 55.17518555 | AN33: 0 | AO33: 0 | AP33: 0 | AQ33: 15532 | AR33: 15913 | AS33: 16391.05335 | AT33: 16869.10671 | AU33: 17228.72485 | AV33: 17528.66312 | AW33: 17857.43798 | AX33: 18212.21882 | AY33: 18325.42923 | AZ33: 18417.02709 | BA33: 18508.83319 | BB33: 18601.09947 | BC33: 18693.82824
A34: cyn | C34: N | D34: 0 | E34: 0 | F34: 0 | G34: 91.19460208 | H34: 83.18307407 | I34: 82.09252333 | J34: 77.1298255 | K34: 78.04947432 | L34: 80.4 | M34: 0 | N34: 0 | O34: 0 | P34: 61.5 | Q34: 79.65 | R34: 74.50852536 | S34: 74.72424848 | T34: 75.01111098 | U34: 75.34438914 | V34: 75.72364976 | W34: 76.1484118 | X34: 76.61875056 | Y34: 77.12752415 | Z34: 77.64114255 | AA34: 78.14986585 | AB34: 78.65610825 | AC34: 83.67774314 | AD34: 83.83636013 | AE34: 84.06625246 | AF34: 84.34182047 | AG34: 84.66306021 | AH34: 85.02983659 | AI34: 85.44252843 | AJ34: 85.89398173 | AK34: 86.34915729 | AL34: 86.79834689 | AM34: 87.24475496 | AN34: 23736 | AO34: 23959 | AP34: 24475 | AQ34: 26955 | AR34: 27095 | AS34: 27261.5908 | AT34: 27428.1816 | AU34: 27631.18634 | AV34: 27861.62694 | AW34: 28118.38575 | AX34: 28399.58761 | AY34: 28702.87597 | AZ34: 29023.7112 | BA34: 29348.43013 | BB34: 29672.42171 | BC34: 29995.68231
A35: drn | C35: N | D35: 0 | E35: 0 | F35: 0 | G35: 25.77256353 | H35: 41.43394349 | I35: 40.05241828 | J35: 52.75624262 | K35: 63.68600958 | L35: 54.5 | M35: 0 | N35: 0 | O35: 0 | P35: 41.58 | Q35: 54.42 | R35: 54.95168195 | S35: 56.02762532 | T35: 57.66395829 | U35: 59.31228934 | V35: 61.00984208 | W35: 62.71263074 | X35: 64.39301308 | Y35: 66.00992618 | Z35: 67.56977861 | AA35: 68.95466734 | AB35: 70.24938614 | AC35: 64.68611217 | AD35: 65.77467238 | AE35: 67.45475369 | AF35: 69.14691288 | AG35: 70.89048276 | AH35: 72.63856627 | AI35: 74.36144534 | AJ35: 76.01554287 | AK35: 77.60808754 | AL35: 79.01438749 | AM35: 80.32488494 | AN35: 10376 | AO35: 12321 | AP35: 14557 | AQ35: 15917 | AR35: 16945 | AS35: 17296.0458 | AT35: 17647.09159 | AU35: 18176.4885 | AV35: 18723.64541 | AW35: 19297.30526 | AX35: 19880.47052 | AY35: 20460.29968 | AZ35: 21021.55533 | BA35: 21565.85823 | BB35: 22055.94173 | BC35: 22517.91984
A36: elm | C36: N | D36: 0 | E36: 0 | F36: 0 | G36: 76.27871831 | H36: 75.54584808 | I36: 61.08538952 | J36: 65.18179735 | K36: 69.37895919 | L36: 71.5 | M36: 0 | N36: 0 | O36: 70.05 | P36: 69.2 | Q36: 72.2 | R36: 65.4848985 | S36: 65.85486802 | T36: 66.18882691 | U36: 66.51130966 | V36: 66.84081944 | W36: 67.18350786 | X36: 67.53794709 | Y36: 67.65082098 | Z36: 67.73259405 | AA36: 67.78504933 | AB36: 67.81054624 | AC36: 77.75412804 | AD36: 78.10453042 | AE36: 78.41186496 | AF36: 78.70364119 | AG36: 79.0007261 | AH36: 79.31021745 | AI36: 79.63071678 | AJ36: 79.67969906 | AK36: 79.69271598 | AL36: 79.67230607 | AM36: 79.62166314 | AN36: 25094 | AO36: 25287 | AP36: 25542 | AQ36: 25665 | AR36: 25769 | AS36: 25983.16967 | AT36: 26197.33934 | AU36: 26408.27942 | AV36: 26624.07259 | AW36: 26850.59124 | AX36: 27088.56157 | AY36: 27335.25724 | AZ36: 27485.03681 | BA36: 27623.69157 | BB36: 27751.21984 | BC36: 27867.84128
A37: epg | C37: N | D37: 0 | E37: 0 | F37: 0 | G37: 91.66112838 | H37: 81.05852858 | I37: 55.39440873 | J37: 59.15892564 | K37: 67.84983936 | L37: 49 | M37: 0 | N37: 0 | O37: 0 | P37: 39.2535 | Q37: 49.08975 | R37: 45.62735951 | S37: 45.86183587 | T37: 46.6521036 | U37: 47.14781219 | V37: 47.28837769 | W37: 47.32002723 | X37: 47.31061121 | Y37: 47.35347202 | Z37: 47.36500267 | AA37: 47.38761867 | AB37: 47.42439724 | AC37: 51.96283174 | AD37: 52.15987145 | AE37: 52.94220809 | AF37: 53.41066642 | AG37: 53.50049969 | AH37: 53.47266592 | AI37: 53.39939058 | AJ37: 53.38011199 | AK37: 53.32654356 | AL37: 53.28416158 | AM37: 53.25670183 | AN37: 13580 | AO37: 16142 | AP37: 17260 | AQ37: 18128 | AR37: 18855 | AS37: 19021.46027 | AT37: 19187.92055 | AU37: 19589.49876 | AV37: 19882.43024 | AW37: 20034.72695 | AX37: 20145.89342 | AY37: 20242.95236 | AZ37: 20364.72878 | BA37: 20474.77285 | BB37: 20590.47939 | BC37: 20712.41307
A38: fgy | C38: N | D38: 0 | E38: 0 | F38: 0 | G38: 77.61011829 | H38: 75.50854259 | I38: 60.17607497 | J38: 59.83518881 | K38: 64.03586963 | L38: 73.4 | M38: 0 | N38: 54.3 | O38: 59.6 | P38: 62.1 | Q38: 73.5 | R38: 67.99138467 | S38: 68.38477752 | T38: 68.77751107 | U38: 69.22345373 | V38: 69.29235483 | W38: 69.50062192 | X38: 69.69754991 | Y38: 69.93647916 | Z38: 70.17714328 | AA38: 70.42124484 | AB38: 70.67069679 | AC38: 78.11034061 | AD38: 78.46856777 | AE38: 78.82307092 | AF38: 79.23121373 | AG38: 79.2370988 | AH38: 79.38841247 | AI38: 79.52561555 | AJ38: 79.70570989 | AK38: 79.88646693 | AL38: 80.07021572 | AM38: 80.25951963 | AN38: 17644 | AO38: 22403 | AP38: 22751 | AQ38: 22718 | AR38: 22782 | AS38: 22967.86634 | AT38: 23153.73268 | AU38: 23348.48282 | AV38: 23569.16119 | AW38: 23669.12963 | AX38: 23820.91914 | AY38: 23971.85654 | AZ38: 24139.18773 | BA38: 24308.48159 | BB38: 24479.71824 | BC38: 24652.93731
A39: ftr | C39: N | D39: 0 | E39: 0 | F39: 0 | G39: 18.60089471 | H39: 19.20937313 | I39: 18.57165957 | J39: 17.35789327 | K39: 19.58238175 | L39: 17.5 | M39: 0 | N39: 17.76 | O39: 17.4 | P39: 19.56 | Q39: 18.48 | R39: 18.95326516 | S39: 18.99599748 | T39: 19.0319663 | U39: 19.07067719 | V39: 19.11343742 | W39: 19.16265872 | X39: 19.22078429 | Y39: 19.29052818 | Z39: 19.37286079 | AA39: 19.47022548 | AB39: 19.58477595 | AC39: 19.91042334 | AD39: 19.94309248 | AE39: 19.96771874 | AF39: 19.99466857 | AG39: 20.0254354 | AH39: 20.06270209 | AI39: 20.10917468 | AJ39: 20.16788119 | AK39: 20.23999397 | AL39: 20.3282896 | AM39: 20.4352325 | AN39: 8538 | AO39: 8555 | AP39: 8655 | AQ39: 8680 | AR39: 8700 | AS39: 8756.832139 | AT39: 8813.664277 | AU39: 8871.139232 | AV39: 8933.607409 | AW39: 9001.303245 | AX39: 9074.894496 | AY39: 9154.922417 | AZ39: 9242.220997 | BA39: 9336.951481 | BB39: 9440.039093 | BC39: 9552.249123
A40: hpk | C40: N | D40: 0 | E40: 0 | F40: 0 | G40: 88.08860598 | H40: 75.91997765 | I40: 57.58793002 | J40: 55.18098707 | K40: 50.24351818 | L40: 53.4 | M40: 0 | N40: 0 | O40: 44.97225 | P40: 49.08975 | Q40: 54.0765 | R40: 48.59172464 | S40: 48.97996292 | T40: 49.3349872 | U40: 49.72778386 | V40: 50.32241267 | W40: 51.47302712 | X40: 52.92315413 | Y40: 54.23492348 | Z40: 55.41013731 | AA40: 56.45790171 | AB40: 57.38196595 | AC40: 58.77293572 | AD40: 59.14498087 | AE40: 59.47719531 | AF40: 59.84884325 | AG40: 60.44328057 | AH40: 61.65638987 | AI40: 63.20212338 | AJ40: 64.59162931 | AK40: 65.82743935 | AL40: 66.92025712 | AM40: 67.87481574 | AN40: 21862 | AO40: 22267 | AP40: 22622 | AQ40: 22810 | AR40: 23059 | AS40: 23320.66842 | AT40: 23582.33683 | AU40: 23841.6262 | AV40: 24130.12415 | AW40: 24525.52106 | AX40: 25199.5022 | AY40: 26025.48516 | AZ40: 26786.80523 | BA40: 27483.50136 | BB40: 28119.14801 | BC40: 28694.68962
A41: klk | C41: N | D41: 0 | E41: 0 | F41: 0 | G41: 5.682288431 | H41: 4.908462269 | I41: 3.908068522 | J41: 4.678653845 | K41: 4.816845271 | L41: 5.2 | M41: 0 | N41: 0 | O41: 4.41 | P41: 4.74 | Q41: 4.95 | R41: 4.667571218 | S41: 4.678319258 | T41: 4.681014203 | U41: 4.68233315 | V41: 4.68240384 | W41: 4.681550111 | X41: 4.680056601 | Y41: 4.678203712 | Z41: 4.676034531 | AA41: 4.673767405 | AB41: 4.671567356 | AC41: 5.175451608 | AD41: 5.183961276 | AE41: 5.18333471 | AF41: 5.181003628 | AG41: 5.177125817 | AH41: 5.172078039 | AI41: 5.166194095 | AJ41: 5.159809881 | AK41: 5.153003266 | AL41: 5.14604873 | AM41: 5.139161855 | AN41: 2065 | AO41: 2201 | AP41: 2297 | AQ41: 2320 | AR41: 2346 | AS41: 2360.61461 | AT41: 2375.22922 | AU41: 2386.580475 | AV41: 2398.019962 | AW41: 2409.485456 | AX41: 2421.00842 | AY41: 2432.589143 | AZ41: 2444.259881 | BA41: 2455.957152 | BB41: 2467.713055 | BC41: 2479.527884
A42: Klo | C42: N | D42: 0 | E42: 0 | F42: 0 | G42: 0 | H42: 0 | I42: 10.94132038 | J42: 13.51480596 | K42: 14.86659315 | L42: 21.1 | M42: 10.9 | N42: 11.5 | O42: 13.4 | P42: 14.8 | Q42: 20.6 | R42: 18.99971682 | S42: 19.23428704 | T42: 22.08516734 | U42: 26.10638533 | V42: 30.41590787 | W42: 34.9344511 | X42: 39.62874717 | Y42: 44.42061041 | Z42: 49.38603159 | AA42: 54.14415363 | AB42: 59.0238852 | AC42: 22.15112903 | AD42: 22.38182992 | AE42: 25.38024253 | AF42: 29.62130974 | AG42: 34.17129156 | AH42: 38.94505398 | AI42: 43.90569262 | AJ42: 48.96937641 | AK42: 54.21690695 | AL42: 59.2442318 | AM42: 64.40058556 | AN42: 0 | AO42: 5484 | AP42: 5932 | AQ42: 6298 | AR42: 6550 | AS42: 6642.478334 | AT42: 6734.956667 | AU42: 7702.26505 | AV42: 9089.998779 | AW42: 10601.28755 | AX42: 12201.94211 | AY42: 13870.46852 | AZ42: 15573.73415 | BA42: 17338.2278 | BB42: 19030.23467 | BC42: 20764.92378
A43: kms | C43: N | D43: 0 | E43: 0 | F43: 0 | G43: 8.928606107 | H43: 8.99633795 | I43: 9.059374593 | J43: 55.30000067 | K43: 7.912016059 | L43: 8.6 | M43: 0 | N43: 0 | O43: 8.115625 | P43: 7.792593 | Q43: 8.7 | R43: 8.266717792 | S43: 8.337609674 | T43: 8.404827691 | U43: 8.447203397 | V43: 8.466683908 | W43: 8.468017189 | X43: 8.46513477 | Y43: 8.461558968 | Z43: 8.457372917 | AA43: 8.45299789 | AB43: 8.448752274 | AC43: 9.140805651 | AD43: 9.209376359 | AE43: 9.273597722 | AF43: 9.310535256 | AG43: 9.322274063 | AH43: 9.313970014 | AI43: 9.30079129 | AJ43: 9.286623257 | AK43: 9.271627156 | AL43: 9.25633384 | AM43: 9.241163902 | AN43: 2179 | AO43: 2246 | AP43: 2346 | AQ43: 3492 | AR43: 3599 | AS43: 3645.114372 | AT43: 3691.228744 | AU43: 3737.930805 | AV43: 3775.128805 | AW43: 3803.039741 | AX43: 3823.363584 | AY43: 3842.365372 | AZ43: 3861.514857 | BA43: 3880.707878 | BB43: 3899.997102 | BC43: 3919.383014
A44: ldl | C44: N | D44: 0 | E44: 0 | F44: 0 | G44: 82.76509624 | H44: 81.7404498 | I44: 66.66881576 | J44: 67.58500805 | K44: 75.05020131 | L44: 78.8 | M44: 0 | N44: 0 | O44: 73.0125 | P44: 74.65312 | Q44: 80.95313 | R44: 73.86366587 | S44: 74.48689624 | T44: 75.06318806 | U44: 75.56651665 | V44: 76.00056857 | W44: 76.37772696 | X44: 76.71385441 | Y44: 77.03466874 | Z44: 77.34255675 | AA44: 77.64132932 | AB44: 77.93323965 | AC44: 87.26625892 | AD44: 87.90309005 | AE44: 88.48559388 | AF44: 88.98480152 | AG44: 89.40475274 | AH44: 89.75923765 | AI44: 90.06601157 | AJ44: 90.35407626 | AK44: 90.62658091 | AL44: 90.88827964 | AM44: 91.14219773 | AN44: 25306 | AO44: 25539 | AP44: 25951 | AQ44: 26131 | AR44: 26375 | AS44: 26666.69876 | AT44: 26958.39752 | AU44: 27246.31982 | AV44: 27518.86747 | AW44: 27774.64615 | AX44: 28015.54802 | AY44: 28244.99507 | AZ44: 28471.10569 | BA44: 28694.0495 | BB44: 28914.50939 | BC44: 29132.56678
A45: lga | C45: N | D45: 0 | E45: 0 | F45: 0 | G45: 39.58604475 | H45: 37.40302158 | I45: 33.88783885 | J45: 34.12662844 | K45: 39.82685282 | L45: 39.6 | M45: 0 | N45: 0 | O45: 28.55959 | P45: 39.81725 | Q45: 38.9115 | R45: 38.15454288 | S45: 38.22198364 | T45: 38.27766491 | U45: 38.32366526 | V45: 38.3608312 | W45: 38.39164797 | X45: 38.41825548 | Y45: 38.44274982 | Z45: 38.46521796 | AA45: 38.48721786 | AB45: 38.50985132 | AC45: 40.7630676 | AD45: 40.81368097 | AE45: 40.85035983 | AF45: 40.87545138 | AG45: 40.88996697 | AH45: 40.89669744 | AI45: 40.89806305 | AJ45: 40.89648565 | AK45: 40.89225415 | AL45: 40.88726194 | AM45: 40.8829109 | AN45: 2 | AO45: 11081 | AP45: 22345 | AQ45: 11243 | AR45: 11290 | AS45: 11346.66258 | AT45: 11403.32516 | AU45: 11460.27176 | AV45: 11517.661 | AW45: 11575.18071 | AX45: 11632.98873 | AY45: 11691.08652 | AZ45: 11749.63589 | BA45: 11808.31837 | BB45: 11867.29499 | BC45: 11926.56724
A46: llg | C46: N | D46: 0 | E46: 0 | F46: 0 | G46: 16.60534018 | H46: 17.68405858 | I46: 15.81828022 | J46: 15.61620357 | K46: 19.76253182 | L46: 19 | M46: 0 | N46: 0 | O46: 15.42 | P46: 19.56 | Q46: 15.18 | R46: 19.24851386 | S46: 19.28709981 | T46: 19.320198 | U46: 19.34880593 | V46: 19.37330882 | W46: 19.39490132 | X46: 19.41460507 | Y46: 19.43341581 | Z46: 19.45133052 | AA46: 19.4690731 | AB46: 19.48714058 | AC46: 22.06537308 | AD46: 22.0959799 | AE46: 22.11982952 | AF46: 22.13808337 | AG46: 22.15122069 | AH46: 22.16062364 | AI46: 22.16748366 | AJ46: 22.17299106 | AK46: 22.17724933 | AL46: 22.18117694 | AM46: 22.18544136 | AN46: 5540 | AO46: 5702 | AP46: 5784 | AQ46: 5810 | AR46: 5882 | AS46: 5909.749303 | AT46: 5937.498606 | AU46: 5965.387002 | AV46: 5993.49217 | AW46: 6021.661233 | AX46: 6049.971493 | AY46: 6078.423658 | AZ46: 6107.096977 | BA46: 6135.835483 | BB46: 6164.71804 | BC46: 6193.74537
A47: lyd | C47: N | D47: 0 | E47: 0 | F47: 0 | G47: 0 | H47: 0 | I47: 16.95405629 | J47: 19.86554812 | K47: 21.3728943 | L47: 22.3 | M47: 0 | N47: 0 | O47: 19.29167 | P47: 20.4 | Q47: 22.31429 | R47: 20.02904838 | S47: 20.18979598 | T47: 20.30447129 | U47: 20.40323245 | V47: 20.50615111 | W47: 20.61588954 | X47: 20.73508036 | Y47: 20.7694502 | Z47: 20.80050846 | AA47: 20.82918046 | AB47: 20.85619589 | AC47: 24.26991457 | AD47: 24.42945081 | AE47: 24.53686433 | AF47: 24.62568324 | AG47: 24.71833478 | AH47: 24.81786994 | AI47: 24.92729475 | AJ47: 24.94144655 | AK47: 24.95151182 | AL47: 24.95869598 | AM47: 24.96398963 | AN47: 0 | AO47: 7223 | AP47: 7341 | AQ47: 7361 | AR47: 7396 | AS47: 7472.045406 | AT47: 7548.090812 | AU47: 7610.970273 | AV47: 7670.673013 | AW47: 7734.073149 | AX47: 7801.699481 | AY47: 7873.964892 | AZ47: 7914.742486 | BA47: 7954.711105 | BB47: 7994.023957 | BC47: 8032.755993
A48: lys | C48: N | M48: 0 | N48: 0 | O48: 0 | P48: 0 | Q48: 0 | R48: 0 | S48: 0 | T48: 0 | U48: 0 | V48: 0 | W48: 0 | X48: 0 | Y48: 0 | Z48: 0 | AA48: 0 | AB48: 0 | AC48: 0 | AD48: 0 | AE48: 0 | AF48: 0 | AG48: 0 | AH48: 0 | AI48: 0 | AJ48: 0 | AK48: 0 | AL48: 0 | AM48: 0 | AN48: 1 | AO48: 1 | AP48: 1 | AQ48: 1 | AR48: 2 | AS48: 59.92902877 | AT48: 117.8580575 | AU48: 154.0137048 | AV48: 154.478342 | AW48: 154.562948 | AX48: 155.4444853 | AY48: 156.7897427 | AZ48: 159.0297358 | BA48: 163.1684223 | BB48: 171.5170162 | BC48: 189.5893774
A49: mby | B49: msd | C49: N | D49: 0 | E49: 0 | F49: 0 | G49: 0 | H49: 0 | I49: 4.488909979 | J49: 4.007993138 | K49: 5.463363638 | L49: 5.1 | M49: 0 | N49: 0 | O49: 3.943 | P49: 6.844 | Q49: 4.094 | R49: 5.298259453 | S49: 5.36827087 | T49: 5.435044524 | U49: 5.502056223 | V49: 5.569432491 | W49: 5.638094167 | X49: 5.708835948 | Y49: 5.782470066 | Z49: 5.858749707 | AA49: 5.938196036 | AB49: 6.021089599 | AC49: 6.192175793 | AD49: 6.263001711 | AE49: 6.330134178 | AF49: 6.39734878 | AG49: 6.464792712 | AH49: 6.533470308 | AI49: 6.604245265 | AJ49: 6.678020156 | AK49: 6.754569821 | AL49: 6.834504972 | AM49: 6.918175785 | AN49: 1293 | AO49: 2012 | AP49: 2039 | AQ49: 2025 | AR49: 2033 | AS49: 2043.825684 | AT49: 2054.651367 | AU49: 2065.239588 | AV49: 2075.653001 | AW49: 2086.026105 | AX49: 2096.451205 | AY49: 2106.92856 | AZ49: 2117.487355 | BA49: 2128.070153 | BB49: 2138.705998 | BC49: 2149.395155
A50: mdg | C50: N | D50: 0 | E50: 0 | F50: 0 | G50: 0 | H50: 0 | I50: 1.154585068 | J50: 1.166016604 | K50: 1.143153533 | L50: 1.314626563 | M50: 0 | N50: 0 | O50: 0 | P50: 0 | Q50: 0 | R50: 1.247344912 | S50: 1.248279776 | T50: 1.24872074 | U50: 1.248747824 | V50: 1.248399932 | W50: 1.247772371 | X50: 1.246949346 | Y50: 1.246013971 | Z50: 1.24498139 | AA50: 1.243917105 | AB50: 1.242871383 | AC50: 1.42449723 | AD50: 1.424223967 | AE50: 1.423324481 | AF50: 1.421894497 | AG50: 1.419984177 | AH50: 1.417706832 | AI50: 1.415163749 | AJ50: 1.412457088 | AK50: 1.409615222 | AL50: 1.406723105 | AM50: 1.403848928 | AN50: 764 | AO50: 762 | AP50: 774 | AQ50: 762 | AR50: 760 | AS50: 763.8225135 | AT50: 767.6450271 | AU50: 771.4867009 | AV50: 775.3582355 | AW50: 779.2385717 | AX50: 783.512241 | AY50: 788.8235966 | AZ50: 795.3105752 | BA50: 803.0510817 | BB50: 812.1758391 | BC50: 822.8017505
A51: mdi | C51: N | M51: 0 | N51: 0 | O51: 0 | P51: 0 | Q51: 0 | R51: 0.1558793465 | S51: 0.1497699034 | T51: 0.1431692533 | U51: 0.1361299165 | V51: 0.1287023137 | W51: 0.1209473562 | X51: 0.1129273021 | Y51: 0.1047067742 | Z51: 0.09634359864 | AA51: 0.08790391773 | AB51: 0.0794530898 | AC51: 0.1801836178 | AD51: 0.1782565106 | AE51: 0.176119811 | AF51: 0.1737985264 | AG51: 0.1713128401 | AH51: 0.1686919497 | AI51: 0.1659643679 | AJ51: 0.1631594743 | AK51: 0.1602978518 | AL51: 0.1574078369 | AM51: 0.1545159918 | AN51: 57 | AO51: 59 | AP51: 57 | AQ51: 56 | AR51: 56 | AS51: 56.28095132 | AT51: 56.56190264 | AU51: 56.84426222 | AV51: 57.12881654 | AW51: 57.41401777 | AX51: 57.70064857 | AY51: 57.98871611 | AZ51: 58.27902274 | BA51: 58.56998937 | BB51: 58.86241446 | BC51: 59.15630533
A52: mfa | C52: N | D52: 0 | E52: 0 | F52: 0 | G52: 26.36904773 | H52: 30 | I52: 27.07378989 | J52: 25.86015639 | K52: 30.22593427 | L52: 26.8 | M52: 26.82 | N52: 26.982 | O52: 27.612 | P52: 29.07 | Q52: 27.738 | R52: 28.04467918 | S52: 28.12876031 | T52: 28.19488097 | U52: 28.25423489 | V52: 28.30750459 | W52: 28.35683157 | X52: 28.38599637 | Y52: 28.41613457 | Z52: 28.44989486 | AA52: 28.48758989 | AB52: 28.53026975 | AC52: 29.73453905 | AD52: 29.80978186 | AE52: 29.86479918 | AF52: 29.91175923 | AG52: 29.95145801 | AH52: 29.98627326 | AI52: 29.99863111 | AJ52: 30.01159293 | AK52: 30.02817351 | AL52: 30.04885323 | AM52: 30.0749168 | AN52: 6338 | AO52: 7972 | AP52: 8032 | AQ52: 8059 | AR52: 8091 | AS52: 8142.346103 | AT52: 8193.692206 | AU52: 8242.610137 | AV52: 8292.12333 | AW52: 8341.990973 | AX52: 8392.384505 | AY52: 8437.419928 | AZ52: 8483.607075 | BA52: 8531.563658 | BB52: 8581.13418 | BC52: 8632.399358
A53: mjg | B53: msd | C53: N | D53: 0 | E53: 0 | F53: 0 | G53: 2.387529908 | H53: 2.14783637 | I53: 2.65618623 | J53: 2.734695849 | K53: 2.993129662 | L53: 1.7 | M53: 0 | N53: 0 | O53: 2.505 | P53: 12.51 | Q53: 1.59 | R53: 2.902676552 | S53: 2.941032639 | T53: 2.977614902 | U53: 3.014327579 | V53: 3.051239986 | W53: 3.088856611 | X53: 3.127612831 | Y53: 3.167953631 | Z53: 3.209743794 | AA53: 3.253268842 | AB53: 3.298682474 | AC53: 3.392412856 | AD53: 3.431215171 | AE53: 3.467994011 | AF53: 3.504817849 | AG53: 3.541767327 | AH53: 3.579392673 | AI53: 3.618167069 | AJ53: 3.658584993 | AK53: 3.700523089 | AL53: 3.744315941 | AM53: 3.790155392 | AN53: 1266 | AO53: 1277 | AP53: 1288 | AQ53: 1309 | AR53: 1329 | AS53: 1356.551189 | AT53: 1384.102379 | AU53: 1399.661046 | AV53: 1407.20895 | AW53: 1414.173189 | AX53: 1421.172337 | AY53: 1428.206567 | AZ53: 1435.295474 | BA53: 1442.400496 | BB53: 1449.541132 | BC53: 1456.717561
A54: moe | C54: N | D54: 0 | E54: 0 | F54: 0 | G54: 34.71082956 | H54: 32.34877465 | I54: 26.94003797 | J54: 28.2038839 | K54: 31.01320263 | L54: 33.3 | M54: 0 | N54: 23.37 | O54: 28.2 | P54: 30.69 | Q54: 33.48 | R54: 31.89560847 | S54: 31.9811329 | T54: 32.0302898 | U54: 32.05769276 | V54: 32.07573328 | W54: 32.0872146 | X54: 32.09423311 | Y54: 32.09885875 | Z54: 32.10129865 | AA54: 32.10313801 | AB54: 32.10553862 | AC54: 35.90941117 | AD54: 35.95610963 | AE54: 35.96327891 | AF54: 35.94599211 | AG54: 35.91711543 | AH54: 35.87976804 | AI54: 35.83636273 | AJ54: 35.78932774 | AK54: 35.73923139 | AL54: 35.68805963 | AM54: 35.63737396 | AN54: 11773 | AO54: 14347 | AP54: 14490 | AQ54: 14540 | AR54: 14597 | AS54: 14685.64648 | AT54: 14774.29295 | AU54: 14853.0181 | AV54: 14927.12175 | AW54: 15001.21981 | AX54: 15075.68929 | AY54: 15150.53204 | AZ54: 15225.95653 | BA54: 15301.5525 | BB54: 15377.52739 | BC54: 15453.8831
A55: msd | C55: N | D55: 0 | E55: 0 | F55: 0 | G55: 14.03303114 | H55: 9.379274981 | I55: 15.09325312 | J55: 15.35932033 | K55: 17.48105985 | L55: 16.1 | M55: 0 | N55: 0 | O55: 11.042 | P55: 15.877 | Q55: 15.04 | R55: 15.61345407 | S55: 15.81977088 | T55: 16.01654633 | U55: 16.21402328 | V55: 16.41257457 | W55: 16.61491384 | X55: 16.82338297 | Y55: 17.04037553 | Z55: 17.2651642 | AA55: 17.49928478 | AB55: 17.74356403 | AC55: 18.24773837 | AD55: 18.45645544 | AE55: 18.65428828 | AF55: 18.85236316 | AG55: 19.05111385 | AH55: 19.25350003 | AI55: 19.46206693 | AJ55: 19.67947434 | AK55: 19.90505874 | AL55: 20.14061984 | AM55: 20.38718956 | AN55: 5642.86367 | AO55: 5722.757388 | AP55: 5844.077477 | AQ55: 5931.368761 | AR55: 5958 | AS55: 6049.898209 | AT55: 6141.796418 | AU55: 6233.639936 | AV55: 6328.81539 | AW55: 6426.927135 | AX55: 6528.360915 | AY55: 6633.252775 | AZ55: 6742.047471 | BA55: 6854.300001 | BB55: 6970.458845 | BC55: 7090.687648
A56: mwe | C56: N | M56: 0 | N56: 0 | O56: 0 | P56: 0 | Q56: 0 | R56: 0 | S56: 0 | T56: 0 | U56: 0 | V56: 0 | W56: 0 | X56: 0 | Y56: 0 | Z56: 0 | AA56: 0 | AB56: 0 | AC56: 0 | AD56: 0 | AE56: 0 | AF56: 0 | AG56: 0 | AH56: 0 | AI56: 0 | AJ56: 0 | AK56: 0 | AL56: 0 | AM56: 0 | AN56: 27 | AO56: 33 | AP56: 34 | AQ56: 33 | AR56: 35 | AS56: 35.30009702 | AT56: 35.60019404 | AU56: 35.77988364 | AV56: 35.95349862 | AW56: 36.12752883 | AX56: 36.3061941 | AY56: 36.49280513 | AZ56: 36.68869396 | BA56: 36.89358473 | BB56: 37.1088069 | BC56: 37.33518651
A57: mwts | C57: N | M57: 0 | N57: 0 | O57: 0 | P57: 0 | Q57: 0 | R57: 44.76613687 | S57: 45.00110968 | T57: 45.37879939 | U57: 45.93644226 | V57: 46.71162024 | W57: 47.27818231 | X57: 47.82382809 | Y57: 48.3456643 | Z57: 48.844492 | AA57: 49.30726601 | AB57: 49.70901804 | AC57: 49.67512769 | AD57: 49.87583104 | AE57: 50.22876129 | AF57: 50.77493473 | AG57: 51.55574261 | AH57: 52.10850255 | AI57: 52.63696131 | AJ57: 53.13813644 | AK57: 53.61334319 | AL57: 54.04880749 | AM57: 54.41782553 | AN57: 110436 | AO57: 135988 | AP57: 149591 | AQ57: 139367 | AR57: 147025 | AS57: 148518.4185 | AT57: 150011.837 | AU57: 151396.1681 | AV57: 152705.4011 | AW57: 153725.1954 | AX57: 154683.0636 | AY57: 155594.0078 | AZ57: 156485.1582 | BA57: 157375.224 | BB57: 158275.3079 | BC57: 159193.0198
A58: myt | C58: N | D58: 0 | E58: 0 | F58: 0 | G58: 15.66919892 | H58: 14.36231224 | I58: 13.21226737 | J58: 12.83462287 | K58: 14.07839268 | L58: 14.9 | M58: 0 | N58: 0 | O58: 11.88 | P58: 14.04 | Q58: 14.16 | R58: 13.35649846 | S58: 13.40230358 | T58: 13.43928276 | U58: 13.46857107 | V58: 13.49060384 | W58: 13.50663393 | X58: 13.5176893 | Y58: 13.52473478 | Z58: 13.52783639 | AA58: 13.52774581 | AB58: 13.52502565 | AC58: 14.81955481 | AD58: 14.85607201 | AE58: 14.8823193 | AF58: 14.89957525 | AG58: 14.90836329 | AH58: 14.9100989 | AI58: 14.90596046 | AJ58: 14.89708532 | AK58: 14.88365921 | AL58: 14.86661644 | AM58: 14.84668834 | AN58: 4916 | AO58: 5653 | AP58: 5720 | AQ58: 5739 | AR58: 5754 | AS58: 5797.772872 | AT58: 5841.545743 | AU58: 5884.228411 | AV58: 5925.908498 | AW58: 5966.322837 | AX58: 6005.560242 | AY58: 6043.603072 | AZ58: 6080.54211 | BA58: 6116.176245 | BB58: 6150.618 | BC58: 6183.886399
A59: nla | C59: N | D59: 0 | E59: 0 | F59: 0 | G59: 7.829818372 | H59: 7.253689103 | I59: 6.504132936 | J59: 6.498105903 | K59: 7.348488604 | L59: 7.1 | M59: 0 | N59: 0 | O59: 5.664 | P59: 7.332 | Q59: 7.368 | R59: 7.119420678 | S59: 7.141350895 | T59: 7.163639747 | U59: 7.194439502 | V59: 7.236981651 | W59: 7.265953211 | X59: 7.292951068 | Y59: 7.318098164 | Z59: 7.341518278 | AA59: 7.362664395 | AB59: 7.380216583 | AC59: 7.492756058 | AD59: 7.510700212 | AE59: 7.528732921 | AF59: 7.555729018 | AG59: 7.595243121 | AH59: 7.619808947 | AI59: 7.642031248 | AJ59: 7.662075275 | AK59: 7.680125764 | AL59: 7.695640016 | AM59: 7.707236494 | AN59: 2079 | AO59: 3569 | AP59: 3600 | AQ59: 3605 | AR59: 3586 | AS59: 3614.355584 | AT59: 3642.711168 | AU59: 3673.175585 | AV59: 3710.147119 | AW59: 3755.37508 | AX59: 3794.111275 | AY59: 3832.537057 | AZ59: 3870.432566 | BA59: 3907.70781 | BB59: 3943.881212 | BC59: 3978.022115
A60: nrn | C60: N | D60: 0 | E60: 0 | F60: 0 | G60: 39.03853197 | H60: 39.27279624 | I60: 18.2204493 | J60: 19.22840899 | K60: 23.04861179 | L60: 24.7 | M60: 9.3 | N60: 16.35 | O60: 18.45 | P60: 20.76 | Q60: 23.61 | R60: 21.49700134 | S60: 21.56112642 | T60: 21.6144158 | U60: 21.66155998 | V60: 21.7043717 | W60: 21.74802757 | X60: 21.79493907 | Y60: 21.84696591 | Z60: 21.90454544 | AA60: 21.9691819 | AB60: 22.04207235 | AC60: 25.22172215 | AD60: 25.27137843 | AE60: 25.30852159 | AF60: 25.33819822 | AG60: 25.36242126 | AH60: 25.38677898 | AI60: 25.4139321 | AJ60: 25.44598292 | AK60: 25.48355535 | AL60: 25.52841044 | AM60: 25.58198674 | AN60: 5715 | AO60: 5743 | AP60: 5757 | AQ60: 5674 | AR60: 5680 | AS60: 5709.963083 | AT60: 5739.926166 | AU60: 5768.945446 | AV60: 5797.941055 | AW60: 5827.109659 | AX60: 5857.515736 | AY60: 5889.480875 | AZ60: 5923.25902 | BA60: 5958.828022 | BB60: 5996.443987 | BC60: 6036.278689
A61: ofr | C61: N | D61: 0 | E61: 0 | F61: 0 | G61: 0 | H61: 29.48219764 | I61: 30.70846752 | J61: 32.10436104 | K61: 42.37381571 | L61: 38.8 | M61: 25.3 | N61: 28 | O61: 31.4 | P61: 34.3 | Q61: 41.9 | R61: 40.75203778 | S61: 42.9259684 | T61: 45.26250191 | U61: 47.48227038 | V61: 49.61870216 | W61: 51.70593326 | X61: 53.78078337 | Y61: 55.85193443 | Z61: 57.92057401 | AA61: 59.98772392 | AB61: 62.05449486 | AC61: 46.65201832 | AD61: 48.91190323 | AE61: 51.34478686 | AF61: 53.65490066 | AG61: 55.87700851 | AH61: 58.04664866 | AI61: 60.20222808 | AJ61: 62.35279054 | AK61: 64.49992448 | AL61: 66.6450524 | AM61: 68.78969828 | AN61: 8465 | AO61: 11882 | AP61: 12630 | AQ61: 13164 | AR61: 13725 | AS61: 14495.54367 | AT61: 15266.08735 | AU61: 16115.56635 | AV61: 16944.99419 | AW61: 17760.5366 | AX61: 18568.62533 | AY61: 19376.67065 | AZ61: 20184.64829 | BA61: 20992.606 | BB61: 21800.51963 | BC61: 22608.38896
A62: phi | C62: N | D62: 0 | E62: 0 | F62: 0 | G62: 14.89744735 | H62: 19.30504544 | I62: 16.8098077 | J62: 16.72715351 | K62: 19.18012901 | L62: 19.1 | M62: 0 | N62: 0 | O62: 14.76 | P62: 18.72 | Q62: 19.08 | R62: 17.75431157 | S62: 17.93112191 | T62: 18.07053299 | U62: 18.19484814 | V62: 18.31004947 | W62: 18.41846379 | X62: 18.52194025 | Y62: 18.62221499 | Z62: 18.71870626 | AA62: 18.81250433 | AB62: 18.90416905 | AC62: 19.77683754 | AD62: 19.9413188 | AE62: 20.06508998 | AF62: 20.1717922 | AG62: 20.26784285 | AH62: 20.35579733 | AI62: 20.43771101 | AJ62: 20.51557162 | AK62: 20.58895871 | AL62: 20.65923232 | AM62: 20.72719386 | AN62: 9102 | AO62: 9255 | AP62: 9458 | AQ62: 9555 | AR62: 9723 | AS62: 9859.819358 | AT62: 9996.638716 | AU62: 10119.27327 | AV62: 10238.75083 | AW62: 10357.37915 | AX62: 10475.37742 | AY62: 10592.63901 | AZ62: 10709.37665 | BA62: 10824.84922 | BB62: 10939.27629 | BC62: 11052.55998
A63: phm | C63: N | D63: 0 | E63: 0 | F63: 0 | G63: 48.029391 | H63: 33.43326084 | I63: 32.9419793 | J63: 33.72577645 | K63: 39.87546131 | L63: 42.7 | M63: 23.91 | N63: 27.57 | O63: 33 | P63: 38.1 | Q63: 39.45 | R63: 38.99267971 | S63: 41.19407446 | T63: 43.11194852 | U63: 45.03014745 | V63: 46.94349837 | W63: 48.84840387 | X63: 50.7406787 | Y63: 52.62855828 | Z63: 54.51349884 | AA63: 56.39664013 | AB63: 58.27926623 | AC63: 43.76221419 | AD63: 46.04864186 | AE63: 48.03590449 | AF63: 50.02377906 | AG63: 52.00646843 | AH63: 53.97969563 | AI63: 55.9384705 | AJ63: 57.8914183 | AK63: 59.84043401 | AL63: 61.78708737 | AM63: 63.73310889 | AN63: 5720 | AO63: 11787 | AP63: 12837 | AQ63: 13398 | AR63: 13674 | AS63: 14512.2815 | AT63: 15350.56301 | AU63: 16109.78549 | AV63: 16888.86637 | AW63: 17681.77586 | AX63: 18482.01346 | AY63: 19282.16829 | AZ63: 20082.19413 | BA63: 20882.18194 | BB63: 21682.08572 | BC63: 22481.90506
A64: RUB | B64: msd | C64: N | H64: 8.939132967 | I64: 8.303663878 | J64: 9.390970053 | K64: 9.50787232 | L64: 9.5 | M64: 0 | N64: 0 | O64: 0 | P64: 0 | Q64: 0 | R64: 9.107172643 | S64: 9.227515194 | T64: 9.342292359 | U64: 9.457478698 | V64: 9.573291694 | W64: 9.691314179 | X64: 9.812912151 | Y64: 9.939481759 | Z64: 10.07059876 | AA64: 10.20715897 | AB64: 10.34964463 | AC64: 10.1316124 | AD64: 10.24749747 | AE64: 10.35733934 | AF64: 10.46731559 | AG64: 10.57766707 | AH64: 10.69003707 | AI64: 10.80583876 | AJ64: 10.92654893 | AK64: 11.05179918 | AL64: 11.18258874 | AM64: 11.31949058 | AN64: 4387 | AO64: 4533 | AP64: 4667 | AQ64: 4694 | AR64: 4724 | AS64: 4749.989343 | AT64: 4775.978685 | AU64: 4799.925888 | AV64: 4824.059229 | AW64: 4848.247435 | AX64: 4872.556884 | AY64: 4896.988184 | AZ64: 4921.609385 | BA64: 4946.28656 | BB64: 4971.087428 | BC64: 4996.012611
A65: rwn | C65: N | D65: 0 | E65: 0 | F65: 0 | G65: 55.37835253 | H65: 58.25782515 | I65: 44.25219802 | J65: 50.47075523 | K65: 54.44617377 | L65: 58.1 | M65: 0 | N65: 0 | O65: 53.07 | P65: 53.43 | Q65: 23.43 | R65: 54.0436863 | S65: 54.60789274 | T65: 55.0785573 | U65: 55.46511473 | V65: 55.77157858 | W65: 56.00924895 | X65: 56.18989164 | Y65: 56.32977721 | Z65: 56.46842502 | AA65: 56.61994212 | AB65: 56.78658525 | AC65: 64.72016526 | AD65: 65.29715098 | AE65: 65.76810492 | AF65: 66.1433929 | AG65: 66.42740731 | AH65: 66.63275375 | AI65: 66.7726698 | AJ65: 66.86562281 | AK65: 66.95617919 | AL65: 67.06054133 | AM65: 67.18168816 | AN65: 19204 | AO65: 19368 | AP65: 19569 | AQ65: 19761 | AR65: 19853 | AS65: 20106.88826 | AT65: 20360.77652 | AU65: 20591.26627 | AV65: 20799.2061 | AW65: 20983.5993 | AX65: 21146.45326 | AY65: 21290.35295 | AZ65: 21420.43407 | BA65: 21551.27103 | BB65: 21687.71062 | BC65: 21830.05935
A66: rwt | C66: N | M66: 0 | N66: 0 | O66: 0 | P66: 0 | Q66: 0 | R66: 73.87370866 | S66: 74.09850744 | T66: 74.34134957 | U66: 74.49569445 | V66: 74.59943075 | W66: 74.65132338 | X66: 74.65699643 | Y66: 74.62595626 | Z66: 74.56788705 | AA66: 74.49274254 | AB66: 74.41098674 | AC66: 81.51839565 | AD66: 81.68431573 | AE66: 81.86547275 | AF66: 81.94942809 | AG66: 81.97654876 | AH66: 81.94580354 | AI66: 81.8634919 | AJ66: 81.74017933 | AK66: 81.58676349 | AL66: 81.41442729 | AM66: 81.23491489 | AN66: 11841 | AO66: 14193 | AP66: 14348 | AQ66: 14359 | AR66: 14683 | AS66: 14792.49115 | AT66: 14901.98231 | AU66: 15015.55474 | AV66: 15116.95894 | AW66: 15213.43881 | AX66: 15303.5456 | AY66: 15387.20149 | AZ66: 15465.46085 | BA66: 15539.66754 | BB66: 15611.22819 | BC66: 15681.62968
A67: sfs | C67: N | D67: 0 | E67: 0 | F67: 0 | G67: 0 | H67: 0 | I67: 1.520394199 | J67: 1.520394199 | K67: 1.428941916 | L67: 1.54325727 | R67: 1.454025763 | S67: 1.456172169 | T67: 1.457793233 | U67: 1.458978472 | V67: 1.459767012 | W67: 1.460265664 | X67: 1.460567296 | Y67: 1.460763371 | Z67: 1.460863065 | AA67: 1.460936244 | AB67: 1.461034126 | AC67: 1.638194012 | AD67: 1.638805494 | AE67: 1.638759749 | AF67: 1.638160682 | AG67: 1.637059278 | AH67: 1.635578725 | AI67: 1.633827966 | AJ67: 1.631916571 | AK67: 1.629868893 | AL67: 1.627774139 | AM67: 1.625702048 | AN67: 0 | AO67: 0 | AP67: 0 | AQ67: 0 | AR67: 0 | AS67: 0 | AT67: 0 | AU67: 0 | AV67: 0 | AW67: 0 | AX67: 0 | AY67: 0 | AZ67: 0 | BA67: 0 | BB67: 0 | BC67: 0
A68: sle | C68: N | D68: 0 | E68: 0 | F68: 0 | G68: 25.46036131 | H68: 24.19580923 | I68: 22.4178504 | J68: 24.00940616 | K68: 25.55696897 | L68: 30.1 | M68: 0 | N68: 0 | O68: 24 | P68: 24 | Q68: 24 | R68: 24.53153327 | S68: 24.65523952 | T68: 24.73121931 | U68: 24.78214425 | V68: 24.82079515 | W68: 24.84958667 | X68: 24.8705236 | Y68: 24.88553544 | Z68: 24.89455166 | AA68: 24.8990211 | AB68: 24.89996315 | AC68: 26.57964274 | AD68: 26.66934117 | AE68: 26.70827677 | AF68: 26.71967844 | AG68: 26.71676729 | AH68: 26.7022231 | AI68: 26.67832218 | AJ68: 26.64731007 | AK68: 26.60943427 | AL68: 26.56650302 | AM68: 26.51989314 | AN68: 9914 | AO68: 11797 | AP68: 11979 | AQ68: 12036 | AR68: 12214 | AS68: 12333.71084 | AT68: 12453.42168 | AU68: 12556.83048 | AV68: 12653.69783 | AW68: 12749.3242 | AX68: 12843.82119 | AY68: 12937.04618 | AZ68: 13029.11944 | BA68: 13119.42326 | BB68: 13208.11315 | BC68: 13295.10838
A69: smg | C69: N | D69: 0 | E69: 0 | F69: 0 | G69: 0 | H69: 0 | I69: 0 | J69: 0 | K69: 0 | L69: 37.47000122 | M69: 0 | N69: 0 | O69: 0 | P69: 0 | Q69: 0 | R69: 40.7908503 | S69: 45.01356344 | T69: 45.66561451 | U69: 45.77107335 | V69: 45.79224985 | W69: 45.80537632 | X69: 45.81306208 | Y69: 45.81778646 | Z69: 45.81994038 | AA69: 45.82131575 | AB69: 45.82337228 | AC69: 47.85678237 | AD69: 52.32253461 | AE69: 52.96772961 | AF69: 53.02482971 | AG69: 52.98906216 | AH69: 52.94248372 | AI69: 52.88821355 | AJ69: 52.82929408 | AK69: 52.76658655 | AL69: 52.70247088 | AM69: 52.63897966 | AN69: 0 | AO69: 0 | AP69: 0 | AQ69: 0 | AR69: 10846 | AS69: 12051.18441 | AT69: 13256.36882 | AU69: 13485.97053 | AV69: 13565.27813 | AW69: 13623.52323 | AX69: 13682.0476 | AY69: 13740.866 | AZ69: 13800.12908 | BA69: 13859.55435 | BB69: 13919.26455 | BC69: 13979.27473
A70: smr | C70: N | D70: 0 | E70: 0 | F70: 0 | G70: 36.87224566 | H70: 36.2654712 | I70: 34.95227087 | J70: 30.27600545 | K70: 32.74626162 | L70: 35.9 | M70: 0 | N70: 0 | O70: 30.6 | P70: 32.7 | Q70: 34.29 | R70: 32.43480824 | S70: 32.64764175 | T70: 32.82292632 | U70: 32.94523523 | V70: 33.01921519 | W70: 33.05810408 | X70: 33.08851854 | Y70: 33.11714103 | Z70: 33.14400839 | AA70: 33.17050258 | AB70: 33.19758707 | AC70: 37.51547658 | AD70: 37.71622066 | AE70: 37.87483448 | AF70: 37.97461669 | AG70: 38.02062081 | AH70: 38.02729245 | AI70: 38.02368613 | AJ70: 38.01727205 | AK70: 38.00834893 | AL70: 37.99868512 | AM70: 37.98959985 | AN70: 8025 | AO70: 10860 | AP70: 11062 | AQ70: 11120 | AR70: 11165 | AS70: 11269.63559 | AT70: 11374.27119 | AU70: 11471.20859 | AV70: 11553.98706 | AW70: 11622.96559 | AX70: 11681.78525 | AY70: 11739.16971 | AZ70: 11797.00021 | BA70: 11854.96218 | BB70: 11913.21468 | BC70: 11971.75917
A71: tgn | B71: sle | C71: N | D71: 0 | E71: 0 | F71: 0 | G71: 43.32138671 | H71: 40.89660361 | I71: 31.65388143 | J71: 37.56275265 | K71: 41.28301782 | L71: 33.8 | M71: 0 | N71: 0 | O71: 33.69 | P71: 41.01 | Q71: 0 | R71: 33.64570516 | S71: 33.81537184 | T71: 33.91958031 | U71: 33.98942533 | V71: 34.04243616 | W71: 34.08192456 | X71: 34.11064016 | Y71: 34.13122933 | Z71: 34.14359534 | AA71: 34.1497253 | AB71: 34.15101735 | AC71: 36.45474634 | AD71: 36.57777032 | AE71: 36.63117162 | AF71: 36.64680935 | AG71: 36.64281662 | AH71: 36.62286883 | AI71: 36.59008803 | AJ71: 36.54755403 | AK71: 36.49560628 | AL71: 36.43672484 | AM71: 36.37279805 | AN71: 9912 | AO71: 10137 | AP71: 10323 | AQ71: 10341 | AR71: 16601 | AS71: 16678.31141 | AT71: 16755.62282 | AU71: 16825.74002 | AV71: 16889.19082 | AW71: 16946.15456 | AX71: 16998.77001 | AY71: 17051.36234 | AZ71: 17104.36345 | BA71: 17157.48506 | BB71: 17210.87294 | BC71: 17264.52842
A72: trc | C72: N | M72: 0 | N72: 0 | O72: 0 | P72: 0 | Q72: 0 | AN72: 231 | AO72: 233 | AP72: 239 | AQ72: 239 | AR72: 234 | AS72: 235.2075138 | AT72: 236.4150276 | AU72: 237.6285941 | AV72: 238.8515934 | AW72: 240.0773731 | AX72: 241.3092971 | AY72: 242.547396 | AZ72: 243.7951185 | BA72: 245.0456775 | BB72: 246.302505 | BC72: 247.5656323
A73: tt | C73: N | D73: 0 | E73: 0 | F73: 0 | G73: 88.86990495 | H73: 78.91831372 | I73: 72.52234138 | J73: 69.74847363 | K73: 71.5118172 | L73: 76.6 | M73: 0 | N73: 0 | O73: 68.7 | P73: 71.5 | Q73: 77.7 | R73: 72.44149876 | S73: 73.19966469 | T73: 74.67240727 | U73: 75.7551512 | V73: 77.1231865 | W73: 78.32192439 | X73: 79.35798733 | Y73: 80.24695937 | Z73: 81.00616103 | AA73: 81.6542836 | AB73: 82.2130535 | AC73: 82.94673283 | AD73: 83.76269851 | AE73: 85.37362561 | AF73: 86.55111716 | AG73: 88.04706968 | AH73: 89.35408129 | AI73: 90.47884392 | AJ73: 91.43859857 | AK73: 92.25291376 | AL73: 92.94289556 | AM73: 93.53304428 | AN73: 12272 | AO73: 12466 | AP73: 12788 | AQ73: 12985 | AR73: 13228 | AS73: 13388.54618 | AT73: 13549.09236 | AU73: 13850.20041 | AV73: 14084.11927 | AW73: 14379.12229 | AX73: 14644.7127 | AY73: 14879.77228 | AZ73: 15086.26639 | BA73: 15267.434 | BB73: 15426.78042 | BC73: 15568.40999
A74: uwy | C74: N | D74: 0 | E74: 0 | F74: 0 | G74: 0 | H74: 0 | I74: 1.577551876 | J74: 1.497531128 | K74: 1.486099593 | L74: 1.600414946 | R74: 1.536112356 | S74: 1.539264022 | T74: 1.540951322 | U74: 1.542193642 | V74: 1.543030887 | W74: 1.543572296 | X74: 1.543912807 | Y74: 1.544145913 | Z74: 1.544280792 | AA74: 1.544388793 | AB74: 1.544522158 | AC74: 1.679679131 | AD74: 1.681677701 | AE74: 1.682049344 | AF74: 1.681878263 | AG74: 1.681213843 | AH74: 1.680179249 | AI74: 1.678882872 | AJ74: 1.677433595 | AK74: 1.675852857 | AL74: 1.674228436 | AM74: 1.672628088 | AN74: 0 | AO74: 0 | AP74: 0 | AQ74: 0 | AR74: 0 | AS74: 0 | AT74: 0 | AU74: 0 | AV74: 0 | AW74: 0 | AX74: 0 | AY74: 0 | AZ74: 0 | BA74: 0 | BB74: 0 | BC74: 0
A75: wgi | C75: N | D75: 0 | E75: 0 | F75: 0 | G75: 33.9614035 | H75: 36.20879045 | I75: 32.13201694 | J75: 32.1046176 | K75: 35.9353935 | L75: 41.1 | M75: 0 | N75: 0 | O75: 25.35 | P75: 35.4 | Q75: 39.9 | R75: 36.42102378 | S75: 36.38069272 | T75: 36.31788437 | U75: 36.2443186 | V75: 36.16112515 | W75: 36.07035285 | X75: 35.97389979 | Y75: 35.8736749 | Z75: 35.77051017 | AA75: 35.66607167 | AB75: 35.56179133 | AC75: 42.30704649 | AD75: 42.2168043 | AE75: 42.09923493 | AF75: 41.96729848 | AG75: 41.82251932 | AH75: 41.66743676 | AI75: 41.50444412 | AJ75: 41.33598709 | AK75: 41.16338039 | AL75: 40.98885757 | AM75: 40.81440671 | AN75: 14222 | AO75: 17785 | AP75: 18211 | AQ75: 18260 | AR75: 18537 | AS75: 18591.0879 | AT75: 18645.17579 | AU75: 18694.64546 | AV75: 18744.4862 | AW75: 18794.44025 | AX75: 18844.64469 | AY75: 18895.10078 | AZ75: 18945.94906 | BA75: 18996.91294 | BB75: 19048.13227 | BC75: 19099.60834
A76: wgl | C76: N | D76: 0 | E76: 0 | F76: 0 | G76: 56.5240637 | H76: 58.31845884 | I76: 45.49734149 | J76: 49.05097259 | K76: 58.9834708 | L76: 63.4 | M76: 0 | N76: 0 | O76: 51.55 | P76: 57.6 | Q76: 62.5 | R76: 60.9671651 | S76: 62.31719318 | T76: 63.62670733 | U76: 64.89425753 | V76: 65.34235695 | W76: 65.66639167 | X76: 65.89511886 | Y76: 66.0537781 | Z76: 66.19307176 | AA76: 66.33447544 | AB76: 66.47983796 | AC76: 67.52456648 | AD76: 68.84189004 | AE76: 70.11600796 | AF76: 71.34549867 | AG76: 71.73720005 | AH76: 72.00004015 | AI76: 72.16356564 | AJ76: 72.25392109 | AK76: 72.32335901 | AL76: 72.39431121 | AM76: 72.46918458 | AN76: 18522 | AO76: 19088 | AP76: 19693 | AQ76: 20032 | AR76: 20401 | AS76: 20896.23314 | AT76: 21391.46628 | AU76: 21890.2945 | AV76: 22389.61956 | AW76: 22619.30549 | AX76: 22811.3241 | AY76: 22973.33786 | AZ76: 23112.90801 | BA76: 23247.09346 | BB76: 23382.76674 | BC76: 23519.95896
A77: wn | C77: N | D77: 0 | E77: 0 | F77: 0 | G77: 52.51604284 | H77: 49.43162532 | I77: 47.89340547 | J77: 42.16685565 | K77: 46.75882911 | L77: 47.6 | M77: 35.64 | N77: 46.86 | O77: 42.3 | P77: 46.38 | Q77: 46.92 | R77: 44.33384264 | S77: 44.49320009 | T77: 44.62380128 | U77: 44.738841 | V77: 44.83953181 | W77: 44.92983197 | X77: 45.01309252 | Y77: 45.09258122 | Z77: 45.16854752 | AA77: 45.24343694 | AB77: 45.31875775 | AC77: 51.13936016 | AD77: 51.27030454 | AE77: 51.36784423 | AF77: 51.44643662 | AG77: 51.50757878 | AH77: 51.5557527 | AI77: 51.59479201 | AJ77: 51.62852501 | AK77: 51.65758584 | AL77: 51.6850061 | AM77: 51.7128068 | AN77: 13996 | AO77: 16590 | AP77: 16850 | AQ77: 16888 | AR77: 17021 | AS77: 17140.69891 | AT77: 17260.39781 | AU77: 17376.54125 | AV77: 17493.10251 | AW77: 17609.43859 | AX77: 17725.86834 | AY77: 17842.39926 | AZ77: 17959.3696 | BA77: 18076.2926 | BB77: 18193.54408 | BC77: 18311.11131
A78: wo | C78: N | D78: 0 | E78: 0 | F78: 0 | G78: 57.73268139 | H78: 54.2753397 | I78: 54.29530359 | J78: 46.25083777 | K78: 49.39068736 | L78: 47.1 | M78: 42.65 | N78: 53.35 | O78: 46.7 | P78: 49 | Q78: 46.85 | R78: 47.75134294 | S78: 47.99931762 | T78: 48.17968097 | U78: 48.3022686 | V78: 48.38830145 | W78: 48.46446039 | X78: 48.53377687 | Y78: 48.59892752 | Z78: 48.65991425 | AA78: 48.71878819 | AB78: 48.77702832 | AC78: 52.36133085 | AD78: 52.60158749 | AE78: 52.76737395 | AF78: 52.86927899 | AG78: 52.93031991 | AH78: 52.97953917 | AI78: 53.0203371 | AJ78: 53.05579754 | AK78: 53.08616625 | AL78: 53.11392328 | AM78: 53.14093224 | AN78: 11327 | AO78: 11555 | AP78: 11792 | AQ78: 11839 | AR78: 11929 | AS78: 12025.93517 | AT78: 12122.87034 | AU78: 12207.07156 | AV78: 12279.89864 | AW78: 12345.9838 | AX78: 12411.74633 | AY78: 12477.26326 | AZ78: 12542.7251 | BA78: 12607.80455 | BB78: 12672.72779 | BC78: 12737.55653
A79: wots | C79: N | M79: 0 | N79: 0 | O79: 0 | P79: 0 | Q79: 0 | R79: 43.96027923 | S79: 44.06194602 | T79: 44.17841236 | U79: 44.53203265 | V79: 44.70665619 | W79: 44.7617172 | X79: 44.78968948 | Y79: 44.81481348 | Z79: 44.83724352 | AA79: 44.85901844 | AB79: 44.88159397 | AC79: 48.19819296 | AD79: 48.24625085 | AE79: 48.32015454 | AF79: 48.65694583 | AG79: 48.79888147 | AH79: 48.80958169 | AI79: 48.78956572 | AJ79: 48.76537743 | AK79: 48.73752962 | AL79: 48.70853654 | AM79: 48.68030412 | AN79: 13326 | AO79: 13568 | AP79: 13833 | AQ79: 13890 | AR79: 13977 | AS79: 14082.20944 | AT79: 14187.41889 | AU79: 14279.99348 | AV79: 14361.17499 | AW79: 14435.63356 | AX79: 14509.81148 | AY79: 14583.78597 | AZ79: 14657.77112 | BA79: 14731.39325 | BB79: 14804.902 | BC79: 14878.35927
A80: wt | C80: N | D80: 0 | E80: 0 | F80: 0 | G80: 0 | H80: 67.37704756 | I80: 59.85910952 | J80: 58.67176307 | K80: 65.67315407 | L80: 67.7 | M80: 49.82 | N80: 51.75312 | O80: 57.15562 | P80: 64.32813 | Q80: 68.89125 | R80: 63.98983984 | S80: 64.54680572 | T80: 65.32573355 | U80: 66.02872376 | V80: 66.61820645 | W80: 67.13664627 | X80: 67.62953263 | Y80: 68.11897359 | Z80: 68.61930786 | AA80: 69.54006468 | AB80: 70.47584963 | AC80: 73.36512022 | AD80: 73.89153977 | AE80: 74.64975098 | AF80: 75.32501212 | AG80: 75.87750432 | AH80: 76.35228705 | AI80: 76.79776767 | AJ80: 77.23776963 | AK80: 77.68805863 | AL80: 78.58383788 | AM80: 79.49543337 | AN80: 18984 | AO80: 21769 | AP80: 21979 | AQ80: 22139 | AR80: 22546 | AS80: 22801.31587 | AT80: 23056.63175 | AU80: 23399.94057 | AV80: 23728.37859 | AW80: 24025.50885 | AX80: 24303.38884 | AY80: 24575.77777 | AZ80: 24849.10638 | BA80: 25127.92421 | BB80: 25560.30829 | BC80: 25998.31145
A81: wyk | C81: N | D81: 0 | E81: 0 | F81: 0 | G81: 32.81059794 | H81: 32.66327288 | I81: 24.29887946 | J81: 27.09285319 | K81: 28.16663607 | L81: 32.3 | M81: 0 | N81: 21.24 | O81: 26.304 | P81: 27.312 | Q81: 30.912 | R81: 28.07267331 | S81: 28.17928525 | T81: 28.30645077 | U81: 28.46049701 | V81: 28.64666504 | W81: 28.87378415 | X81: 29.37883489 | Y81: 29.8981997 | Z81: 30.42195117 | AA81: 30.94579815 | AB81: 31.47043618 | AC81: 33.16607724 | AD81: 33.25613272 | AE81: 33.36752285 | AF81: 33.5075231 | AG81: 33.68218073 | AH81: 33.90150525 | AI81: 34.43021884 | AJ81: 34.97408888 | AK81: 35.52227858 | AL81: 36.07025251 | AM81: 36.61904923 | AN81: 12357 | AO81: 12434 | AP81: 12533 | AQ81: 12552 | AR81: 12595 | AS81: 12682.17822 | AT81: 12769.35643 | AU81: 12870.87234 | AV81: 12989.53534 | AW81: 13127.44503 | AX81: 13288.026 | AY81: 13581.53013 | AZ81: 13883.07963 | BA81: 14187.61175 | BB81: 14492.70142 | BC81: 14798.25927
A82: yn | C82: N | M82: 0 | N82: 0 | O82: 0 | P82: 0 | Q82: 0 | AN82: 23 | AO82: 24 | AP82: 24 | AQ82: 24 | AR82: 24 | AS82: 24.12030136 | AT82: 24.24060273 | AU82: 24.3615071 | AV82: 24.48335125 | AW82: 24.6054724 | AX82: 24.72820567 | AY82: 24.85155415 | AZ82: 24.9758614 | BA82: 25.10045124 | BB82: 25.2256656 | BC82: 25.35150759

Sheet Summary - Simple (W)
B1: Actuals | K1: P50 | V1: P10
B2: 2006 | C2: 2007 | D2: 2008 | E2: 2009 | F2: 2010 | G2: 2011 | H2: 2012 | I2: 2013 | J2: 2014 | K2: 2015 | L2: 2016 | M2: 2017 | N2: 2018 | O2: 2019 | P2: 2020 | Q2: 2021 | R2: 2022 | S2: 2023 | T2: 2024 | U2: 2025 | V2: 2015 | W2: 2016 | X2: 2017 | Y2: 2018 | Z2: 2019 | AA2: 2020 | AB2: 2021 | AC2: 2022 | AD2: 2023 | AE2: 2024 | AF2: 2025
A3: bdl | K3: ='Summary (W)'!R22 -> 50.95434856 | L3: ='Summary (W)'!S22 -> 51.07346694 | M3: ='Summary (W)'!T22 -> 51.09394313 | N3: ='Summary (W)'!U22 -> 51.03321586 | O3: ='Summary (W)'!V22 -> 50.90864832 | P3: ='Summary (W)'!W22 -> 50.73376258 | Q3: ='Summary (W)'!X22 -> 50.51769371 | R3: ='Summary (W)'!Y22 -> 50.28138507 | S3: ='Summary (W)'!Z22 -> 50.03211476 | T3: ='Summary (W)'!AA22 -> 49.77391829 | U3: ='Summary (W)'!AB22 -> 49.513702 | V3: ='Summary (W)'!AC22 -> 56.44748352 | W3: ='Summary (W)'!AD22 -> 56.57944346 | X3: ='Summary (W)'!AE22 -> 56.60212709 | Y3: ='Summary (W)'!AF22 -> 56.53485311 | Z3: ='Summary (W)'!AG22 -> 56.39685656 | AA3: ='Summary (W)'!AH22 -> 56.20311726 | AB3: ='Summary (W)'!AI22 -> 55.96375509 | AC3: ='Summary (W)'!AJ22 -> 55.70197118 | AD3: ='Summary (W)'!AK22 -> 55.42582828 | AE3: ='Summary (W)'!AL22 -> 55.13979694 | AF3: ='Summary (W)'!AM22 -> 54.85152802 | AG3: =(U3/K3)-1 -> -0.02827327985
A4: bge | K4: ='Summary (W)'!R23 -> 24.76696337 | L4: ='Summary (W)'!S23 -> 24.67533202 | M4: ='Summary (W)'!T23 -> 24.57103404 | N4: ='Summary (W)'!U23 -> 24.45571593 | O4: ='Summary (W)'!V23 -> 24.3305483 | P4: ='Summary (W)'!W23 -> 24.19740494 | Q4: ='Summary (W)'!X23 -> 24.05807429 | R4: ='Summary (W)'!Y23 -> 23.91438891 | S4: ='Summary (W)'!Z23 -> 23.76744092 | T4: ='Summary (W)'!AA23 -> 23.6189372 | U4: ='Summary (W)'!AB23 -> 23.47042706 | V4: ='Summary (W)'!AC23 -> 27.43696655 | W4: ='Summary (W)'!AD23 -> 27.33545687 | X4: ='Summary (W)'!AE23 -> 27.21991505 | Y4: ='Summary (W)'!AF23 -> 27.09216507 | Z4: ='Summary (W)'!AG23 -> 26.95350373 | AA4: ='Summary (W)'!AH23 -> 26.80600685 | AB4: ='Summary (W)'!AI23 -> 26.65165566 | AC4: ='Summary (W)'!AJ23 -> 26.49248028 | AD4: ='Summary (W)'!AK23 -> 26.32969055 | AE4: ='Summary (W)'!AL23 -> 26.16517738 | AF4: ='Summary (W)'!AM23 -> 26.0006571 | AG4: =(U4/K4)-1 -> -0.05234942591
A5: bn | K5: ='Summary (W)'!R24 -> 24.81189436 | L5: ='Summary (W)'!S24 -> 24.73689643 | M5: ='Summary (W)'!T24 -> 24.64768317 | N5: ='Summary (W)'!U24 -> 24.54671824 | O5: ='Summary (W)'!V24 -> 24.43518179 | P5: ='Summary (W)'!W24 -> 24.31508291 | Q5: ='Summary (W)'!X24 -> 24.18861709 | R5: ='Summary (W)'!Y24 -> 24.05789287 | S5: ='Summary (W)'!Z24 -> 23.92393222 | T5: ='Summary (W)'!AA24 -> 23.78848002 | U5: ='Summary (W)'!AB24 -> 23.65308764 | V5: ='Summary (W)'!AC24 -> 27.48674132 | W5: ='Summary (W)'!AD24 -> 27.40365823 | X5: ='Summary (W)'!AE24 -> 27.30482734 | Y5: ='Summary (W)'!AF24 -> 27.19297788 | Z5: ='Summary (W)'!AG24 -> 27.06941724 | AA5: ='Summary (W)'!AH24 -> 26.9363711 | AB5: ='Summary (W)'!AI24 -> 26.79627163 | AC5: ='Summary (W)'!AJ24 -> 26.65145468 | AD5: ='Summary (W)'!AK24 -> 26.50305239 | AE5: ='Summary (W)'!AL24 -> 26.35299777 | AF5: ='Summary (W)'!AM24 -> 26.20300941 | AG5: =(U5/K5)-1 -> -0.04670367778
A6: bra | K6: ='Summary (W)'!R25 -> 52.09058262 | L6: ='Summary (W)'!S25 -> 52.04426411 | M6: ='Summary (W)'!T25 -> 51.91178578 | N6: ='Summary (W)'!U25 -> 51.79170511 | O6: ='Summary (W)'!V25 -> 51.69536335 | P6: ='Summary (W)'!W25 -> 51.46023126 | Q6: ='Summary (W)'!X25 -> 51.20963095 | R6: ='Summary (W)'!Y25 -> 50.96418586 | S6: ='Summary (W)'!Z25 -> 50.71187088 | T6: ='Summary (W)'!AA25 -> 50.45561127 | U6: ='Summary (W)'!AB25 -> 50.19834298 | V6: ='Summary (W)'!AC25 -> 57.70620932 | W6: ='Summary (W)'!AD25 -> 57.65489744 | X6: ='Summary (W)'!AE25 -> 57.50813729 | Y6: ='Summary (W)'!AF25 -> 57.37511132 | Z6: ='Summary (W)'!AG25 -> 57.26838343 | AA6: ='Summary (W)'!AH25 -> 57.00790292 | AB6: ='Summary (W)'!AI25 -> 56.73028664 | AC6: ='Summary (W)'!AJ25 -> 56.45838134 | AD6: ='Summary (W)'!AK25 -> 56.17886553 | AE6: ='Summary (W)'!AL25 -> 55.89497985 | AF6: ='Summary (W)'!AM25 -> 55.60997674 | AG6: -0.03632594493
A7: brt | K7: ='Summary (W)'!R26 -> 14.18924289 | L7: ='Summary (W)'!S26 -> 14.14223021 | M7: ='Summary (W)'!T26 -> 14.08172433 | N7: ='Summary (W)'!U26 -> 14.01467484 | O7: ='Summary (W)'!V26 -> 13.94199906 | P7: ='Summary (W)'!W26 -> 13.86476103 | Q7: ='Summary (W)'!X26 -> 13.78397819 | R7: ='Summary (W)'!Y26 -> 13.70069376 | S7: ='Summary (W)'!Z26 -> 13.61553862 | T7: ='Summary (W)'!AA26 -> 13.52948753 | U7: ='Summary (W)'!AB26 -> 13.44342771 | V7: ='Summary (W)'!AC26 -> 15.71891461 | W7: ='Summary (W)'!AD26 -> 15.66683373 | X7: ='Summary (W)'!AE26 -> 15.59980501 | Y7: ='Summary (W)'!AF26 -> 15.52552725 | Z7: ='Summary (W)'!AG26 -> 15.44501665 | AA7: ='Summary (W)'!AH26 -> 15.35945198 | AB7: ='Summary (W)'!AI26 -> 15.26996034 | AC7: ='Summary (W)'!AJ26 -> 15.17769743 | AD7: ='Summary (W)'!AK26 -> 15.08336214 | AE7: ='Summary (W)'!AL26 -> 14.98803431 | AF7: ='Summary (W)'!AM26 -> 14.89269681 | AG7: -0.05256201348
A8: bwa | K8: ='Summary (W)'!R27 -> 9.986819666 | L8: ='Summary (W)'!S27 -> 9.930788677 | M8: ='Summary (W)'!T27 -> 9.87010449 | N8: ='Summary (W)'!U27 -> 9.805084269 | O8: ='Summary (W)'!V27 -> 9.736325687 | P8: ='Summary (W)'!W27 -> 9.664428692 | Q8: ='Summary (W)'!X27 -> 9.59000058 | R8: ='Summary (W)'!Y27 -> 9.513672105 | S8: ='Summary (W)'!Z27 -> 9.435983916 | T8: ='Summary (W)'!AA27 -> 9.357575364 | U8: ='Summary (W)'!AB27 -> 9.279071936 | V8: ='Summary (W)'!AC27 -> 11.06344904 | W8: ='Summary (W)'!AD27 -> 11.00137763 | X8: ='Summary (W)'!AE27 -> 10.93415138 | Y8: ='Summary (W)'!AF27 -> 10.86212165 | Z8: ='Summary (W)'!AG27 -> 10.78595055 | AA8: ='Summary (W)'!AH27 -> 10.7063027 | AB8: ='Summary (W)'!AI27 -> 10.62385086 | AC8: ='Summary (W)'!AJ27 -> 10.53929379 | AD8: ='Summary (W)'!AK27 -> 10.45323042 | AE8: ='Summary (W)'!AL27 -> 10.36636904 | AF8: ='Summary (W)'!AM27 -> 10.27940254 | AG8: -0.07086817959
A9: bwn | K9: ='Summary (W)'!R28 -> 12.7324398 | L9: ='Summary (W)'!S28 -> 12.70564553 | M9: ='Summary (W)'!T28 -> 12.6666003 | N9: ='Summary (W)'!U28 -> 12.62131273 | O9: ='Summary (W)'!V28 -> 12.57078809 | P9: ='Summary (W)'!W28 -> 12.5161066 | Q9: ='Summary (W)'!X28 -> 12.45827311 | R9: ='Summary (W)'!Y28 -> 12.39831087 | S9: ='Summary (W)'!Z28 -> 12.33670543 | T9: ='Summary (W)'!AA28 -> 12.27437076 | U9: ='Summary (W)'!AB28 -> 12.2121024 | V9: ='Summary (W)'!AC28 -> 14.10506083 | W9: ='Summary (W)'!AD28 -> 14.075378 | X9: ='Summary (W)'!AE28 -> 14.03212349 | Y9: ='Summary (W)'!AF28 -> 13.98195369 | Z9: ='Summary (W)'!AG28 -> 13.92598225 | AA9: ='Summary (W)'!AH28 -> 13.86540582 | AB9: ='Summary (W)'!AI28 -> 13.80133759 | AC9: ='Summary (W)'!AJ28 -> 13.73491112 | AD9: ='Summary (W)'!AK28 -> 13.6666643 | AE9: ='Summary (W)'!AL28 -> 13.59760964 | AF9: ='Summary (W)'!AM28 -> 13.52862844 | AG9: -0.04086706164
A10: bwr | K10: ='Summary (W)'!R29 -> 57.53479434 | L10: ='Summary (W)'!S29 -> 57.47509656 | M10: ='Summary (W)'!T29 -> 57.3995087 | N10: ='Summary (W)'!U29 -> 56.97629356 | O10: ='Summary (W)'!V29 -> 56.7285293 | P10: ='Summary (W)'!W29 -> 56.53695707 | Q10: ='Summary (W)'!X29 -> 56.32465333 | R10: ='Summary (W)'!Y29 -> 56.11090136 | S10: ='Summary (W)'!Z29 -> 55.88638274 | T10: ='Summary (W)'!AA29 -> 55.65517892 | U10: ='Summary (W)'!AB29 -> 55.42114494 | V10: ='Summary (W)'!AC29 -> 63.73733444 | W10: ='Summary (W)'!AD29 -> 63.67120094 | X10: ='Summary (W)'!AE29 -> 63.58746433 | Y10: ='Summary (W)'!AF29 -> 63.11862447 | Z10: ='Summary (W)'!AG29 -> 62.84414998 | AA10: ='Summary (W)'!AH29 -> 62.6319253 | AB10: ='Summary (W)'!AI29 -> 62.39673415 | AC10: ='Summary (W)'!AJ29 -> 62.15993864 | AD10: ='Summary (W)'!AK29 -> 61.91121578 | AE10: ='Summary (W)'!AL29 -> 61.65508703 | AF10: ='Summary (W)'!AM29 -> 61.39582301 | AG10: -0.03673688986
A11: cf | K11: ='Summary (W)'!R30 -> 7.778174639 | L11: ='Summary (W)'!S30 -> 7.770104048 | M11: ='Summary (W)'!T30 -> 7.759885266 | N11: ='Summary (W)'!U30 -> 7.702670474 | O11: ='Summary (W)'!V30 -> 7.669175027 | P11: ='Summary (W)'!W30 -> 7.643276224 | Q11: ='Summary (W)'!X30 -> 7.614574713 | R11: ='Summary (W)'!Y30 -> 7.585677413 | S11: ='Summary (W)'!Z30 -> 7.555324562 | T11: ='Summary (W)'!AA30 -> 7.524067935 | U11: ='Summary (W)'!AB30 -> 7.492428694 | V11: ='Summary (W)'!AC30 -> 8.616700972 | W11: ='Summary (W)'!AD30 -> 8.607760331 | X11: ='Summary (W)'!AE30 -> 8.596439913 | Y11: ='Summary (W)'!AF30 -> 8.533057078 | Z11: ='Summary (W)'!AG30 -> 8.495950654 | AA11: ='Summary (W)'!AH30 -> 8.46725983 | AB11: ='Summary (W)'!AI30 -> 8.435464151 | AC11: ='Summary (W)'!AJ30 -> 8.403451578 | AD11: ='Summary (W)'!AK30 -> 8.369826536 | AE11: ='Summary (W)'!AL30 -> 8.335200288 | AF11: ='Summary (W)'!AM30 -> 8.300150177 | AG11: -0.03673688986
A12: cln | K12: ='Summary (W)'!R31 -> 32.09644627 | L12: ='Summary (W)'!S31 -> 34.39663473 | M12: ='Summary (W)'!T31 -> 36.81379039 | N12: ='Summary (W)'!U31 -> 39.21240511 | O12: ='Summary (W)'!V31 -> 41.36953575 | P12: ='Summary (W)'!W31 -> 43.07399146 | Q12: ='Summary (W)'!X31 -> 44.87394645 | R12: ='Summary (W)'!Y31 -> 46.77261517 | S12: ='Summary (W)'!Z31 -> 48.74964877 | T12: ='Summary (W)'!AA31 -> 50.80325203 | U12: ='Summary (W)'!AB31 -> 52.93375971 | V12: ='Summary (W)'!AC31 -> 35.55660456 | W12: ='Summary (W)'!AD31 -> 38.10476489 | X12: ='Summary (W)'!AE31 -> 40.78250208 | Y12: ='Summary (W)'!AF31 -> 43.43969953 | Z12: ='Summary (W)'!AG31 -> 45.8293797 | AA12: ='Summary (W)'!AH31 -> 47.7175843 | AB12: ='Summary (W)'!AI31 -> 49.71158349 | AC12: ='Summary (W)'!AJ31 -> 51.81493825 | AD12: ='Summary (W)'!AK31 -> 54.005106 | AE12: ='Summary (W)'!AL31 -> 56.28009803 | AF12: ='Summary (W)'!AM31 -> 58.64028515 | AG12: 0.6492093629
A13: cnr | K13: ='Summary (W)'!R32 -> 2.569953507 | L13: ='Summary (W)'!S32 -> 2.566895466 | M13: ='Summary (W)'!T32 -> 2.565313073 | N13: ='Summary (W)'!U32 -> 2.564542916 | O13: ='Summary (W)'!V32 -> 2.564639311 | P13: ='Summary (W)'!W32 -> 2.565656616 | Q13: ='Summary (W)'!X32 -> 2.567666892 | R13: ='Summary (W)'!Y32 -> 2.570535131 | S13: ='Summary (W)'!Z32 -> 2.573351265 | T13: ='Summary (W)'!AA32 -> 2.575913636 | U13: ='Summary (W)'!AB32 -> 2.578382131 | V13: ='Summary (W)'!AC32 -> 2.847007416 | W13: ='Summary (W)'!AD32 -> 2.843619703 | X13: ='Summary (W)'!AE32 -> 2.84186672 | Y13: ='Summary (W)'!AF32 -> 2.841013536 | Z13: ='Summary (W)'!AG32 -> 2.841120323 | AA13: ='Summary (W)'!AH32 -> 2.842247298 | AB13: ='Summary (W)'!AI32 -> 2.844474293 | AC13: ='Summary (W)'!AJ32 -> 2.847651742 | AD13: ='Summary (W)'!AK32 -> 2.85077147 | AE13: ='Summary (W)'!AL32 -> 2.853610078 | AF13: ='Summary (W)'!AM32 -> 2.856344689 | AG13: 0.003279679682
A14: cre | K14: ='Summary (W)'!R33 -> 29.53758983 | L14: ='Summary (W)'!S33 -> 29.83998211 | M14: ='Summary (W)'!T33 -> 29.99750826 | N14: ='Summary (W)'!U33 -> 30.07665558 | O14: ='Summary (W)'!V33 -> 30.16889897 | P14: ='Summary (W)'!W33 -> 30.2742098 | Q14: ='Summary (W)'!X33 -> 30.13826755 | R14: ='Summary (W)'!Y33 -> 29.9757538 | S14: ='Summary (W)'!Z33 -> 29.80941905 | T14: ='Summary (W)'!AA33 -> 29.64128754 | U14: ='Summary (W)'!AB33 -> 29.47318082 | V14: ='Summary (W)'!AC33 -> 32.72189052 | W14: ='Summary (W)'!AD33 -> 33.05688221 | X14: ='Summary (W)'!AE33 -> 33.23139047 | Y14: ='Summary (W)'!AF33 -> 33.31907027 | Z14: ='Summary (W)'!AG33 -> 33.42125796 | AA14: ='Summary (W)'!AH33 -> 33.53792182 | AB14: ='Summary (W)'!AI33 -> 33.38732432 | AC14: ='Summary (W)'!AJ33 -> 33.20729077 | AD14: ='Summary (W)'!AK33 -> 33.02302429 | AE14: ='Summary (W)'!AL33 -> 32.83676737 | AF14: ='Summary (W)'!AM33 -> 32.6505379 | AG14: -0.002180577715
A15: cyn | K15: ='Summary (W)'!R34 -> 64.21471722 | L15: ='Summary (W)'!S34 -> 64.13830679 | M15: ='Summary (W)'!T34 -> 64.09876798 | N15: ='Summary (W)'!U34 -> 64.07952427 | O15: ='Summary (W)'!V34 -> 64.08193286 | P15: ='Summary (W)'!W34 -> 64.10735198 | Q15: ='Summary (W)'!X34 -> 64.15758221 | R15: ='Summary (W)'!Y34 -> 64.2292501 | S15: ='Summary (W)'!Z34 -> 64.29961606 | T15: ='Summary (W)'!AA34 -> 64.36364133 | U15: ='Summary (W)'!AB34 -> 64.42532092 | V15: ='Summary (W)'!AC34 -> 71.13738659 | W15: ='Summary (W)'!AD34 -> 71.05273873 | X15: ='Summary (W)'!AE34 -> 71.00893744 | Y15: ='Summary (W)'!AF34 -> 70.98761917 | Z15: ='Summary (W)'!AG34 -> 70.99028742 | AA15: ='Summary (W)'!AH34 -> 71.01844684 | AB15: ='Summary (W)'!AI34 -> 71.07409214 | AC15: ='Summary (W)'!AJ34 -> 71.15348619 | AD15: ='Summary (W)'!AK34 -> 71.23143795 | AE15: ='Summary (W)'!AL34 -> 71.30236547 | AF15: ='Summary (W)'!AM34 -> 71.37069443 | AG15: 0.003279679682
A16: drn | K16: ='Summary (W)'!R35 -> 40.75048742 | L16: ='Summary (W)'!S35 -> 40.78413692 | M16: ='Summary (W)'!T35 -> 40.94213615 | N16: ='Summary (W)'!U35 -> 41.08921195 | O16: ='Summary (W)'!V35 -> 41.23627353 | P16: ='Summary (W)'!W35 -> 41.37398573 | Q16: ='Summary (W)'!X35 -> 41.49716916 | R16: ='Summary (W)'!Y35 -> 41.59746216 | S16: ='Summary (W)'!Z35 -> 41.67857186 | T16: ='Summary (W)'!AA35 -> 41.7131259 | U16: ='Summary (W)'!AB35 -> 41.72457862 | V16: ='Summary (W)'!AC35 -> 45.14359485 | W16: ='Summary (W)'!AD35 -> 45.18087193 | X16: ='Summary (W)'!AE35 -> 45.35590427 | Y16: ='Summary (W)'!AF35 -> 45.51883558 | Z16: ='Summary (W)'!AG35 -> 45.68175115 | AA16: ='Summary (W)'!AH35 -> 45.83430941 | AB16: ='Summary (W)'!AI35 -> 45.97077263 | AC16: ='Summary (W)'!AJ35 -> 46.08187773 | AD16: ='Summary (W)'!AK35 -> 46.17173146 | AE16: ='Summary (W)'!AL35 -> 46.2100106 | AF16: ='Summary (W)'!AM35 -> 46.22269797 | AG16: 0.02390379257
A17: elm | K17: ='Summary (W)'!R36 -> 51.17576555 | L17: ='Summary (W)'!S36 -> 51.14956308 | M17: ='Summary (W)'!T36 -> 51.08814463 | N17: ='Summary (W)'!U36 -> 51.00657465 | O17: ='Summary (W)'!V36 -> 50.91671394 | P17: ='Summary (W)'!W36 -> 50.82366222 | Q17: ='Summary (W)'!X36 -> 50.72837735 | R17: ='Summary (W)'!Y36 -> 50.49182703 | S17: ='Summary (W)'!Z36 -> 50.2331721 | T17: ='Summary (W)'!AA36 -> 49.95553138 | U17: ='Summary (W)'!AB36 -> 49.66238946 | V17: ='Summary (W)'!AC36 -> 56.69277038 | W17: ='Summary (W)'!AD36 -> 56.66374315 | X17: ='Summary (W)'!AE36 -> 56.59570347 | Y17: ='Summary (W)'!AF36 -> 56.50533985 | Z17: ='Summary (W)'!AG36 -> 56.4057917 | AA17: ='Summary (W)'!AH36 -> 56.30270854 | AB17: ='Summary (W)'!AI36 -> 56.19715148 | AC17: ='Summary (W)'!AJ36 -> 55.93509985 | AD17: ='Summary (W)'!AK36 -> 55.64856061 | AE17: ='Summary (W)'!AL36 -> 55.34098883 | AF17: ='Summary (W)'!AM36 -> 55.01624473 | AG17: -0.02957212417
A18: epg | K18: ='Summary (W)'!R37 -> 41.80023601 | L18: ='Summary (W)'!S37 -> 41.76641092 | M18: ='Summary (W)'!T37 -> 42.04202563 | N18: ='Summary (W)'!U37 -> 42.13777676 | O18: ='Summary (W)'!V37 -> 42.01940813 | P18: ='Summary (W)'!W37 -> 41.83029731 | Q18: ='Summary (W)'!X37 -> 41.61098429 | R18: ='Summary (W)'!Y37 -> 41.41689877 | S18: ='Summary (W)'!Z37 -> 41.20117523 | T18: ='Summary (W)'!AA37 -> 40.9899103 | U18: ='Summary (W)'!AB37 -> 40.78647251 | V18: ='Summary (W)'!AC37 -> 46.30651161 | W18: ='Summary (W)'!AD37 -> 46.26904001 | X18: ='Summary (W)'!AE37 -> 46.57436737 | Y18: ='Summary (W)'!AF37 -> 46.68044095 | Z18: ='Summary (W)'!AG37 -> 46.54931159 | AA18: ='Summary (W)'!AH37 -> 46.33981367 | AB18: ='Summary (W)'!AI37 -> 46.0968576 | AC18: ='Summary (W)'!AJ37 -> 45.88184869 | AD18: ='Summary (W)'!AK37 -> 45.64286907 | AE18: ='Summary (W)'!AL37 -> 45.40882872 | AF18: ='Summary (W)'!AM37 -> 45.18345931 | AG18: -0.02425257825
A19: fgy | K19: ='Summary (W)'!R38 -> 51.32538577 | L19: ='Summary (W)'!S38 -> 51.25669061 | M19: ='Summary (W)'!T38 -> 51.17089849 | N19: ='Summary (W)'!U38 -> 51.09468921 | O19: ='Summary (W)'!V38 -> 50.82978802 | P19: ='Summary (W)'!W38 -> 50.61812389 | Q19: ='Summary (W)'!X38 -> 50.39159525 | R19: ='Summary (W)'!Y38 -> 50.1771455 | S19: ='Summary (W)'!Z38 -> 49.95828046 | T19: ='Summary (W)'!AA38 -> 49.7381061 | U19: ='Summary (W)'!AB38 -> 49.51987533 | V19: ='Summary (W)'!AC38 -> 56.85852041 | W19: ='Summary (W)'!AD38 -> 56.78241956 | X19: ='Summary (W)'!AE38 -> 56.68737863 | Y19: ='Summary (W)'!AF38 -> 56.6029536 | Z19: ='Summary (W)'!AG38 -> 56.30949473 | AA19: ='Summary (W)'!AH38 -> 56.07501214 | AB19: ='Summary (W)'!AI38 -> 55.82406258 | AC19: ='Summary (W)'!AJ38 -> 55.58649407 | AD19: ='Summary (W)'!AK38 -> 55.34403427 | AE19: ='Summary (W)'!AL38 -> 55.10012401 | AF19: ='Summary (W)'!AM38 -> 54.85836687 | AG19: -0.03517772751
A20: ftr | K20: ='Summary (W)'!R39 -> 15.85747514 | L20: ='Summary (W)'!S39 -> 15.83538155 | M20: ='Summary (W)'!T39 -> 15.80503866 | N20: ='Summary (W)'!U39 -> 15.77353136 | O20: ='Summary (W)'!V39 -> 15.74215485 | P20: ='Summary (W)'!W39 -> 15.71300529 | Q20: ='Summary (W)'!X39 -> 15.68821397 | R20: ='Summary (W)'!Y39 -> 15.67014004 | S20: ='Summary (W)'!Z39 -> 15.65994123 | T20: ='Summary (W)'!AA39 -> 15.65983795 | U20: ='Summary (W)'!AB39 -> 15.67185465 | V20: ='Summary (W)'!AC39 -> 17.56699068 | W20: ='Summary (W)'!AD39 -> 17.5425153 | X20: ='Summary (W)'!AE39 -> 17.50890129 | Y20: ='Summary (W)'!AF39 -> 17.47399735 | Z20: ='Summary (W)'!AG39 -> 17.43923829 | AA20: ='Summary (W)'!AH39 -> 17.40694626 | AB20: ='Summary (W)'!AI39 -> 17.37948231 | AC20: ='Summary (W)'!AJ39 -> 17.35945992 | AD20: ='Summary (W)'!AK39 -> 17.34816162 | AE20: ='Summary (W)'!AL39 -> 17.34804721 | AF20: ='Summary (W)'!AM39 -> 17.36135938 | AG20: -0.01170555094
A21: hpk | K21: ='Summary (W)'!R40 -> 28.51299441 | L21: ='Summary (W)'!S40 -> 28.70709572 | M21: ='Summary (W)'!T40 -> 28.87587017 | N21: ='Summary (W)'!U40 -> 29.06634403 | O21: ='Summary (W)'!V40 -> 29.3870747 | P21: ='Summary (W)'!W40 -> 30.0722346 | Q21: ='Summary (W)'!X40 -> 30.9529806 | R21: ='Summary (W)'!Y40 -> 31.74062449 | S21: ='Summary (W)'!Z40 -> 32.436894 | T21: ='Summary (W)'!AA40 -> 33.04835358 | U21: ='Summary (W)'!AB40 -> 33.57804412 | V21: ='Summary (W)'!AC40 -> 31.58683856 | W21: ='Summary (W)'!AD40 -> 31.80186498 | X21: ='Summary (W)'!AE40 -> 31.98883416 | Y21: ='Summary (W)'!AF40 -> 32.19984206 | Z21: ='Summary (W)'!AG40 -> 32.5551491 | AA21: ='Summary (W)'!AH40 -> 33.31417269 | AB21: ='Summary (W)'!AI40 -> 34.28986754 | AC21: ='Summary (W)'!AJ40 -> 35.1624234 | AD21: ='Summary (W)'!AK40 -> 35.93375425 | AE21: ='Summary (W)'!AL40 -> 36.61113225 | AF21: ='Summary (W)'!AM40 -> 37.1979261 | AG21: 0.1776400487
A22: klk | K22: ='Summary (W)'!R41 -> 4.739677347 | L22: ='Summary (W)'!S41 -> 4.729595831 | M22: ='Summary (W)'!T41 -> 4.712218863 | N22: ='Summary (W)'!U41 -> 4.692704265 | O22: ='Summary (W)'!V41 -> 4.67127485 | P22: ='Summary (W)'!W41 -> 4.648310099 | Q22: ='Summary (W)'!X41 -> 4.624167466 | R22: ='Summary (W)'!Y41 -> 4.599212071 | S22: ='Summary (W)'!Z41 -> 4.573638988 | T22: ='Summary (W)'!AA41 -> 4.547781211 | U22: ='Summary (W)'!AB41 -> 4.521934817 | V22: ='Summary (W)'!AC41 -> 5.250638396 | W22: ='Summary (W)'!AD41 -> 5.239470041 | X22: ='Summary (W)'!AE41 -> 5.220219748 | Y22: ='Summary (W)'!AF41 -> 5.198601379 | Z22: ='Summary (W)'!AG41 -> 5.174861765 | AA22: ='Summary (W)'!AH41 -> 5.149421299 | AB22: ='Summary (W)'!AI41 -> 5.122675969 | AC22: ='Summary (W)'!AJ41 -> 5.095030256 | AD22: ='Summary (W)'!AK41 -> 5.066700266 | AE22: ='Summary (W)'!AL41 -> 5.038054891 | AF22: ='Summary (W)'!AM41 -> 5.009422126 | AG22: -0.04594036987
A23: Klo | K23: ='Summary (W)'!R42 -> 16.74295453 | L23: ='Summary (W)'!S42 -> 16.76723833 | M23: ='Summary (W)'!T42 -> 18.02409702 | N23: ='Summary (W)'!U42 -> 19.8318441 | O23: ='Summary (W)'!V42 -> 21.77340509 | P23: ='Summary (W)'!W42 -> 23.81133278 | Q23: ='Summary (W)'!X42 -> 25.92979506 | R23: ='Summary (W)'!Y42 -> 28.09199281 | S23: ='Summary (W)'!Z42 -> 30.33477172 | T23: ='Summary (W)'!AA42 -> 32.47814727 | U23: ='Summary (W)'!AB42 -> 34.67905914 | V23: ='Summary (W)'!AC42 -> 18.5479292 | W23: ='Summary (W)'!AD42 -> 18.57483092 | X23: ='Summary (W)'!AE42 -> 19.96718529 | Y23: ='Summary (W)'!AF42 -> 21.9698166 | Z23: ='Summary (W)'!AG42 -> 24.12068763 | AA23: ='Summary (W)'!AH42 -> 26.37831417 | AB23: ='Summary (W)'!AI42 -> 28.72515733 | AC23: ='Summary (W)'!AJ42 -> 31.12045087 | AD23: ='Summary (W)'!AK42 -> 33.60501262 | AE23: ='Summary (W)'!AL42 -> 35.97945484 | AF23: ='Summary (W)'!AM42 -> 38.41763607 | AG23: 1.071262816
A24: kms | K24: ='Summary (W)'!R43 -> 8.699867246 | L24: ='Summary (W)'!S43 -> 8.703209136 | M24: ='Summary (W)'!T43 -> 8.701920782 | N24: ='Summary (W)'!U43 -> 8.683903087 | O24: ='Summary (W)'!V43 -> 8.650520372 | P24: ='Summary (W)'!W43 -> 8.604803762 | Q24: ='Summary (W)'!X43 -> 8.555180143 | R24: ='Summary (W)'!Y43 -> 8.504026354 | S24: ='Summary (W)'!Z43 -> 8.451729268 | T24: ='Summary (W)'!AA43 -> 8.398883506 | U24: ='Summary (W)'!AB43 -> 8.346030989 | V24: ='Summary (W)'!AC43 -> 9.637756676 | W24: ='Summary (W)'!AD43 -> 9.641458839 | X24: ='Summary (W)'!AE43 -> 9.640031593 | Y24: ='Summary (W)'!AF43 -> 9.620071501 | Z24: ='Summary (W)'!AG43 -> 9.58308996 | AA24: ='Summary (W)'!AH43 -> 9.532444871 | AB24: ='Summary (W)'!AI43 -> 9.477471576 | AC24: ='Summary (W)'!AJ43 -> 9.420803151 | AD24: ='Summary (W)'!AK43 -> 9.362868177 | AE24: ='Summary (W)'!AL43 -> 9.304325376 | AF24: ='Summary (W)'!AM43 -> 9.245775092 | AG24: -0.04067145469
A25: ldl | K25: ='Summary (W)'!R44 -> 53.54385164 | L25: ='Summary (W)'!S44 -> 53.61557842 | M25: ='Summary (W)'!T44 -> 53.64757557 | N25: ='Summary (W)'!U44 -> 53.62811952 | O25: ='Summary (W)'!V44 -> 53.56064641 | P25: ='Summary (W)'!W44 -> 53.45314326 | Q25: ='Summary (W)'!X44 -> 53.3155018 | R25: ='Summary (W)'!Y44 -> 53.16282322 | S25: ='Summary (W)'!Z44 -> 52.99850041 | T25: ='Summary (W)'!AA44 -> 52.82671706 | U25: ='Summary (W)'!AB44 -> 52.65091179 | V25: ='Summary (W)'!AC44 -> 59.31614805 | W25: ='Summary (W)'!AD44 -> 59.39560734 | X25: ='Summary (W)'!AE44 -> 59.43105394 | Y25: ='Summary (W)'!AF44 -> 59.40950044 | Z25: ='Summary (W)'!AG44 -> 59.33475338 | AA25: ='Summary (W)'!AH44 -> 59.21566085 | AB25: ='Summary (W)'!AI44 -> 59.06318095 | AC25: ='Summary (W)'!AJ44 -> 58.89404285 | AD25: ='Summary (W)'!AK44 -> 58.71200522 | AE25: ='Summary (W)'!AL44 -> 58.52170276 | AF25: ='Summary (W)'!AM44 -> 58.32694479 | AG25: -0.01667679534
A26: lga | K26: ='Summary (W)'!R45 -> 36.31833741 | L26: ='Summary (W)'!S45 -> 36.12995528 | M26: ='Summary (W)'!T45 -> 35.92407066 | N26: ='Summary (W)'!U45 -> 35.70266668 | O26: ='Summary (W)'!V45 -> 35.46747957 | P26: ='Summary (W)'!W45 -> 35.22081703 | Q26: ='Summary (W)'!X45 -> 34.96497949 | R26: ='Summary (W)'!Y45 -> 34.70234839 | S26: ='Summary (W)'!Z45 -> 34.43480836 | T26: ='Summary (W)'!AA45 -> 34.16472426 | U26: ='Summary (W)'!AB45 -> 33.89437014 | V26: ='Summary (W)'!AC45 -> 40.23363678 | W26: ='Summary (W)'!AD45 -> 40.02494612 | X26: ='Summary (W)'!AE45 -> 39.79686609 | Y26: ='Summary (W)'!AF45 -> 39.55159365 | Z26: ='Summary (W)'!AG45 -> 39.29105219 | AA26: ='Summary (W)'!AH45 -> 39.01779819 | AB26: ='Summary (W)'!AI45 -> 38.73438008 | AC26: ='Summary (W)'!AJ45 -> 38.44343602 | AD26: ='Summary (W)'!AK45 -> 38.14705383 | AE26: ='Summary (W)'!AL45 -> 37.8478533 | AF26: ='Summary (W)'!AM45 -> 37.54835365 | AG26: -0.06674224223
A27: llg | K27: ='Summary (W)'!R46 -> 17.9625616 | L27: ='Summary (W)'!S46 -> 17.89451403 | M27: ='Summary (W)'!T46 -> 17.81606191 | N27: ='Summary (W)'!U46 -> 17.72965371 | O27: ='Summary (W)'!V46 -> 17.63613897 | P27: ='Summary (W)'!W46 -> 17.5368527 | Q27: ='Summary (W)'!X46 -> 17.43307421 | R27: ='Summary (W)'!Y46 -> 17.32611599 | S27: ='Summary (W)'!Z46 -> 17.21678508 | T27: ='Summary (W)'!AA46 -> 17.10631199 | U27: ='Summary (W)'!AB46 -> 16.99582041 | V27: ='Summary (W)'!AC46 -> 19.89901605 | W27: ='Summary (W)'!AD46 -> 19.82363261 | X27: ='Summary (W)'!AE46 -> 19.73672296 | Y27: ='Summary (W)'!AF46 -> 19.64099953 | Z27: ='Summary (W)'!AG46 -> 19.53740342 | AA27: ='Summary (W)'!AH46 -> 19.42741359 | AB27: ='Summary (W)'!AI46 -> 19.31244726 | AC27: ='Summary (W)'!AJ46 -> 19.19395841 | AD27: ='Summary (W)'!AK46 -> 19.07284107 | AE27: ='Summary (W)'!AL46 -> 18.95045843 | AF27: ='Summary (W)'!AM46 -> 18.8280553 | AG27: -0.05381978424
A28: lyd | K28: ='Summary (W)'!R47 -> 16.96231495 | L28: ='Summary (W)'!S47 -> 16.96104668 | M28: ='Summary (W)'!T47 -> 16.93074163 | N28: ='Summary (W)'!U47 -> 16.88729866 | O28: ='Summary (W)'!V47 -> 16.8415579 | P28: ='Summary (W)'!W47 -> 16.79549993 | Q28: ='Summary (W)'!X47 -> 16.75111849 | R28: ='Summary (W)'!Y47 -> 16.6607757 | S28: ='Summary (W)'!Z47 -> 16.56700365 | T28: ='Summary (W)'!AA47 -> 16.47104376 | U28: ='Summary (W)'!AB47 -> 16.37405344 | V28: ='Summary (W)'!AC47 -> 18.79093778 | W28: ='Summary (W)'!AD47 -> 18.78953279 | X28: ='Summary (W)'!AE47 -> 18.75596071 | Y28: ='Summary (W)'!AF47 -> 18.70783436 | Z28: ='Summary (W)'!AG47 -> 18.65716252 | AA28: ='Summary (W)'!AH47 -> 18.60613926 | AB28: ='Summary (W)'!AI47 -> 18.55697328 | AC28: ='Summary (W)'!AJ47 -> 18.45689109 | AD28: ='Summary (W)'!AK47 -> 18.35300994 | AE28: ='Summary (W)'!AL47 -> 18.24670509 | AF28: ='Summary (W)'!AM47 -> 18.13925872 | AG28: -0.03468049685
A29: lys | K29: ='Summary (W)'!R48 -> 0 | L29: ='Summary (W)'!S48 -> 0 | M29: ='Summary (W)'!T48 -> 0 | N29: ='Summary (W)'!U48 -> 0 | O29: ='Summary (W)'!V48 -> 0 | P29: ='Summary (W)'!W48 -> 0 | Q29: ='Summary (W)'!X48 -> 0 | R29: ='Summary (W)'!Y48 -> 0 | S29: ='Summary (W)'!Z48 -> 0.2348316287 | T29: ='Summary (W)'!AA48 -> 0.2461327345 | U29: ='Summary (W)'!AB48 -> 0.2705964553 | V29: ='Summary (W)'!AC48 -> 0 | W29: ='Summary (W)'!AD48 -> 0 | X29: ='Summary (W)'!AE48 -> 0 | Y29: ='Summary (W)'!AF48 -> 0 | Z29: ='Summary (W)'!AG48 -> 0 | AA29: ='Summary (W)'!AH48 -> 0 | AB29: ='Summary (W)'!AI48 -> 0 | AC29: ='Summary (W)'!AJ48 -> 0 | AD29: ='Summary (W)'!AK48 -> 0.2601476589 | AE29: ='Summary (W)'!AL48 -> 0.2726670808 | AF29: ='Summary (W)'!AM48 -> 0.2997681137
A30: mby | K30: ='Summary (W)'!R49 -> 8.982337188 | L30: ='Summary (W)'!S49 -> 8.938387788 | M30: ='Summary (W)'!T49 -> 8.889648952 | N30: ='Summary (W)'!U49 -> 8.836690179 | O30: ='Summary (W)'!V49 -> 8.780213137 | P30: ='Summary (W)'!W49 -> 8.72089113 | Q30: ='Summary (W)'!X49 -> 8.659303512 | R30: ='Summary (W)'!Y49 -> 8.596049164 | S30: ='Summary (W)'!Z49 -> 8.531584913 | T30: ='Summary (W)'!AA49 -> 8.46650009 | U30: ='Summary (W)'!AB49 -> 8.401356991 | V30: ='Summary (W)'!AC49 -> 9.950678298 | W30: ='Summary (W)'!AD49 -> 9.901990931 | X30: ='Summary (W)'!AE49 -> 9.847997804 | Y30: ='Summary (W)'!AF49 -> 9.789329809 | Z30: ='Summary (W)'!AG49 -> 9.726764258 | AA30: ='Summary (W)'!AH49 -> 9.66104704 | AB30: ='Summary (W)'!AI49 -> 9.592819968 | AC30: ='Summary (W)'!AJ49 -> 9.522746482 | AD30: ='Summary (W)'!AK49 -> 9.451332661 | AE30: ='Summary (W)'!AL49 -> 9.379231367 | AF30: ='Summary (W)'!AM49 -> 9.307065515 | AG30: -0.06468029255
A31: mdg | K31: ='Summary (W)'!R50 -> 1.247344912 | L31: ='Summary (W)'!S50 -> 1.248279776 | M31: ='Summary (W)'!T50 -> 1.24872074 | N31: ='Summary (W)'!U50 -> 1.248747824 | O31: ='Summary (W)'!V50 -> 1.248399932 | P31: ='Summary (W)'!W50 -> 1.247772371 | Q31: ='Summary (W)'!X50 -> 1.246949346 | R31: ='Summary (W)'!Y50 -> 1.246013971 | S31: ='Summary (W)'!Z50 -> 0.05971057498 | T31: ='Summary (W)'!AA50 -> 0.07206233768 | U31: ='Summary (W)'!AB50 -> 0.08644614322 | V31: ='Summary (W)'!AC50 -> 1.381814964 | W31: ='Summary (W)'!AD50 -> 1.382850612 | X31: ='Summary (W)'!AE50 -> 1.383339114 | Y31: ='Summary (W)'!AF50 -> 1.383369118 | Z31: ='Summary (W)'!AG50 -> 1.382983721 | AA31: ='Summary (W)'!AH50 -> 1.382288506 | AB31: ='Summary (W)'!AI50 -> 1.381376755 | AC31: ='Summary (W)'!AJ50 -> 1.380340542 | AD31: ='Summary (W)'!AK50 -> 0.06614767517 | AE31: ='Summary (W)'!AL50 -> 0.07983101999 | AF31: ='Summary (W)'!AM50 -> 0.09576547209 | AG31: -0.9306958786
A32: mdi | K32: ='Summary (W)'!R51 -> 0.1558793465 | L32: ='Summary (W)'!S51 -> 0.1497699034 | M32: ='Summary (W)'!T51 -> 0.1431692533 | N32: ='Summary (W)'!U51 -> 0.1361299165 | O32: ='Summary (W)'!V51 -> 0.1287023137 | P32: ='Summary (W)'!W51 -> 0.1209473562 | Q32: ='Summary (W)'!X51 -> 0.1129273021 | R32: ='Summary (W)'!Y51 -> 0.1047067742 | S32: ='Summary (W)'!Z51 -> 0.003584174825 | T32: ='Summary (W)'!AA51 -> 0.003980017165 | U32: ='Summary (W)'!AB51 -> 0.004377843659 | V32: ='Summary (W)'!AC51 -> 0.1726839238 | W32: ='Summary (W)'!AD51 -> 0.165915852 | X32: ='Summary (W)'!AE51 -> 0.1586036187 | Y32: ='Summary (W)'!AF51 -> 0.1508054059 | Z32: ='Summary (W)'!AG51 -> 0.1425770702 | AA32: ='Summary (W)'!AH51 -> 0.1339860893 | AB32: ='Summary (W)'!AI51 -> 0.125101433 | AC32: ='Summary (W)'!AJ51 -> 0.1159946909 | AD32: ='Summary (W)'!AK51 -> 0.003970566892 | AE32: ='Summary (W)'!AL51 -> 0.004409083026 | AF32: ='Summary (W)'!AM51 -> 0.004849797216 | AG32: -0.9719151783
A33: mfa | K33: ='Summary (W)'!R52 -> 23.96004146 | L33: ='Summary (W)'!S52 -> 23.8760386 | M33: ='Summary (W)'!T52 -> 23.77592402 | N33: ='Summary (W)'!U52 -> 23.66544027 | O33: ='Summary (W)'!V52 -> 23.54574767 | P33: ='Summary (W)'!W52 -> 23.41870914 | Q33: ='Summary (W)'!X52 -> 23.27809414 | R33: ='Summary (W)'!Y52 -> 23.13430684 | S33: ='Summary (W)'!Z52 -> 22.98960597 | T33: ='Summary (W)'!AA52 -> 22.84524681 | U33: ='Summary (W)'!AB52 -> 22.70283545 | V33: ='Summary (W)'!AC52 -> 26.54305439 | W33: ='Summary (W)'!AD52 -> 26.44999561 | X33: ='Summary (W)'!AE52 -> 26.33908817 | Y33: ='Summary (W)'!AF52 -> 26.21669372 | Z33: ='Summary (W)'!AG52 -> 26.08409766 | AA33: ='Summary (W)'!AH52 -> 25.94336373 | AB33: ='Summary (W)'!AI52 -> 25.78758972 | AC33: ='Summary (W)'!AJ52 -> 25.62830143 | AD33: ='Summary (W)'!AK52 -> 25.46800108 | AE33: ='Summary (W)'!AL52 -> 25.30807928 | AF33: ='Summary (W)'!AM52 -> 25.15031526 | AG33: -0.05247094442
A34: mjg | K34: ='Summary (W)'!R53 -> 14.75554462 | L34: ='Summary (W)'!S53 -> 14.703773 | M34: ='Summary (W)'!T53 -> 14.62466083 | N34: ='Summary (W)'!U53 -> 14.52621247 | O34: ='Summary (W)'!V53 -> 14.42134185 | P34: ='Summary (W)'!W53 -> 14.31186053 | Q34: ='Summary (W)'!X53 -> 14.19864156 | R34: ='Summary (W)'!Y53 -> 14.08259372 | S34: ='Summary (W)'!Z53 -> 13.96453323 | T34: ='Summary (W)'!AA53 -> 13.84539302 | U34: ='Summary (W)'!AB53 -> 13.72609519 | V34: ='Summary (W)'!AC53 -> 16.34626652 | W34: ='Summary (W)'!AD53 -> 16.28891366 | X34: ='Summary (W)'!AE53 -> 16.20127279 | Y34: ='Summary (W)'!AF53 -> 16.0922112 | Z34: ='Summary (W)'!AG53 -> 15.97603501 | AA34: ='Summary (W)'!AH53 -> 15.85475106 | AB34: ='Summary (W)'!AI53 -> 15.72932651 | AC34: ='Summary (W)'!AJ53 -> 15.60076813 | AD34: ='Summary (W)'!AK53 -> 15.46998012 | AE34: ='Summary (W)'!AL53 -> 15.337996 | AF34: ='Summary (W)'!AM53 -> 15.20583727 | AG34: -0.0697669556
A35: moe | K35: ='Summary (W)'!R54 -> 23.21057426 | L35: ='Summary (W)'!S54 -> 23.18624322 | M35: ='Summary (W)'!T54 -> 23.13421229 | N35: ='Summary (W)'!U54 -> 23.06402212 | O35: ='Summary (W)'!V54 -> 22.98389613 | P35: ='Summary (W)'!W54 -> 22.89614582 | Q35: ='Summary (W)'!X54 -> 22.80267624 | R35: ='Summary (W)'!Y54 -> 22.70542233 | S35: ='Summary (W)'!Z54 -> 22.60520332 | T35: ='Summary (W)'!AA54 -> 22.50371638 | U35: ='Summary (W)'!AB54 -> 22.40241044 | V35: ='Summary (W)'!AC54 -> 25.71279086 | W35: ='Summary (W)'!AD54 -> 25.68583682 | X35: ='Summary (W)'!AE54 -> 25.62819669 | Y35: ='Summary (W)'!AF54 -> 25.55043967 | Z35: ='Summary (W)'!AG54 -> 25.4616757 | AA35: ='Summary (W)'!AH54 -> 25.36446546 | AB35: ='Summary (W)'!AI54 -> 25.26091939 | AC35: ='Summary (W)'!AJ54 -> 25.15318101 | AD35: ='Summary (W)'!AK54 -> 25.0421579 | AE35: ='Summary (W)'!AL54 -> 24.92973015 | AF35: ='Summary (W)'!AM54 -> 24.81750292 | AG35: -0.03481877758
A36: msd | K36: ='Summary (W)'!R55 -> 17.19026383 | L36: ='Summary (W)'!S55 -> 17.28050536 | M36: ='Summary (W)'!T55 -> 17.35803361 | N36: ='Summary (W)'!U55 -> 17.43164718 | O36: ='Summary (W)'!V55 -> 17.50215475 | P36: ='Summary (W)'!W55 -> 17.57229366 | Q36: ='Summary (W)'!X55 -> 17.6445201 | R36: ='Summary (W)'!Y55 -> 17.72140278 | S36: ='Summary (W)'!Z55 -> 17.80303871 | T36: ='Summary (W)'!AA55 -> 17.89139169 | U36: ='Summary (W)'!AB55 -> 17.98786231 | V36: ='Summary (W)'!AC55 -> 19.0434607 | W36: ='Summary (W)'!AD55 -> 19.14343072 | X36: ='Summary (W)'!AE55 -> 19.22931691 | Y36: ='Summary (W)'!AF55 -> 19.31086638 | Z36: ='Summary (W)'!AG55 -> 19.38897503 | AA36: ='Summary (W)'!AH55 -> 19.46667526 | AB36: ='Summary (W)'!AI55 -> 19.54668808 | AC36: ='Summary (W)'!AJ55 -> 19.6318591 | AD36: ='Summary (W)'!AK55 -> 19.72229579 | AE36: ='Summary (W)'!AL55 -> 19.82017367 | AF36: ='Summary (W)'!AM55 -> 19.9270443 | AG36: 0.04639826847
A37: mwe | K37: ='Summary (W)'!R56 -> 0 | L37: ='Summary (W)'!S56 -> 0 | M37: ='Summary (W)'!T56 -> 0 | N37: ='Summary (W)'!U56 -> 0 | O37: ='Summary (W)'!V56 -> 0 | P37: ='Summary (W)'!W56 -> 0 | Q37: ='Summary (W)'!X56 -> 0 | R37: ='Summary (W)'!Y56 -> 0 | S37: ='Summary (W)'!Z56 -> 0.002659560001 | T37: ='Summary (W)'!AA56 -> 0.002950896322 | U37: ='Summary (W)'!AB56 -> 0.00325733594 | V37: ='Summary (W)'!AC56 -> 0 | W37: ='Summary (W)'!AD56 -> 0 | X37: ='Summary (W)'!AE56 -> 0 | Y37: ='Summary (W)'!AF56 -> 0 | Z37: ='Summary (W)'!AG56 -> 0 | AA37: ='Summary (W)'!AH56 -> 0 | AB37: ='Summary (W)'!AI56 -> 0 | AC37: ='Summary (W)'!AJ56 -> 0 | AD37: ='Summary (W)'!AK56 -> 0.00294627394 | AE37: ='Summary (W)'!AL56 -> 0.003269017782 | AF37: ='Summary (W)'!AM56 -> 0.003608493131
A38: mwts | K38: ='Summary (W)'!R57 -> 44.76613687 | L38: ='Summary (W)'!S57 -> 45.00110968 | M38: ='Summary (W)'!T57 -> 45.37879939 | N38: ='Summary (W)'!U57 -> 45.93644226 | O38: ='Summary (W)'!V57 -> 46.71162024 | P38: ='Summary (W)'!W57 -> 47.27818231 | Q38: ='Summary (W)'!X57 -> 47.82382809 | R38: ='Summary (W)'!Y57 -> 48.3456643 | S38: ='Summary (W)'!Z57 -> 14.54332486 | T38: ='Summary (W)'!AA57 -> 15.7617269 | U38: ='Summary (W)'!AB57 -> 17.0039911 | V38: ='Summary (W)'!AC57 -> 49.5921515 | W38: ='Summary (W)'!AD57 -> 49.85245556 | X38: ='Summary (W)'!AE57 -> 50.27086212 | Y38: ='Summary (W)'!AF57 -> 50.88862169 | Z38: ='Summary (W)'!AG57 -> 51.74736775 | AA38: ='Summary (W)'!AH57 -> 52.37500807 | AB38: ='Summary (W)'!AI57 -> 52.97947721 | AC38: ='Summary (W)'!AJ57 -> 53.55756998 | AD38: ='Summary (W)'!AK57 -> 16.1111684 | AE38: ='Summary (W)'!AL57 -> 17.46092031 | AF38: ='Summary (W)'!AM57 -> 18.83710684 | AG38: -0.6201595158
A39: myt | K39: ='Summary (W)'!R58 -> 16.31622256 | L39: ='Summary (W)'!S58 -> 16.29159646 | M39: ='Summary (W)'!T58 -> 16.25556605 | N39: ='Summary (W)'!U58 -> 16.20945809 | O39: ='Summary (W)'!V58 -> 16.15405237 | P39: ='Summary (W)'!W58 -> 16.09083362 | Q39: ='Summary (W)'!X58 -> 16.02112971 | R39: ='Summary (W)'!Y58 -> 15.94625823 | S39: ='Summary (W)'!Z58 -> 15.86683022 | T39: ='Summary (W)'!AA58 -> 15.78404082 | U39: ='Summary (W)'!AB58 -> 15.69894088 | V39: ='Summary (W)'!AC58 -> 18.07519339 | W39: ='Summary (W)'!AD58 -> 18.04791246 | X39: ='Summary (W)'!AE58 -> 18.0079978 | Y39: ='Summary (W)'!AF58 -> 17.95691916 | Z39: ='Summary (W)'!AG58 -> 17.89554043 | AA39: ='Summary (W)'!AH58 -> 17.82550638 | AB39: ='Summary (W)'!AI58 -> 17.74828805 | AC39: ='Summary (W)'!AJ58 -> 17.66534504 | AD39: ='Summary (W)'!AK58 -> 17.5773543 | AE39: ='Summary (W)'!AL58 -> 17.48563978 | AF39: ='Summary (W)'!AM58 -> 17.39136564 | AG39: -0.03783238886
A40: nla | K40: ='Summary (W)'!R59 -> 8.264789338 | L40: ='Summary (W)'!S59 -> 8.26766093 | M40: ='Summary (W)'!T59 -> 8.269591154 | N40: ='Summary (W)'!U59 -> 8.279544992 | O40: ='Summary (W)'!V59 -> 8.301182006 | P40: ='Summary (W)'!W59 -> 8.307187955 | Q40: ='Summary (W)'!X59 -> 8.31027519 | R40: ='Summary (W)'!Y59 -> 8.310738473 | S40: ='Summary (W)'!Z59 -> 8.308897142 | T40: ='Summary (W)'!AA59 -> 8.304348126 | U40: ='Summary (W)'!AB59 -> 8.295853532 | V40: ='Summary (W)'!AC59 -> 9.155775182 | W40: ='Summary (W)'!AD59 -> 9.158956346 | X40: ='Summary (W)'!AE59 -> 9.161094658 | Y40: ='Summary (W)'!AF59 -> 9.172121569 | Z40: ='Summary (W)'!AG59 -> 9.196091162 | AA40: ='Summary (W)'!AH59 -> 9.202744583 | AB40: ='Summary (W)'!AI59 -> 9.206164637 | AC40: ='Summary (W)'!AJ59 -> 9.206677865 | AD40: ='Summary (W)'!AK59 -> 9.204638029 | AE40: ='Summary (W)'!AL59 -> 9.199598606 | AF40: ='Summary (W)'!AM59 -> 9.190188252 | AG40: 0.00375861892
A41: nrn | K41: ='Summary (W)'!R60 -> 17.17028675 | L41: ='Summary (W)'!S60 -> 17.10007053 | M41: ='Summary (W)'!T60 -> 17.01967436 | N41: ='Summary (W)'!U60 -> 16.93138952 | O41: ='Summary (W)'!V60 -> 16.836529 | P41: ='Summary (W)'!W60 -> 16.7376561 | Q41: ='Summary (W)'!X60 -> 16.63638483 | R41: ='Summary (W)'!Y60 -> 16.53417513 | S41: ='Summary (W)'!Z60 -> 16.43201708 | T41: ='Summary (W)'!AA60 -> 16.33130838 | U41: ='Summary (W)'!AB60 -> 16.23335486 | V41: ='Summary (W)'!AC60 -> 19.02132999 | W41: ='Summary (W)'!AD60 -> 18.94354411 | X41: ='Summary (W)'!AE60 -> 18.85448083 | Y41: ='Summary (W)'!AF60 -> 18.75667844 | Z41: ='Summary (W)'!AG60 -> 18.65159147 | AA41: ='Summary (W)'!AH60 -> 18.54205959 | AB41: ='Summary (W)'!AI60 -> 18.42987075 | AC41: ='Summary (W)'!AJ60 -> 18.31664234 | AD41: ='Summary (W)'!AK60 -> 18.20347114 | AE41: ='Summary (W)'!AL60 -> 18.09190553 | AF41: ='Summary (W)'!AM60 -> 17.98339213 | AG41: -0.05456705006
A42: ofr | K42: ='Summary (W)'!R61 -> 31.18589426 | L42: ='Summary (W)'!S61 -> 31.74756711 | M42: ='Summary (W)'!T61 -> 32.35346471 | N42: ='Summary (W)'!U61 -> 32.91132024 | O42: ='Summary (W)'!V61 -> 33.43319753 | P42: ='Summary (W)'!W61 -> 33.93147936 | Q42: ='Summary (W)'!X61 -> 34.41952143 | R42: ='Summary (W)'!Y61 -> 34.90147857 | S42: ='Summary (W)'!Z61 -> 35.37920555 | T42: ='Summary (W)'!AA61 -> 35.85454594 | U42: ='Summary (W)'!AB61 -> 36.32940485 | V42: ='Summary (W)'!AC61 -> 34.54789046 | W42: ='Summary (W)'!AD61 -> 35.17011446 | X42: ='Summary (W)'!AE61 -> 35.84133087 | Y42: ='Summary (W)'!AF61 -> 36.45932603 | Z42: ='Summary (W)'!AG61 -> 37.03746432 | AA42: ='Summary (W)'!AH61 -> 37.58946344 | AB42: ='Summary (W)'!AI61 -> 38.13011889 | AC42: ='Summary (W)'!AJ61 -> 38.66403343 | AD42: ='Summary (W)'!AK61 -> 39.19326179 | AE42: ='Summary (W)'!AL61 -> 39.71984626 | AF42: ='Summary (W)'!AM61 -> 40.24589735 | AG42: 0.164930675
A43: phi | K43: ='Summary (W)'!R62 -> 15.97203789 | L43: ='Summary (W)'!S62 -> 16.157672 | M43: ='Summary (W)'!T62 -> 16.29989834 | N43: ='Summary (W)'!U62 -> 16.42418965 | O43: ='Summary (W)'!V62 -> 16.53741678 | P43: ='Summary (W)'!W62 -> 16.64227656 | Q43: ='Summary (W)'!X62 -> 16.74092228 | R43: ='Summary (W)'!Y62 -> 16.83543099 | S43: ='Summary (W)'!Z62 -> 16.92527674 | T43: ='Summary (W)'!AA62 -> 17.01185389 | U43: ='Summary (W)'!AB62 -> 17.09595205 | V43: ='Summary (W)'!AC62 -> 17.69390388 | W43: ='Summary (W)'!AD62 -> 17.89955028 | X43: ='Summary (W)'!AE62 -> 18.05710933 | Y43: ='Summary (W)'!AF62 -> 18.19479987 | Z43: ='Summary (W)'!AG62 -> 18.32023346 | AA43: ='Summary (W)'!AH62 -> 18.43639765 | AB43: ='Summary (W)'!AI62 -> 18.54567787 | AC43: ='Summary (W)'!AJ62 -> 18.6503751 | AD43: ='Summary (W)'!AK62 -> 18.74990667 | AE43: ='Summary (W)'!AL62 -> 18.84581727 | AF43: ='Summary (W)'!AM62 -> 18.93898164 | AG43: 0.07036761166
A44: phm | K44: ='Summary (W)'!R63 -> 33.4010943 | L44: ='Summary (W)'!S63 -> 34.40812298 | M44: ='Summary (W)'!T63 -> 35.25884171 | N44: ='Summary (W)'!U63 -> 36.10223702 | O44: ='Summary (W)'!V63 -> 36.9363481 | P44: ='Summary (W)'!W63 -> 37.76002877 | Q44: ='Summary (W)'!X63 -> 38.57183755 | R44: ='Summary (W)'!Y63 -> 39.37710331 | S44: ='Summary (W)'!Z63 -> 40.17786398 | T44: ='Summary (W)'!AA63 -> 40.97603022 | U44: ='Summary (W)'!AB63 -> 41.77361619 | V44: ='Summary (W)'!AC63 -> 37.0019002 | W44: ='Summary (W)'!AD63 -> 38.11749163 | X44: ='Summary (W)'!AE63 -> 39.05992211 | Y44: ='Summary (W)'!AF63 -> 39.99423968 | Z44: ='Summary (W)'!AG63 -> 40.91827213 | AA44: ='Summary (W)'!AH63 -> 41.83074972 | AB44: ='Summary (W)'!AI63 -> 42.73007556 | AC44: ='Summary (W)'!AJ63 -> 43.62215302 | AD44: ='Summary (W)'!AK63 -> 44.50923972 | AE44: ='Summary (W)'!AL63 -> 45.39345229 | AF44: ='Summary (W)'!AM63 -> 46.27702204 | AG44: 0.2506660952
A45: RUB | K45: ='Summary (W)'!R64 -> 6.649845459 | L45: ='Summary (W)'!S64 -> 6.684229959 | M45: ='Summary (W)'!T64 -> 6.713705545 | N45: ='Summary (W)'!U64 -> 6.741655656 | O45: ='Summary (W)'!V64 -> 6.768393802 | P45: ='Summary (W)'!W64 -> 6.794974863 | Q45: ='Summary (W)'!X64 -> 6.822345981 | R45: ='Summary (W)'!Y64 -> 6.851497206 | S45: ='Summary (W)'!Z64 -> 0.3103593243 | T45: ='Summary (W)'!AA64 -> 0.343931115 | U45: ='Summary (W)'!AB64 -> 0.3776711838 | V45: ='Summary (W)'!AC64 -> 7.366732233 | W45: ='Summary (W)'!AD64 -> 7.404823556 | X45: ='Summary (W)'!AE64 -> 7.437476758 | Y45: ='Summary (W)'!AF64 -> 7.468440031 | Z45: ='Summary (W)'!AG64 -> 7.498060684 | AA45: ='Summary (W)'!AH64 -> 7.527507317 | AB45: ='Summary (W)'!AI64 -> 7.557829178 | AC45: ='Summary (W)'!AJ64 -> 7.590123053 | AD45: ='Summary (W)'!AK64 -> 0.3438176199 | AE45: ='Summary (W)'!AL64 -> 0.3810086184 | AF45: ='Summary (W)'!AM64 -> 0.4183860363 | AG45: -0.9432060209
A46: rwn | K46: ='Summary (W)'!R65 -> 24.10524743 | L46: ='Summary (W)'!S65 -> 24.31724419 | M46: ='Summary (W)'!T65 -> 24.47631187 | N46: ='Summary (W)'!U65 -> 24.58763182 | O46: ='Summary (W)'!V65 -> 24.65364684 | P46: ='Summary (W)'!W65 -> 24.68063135 | Q46: ='Summary (W)'!X65 -> 24.67517643 | R46: ='Summary (W)'!Y65 -> 24.64631587 | S46: ='Summary (W)'!Z65 -> 24.61519156 | T46: ='Summary (W)'!AA65 -> 24.58982044 | U46: ='Summary (W)'!AB65 -> 24.57210436 | V46: ='Summary (W)'!AC65 -> 26.7039143 | W46: ='Summary (W)'!AD65 -> 26.93876537 | X46: ='Summary (W)'!AE65 -> 27.11498136 | Y46: ='Summary (W)'!AF65 -> 27.23830215 | Z46: ='Summary (W)'!AG65 -> 27.31143392 | AA46: ='Summary (W)'!AH65 -> 27.3413275 | AB46: ='Summary (W)'!AI65 -> 27.33528451 | AC46: ='Summary (W)'!AJ65 -> 27.30331264 | AD46: ='Summary (W)'!AK65 -> 27.26883297 | AE46: ='Summary (W)'!AL65 -> 27.24072672 | AF46: ='Summary (W)'!AM65 -> 27.22110075 | AG46: 0.01936743982
A47: rwt | K47: ='Summary (W)'!R66 -> 73.87370866 | L47: ='Summary (W)'!S66 -> 74.09850744 | M47: ='Summary (W)'!T66 -> 74.34134957 | N47: ='Summary (W)'!U66 -> 74.49569445 | O47: ='Summary (W)'!V66 -> 74.59943075 | P47: ='Summary (W)'!W66 -> 74.65132338 | Q47: ='Summary (W)'!X66 -> 74.65699643 | R47: ='Summary (W)'!Y66 -> 74.62595626 | S47: ='Summary (W)'!Z66 -> 1.200184019 | T47: ='Summary (W)'!AA66 -> 1.297052364 | U47: ='Summary (W)'!AB66 -> 1.392351608 | V47: ='Summary (W)'!AC66 -> 81.83766588 | W47: ='Summary (W)'!AD66 -> 82.0866991 | X47: ='Summary (W)'!AE66 -> 82.35572082 | Y47: ='Summary (W)'!AF66 -> 82.52670486 | Z47: ='Summary (W)'!AG66 -> 82.64162445 | AA47: ='Summary (W)'!AH66 -> 82.69911137 | AB47: ='Summary (W)'!AI66 -> 82.705396 | AC47: ='Summary (W)'!AJ66 -> 82.67100954 | AD47: ='Summary (W)'!AK66 -> 1.329569891 | AE47: ='Summary (W)'!AL66 -> 1.43688113 | AF47: ='Summary (W)'!AM66 -> 1.542454112 | AG47: -0.9811522714
A49: sle | K49: ='Summary (W)'!R68 -> 19.69978245 | L49: ='Summary (W)'!S68 -> 19.7443373 | M49: ='Summary (W)'!T68 -> 19.7526552 | N49: ='Summary (W)'!U68 -> 19.74089036 | O49: ='Summary (W)'!V68 -> 19.71829682 | P49: ='Summary (W)'!W68 -> 19.6868609 | Q49: ='Summary (W)'!X68 -> 19.6482983 | R49: ='Summary (W)'!Y68 -> 19.60430955 | S49: ='Summary (W)'!Z68 -> 19.55522122 | T49: ='Summary (W)'!AA68 -> 19.50244181 | U49: ='Summary (W)'!AB68 -> 19.44708548 | V49: ='Summary (W)'!AC68 -> 21.82351805 | W49: ='Summary (W)'!AD68 -> 21.87287613 | X49: ='Summary (W)'!AE68 -> 21.88209074 | Y49: ='Summary (W)'!AF68 -> 21.86905759 | Z49: ='Summary (W)'!AG68 -> 21.84402836 | AA49: ='Summary (W)'!AH68 -> 21.80920349 | AB49: ='Summary (W)'!AI68 -> 21.76648364 | AC49: ='Summary (W)'!AJ68 -> 21.71775269 | AD49: ='Summary (W)'!AK68 -> 21.66337239 | AE49: ='Summary (W)'!AL68 -> 21.60490309 | AF49: ='Summary (W)'!AM68 -> 21.54357907 | AG49: -0.0128273992
A50: smg | K50: ='Summary (W)'!R69 -> 23.98772275 | L50: ='Summary (W)'!S69 -> 24.41051545 | M50: ='Summary (W)'!T69 -> 24.83330814 | N50: ='Summary (W)'!U69 -> 24.97934658 | O50: ='Summary (W)'!V69 -> 25.08660017 | P50: ='Summary (W)'!W69 -> 25.19436799 | Q50: ='Summary (W)'!X69 -> 25.30267725 | R50: ='Summary (W)'!Y69 -> 25.41180535 | S50: ='Summary (W)'!Z69 -> 25.52123211 | T50: ='Summary (W)'!AA69 -> 25.63118354 | U50: ='Summary (W)'!AB69 -> 25.74168736 | V50: ='Summary (W)'!AC69 -> 26.57371987 | W50: ='Summary (W)'!AD69 -> 27.04209174 | X50: ='Summary (W)'!AE69 -> 27.51046362 | Y50: ='Summary (W)'!AF69 -> 27.67224574 | Z50: ='Summary (W)'!AG69 -> 27.79106179 | AA50: ='Summary (W)'!AH69 -> 27.91044754 | AB50: ='Summary (W)'!AI69 -> 28.03043307 | AC50: ='Summary (W)'!AJ69 -> 28.15132573 | AD50: ='Summary (W)'!AK69 -> 28.27254925 | AE50: ='Summary (W)'!AL69 -> 28.39435399 | AF50: ='Summary (W)'!AM69 -> 28.51677068 | AG50: 0.07311926311
A51: smr | K51: ='Summary (W)'!R70 -> 25.18809098 | L51: ='Summary (W)'!S70 -> 25.17405651 | M51: ='Summary (W)'!T70 -> 25.13403382 | N51: ='Summary (W)'!U70 -> 25.06124653 | O51: ='Summary (W)'!V70 -> 24.95871662 | P51: ='Summary (W)'!W70 -> 24.83372284 | Q51: ='Summary (W)'!X70 -> 24.70013219 | R51: ='Summary (W)'!Y70 -> 24.5621865 | S51: ='Summary (W)'!Z70 -> 24.42095092 | T51: ='Summary (W)'!AA70 -> 24.27817701 | U51: ='Summary (W)'!AB70 -> 24.13543552 | V51: ='Summary (W)'!AC70 -> 27.90349383 | W51: ='Summary (W)'!AD70 -> 27.88794637 | X51: ='Summary (W)'!AE70 -> 27.84360903 | Y51: ='Summary (W)'!AF70 -> 27.76297491 | Z51: ='Summary (W)'!AG70 -> 27.64939176 | AA51: ='Summary (W)'!AH70 -> 27.51092302 | AB51: ='Summary (W)'!AI70 -> 27.36293062 | AC51: ='Summary (W)'!AJ70 -> 27.2101137 | AD51: ='Summary (W)'!AK70 -> 27.05365221 | AE51: ='Summary (W)'!AL70 -> 26.89548655 | AF51: ='Summary (W)'!AM70 -> 26.73735681 | AG51: -0.04179179224
A52: tgn | K52: ='Summary (W)'!R71 -> 27.0188196 | L52: ='Summary (W)'!S71 -> 27.07992785 | M52: ='Summary (W)'!T71 -> 27.0913361 | N52: ='Summary (W)'!U71 -> 27.07520028 | O52: ='Summary (W)'!V71 -> 27.04421259 | P52: ='Summary (W)'!W71 -> 27.00109732 | Q52: ='Summary (W)'!X71 -> 26.9482076 | R52: ='Summary (W)'!Y71 -> 26.88787577 | S52: ='Summary (W)'!Z71 -> 55.39974577 | T52: ='Summary (W)'!AA71 -> 54.95580771 | U52: ='Summary (W)'!AB71 -> 54.51138682 | V52: ='Summary (W)'!AC71 -> 29.9315842 | W52: ='Summary (W)'!AD71 -> 29.99928023 | X52: ='Summary (W)'!AE71 -> 30.01191834 | Y52: ='Summary (W)'!AF71 -> 29.994043 | Z52: ='Summary (W)'!AG71 -> 29.95971468 | AA52: ='Summary (W)'!AH71 -> 29.91195137 | AB52: ='Summary (W)'!AI71 -> 29.85335987 | AC52: ='Summary (W)'!AJ71 -> 29.78652396 | AD52: ='Summary (W)'!AK71 -> 61.3721169 | AE52: ='Summary (W)'!AL71 -> 60.88032009 | AF52: ='Summary (W)'!AM71 -> 60.38798839 | AG52: 1.017533987
A53: trc | K53: ='Summary (W)'!R72 -> 0 | L53: ='Summary (W)'!S72 -> 0 | M53: ='Summary (W)'!T72 -> 0 | N53: ='Summary (W)'!U72 -> 0 | O53: ='Summary (W)'!V72 -> 0 | P53: ='Summary (W)'!W72 -> 0 | Q53: ='Summary (W)'!X72 -> 0 | R53: ='Summary (W)'!Y72 -> 0 | S53: ='Summary (W)'!Z72 -> 0.01540459263 | T53: ='Summary (W)'!AA72 -> 0.01710590194 | U53: ='Summary (W)'!AB72 -> 0.01881573903 | V53: ='Summary (W)'!AC72 -> 0 | W53: ='Summary (W)'!AD72 -> 0 | X53: ='Summary (W)'!AE72 -> 0 | Y53: ='Summary (W)'!AF72 -> 0 | Z53: ='Summary (W)'!AG72 -> 0 | AA53: ='Summary (W)'!AH72 -> 0 | AB53: ='Summary (W)'!AI72 -> 0 | AC53: ='Summary (W)'!AJ72 -> 0 | AD53: ='Summary (W)'!AK72 -> 0.01706528517 | AE53: ='Summary (W)'!AL72 -> 0.01895000417 | AF53: ='Summary (W)'!AM72 -> 0.0208441703
A54: tt | K54: ='Summary (W)'!R73 -> 65.0006923 | L54: ='Summary (W)'!S73 -> 64.89838589 | M54: ='Summary (W)'!T73 -> 65.03873673 | N54: ='Summary (W)'!U73 -> 65.00937295 | O54: ='Summary (W)'!V73 -> 65.06701504 | P54: ='Summary (W)'!W73 -> 65.04321212 | Q54: ='Summary (W)'!X73 -> 64.94333111 | R54: ='Summary (W)'!Y73 -> 64.77645313 | S54: ='Summary (W)'!Z73 -> 64.5525739 | T54: ='Summary (W)'!AA73 -> 64.28231135 | U54: ='Summary (W)'!AB73 -> 63.9775038 | V54: ='Summary (W)'!AC73 -> 72.00809374 | W54: ='Summary (W)'!AD73 -> 71.89475818 | X54: ='Summary (W)'!AE73 -> 72.05023955 | Y54: ='Summary (W)'!AF73 -> 72.0177102 | Z54: ='Summary (W)'!AG73 -> 72.08156641 | AA54: ='Summary (W)'!AH73 -> 72.0551974 | AB54: ='Summary (W)'!AI73 -> 71.94454872 | AC54: ='Summary (W)'!AJ73 -> 71.75968045 | AD54: ='Summary (W)'!AK73 -> 71.51166593 | AE54: ='Summary (W)'!AL73 -> 71.21226772 | AF54: ='Summary (W)'!AM73 -> 70.87460038 | AG54: -0.01574119383
A56: wgi | K56: ='Summary (W)'!R75 -> 32.59414047 | L56: ='Summary (W)'!S75 -> 32.49299598 | M56: ='Summary (W)'!T75 -> 32.36476305 | N56: ='Summary (W)'!U75 -> 32.22190027 | O56: ='Summary (W)'!V75 -> 32.06597093 | P56: ='Summary (W)'!W75 -> 31.89951346 | Q56: ='Summary (W)'!X75 -> 31.7249339 | R56: ='Summary (W)'!Y75 -> 31.54469429 | S56: ='Summary (W)'!Z75 -> 31.36018346 | T56: ='Summary (W)'!AA75 -> 31.1736704 | U56: ='Summary (W)'!AB75 -> 30.98719301 | V56: ='Summary (W)'!AC75 -> 36.10795269 | W56: ='Summary (W)'!AD75 -> 35.99590431 | X56: ='Summary (W)'!AE75 -> 35.85384723 | Y56: ='Summary (W)'!AF75 -> 35.69558312 | Z56: ='Summary (W)'!AG75 -> 35.52284382 | AA56: ='Summary (W)'!AH75 -> 35.3384414 | AB56: ='Summary (W)'!AI75 -> 35.14504128 | AC56: ='Summary (W)'!AJ75 -> 34.94537094 | AD56: ='Summary (W)'!AK75 -> 34.74096891 | AE56: ='Summary (W)'!AL75 -> 34.5343488 | AF56: ='Summary (W)'!AM75 -> 34.32776821 | AG56: -0.04930172833
A57: wgl | K57: ='Summary (W)'!R76 -> 45.70564329 | L57: ='Summary (W)'!S76 -> 46.12789806 | M57: ='Summary (W)'!T76 -> 46.51748478 | N57: ='Summary (W)'!U76 -> 46.87500488 | O57: ='Summary (W)'!V76 -> 46.83587398 | P57: ='Summary (W)'!W76 -> 46.72862894 | Q57: ='Summary (W)'!X76 -> 46.56843178 | R57: ='Summary (W)'!Y76 -> 46.36894609 | S57: ='Summary (W)'!Z76 -> 46.155942 | T57: ='Summary (W)'!AA76 -> 45.9414821 | U57: ='Summary (W)'!AB76 -> 45.72842657 | V57: ='Summary (W)'!AC76 -> 50.63294143 | W57: ='Summary (W)'!AD76 -> 51.10071739 | X57: ='Summary (W)'!AE76 -> 51.53230351 | Y57: ='Summary (W)'!AF76 -> 51.92836608 | Z57: ='Summary (W)'!AG76 -> 51.88501668 | AA57: ='Summary (W)'!AH76 -> 51.76621008 | AB57: ='Summary (W)'!AI76 -> 51.58874286 | AC57: ='Summary (W)'!AJ76 -> 51.36775161 | AD57: ='Summary (W)'!AK76 -> 51.13178461 | AE57: ='Summary (W)'!AL76 -> 50.89420485 | AF57: ='Summary (W)'!AM76 -> 50.65818087 | AG57: 0.0004984785671
A58: wn | K58: ='Summary (W)'!R77 -> 41.9050986 | L58: ='Summary (W)'!S77 -> 41.80201542 | M58: ='Summary (W)'!T77 -> 41.67071061 | N58: ='Summary (W)'!U77 -> 41.5195429 | O58: ='Summary (W)'!V77 -> 41.35048747 | P58: ='Summary (W)'!W77 -> 41.16709378 | Q58: ='Summary (W)'!X77 -> 40.97266353 | R58: ='Summary (W)'!Y77 -> 40.77056207 | S58: ='Summary (W)'!Z77 -> 40.56261581 | T58: ='Summary (W)'!AA77 -> 40.35189433 | U58: ='Summary (W)'!AB77 -> 40.14099545 | V58: ='Summary (W)'!AC77 -> 46.42267891 | W58: ='Summary (W)'!AD77 -> 46.30848285 | X58: ='Summary (W)'!AE77 -> 46.16302272 | Y58: ='Summary (W)'!AF77 -> 45.99555837 | Z58: ='Summary (W)'!AG77 -> 45.80827792 | AA58: ='Summary (W)'!AH77 -> 45.60511347 | AB58: ='Summary (W)'!AI77 -> 45.38972266 | AC58: ='Summary (W)'!AJ77 -> 45.16583364 | AD58: ='Summary (W)'!AK77 -> 44.93546974 | AE58: ='Summary (W)'!AL77 -> 44.70203141 | AF58: ='Summary (W)'!AM77 -> 44.46839658 | AG58: -0.04209757779
A59: wo | K59: ='Summary (W)'!R78 -> 35.49454107 | L59: ='Summary (W)'!S78 -> 35.38062503 | M59: ='Summary (W)'!T78 -> 35.23216984 | N59: ='Summary (W)'!U78 -> 35.05353544 | O59: ='Summary (W)'!V78 -> 34.85283604 | P59: ='Summary (W)'!W78 -> 34.64004961 | Q59: ='Summary (W)'!X78 -> 34.41769389 | R59: ='Summary (W)'!Y78 -> 34.18826724 | S59: ='Summary (W)'!Z78 -> 33.95349585 | T59: ='Summary (W)'!AA78 -> 33.71581345 | U59: ='Summary (W)'!AB78 -> 33.4775085 | V59: ='Summary (W)'!AC78 -> 39.32103106 | W59: ='Summary (W)'!AD78 -> 39.1948343 | X59: ='Summary (W)'!AE78 -> 39.03037489 | Y59: ='Summary (W)'!AF78 -> 38.8324828 | Z59: ='Summary (W)'!AG78 -> 38.61014699 | AA59: ='Summary (W)'!AH78 -> 38.37442112 | AB59: ='Summary (W)'!AI78 -> 38.12809433 | AC59: ='Summary (W)'!AJ78 -> 37.87393434 | AD59: ='Summary (W)'!AK78 -> 37.61385342 | AE59: ='Summary (W)'!AL78 -> 37.35054765 | AF59: ='Summary (W)'!AM78 -> 37.08655223 | AG59: -0.05682655733
A60: wots | K60: ='Summary (W)'!R79 -> 43.96027923 | L60: ='Summary (W)'!S79 -> 44.06194602 | M60: ='Summary (W)'!T79 -> 44.17841236 | N60: ='Summary (W)'!U79 -> 44.53203265 | O60: ='Summary (W)'!V79 -> 44.70665619 | P60: ='Summary (W)'!W79 -> 44.7617172 | Q60: ='Summary (W)'!X79 -> 44.78968948 | R60: ='Summary (W)'!Y79 -> 44.81481348 | S60: ='Summary (W)'!Z79 -> 1.05802673 | T60: ='Summary (W)'!AA79 -> 1.15753212 | U60: ='Summary (W)'!AB79 -> 1.256967844 | V60: ='Summary (W)'!AC79 -> 48.69941835 | W60: ='Summary (W)'!AD79 -> 48.81204534 | X60: ='Summary (W)'!AE79 -> 48.94106734 | Y60: ='Summary (W)'!AF79 -> 49.33280967 | Z60: ='Summary (W)'!AG79 -> 49.5262585 | AA60: ='Summary (W)'!AH79 -> 49.58725537 | AB60: ='Summary (W)'!AI79 -> 49.61824319 | AC60: ='Summary (W)'!AJ79 -> 49.64607569 | AD60: ='Summary (W)'!AK79 -> 1.172087331 | AE60: ='Summary (W)'!AL79 -> 1.282319902 | AF60: ='Summary (W)'!AM79 -> 1.392475297 | AG60: -0.9714067366
A61: wt | K61: ='Summary (W)'!R80 -> 46.67766934 | L61: ='Summary (W)'!S80 -> 46.74169821 | M61: ='Summary (W)'!T80 -> 46.90079723 | N61: ='Summary (W)'!U80 -> 47.01034801 | O61: ='Summary (W)'!V80 -> 47.05321745 | P61: ='Summary (W)'!W80 -> 47.05168613 | Q61: ='Summary (W)'!X80 -> 47.02966511 | R61: ='Summary (W)'!Y80 -> 46.99974479 | S61: ='Summary (W)'!Z80 -> 46.97084117 | T61: ='Summary (W)'!AA80 -> 47.14624059 | U61: ='Summary (W)'!AB80 -> 47.32857526 | V61: ='Summary (W)'!AC80 -> 51.70975677 | W61: ='Summary (W)'!AD80 -> 51.78068828 | X61: ='Summary (W)'!AE80 -> 51.95693898 | Y61: ='Summary (W)'!AF80 -> 52.07829988 | Z61: ='Summary (W)'!AG80 -> 52.12579087 | AA61: ='Summary (W)'!AH80 -> 52.12409446 | AB61: ='Summary (W)'!AI80 -> 52.09969946 | AC61: ='Summary (W)'!AJ80 -> 52.06655358 | AD61: ='Summary (W)'!AK80 -> 52.03453401 | AE61: ='Summary (W)'!AL80 -> 52.22884236 | AF61: ='Summary (W)'!AM80 -> 52.43083363 | AG61: 0.01394469625
A62: wyk | K62: ='Summary (W)'!R81 -> 26.66008 | L62: ='Summary (W)'!S81 -> 26.63709455 | M62: ='Summary (W)'!T81 -> 26.62297217 | N62: ='Summary (W)'!U81 -> 26.62328984 | O62: ='Summary (W)'!V81 -> 26.64282488 | P62: ='Summary (W)'!W81 -> 26.6891219 | Q62: ='Summary (W)'!X81 -> 26.94496104 | R62: ='Summary (W)'!Y81 -> 27.20869438 | S62: ='Summary (W)'!Z81 -> 27.47362904 | T62: ='Summary (W)'!AA81 -> 27.73742949 | U62: ='Summary (W)'!AB81 -> 28.0016107 | V62: ='Summary (W)'!AC81 -> 29.53417066 | W62: ='Summary (W)'!AD81 -> 29.50870726 | X62: ='Summary (W)'!AE81 -> 29.49306242 | Y62: ='Summary (W)'!AF81 -> 29.49341434 | Z62: ='Summary (W)'!AG81 -> 29.51505536 | AA62: ='Summary (W)'!AH81 -> 29.56634342 | AB62: ='Summary (W)'!AI81 -> 29.84976331 | AC62: ='Summary (W)'!AJ81 -> 30.14192843 | AD62: ='Summary (W)'!AK81 -> 30.43542439 | AE62: ='Summary (W)'!AL81 -> 30.72766385 | AF62: ='Summary (W)'!AM81 -> 31.02032512 | AG62: 0.0503198302
A63: yn

Sheet Summary - Simple
B1: Actuals | K1: P50 | V1: P10
B2: 2006 | C2: 2007 | D2: 2008 | E2: 2009 | F2: 2010 | G2: 2011 | H2: 2012 | I2: 2013 | J2: 2014 | K2: 2015 | L2: 2016 | M2: 2017 | N2: 2018 | O2: 2019 | P2: 2020 | Q2: 2021 | R2: 2022 | S2: 2023 | T2: 2024 | U2: 2025 | V2: 2015 | W2: 2016 | X2: 2017 | Y2: 2018 | Z2: 2019 | AA2: 2020 | AB2: 2021 | AC2: 2022 | AD2: 2023 | AE2: 2024 | AF2: 2025
A3: bdl | B3: =Summary!D22 -> 0 | C3: =Summary!E22 -> 0 | D3: =Summary!F22 -> 0 | E3: =Summary!G22 -> 56.00942853 | F3: =Summary!H22 -> 47.44369852 | G3: =Summary!I22 -> 44.16043038 | H3: =Summary!J22 -> 37.84059618 | I3: =Summary!K22 -> 51.2412663 | J3: =Summary!L22 -> 55.5 | K3: =Summary!R22 -> 51.92958518 | L3: =Summary!S22 -> 52.35049019 | M3: =Summary!T22 -> 52.65468229 | N3: =Summary!U22 -> 52.86439719 | O3: =Summary!V22 -> 53.00152506 | P3: =Summary!W22 -> 53.08255113 | Q3: =Summary!X22 -> 53.11785992 | R3: =Summary!Y22 -> 53.13354551 | S3: =Summary!Z22 -> 53.13711605 | T3: =Summary!AA22 -> 53.1316376 | U3: =Summary!AB22 -> 53.12399671 | V3: =Summary!AC22 -> 57.52785555 | W3: =Summary!AD22 -> 57.93581378 | X3: =Summary!AE22 -> 58.21520922 | Y3: =Summary!AF22 -> 58.39001969 | Z3: =Summary!AG22 -> 58.48398841 | AA3: =Summary!AH22 -> 58.515115 | AB3: =Summary!AI22 -> 58.49486581 | AC3: =Summary!AJ22 -> 58.45191602 | AD3: =Summary!AK22 -> 58.39483851 | AE3: =Summary!AL22 -> 58.32739144 | AF3: =Summary!AM22 -> 58.25749375 | AG3: =(U3/K3)-1 -> 0.02300059835 | AI3: 1
A4: bge | B4: =Summary!D23 -> 0 | C4: =Summary!E23 -> 0 | D4: =Summary!F23 -> 0 | E4: =Summary!G23 -> 33.03248515 | F4: =Summary!H23 -> 29.25535981 | G4: =Summary!I23 -> 25.00262212 | H4: =Summary!J23 -> 26.68304586 | I4: =Summary!K23 -> 29.54418533 | J4: =Summary!L23 -> 34.7 | K4: =Summary!R23 -> 31.90682203 | L4: =Summary!S23 -> 31.93728805 | M4: =Summary!T23 -> 31.95805406 | N4: =Summary!U23 -> 31.9708105 | O4: =Summary!V23 -> 31.97629432 | P4: =Summary!W23 -> 31.97641937 | Q4: =Summary!X23 -> 31.9728619 | R4: =Summary!Y23 -> 31.96727098 | S4: =Summary!Z23 -> 31.95986738 | T4: =Summary!AA23 -> 31.95192448 | U4: =Summary!AB23 -> 31.94439419 | V4: =Summary!AC23 -> 36.62111971 | W4: =Summary!AD23 -> 36.62861028 | X4: =Summary!AE23 -> 36.62377781 | Y4: =Summary!AF23 -> 36.60863565 | Z4: =Summary!AG23 -> 36.58413974 | AA4: =Summary!AH23 -> 36.55256305 | AB4: =Summary!AI23 -> 36.5159207 | AC4: =Summary!AJ23 -> 36.47624084 | AD4: =Summary!AK23 -> 36.43400056 | AE4: =Summary!AL23 -> 36.39085935 | AF4: =Summary!AM23 -> 36.34812278 | AG4: =(U4/K4)-1 -> 0.001177558644 | AI4: 23
A5: bn | B5: =Summary!D24 -> 0 | C5: =Summary!E24 -> 0 | D5: =Summary!F24 -> 0 | E5: =Summary!G24 -> 39.69883037 | F5: =Summary!H24 -> 37.41331963 | G5: =Summary!I24 -> 36.20904483 | H5: =Summary!J24 -> 32.01484964 | I5: =Summary!K24 -> 33.04014757 | J5: =Summary!L24 -> 34.9 | K5: =Summary!R24 -> 32.48320743 | L5: =Summary!S24 -> 32.54295543 | M5: =Summary!T24 -> 32.58909808 | N5: =Summary!U24 -> 32.62503625 | O5: =Summary!V24 -> 32.65161023 | P5: =Summary!W24 -> 32.67115294 | Q5: =Summary!X24 -> 32.68626514 | R5: =Summary!Y24 -> 32.69926718 | S5: =Summary!Z24 -> 32.71029974 | T5: =Summary!AA24 -> 32.72082988 | U5: =Summary!AB24 -> 32.73191524 | V5: =Summary!AC24 -> 36.87737834 | W5: =Summary!AD24 -> 36.91425533 | X5: =Summary!AE24 -> 36.93480612 | Y5: =Summary!AF24 -> 36.94284522 | Z5: =Summary!AG24 -> 36.93941986 | AA5: =Summary!AH24 -> 36.92720295 | AB5: =Summary!AI24 -> 36.90916746 | AC5: =Summary!AJ24 -> 36.88803005 | AD5: =Summary!AK24 -> 36.8641868 | AE5: =Summary!AL24 -> 36.83948251 | AF5: =Summary!AM24 -> 36.81532241 | AG5: 0.007656504023 | AI5: 45
A6: bra | B6: =Summary!D25 -> 0 | C6: =Summary!E25 -> 0 | D6: =Summary!F25 -> 0 | E6: =Summary!G25 -> 78.86110985 | F6: =Summary!H25 -> 74.62245998 | G6: =Summary!I25 -> 65.09665539 | H6: =Summary!J25 -> 65.17608919 | I6: =Summary!K25 -> 69.93892858 | J6: =Summary!L25 -> 73.7 | K6: =Summary!R25 -> 71.49481572 | L6: =Summary!S25 -> 71.92441973 | M6: =Summary!T25 -> 72.20007213 | N6: =Summary!U25 -> 72.53498751 | O6: =Summary!V25 -> 72.95019481 | P6: =Summary!W25 -> 73.08546942 | Q6: =Summary!X25 -> 73.20706399 | R6: =Summary!Y25 -> 73.35569766 | S6: =Summary!Z25 -> 73.50028721 | T6: =Summary!AA25 -> 73.64236551 | U6: =Summary!AB25 -> 73.78338539 | V6: =Summary!AC25 -> 80.10122175 | W6: =Summary!AD25 -> 80.4939664 | X6: =Summary!AE25 -> 80.72063663 | Y6: =Summary!AF25 -> 81.00703214 | Z6: =Summary!AG25 -> 81.37588561 | AA6: =Summary!AH25 -> 81.44533143 | AB6: =Summary!AI25 -> 81.49803827 | AC6: =Summary!AJ25 -> 81.57765018 | AD6: =Summary!AK25 -> 81.65171689 | AE6: =Summary!AL25 -> 81.72242037 | AF6: =Summary!AM25 -> 81.79186944 | AG6: 0.03201028844 | AI6: 67
A7: brt | B7: =Summary!D26 -> 0 | C7: =Summary!E26 -> 0 | D7: =Summary!F26 -> 0 | E7: =Summary!G26 -> 0 | F7: =Summary!H26 -> 8.121988758 | G7: =Summary!I26 -> 7.700244243 | H7: =Summary!J26 -> 8.716778802 | I7: =Summary!K26 -> 9.291729288 | J7: =Summary!L26 -> 8.8 | K7: =Summary!R26 -> 8.006836144 | L7: =Summary!S26 -> 8.020420268 | M7: =Summary!T26 -> 8.024711352 | N7: =Summary!U26 -> 8.026186318 | O7: =Summary!V26 -> 8.025328092 | P7: =Summary!W26 -> 8.022736117 | Q7: =Summary!X26 -> 8.018938103 | R7: =Summary!Y26 -> 8.01445524 | S7: =Summary!Z26 -> 8.009374114 | T7: =Summary!AA26 -> 8.004103444 | U7: =Summary!AB26 -> 7.998954165 | V7: =Summary!AC26 -> 8.933810892 | W7: =Summary!AD26 -> 8.93985265 | X7: =Summary!AE26 -> 8.935320863 | Y7: =Summary!AF26 -> 8.927266047 | Z7: =Summary!AG26 -> 8.916259324 | AA7: =Summary!AH26 -> 8.903000871 | AB7: =Summary!AI26 -> 8.888115624 | AC7: =Summary!AJ26 -> 8.872233643 | AD7: =Summary!AK26 -> 8.855524938 | AE7: =Summary!AL26 -> 8.838511895 | AF7: =Summary!AM26 -> 8.821612294 | AG7: -0.000984406293 | AI7: 89
A8: bwa | B8: =Summary!D27 -> 0 | C8: =Summary!E27 -> 0 | D8: =Summary!F27 -> 0 | E8: =Summary!G27 -> 13.61524138 | F8: =Summary!H27 -> 13.24651237 | G8: =Summary!I27 -> 11.513006 | H8: =Summary!J27 -> 10.73632229 | I8: =Summary!K27 -> 12.26999953 | J8: =Summary!L27 -> 12.4 | K8: =Summary!R27 -> 12.33694934 | L8: =Summary!S27 -> 12.3617223 | M8: =Summary!T27 -> 12.3843641 | N8: =Summary!U27 -> 12.40444281 | O8: =Summary!V27 -> 12.42266366 | P8: =Summary!W27 -> 12.43960476 | Q8: =Summary!X27 -> 12.45575264 | R8: =Summary!Y27 -> 12.47157969 | S8: =Summary!Z27 -> 12.48704217 | T8: =Summary!AA27 -> 12.5024704 | U8: =Summary!AB27 -> 12.51807665 | V8: =Summary!AC27 -> 13.47709709 | W8: =Summary!AD27 -> 13.49910838 | X8: =Summary!AE27 -> 13.51856809 | Y8: =Summary!AF27 -> 13.53502642 | Z8: =Summary!AG27 -> 13.54926471 | AA8: =Summary!AH27 -> 13.56192735 | AB8: =Summary!AI27 -> 13.57355999 | AC8: =Summary!AJ27 -> 13.58470513 | AD8: =Summary!AK27 -> 13.595357 | AE8: =Summary!AL27 -> 13.60591756 | AF8: =Summary!AM27 -> 13.61666141 | AG8: 0.01468169361 | AI8: 111
A9: bwn | B9: =Summary!D28 -> 0 | C9: =Summary!E28 -> 0 | D9: =Summary!F28 -> 0 | E9: =Summary!G28 -> 32.24570193 | F9: =Summary!H28 -> 23.93610664 | G9: =Summary!I28 -> 18.05481815 | H9: =Summary!J28 -> 19.06221429 | I9: =Summary!K28 -> 23.39818419 | J9: =Summary!L28 -> 22.3 | K9: =Summary!R28 -> 22.11745598 | L9: =Summary!S28 -> 22.16199938 | M9: =Summary!T28 -> 22.1890079 | N9: =Summary!U28 -> 22.20963065 | O9: =Summary!V28 -> 22.22516651 | P9: =Summary!W28 -> 22.23701666 | Q9: =Summary!X28 -> 22.2463948 | R9: =Summary!Y28 -> 22.25448988 | S9: =Summary!Z28 -> 22.26138656 | T9: =Summary!AA28 -> 22.26797832 | U9: =Summary!AB28 -> 22.27490896 | V9: =Summary!AC28 -> 23.39870693 | W9: =Summary!AD28 -> 23.43644095 | X9: =Summary!AE28 -> 23.45409396 | Y9: =Summary!AF28 -> 23.46409197 | Z9: =Summary!AG28 -> 23.46792268 | AA9: =Summary!AH28 -> 23.46718928 | AB9: =Summary!AI28 -> 23.46328759 | AC9: =Summary!AJ28 -> 23.45761574 | AD9: =Summary!AK28 -> 23.45036974 | AE9: =Summary!AL28 -> 23.44265181 | AF9: =Summary!AM28 -> 23.43528762 | AG9: 0.007118946178 | AI9: 133
A10: bwr | B10: =Summary!D29 -> 0 | C10: =Summary!E29 -> 0 | D10: =Summary!F29 -> 0 | E10: =Summary!G29 -> 62.9194899 | F10: =Summary!H29 -> 67.85578889 | G10: =Summary!I29 -> 69.77025785 | H10: =Summary!J29 -> 62.8028554 | I10: =Summary!K29 -> 64.85876908 | J10: =Summary!L29 -> 64.8 | K10: =Summary!R29 -> 60.63166762 | L10: =Summary!S29 -> 60.93369395 | M10: =Summary!T29 -> 61.23824348 | N10: =Summary!U29 -> 61.05385679 | O10: =Summary!V29 -> 61.1489082 | P10: =Summary!W29 -> 61.34455566 | Q10: =Summary!X29 -> 61.52451747 | R10: =Summary!Y29 -> 61.71390364 | S10: =Summary!Z29 -> 61.89553101 | T10: =Summary!AA29 -> 62.07182439 | U10: =Summary!AB29 -> 62.24479956 | V10: =Summary!AC29 -> 65.91967652 | W10: =Summary!AD29 -> 66.19782054 | X10: =Summary!AE29 -> 66.4765652 | Y10: =Summary!AF29 -> 66.23544234 | Z10: =Summary!AG29 -> 66.28846761 | AA10: =Summary!AH29 -> 66.44654884 | AB10: =Summary!AI29 -> 66.58652748 | AC10: =Summary!AJ29 -> 66.73531087 | AD10: =Summary!AK29 -> 66.87502234 | AE10: =Summary!AL29 -> 67.00860632 | AF10: =Summary!AM29 -> 67.13858102 | AG10: 0.02660543576 | AI10: 155
A11: cf | B11: =Summary!D30 -> 0 | C11: =Summary!E30 -> 0 | D11: =Summary!F30 -> 0 | E11: =Summary!G30 -> 0 | F11: =Summary!H30 -> 0 | G11: =Summary!I30 -> 0 | H11: =Summary!J30 -> 0 | I11: =Summary!K30 -> 0 | J11: =Summary!L30 -> 0 | K11: =Summary!R30 -> 0 | L11: =Summary!S30 -> 0 | M11: =Summary!T30 -> 0 | N11: =Summary!U30 -> 0 | O11: =Summary!V30 -> 0 | P11: =Summary!W30 -> 0 | Q11: =Summary!X30 -> 0 | R11: =Summary!Y30 -> 0 | S11: =Summary!Z30 -> 0 | T11: =Summary!AA30 -> 0 | U11: =Summary!AB30 -> 0 | V11: =Summary!AC30 -> 0 | W11: =Summary!AD30 -> 0 | X11: =Summary!AE30 -> 0 | Y11: =Summary!AF30 -> 0 | Z11: =Summary!AG30 -> 0 | AA11: =Summary!AH30 -> 0 | AB11: =Summary!AI30 -> 0 | AC11: =Summary!AJ30 -> 0 | AD11: =Summary!AK30 -> 0 | AE11: =Summary!AL30 -> 0 | AF11: =Summary!AM30 -> 0 | AI11: No demand
A12: cln | B12: =Summary!D31 -> 0 | C12: =Summary!E31 -> 0 | D12: =Summary!F31 -> 0 | E12: =Summary!G31 -> 60.16598495 | F12: =Summary!H31 -> 70.18948252 | G12: =Summary!I31 -> 52.10172899 | H12: =Summary!J31 -> 59.77276816 | I12: =Summary!K31 -> 42.08784737 | J12: =Summary!L31 -> 47.3 | K12: =Summary!R31 -> 46.84023859 | L12: =Summary!S31 -> 50.82572979 | M12: =Summary!T31 -> 55.00946357 | N12: =Summary!U31 -> 59.16686716 | O12: =Summary!V31 -> 62.93044413 | P12: =Summary!W31 -> 65.95311966 | Q12: =Summary!X31 -> 69.13902437 | R12: =Summary!Y31 -> 72.49275578 | S12: =Summary!Z31 -> 75.97923037 | T12: =Summary!AA31 -> 79.59389152 | U12: =Summary!AB31 -> 83.33565859 | V12: =Summary!AC31 -> 55.16754007 | W12: =Summary!AD31 -> 59.54871779 | X12: =Summary!AE31 -> 64.15552566 | Y12: =Summary!AF31 -> 68.73760777 | Z12: =Summary!AG31 -> 72.88360004 | AA12: =Summary!AH31 -> 76.20365677 | AB12: =Summary!AI31 -> 79.7051993 | AC12: =Summary!AJ31 -> 83.39283341 | AD12: =Summary!AK31 -> 87.22777795 | AE12: =Summary!AL31 -> 91.20535242 | AF12: =Summary!AM31 -> 95.32476648 | AG12: 0.779146757 | AI12: 199
A13: cnr | B13: =Summary!D32 -> 0 | C13: =Summary!E32 -> 0 | D13: =Summary!F32 -> 0 | E13: =Summary!G32 -> 3.155326108 | F13: =Summary!H32 -> 2.891364277 | G13: =Summary!I32 -> 2.319156076 | H13: =Summary!J32 -> 2.561667625 | I13: =Summary!K32 -> 2.974538816 | J13: =Summary!L32 -> 2.7 | K13: =Summary!R32 -> 3.061953643 | L13: =Summary!S32 -> 3.086242272 | M13: =Summary!T32 -> 3.104904996 | N13: =Summary!U32 -> 3.118526864 | O13: =Summary!V32 -> 3.127428023 | P13: =Summary!W32 -> 3.132198081 | Q13: =Summary!X32 -> 3.133305189 | R13: =Summary!Y32 -> 3.131164048 | S13: =Summary!Z32 -> 3.125949482 | T13: =Summary!AA32 -> 3.118048999 | U13: =Summary!AB32 -> 3.109231767 | V13: =Summary!AC32 -> 3.294408744 | W13: =Summary!AD32 -> 3.316849579 | X13: =Summary!AE32 -> 3.333009557 | Y13: =Summary!AF32 -> 3.343525525 | Z13: =Summary!AG32 -> 3.348750637 | AA13: =Summary!AH32 -> 3.349334926 | AB13: =Summary!AI32 -> 3.345801933 | AC13: =Summary!AJ32 -> 3.338627876 | AD13: =Summary!AK32 -> 3.328036164 | AE13: =Summary!AL32 -> 3.31448234 | AF13: =Summary!AM32 -> 3.299924144 | AG13: 0.01544050915 | AI13: 221
A14: cre | B14: =Summary!D33 -> 0 | C14: =Summary!E33 -> 0 | D14: =Summary!F33 -> 0 | E14: =Summary!G33 -> 0 | F14: =Summary!H33 -> 0 | G14: =Summary!I33 -> 0 | H14: =Summary!J33 -> 14.73881978 | I14: =Summary!K33 -> 42.34301134 | J14: =Summary!L33 -> 45.7 | K14: =Summary!R33 -> 42.86702913 | L14: =Summary!S33 -> 44.03829537 | M14: =Summary!T33 -> 44.85300075 | N14: =Summary!U33 -> 45.48411946 | O14: =Summary!V33 -> 46.16895604 | P14: =Summary!W33 -> 46.9047743 | Q14: =Summary!X33 -> 47.0242711 | R14: =Summary!Y33 -> 47.08547242 | S14: =Summary!Z33 -> 47.14448116 | T14: =Summary!AA33 -> 47.20313512 | U14: =Summary!AB33 -> 47.26266915 | V14: =Summary!AC33 -> 50.7504445 | W14: =Summary!AD33 -> 52.01192491 | X14: =Summary!AE33 -> 52.8765977 | Y14: =Summary!AF33 -> 53.53592826 | Z14: =Summary!AG33 -> 54.25409875 | AA14: =Summary!AH33 -> 55.02808067 | AB14: =Summary!AI33 -> 55.11260612 | AC14: =Summary!AJ33 -> 55.13088645 | AD14: =Summary!AK33 -> 55.14591549 | AE14: =Summary!AL33 -> 55.16010114 | AF14: =Summary!AM33 -> 55.17518555 | AG14: 0.1025412795 | AI14: 265
A15: cyn | B15: =Summary!D34 -> 0 | C15: =Summary!E34 -> 0 | D15: =Summary!F34 -> 0 | E15: =Summary!G34 -> 91.19460208 | F15: =Summary!H34 -> 83.18307407 | G15: =Summary!I34 -> 82.09252333 | H15: =Summary!J34 -> 77.1298255 | I15: =Summary!K34 -> 78.04947432 | J15: =Summary!L34 -> 80.4 | K15: =Summary!R34 -> 74.50852536 | L15: =Summary!S34 -> 74.72424848 | M15: =Summary!T34 -> 75.01111098 | N15: =Summary!U34 -> 75.34438914 | O15: =Summary!V34 -> 75.72364976 | P15: =Summary!W34 -> 76.1484118 | Q15: =Summary!X34 -> 76.61875056 | R15: =Summary!Y34 -> 77.12752415 | S15: =Summary!Z34 -> 77.64114255 | T15: =Summary!AA34 -> 78.14986585 | U15: =Summary!AB34 -> 78.65610825 | V15: =Summary!AC34 -> 83.67774314 | W15: =Summary!AD34 -> 83.83636013 | X15: =Summary!AE34 -> 84.06625246 | Y15: =Summary!AF34 -> 84.34182047 | Z15: =Summary!AG34 -> 84.66306021 | AA15: =Summary!AH34 -> 85.02983659 | AB15: =Summary!AI34 -> 85.44252843 | AC15: =Summary!AJ34 -> 85.89398173 | AD15: =Summary!AK34 -> 86.34915729 | AE15: =Summary!AL34 -> 86.79834689 | AF15: =Summary!AM34 -> 87.24475496 | AG15: 0.05566588357 | AI15: 287
A16: drn | B16: =Summary!D35 -> 0 | C16: =Summary!E35 -> 0 | D16: =Summary!F35 -> 0 | E16: =Summary!G35 -> 25.77256353 | F16: =Summary!H35 -> 41.43394349 | G16: =Summary!I35 -> 40.05241828 | H16: =Summary!J35 -> 52.75624262 | I16: =Summary!K35 -> 63.68600958 | J16: =Summary!L35 -> 54.5 | K16: =Summary!R35 -> 54.95168195 | L16: =Summary!S35 -> 56.02762532 | M16: =Summary!T35 -> 57.66395829 | N16: =Summary!U35 -> 59.31228934 | O16: =Summary!V35 -> 61.00984208 | P16: =Summary!W35 -> 62.71263074 | Q16: =Summary!X35 -> 64.39301308 | R16: =Summary!Y35 -> 66.00992618 | S16: =Summary!Z35 -> 67.56977861 | T16: =Summary!AA35 -> 68.95466734 | U16: =Summary!AB35 -> 70.24938614 | V16: =Summary!AC35 -> 64.68611217 | W16: =Summary!AD35 -> 65.77467238 | X16: =Summary!AE35 -> 67.45475369 | Y16: =Summary!AF35 -> 69.14691288 | Z16: =Summary!AG35 -> 70.89048276 | AA16: =Summary!AH35 -> 72.63856627 | AB16: =Summary!AI35 -> 74.36144534 | AC16: =Summary!AJ35 -> 76.01554287 | AD16: =Summary!AK35 -> 77.60808754 | AE16: =Summary!AL35 -> 79.01438749 | AF16: =Summary!AM35 -> 80.32488494 | AG16: 0.2783846397 | AI16: 309
A17: elm | B17: =Summary!D36 -> 0 | C17: =Summary!E36 -> 0 | D17: =Summary!F36 -> 0 | E17: =Summary!G36 -> 76.27871831 | F17: =Summary!H36 -> 75.54584808 | G17: =Summary!I36 -> 61.08538952 | H17: =Summary!J36 -> 65.18179735 | I17: =Summary!K36 -> 69.37895919 | J17: =Summary!L36 -> 71.5 | K17: =Summary!R36 -> 65.4848985 | L17: =Summary!S36 -> 65.85486802 | M17: =Summary!T36 -> 66.18882691 | N17: =Summary!U36 -> 66.51130966 | O17: =Summary!V36 -> 66.84081944 | P17: =Summary!W36 -> 67.18350786 | Q17: =Summary!X36 -> 67.53794709 | R17: =Summary!Y36 -> 67.65082098 | S17: =Summary!Z36 -> 67.73259405 | T17: =Summary!AA36 -> 67.78504933 | U17: =Summary!AB36 -> 67.81054624 | V17: =Summary!AC36 -> 77.75412804 | W17: =Summary!AD36 -> 78.10453042 | X17: =Summary!AE36 -> 78.41186496 | Y17: =Summary!AF36 -> 78.70364119 | Z17: =Summary!AG36 -> 79.0007261 | AA17: =Summary!AH36 -> 79.31021745 | AB17: =Summary!AI36 -> 79.63071678 | AC17: =Summary!AJ36 -> 79.67969906 | AD17: =Summary!AK36 -> 79.69271598 | AE17: =Summary!AL36 -> 79.67230607 | AF17: =Summary!AM36 -> 79.62166314 | AG17: 0.03551426054 | AI17: 331
A18: epg | B18: =Summary!D37 -> 0 | C18: =Summary!E37 -> 0 | D18: =Summary!F37 -> 0 | E18: =Summary!G37 -> 91.66112838 | F18: =Summary!H37 -> 81.05852858 | G18: =Summary!I37 -> 55.39440873 | H18: =Summary!J37 -> 59.15892564 | I18: =Summary!K37 -> 67.84983936 | J18: =Summary!L37 -> 49 | K18: =Summary!R37 -> 45.62735951 | L18: =Summary!S37 -> 45.86183587 | M18: =Summary!T37 -> 46.6521036 | N18: =Summary!U37 -> 47.14781219 | O18: =Summary!V37 -> 47.28837769 | P18: =Summary!W37 -> 47.32002723 | Q18: =Summary!X37 -> 47.31061121 | R18: =Summary!Y37 -> 47.35347202 | S18: =Summary!Z37 -> 47.36500267 | T18: =Summary!AA37 -> 47.38761867 | U18: =Summary!AB37 -> 47.42439724 | V18: =Summary!AC37 -> 51.96283174 | W18: =Summary!AD37 -> 52.15987145 | X18: =Summary!AE37 -> 52.94220809 | Y18: =Summary!AF37 -> 53.41066642 | Z18: =Summary!AG37 -> 53.50049969 | AA18: =Summary!AH37 -> 53.47266592 | AB18: =Summary!AI37 -> 53.39939058 | AC18: =Summary!AJ37 -> 53.38011199 | AD18: =Summary!AK37 -> 53.32654356 | AE18: =Summary!AL37 -> 53.28416158 | AF18: =Summary!AM37 -> 53.25670183 | AG18: 0.0393850915 | AI18: 353
A19: fgy | B19: =Summary!D38 -> 0 | C19: =Summary!E38 -> 0 | D19: =Summary!F38 -> 0 | E19: =Summary!G38 -> 77.61011829 | F19: =Summary!H38 -> 75.50854259 | G19: =Summary!I38 -> 60.17607497 | H19: =Summary!J38 -> 59.83518881 | I19: =Summary!K38 -> 64.03586963 | J19: =Summary!L38 -> 73.4 | K19: =Summary!R38 -> 67.99138467 | L19: =Summary!S38 -> 68.38477752 | M19: =Summary!T38 -> 68.77751107 | N19: =Summary!U38 -> 69.22345373 | O19: =Summary!V38 -> 69.29235483 | P19: =Summary!W38 -> 69.50062192 | Q19: =Summary!X38 -> 69.69754991 | R19: =Summary!Y38 -> 69.93647916 | S19: =Summary!Z38 -> 70.17714328 | T19: =Summary!AA38 -> 70.42124484 | U19: =Summary!AB38 -> 70.67069679 | V19: =Summary!AC38 -> 78.11034061 | W19: =Summary!AD38 -> 78.46856777 | X19: =Summary!AE38 -> 78.82307092 | Y19: =Summary!AF38 -> 79.23121373 | Z19: =Summary!AG38 -> 79.2370988 | AA19: =Summary!AH38 -> 79.38841247 | AB19: =Summary!AI38 -> 79.52561555 | AC19: =Summary!AJ38 -> 79.70570989 | AD19: =Summary!AK38 -> 79.88646693 | AE19: =Summary!AL38 -> 80.07021572 | AF19: =Summary!AM38 -> 80.25951963 | AG19: 0.03940664138 | AI19: 375
A20: ftr | B20: =Summary!D39 -> 0 | C20: =Summary!E39 -> 0 | D20: =Summary!F39 -> 0 | E20: =Summary!G39 -> 18.60089471 | F20: =Summary!H39 -> 19.20937313 | G20: =Summary!I39 -> 18.57165957 | H20: =Summary!J39 -> 17.35789327 | I20: =Summary!K39 -> 19.58238175 | J20: =Summary!L39 -> 17.5 | K20: =Summary!R39 -> 18.95326516 | L20: =Summary!S39 -> 18.99599748 | M20: =Summary!T39 -> 19.0319663 | N20: =Summary!U39 -> 19.07067719 | O20: =Summary!V39 -> 19.11343742 | P20: =Summary!W39 -> 19.16265872 | Q20: =Summary!X39 -> 19.22078429 | R20: =Summary!Y39 -> 19.29052818 | S20: =Summary!Z39 -> 19.37286079 | T20: =Summary!AA39 -> 19.47022548 | U20: =Summary!AB39 -> 19.58477595 | V20: =Summary!AC39 -> 19.91042334 | W20: =Summary!AD39 -> 19.94309248 | X20: =Summary!AE39 -> 19.96771874 | Y20: =Summary!AF39 -> 19.99466857 | Z20: =Summary!AG39 -> 20.0254354 | AA20: =Summary!AH39 -> 20.06270209 | AB20: =Summary!AI39 -> 20.10917468 | AC20: =Summary!AJ39 -> 20.16788119 | AD20: =Summary!AK39 -> 20.23999397 | AE20: =Summary!AL39 -> 20.3282896 | AF20: =Summary!AM39 -> 20.4352325 | AG20: 0.03331936653 | AI20: 397
A21: hpk | B21: =Summary!D40 -> 0 | C21: =Summary!E40 -> 0 | D21: =Summary!F40 -> 0 | E21: =Summary!G40 -> 88.08860598 | F21: =Summary!H40 -> 75.91997765 | G21: =Summary!I40 -> 57.58793002 | H21: =Summary!J40 -> 55.18098707 | I21: =Summary!K40 -> 50.24351818 | J21: =Summary!L40 -> 53.4 | K21: =Summary!R40 -> 48.59172464 | L21: =Summary!S40 -> 48.97996292 | M21: =Summary!T40 -> 49.3349872 | N21: =Summary!U40 -> 49.72778386 | O21: =Summary!V40 -> 50.32241267 | P21: =Summary!W40 -> 51.47302712 | Q21: =Summary!X40 -> 52.92315413 | R21: =Summary!Y40 -> 54.23492348 | S21: =Summary!Z40 -> 55.41013731 | T21: =Summary!AA40 -> 56.45790171 | U21: =Summary!AB40 -> 57.38196595 | V21: =Summary!AC40 -> 58.77293572 | W21: =Summary!AD40 -> 59.14498087 | X21: =Summary!AE40 -> 59.47719531 | Y21: =Summary!AF40 -> 59.84884325 | Z21: =Summary!AG40 -> 60.44328057 | AA21: =Summary!AH40 -> 61.65638987 | AB21: =Summary!AI40 -> 63.20212338 | AC21: =Summary!AJ40 -> 64.59162931 | AD21: =Summary!AK40 -> 65.82743935 | AE21: =Summary!AL40 -> 66.92025712 | AF21: =Summary!AM40 -> 67.87481574 | AG21: 0.1808999653 | AI21: 419
A22: klk | B22: =Summary!D41 -> 0 | C22: =Summary!E41 -> 0 | D22: =Summary!F41 -> 0 | E22: =Summary!G41 -> 5.682288431 | F22: =Summary!H41 -> 4.908462269 | G22: =Summary!I41 -> 3.908068522 | H22: =Summary!J41 -> 4.678653845 | I22: =Summary!K41 -> 4.816845271 | J22: =Summary!L41 -> 5.2 | K22: =Summary!R41 -> 4.667571218 | L22: =Summary!S41 -> 4.678319258 | M22: =Summary!T41 -> 4.681014203 | N22: =Summary!U41 -> 4.68233315 | O22: =Summary!V41 -> 4.68240384 | P22: =Summary!W41 -> 4.681550111 | Q22: =Summary!X41 -> 4.680056601 | R22: =Summary!Y41 -> 4.678203712 | S22: =Summary!Z41 -> 4.676034531 | T22: =Summary!AA41 -> 4.673767405 | U22: =Summary!AB41 -> 4.671567356 | V22: =Summary!AC41 -> 5.175451608 | W22: =Summary!AD41 -> 5.183961276 | X22: =Summary!AE41 -> 5.18333471 | Y22: =Summary!AF41 -> 5.181003628 | Z22: =Summary!AG41 -> 5.177125817 | AA22: =Summary!AH41 -> 5.172078039 | AB22: =Summary!AI41 -> 5.166194095 | AC22: =Summary!AJ41 -> 5.159809881 | AD22: =Summary!AK41 -> 5.153003266 | AE22: =Summary!AL41 -> 5.14604873 | AF22: =Summary!AM41 -> 5.139161855 | AG22: 0.000856149402 | AI22: 441
A23: Klo | B23: =Summary!D42 -> 0 | C23: =Summary!E42 -> 0 | D23: =Summary!F42 -> 0 | E23: =Summary!G42 -> 0 | F23: =Summary!H42 -> 0 | G23: =Summary!I42 -> 10.94132038 | H23: =Summary!J42 -> 13.51480596 | I23: =Summary!K42 -> 14.86659315 | J23: =Summary!L42 -> 21.1 | K23: =Summary!R42 -> 18.99971682 | L23: =Summary!S42 -> 19.23428704 | M23: =Summary!T42 -> 22.08516734 | N23: =Summary!U42 -> 26.10638533 | O23: =Summary!V42 -> 30.41590787 | P23: =Summary!W42 -> 34.9344511 | Q23: =Summary!X42 -> 39.62874717 | R23: =Summary!Y42 -> 44.42061041 | S23: =Summary!Z42 -> 49.38603159 | T23: =Summary!AA42 -> 54.14415363 | U23: =Summary!AB42 -> 59.0238852 | V23: =Summary!AC42 -> 22.15112903 | W23: =Summary!AD42 -> 22.38182992 | X23: =Summary!AE42 -> 25.38024253 | Y23: =Summary!AF42 -> 29.62130974 | Z23: =Summary!AG42 -> 34.17129156 | AA23: =Summary!AH42 -> 38.94505398 | AB23: =Summary!AI42 -> 43.90569262 | AC23: =Summary!AJ42 -> 48.96937641 | AD23: =Summary!AK42 -> 54.21690695 | AE23: =Summary!AL42 -> 59.2442318 | AF23: =Summary!AM42 -> 64.40058556 | AG23: 2.106566574 | AI23: 463
A24: kms | B24: =Summary!D43 -> 0 | C24: =Summary!E43 -> 0 | D24: =Summary!F43 -> 0 | E24: =Summary!G43 -> 8.928606107 | F24: =Summary!H43 -> 8.99633795 | G24: =Summary!I43 -> 9.059374593 | H24: =Summary!J43 -> 55.30000067 | I24: =Summary!K43 -> 7.912016059 | J24: =Summary!L43 -> 8.6 | K24: =Summary!R43 -> 8.266717792 | L24: =Summary!S43 -> 8.337609674 | M24: =Summary!T43 -> 8.404827691 | N24: =Summary!U43 -> 8.447203397 | O24: =Summary!V43 -> 8.466683908 | P24: =Summary!W43 -> 8.468017189 | Q24: =Summary!X43 -> 8.46513477 | R24: =Summary!Y43 -> 8.461558968 | S24: =Summary!Z43 -> 8.457372917 | T24: =Summary!AA43 -> 8.45299789 | U24: =Summary!AB43 -> 8.448752274 | V24: =Summary!AC43 -> 9.140805651 | W24: =Summary!AD43 -> 9.209376359 | X24: =Summary!AE43 -> 9.273597722 | Y24: =Summary!AF43 -> 9.310535256 | Z24: =Summary!AG43 -> 9.322274063 | AA24: =Summary!AH43 -> 9.313970014 | AB24: =Summary!AI43 -> 9.30079129 | AC24: =Summary!AJ43 -> 9.286623257 | AD24: =Summary!AK43 -> 9.271627156 | AE24: =Summary!AL43 -> 9.25633384 | AF24: =Summary!AM43 -> 9.241163902 | AG24: 0.02202016401 | AI24: 485
A25: ldl | B25: =Summary!D44 -> 0 | C25: =Summary!E44 -> 0 | D25: =Summary!F44 -> 0 | E25: =Summary!G44 -> 82.76509624 | F25: =Summary!H44 -> 81.7404498 | G25: =Summary!I44 -> 66.66881576 | H25: =Summary!J44 -> 67.58500805 | I25: =Summary!K44 -> 75.05020131 | J25: =Summary!L44 -> 78.8 | K25: =Summary!R44 -> 73.86366587 | L25: =Summary!S44 -> 74.48689624 | M25: =Summary!T44 -> 75.06318806 | N25: =Summary!U44 -> 75.56651665 | O25: =Summary!V44 -> 76.00056857 | P25: =Summary!W44 -> 76.37772696 | Q25: =Summary!X44 -> 76.71385441 | R25: =Summary!Y44 -> 77.03466874 | S25: =Summary!Z44 -> 77.34255675 | T25: =Summary!AA44 -> 77.64132932 | U25: =Summary!AB44 -> 77.93323965 | V25: =Summary!AC44 -> 87.26625892 | W25: =Summary!AD44 -> 87.90309005 | X25: =Summary!AE44 -> 88.48559388 | Y25: =Summary!AF44 -> 88.98480152 | Z25: =Summary!AG44 -> 89.40475274 | AA25: =Summary!AH44 -> 89.75923765 | AB25: =Summary!AI44 -> 90.06601157 | AC25: =Summary!AJ44 -> 90.35407626 | AD25: =Summary!AK44 -> 90.62658091 | AE25: =Summary!AL44 -> 90.88827964 | AF25: =Summary!AM44 -> 91.14219773 | AG25: 0.0550957461 | AI25: 507
A26: lga | B26: =Summary!D45 -> 0 | C26: =Summary!E45 -> 0 | D26: =Summary!F45 -> 0 | E26: =Summary!G45 -> 39.58604475 | F26: =Summary!H45 -> 37.40302158 | G26: =Summary!I45 -> 33.88783885 | H26: =Summary!J45 -> 34.12662844 | I26: =Summary!K45 -> 39.82685282 | J26: =Summary!L45 -> 39.6 | K26: =Summary!R45 -> 38.15454288 | L26: =Summary!S45 -> 38.22198364 | M26: =Summary!T45 -> 38.27766491 | N26: =Summary!U45 -> 38.32366526 | O26: =Summary!V45 -> 38.3608312 | P26: =Summary!W45 -> 38.39164797 | Q26: =Summary!X45 -> 38.41825548 | R26: =Summary!Y45 -> 38.44274982 | S26: =Summary!Z45 -> 38.46521796 | T26: =Summary!AA45 -> 38.48721786 | U26: =Summary!AB45 -> 38.50985132 | V26: =Summary!AC45 -> 40.7630676 | W26: =Summary!AD45 -> 40.81368097 | X26: =Summary!AE45 -> 40.85035983 | Y26: =Summary!AF45 -> 40.87545138 | Z26: =Summary!AG45 -> 40.88996697 | AA26: =Summary!AH45 -> 40.89669744 | AB26: =Summary!AI45 -> 40.89806305 | AC26: =Summary!AJ45 -> 40.89648565 | AD26: =Summary!AK45 -> 40.89225415 | AE26: =Summary!AL45 -> 40.88726194 | AF26: =Summary!AM45 -> 40.8829109 | AG26: 0.009312349452 | AI26: 529
A27: llg | B27: =Summary!D46 -> 0 | C27: =Summary!E46 -> 0 | D27: =Summary!F46 -> 0 | E27: =Summary!G46 -> 16.60534018 | F27: =Summary!H46 -> 17.68405858 | G27: =Summary!I46 -> 15.81828022 | H27: =Summary!J46 -> 15.61620357 | I27: =Summary!K46 -> 19.76253182 | J27: =Summary!L46 -> 19 | K27: =Summary!R46 -> 19.24851386 | L27: =Summary!S46 -> 19.28709981 | M27: =Summary!T46 -> 19.320198 | N27: =Summary!U46 -> 19.34880593 | O27: =Summary!V46 -> 19.37330882 | P27: =Summary!W46 -> 19.39490132 | Q27: =Summary!X46 -> 19.41460507 | R27: =Summary!Y46 -> 19.43341581 | S27: =Summary!Z46 -> 19.45133052 | T27: =Summary!AA46 -> 19.4690731 | U27: =Summary!AB46 -> 19.48714058 | V27: =Summary!AC46 -> 22.06537308 | W27: =Summary!AD46 -> 22.0959799 | X27: =Summary!AE46 -> 22.11982952 | Y27: =Summary!AF46 -> 22.13808337 | Z27: =Summary!AG46 -> 22.15122069 | AA27: =Summary!AH46 -> 22.16062364 | AB27: =Summary!AI46 -> 22.16748366 | AC27: =Summary!AJ46 -> 22.17299106 | AD27: =Summary!AK46 -> 22.17724933 | AE27: =Summary!AL46 -> 22.18117694 | AF27: =Summary!AM46 -> 22.18544136 | AG27: 0.01239715031 | AI27: 551
A28: lyd | B28: =Summary!D47 -> 0 | C28: =Summary!E47 -> 0 | D28: =Summary!F47 -> 0 | E28: =Summary!G47 -> 0 | F28: =Summary!H47 -> 0 | G28: =Summary!I47 -> 16.95405629 | H28: =Summary!J47 -> 19.86554812 | I28: =Summary!K47 -> 21.3728943 | J28: =Summary!L47 -> 22.3 | K28: =Summary!R47 -> 20.02904838 | L28: =Summary!S47 -> 20.18979598 | M28: =Summary!T47 -> 20.30447129 | N28: =Summary!U47 -> 20.40323245 | O28: =Summary!V47 -> 20.50615111 | P28: =Summary!W47 -> 20.61588954 | Q28: =Summary!X47 -> 20.73508036 | R28: =Summary!Y47 -> 20.7694502 | S28: =Summary!Z47 -> 20.80050846 | T28: =Summary!AA47 -> 20.82918046 | U28: =Summary!AB47 -> 20.85619589 | V28: =Summary!AC47 -> 24.26991457 | W28: =Summary!AD47 -> 24.42945081 | X28: =Summary!AE47 -> 24.53686433 | Y28: =Summary!AF47 -> 24.62568324 | Z28: =Summary!AG47 -> 24.71833478 | AA28: =Summary!AH47 -> 24.81786994 | AB28: =Summary!AI47 -> 24.92729475 | AC28: =Summary!AJ47 -> 24.94144655 | AD28: =Summary!AK47 -> 24.95151182 | AE28: =Summary!AL47 -> 24.95869598 | AF28: =Summary!AM47 -> 24.96398963 | AG28: 0.04129739426 | AI28: 573
A29: lys | B29: =Summary!D48 -> 0 | C29: =Summary!E48 -> 0 | D29: =Summary!F48 -> 0 | E29: =Summary!G48 -> 0 | F29: =Summary!H48 -> 0 | G29: =Summary!I48 -> 0 | H29: =Summary!J48 -> 0 | I29: =Summary!K48 -> 0 | J29: =Summary!L48 -> 0 | K29: =Summary!R48 -> 0 | L29: =Summary!S48 -> 0 | M29: =Summary!T48 -> 0 | N29: =Summary!U48 -> 0 | O29: =Summary!V48 -> 0 | P29: =Summary!W48 -> 0 | Q29: =Summary!X48 -> 0 | R29: =Summary!Y48 -> 0 | S29: =Summary!Z48 -> 0 | T29: =Summary!AA48 -> 0 | U29: =Summary!AB48 -> 0 | V29: =Summary!AC48 -> 0 | W29: =Summary!AD48 -> 0 | X29: =Summary!AE48 -> 0 | Y29: =Summary!AF48 -> 0 | Z29: =Summary!AG48 -> 0 | AA29: =Summary!AH48 -> 0 | AB29: =Summary!AI48 -> 0 | AC29: =Summary!AJ48 -> 0 | AD29: =Summary!AK48 -> 0 | AE29: =Summary!AL48 -> 0 | AF29: =Summary!AM48 -> 0 | AI29: No demand
A30: mby | B30: =Summary!D49 -> 0 | C30: =Summary!E49 -> 0 | D30: =Summary!F49 -> 0 | E30: =Summary!G49 -> 0 | F30: =Summary!H49 -> 0 | G30: =Summary!I49 -> 4.488909979 | H30: =Summary!J49 -> 4.007993138 | I30: =Summary!K49 -> 5.463363638 | J30: =Summary!L49 -> 5.1 | K30: =Summary!R49 -> 5.298259453 | L30: =Summary!S49 -> 5.36827087 | M30: =Summary!T49 -> 5.435044524 | N30: =Summary!U49 -> 5.502056223 | O30: =Summary!V49 -> 5.569432491 | P30: =Summary!W49 -> 5.638094167 | Q30: =Summary!X49 -> 5.708835948 | R30: =Summary!Y49 -> 5.782470066 | S30: =Summary!Z49 -> 5.858749707 | T30: =Summary!AA49 -> 5.938196036 | U30: =Summary!AB49 -> 6.021089599 | V30: =Summary!AC49 -> 6.192175793 | W30: =Summary!AD49 -> 6.263001711 | X30: =Summary!AE49 -> 6.330134178 | Y30: =Summary!AF49 -> 6.39734878 | Z30: =Summary!AG49 -> 6.464792712 | AA30: =Summary!AH49 -> 6.533470308 | AB30: =Summary!AI49 -> 6.604245265 | AC30: =Summary!AJ49 -> 6.678020156 | AD30: =Summary!AK49 -> 6.754569821 | AE30: =Summary!AL49 -> 6.834504972 | AF30: =Summary!AM49 -> 6.918175785 | AG30: 0.13642785 | AI30: 595
A31: mdg | B31: =Summary!D50 -> 0 | C31: =Summary!E50 -> 0 | D31: =Summary!F50 -> 0 | E31: =Summary!G50 -> 0 | F31: =Summary!H50 -> 0 | G31: =Summary!I50 -> 1.154585068 | H31: =Summary!J50 -> 1.166016604 | I31: =Summary!K50 -> 1.143153533 | J31: =Summary!L50 -> 1.314626563 | K31: =Summary!R50 -> 1.247344912 | L31: =Summary!S50 -> 1.248279776 | M31: =Summary!T50 -> 1.24872074 | N31: =Summary!U50 -> 1.248747824 | O31: =Summary!V50 -> 1.248399932 | P31: =Summary!W50 -> 1.247772371 | Q31: =Summary!X50 -> 1.246949346 | R31: =Summary!Y50 -> 1.246013971 | S31: =Summary!Z50 -> 1.24498139 | T31: =Summary!AA50 -> 1.243917105 | U31: =Summary!AB50 -> 1.242871383 | V31: =Summary!AC50 -> 1.42449723 | W31: =Summary!AD50 -> 1.424223967 | X31: =Summary!AE50 -> 1.423324481 | Y31: =Summary!AF50 -> 1.421894497 | Z31: =Summary!AG50 -> 1.419984177 | AA31: =Summary!AH50 -> 1.417706832 | AB31: =Summary!AI50 -> 1.415163749 | AC31: =Summary!AJ50 -> 1.412457088 | AD31: =Summary!AK50 -> 1.409615222 | AE31: =Summary!AL50 -> 1.406723105 | AF31: =Summary!AM50 -> 1.403848928 | AG31: -0.003586440821
A32: mdi | B32: =Summary!D51 -> 0 | C32: =Summary!E51 -> 0 | D32: =Summary!F51 -> 0 | E32: =Summary!G51 -> 0 | F32: =Summary!H51 -> 0 | G32: =Summary!I51 -> 0 | H32: =Summary!J51 -> 0 | I32: =Summary!K51 -> 0 | J32: =Summary!L51 -> 0 | K32: =Summary!R51 -> 0.1558793465 | L32: =Summary!S51 -> 0.1497699034 | M32: =Summary!T51 -> 0.1431692533 | N32: =Summary!U51 -> 0.1361299165 | O32: =Summary!V51 -> 0.1287023137 | P32: =Summary!W51 -> 0.1209473562 | Q32: =Summary!X51 -> 0.1129273021 | R32: =Summary!Y51 -> 0.1047067742 | S32: =Summary!Z51 -> 0.09634359864 | T32: =Summary!AA51 -> 0.08790391773 | U32: =Summary!AB51 -> 0.0794530898 | V32: =Summary!AC51 -> 0.1801836178 | W32: =Summary!AD51 -> 0.1782565106 | X32: =Summary!AE51 -> 0.176119811 | Y32: =Summary!AF51 -> 0.1737985264 | Z32: =Summary!AG51 -> 0.1713128401 | AA32: =Summary!AH51 -> 0.1686919497 | AB32: =Summary!AI51 -> 0.1659643679 | AC32: =Summary!AJ51 -> 0.1631594743 | AD32: =Summary!AK51 -> 0.1602978518 | AE32: =Summary!AL51 -> 0.1574078369 | AF32: =Summary!AM51 -> 0.1545159918 | AG32: -0.4902911028
A33: mfa | B33: =Summary!D52 -> 0 | C33: =Summary!E52 -> 0 | D33: =Summary!F52 -> 0 | E33: =Summary!G52 -> 26.36904773 | F33: =Summary!H52 -> 30 | G33: =Summary!I52 -> 27.07378989 | H33: =Summary!J52 -> 25.86015639 | I33: =Summary!K52 -> 30.22593427 | J33: =Summary!L52 -> 26.8 | K33: =Summary!R52 -> 28.04467918 | L33: =Summary!S52 -> 28.12876031 | M33: =Summary!T52 -> 28.19488097 | N33: =Summary!U52 -> 28.25423489 | O33: =Summary!V52 -> 28.30750459 | P33: =Summary!W52 -> 28.35683157 | Q33: =Summary!X52 -> 28.38599637 | R33: =Summary!Y52 -> 28.41613457 | S33: =Summary!Z52 -> 28.44989486 | T33: =Summary!AA52 -> 28.48758989 | U33: =Summary!AB52 -> 28.53026975 | V33: =Summary!AC52 -> 29.73453905 | W33: =Summary!AD52 -> 29.80978186 | X33: =Summary!AE52 -> 29.86479918 | Y33: =Summary!AF52 -> 29.91175923 | Z33: =Summary!AG52 -> 29.95145801 | AA33: =Summary!AH52 -> 29.98627326 | AB33: =Summary!AI52 -> 29.99863111 | AC33: =Summary!AJ52 -> 30.01159293 | AD33: =Summary!AK52 -> 30.02817351 | AE33: =Summary!AL52 -> 30.04885323 | AF33: =Summary!AM52 -> 30.0749168 | AG33: 0.01731489127 | AI33: 617
A34: mjg | B34: =Summary!D53 -> 0 | C34: =Summary!E53 -> 0 | D34: =Summary!F53 -> 0 | E34: =Summary!G53 -> 2.387529908 | F34: =Summary!H53 -> 2.14783637 | G34: =Summary!I53 -> 2.65618623 | H34: =Summary!J53 -> 2.734695849 | I34: =Summary!K53 -> 2.993129662 | J34: =Summary!L53 -> 1.7 | K34: =Summary!R53 -> 2.902676552 | L34: =Summary!S53 -> 2.941032639 | M34: =Summary!T53 -> 2.977614902 | N34: =Summary!U53 -> 3.014327579 | O34: =Summary!V53 -> 3.051239986 | P34: =Summary!W53 -> 3.088856611 | Q34: =Summary!X53 -> 3.127612831 | R34: =Summary!Y53 -> 3.167953631 | S34: =Summary!Z53 -> 3.209743794 | T34: =Summary!AA53 -> 3.253268842 | U34: =Summary!AB53 -> 3.298682474 | V34: =Summary!AC53 -> 3.392412856 | W34: =Summary!AD53 -> 3.431215171 | X34: =Summary!AE53 -> 3.467994011 | Y34: =Summary!AF53 -> 3.504817849 | Z34: =Summary!AG53 -> 3.541767327 | AA34: =Summary!AH53 -> 3.579392673 | AB34: =Summary!AI53 -> 3.618167069 | AC34: =Summary!AJ53 -> 3.658584993 | AD34: =Summary!AK53 -> 3.700523089 | AE34: =Summary!AL53 -> 3.744315941 | AF34: =Summary!AM53 -> 3.790155392 | AG34: 0.13642785 | AI34: 639
A35: moe | B35: =Summary!D54 -> 0 | C35: =Summary!E54 -> 0 | D35: =Summary!F54 -> 0 | E35: =Summary!G54 -> 34.71082956 | F35: =Summary!H54 -> 32.34877465 | G35: =Summary!I54 -> 26.94003797 | H35: =Summary!J54 -> 28.2038839 | I35: =Summary!K54 -> 31.01320263 | J35: =Summary!L54 -> 33.3 | K35: =Summary!R54 -> 31.89560847 | L35: =Summary!S54 -> 31.9811329 | M35: =Summary!T54 -> 32.0302898 | N35: =Summary!U54 -> 32.05769276 | O35: =Summary!V54 -> 32.07573328 | P35: =Summary!W54 -> 32.0872146 | Q35: =Summary!X54 -> 32.09423311 | R35: =Summary!Y54 -> 32.09885875 | S35: =Summary!Z54 -> 32.10129865 | T35: =Summary!AA54 -> 32.10313801 | U35: =Summary!AB54 -> 32.10553862 | V35: =Summary!AC54 -> 35.90941117 | W35: =Summary!AD54 -> 35.95610963 | X35: =Summary!AE54 -> 35.96327891 | Y35: =Summary!AF54 -> 35.94599211 | Z35: =Summary!AG54 -> 35.91711543 | AA35: =Summary!AH54 -> 35.87976804 | AB35: =Summary!AI54 -> 35.83636273 | AC35: =Summary!AJ54 -> 35.78932774 | AD35: =Summary!AK54 -> 35.73923139 | AE35: =Summary!AL54 -> 35.68805963 | AF35: =Summary!AM54 -> 35.63737396 | AG35: 0.006581788586 | AI35: 661
A36: msd | B36: =Summary!D55 -> 0 | C36: =Summary!E55 -> 0 | D36: =Summary!F55 -> 0 | E36: =Summary!G55 -> 14.03303114 | F36: =Summary!H55 -> 9.379274981 | G36: =Summary!I55 -> 15.09325312 | H36: =Summary!J55 -> 15.35932033 | I36: =Summary!K55 -> 17.48105985 | J36: =Summary!L55 -> 16.1 | K36: =Summary!R55 -> 15.61345407 | L36: =Summary!S55 -> 15.81977088 | M36: =Summary!T55 -> 16.01654633 | N36: =Summary!U55 -> 16.21402328 | O36: =Summary!V55 -> 16.41257457 | P36: =Summary!W55 -> 16.61491384 | Q36: =Summary!X55 -> 16.82338297 | R36: =Summary!Y55 -> 17.04037553 | S36: =Summary!Z55 -> 17.2651642 | T36: =Summary!AA55 -> 17.49928478 | U36: =Summary!AB55 -> 17.74356403 | V36: =Summary!AC55 -> 18.24773837 | W36: =Summary!AD55 -> 18.45645544 | X36: =Summary!AE55 -> 18.65428828 | Y36: =Summary!AF55 -> 18.85236316 | Z36: =Summary!AG55 -> 19.05111385 | AA36: =Summary!AH55 -> 19.25350003 | AB36: =Summary!AI55 -> 19.46206693 | AC36: =Summary!AJ55 -> 19.67947434 | AD36: =Summary!AK55 -> 19.90505874 | AE36: =Summary!AL55 -> 20.14061984 | AF36: =Summary!AM55 -> 20.38718956 | AG36: 0.13642785 | AI36: 683
A37: mwe | B37: =Summary!D56 -> 0 | C37: =Summary!E56 -> 0 | D37: =Summary!F56 -> 0 | E37: =Summary!G56 -> 0 | F37: =Summary!H56 -> 0 | G37: =Summary!I56 -> 0 | H37: =Summary!J56 -> 0 | I37: =Summary!K56 -> 0 | J37: =Summary!L56 -> 0 | K37: =Summary!R56 -> 0 | L37: =Summary!S56 -> 0 | M37: =Summary!T56 -> 0 | N37: =Summary!U56 -> 0 | O37: =Summary!V56 -> 0 | P37: =Summary!W56 -> 0 | Q37: =Summary!X56 -> 0 | R37: =Summary!Y56 -> 0 | S37: =Summary!Z56 -> 0 | T37: =Summary!AA56 -> 0 | U37: =Summary!AB56 -> 0 | V37: =Summary!AC56 -> 0 | W37: =Summary!AD56 -> 0 | X37: =Summary!AE56 -> 0 | Y37: =Summary!AF56 -> 0 | Z37: =Summary!AG56 -> 0 | AA37: =Summary!AH56 -> 0 | AB37: =Summary!AI56 -> 0 | AC37: =Summary!AJ56 -> 0 | AD37: =Summary!AK56 -> 0 | AE37: =Summary!AL56 -> 0 | AF37: =Summary!AM56 -> 0 | AI37: No demand
A38: mwts | B38: =Summary!D57 -> 0 | C38: =Summary!E57 -> 0 | D38: =Summary!F57 -> 0 | E38: =Summary!G57 -> 0 | F38: =Summary!H57 -> 0 | G38: =Summary!I57 -> 0 | H38: =Summary!J57 -> 0 | I38: =Summary!K57 -> 0 | J38: =Summary!L57 -> 0 | K38: =Summary!R57 -> 44.76613687 | L38: =Summary!S57 -> 45.00110968 | M38: =Summary!T57 -> 45.37879939 | N38: =Summary!U57 -> 45.93644226 | O38: =Summary!V57 -> 46.71162024 | P38: =Summary!W57 -> 47.27818231 | Q38: =Summary!X57 -> 47.82382809 | R38: =Summary!Y57 -> 48.3456643 | S38: =Summary!Z57 -> 48.844492 | T38: =Summary!AA57 -> 49.30726601 | U38: =Summary!AB57 -> 49.70901804 | V38: =Summary!AC57 -> 49.67512769 | W38: =Summary!AD57 -> 49.87583104 | X38: =Summary!AE57 -> 50.22876129 | Y38: =Summary!AF57 -> 50.77493473 | Z38: =Summary!AG57 -> 51.55574261 | AA38: =Summary!AH57 -> 52.10850255 | AB38: =Summary!AI57 -> 52.63696131 | AC38: =Summary!AJ57 -> 53.13813644 | AD38: =Summary!AK57 -> 53.61334319 | AE38: =Summary!AL57 -> 54.04880749 | AF38: =Summary!AM57 -> 54.41782553 | AG38: 0.1104156294 | AJ38: TS
A39: myt | B39: =Summary!D58 -> 0 | C39: =Summary!E58 -> 0 | D39: =Summary!F58 -> 0 | E39: =Summary!G58 -> 15.66919892 | F39: =Summary!H58 -> 14.36231224 | G39: =Summary!I58 -> 13.21226737 | H39: =Summary!J58 -> 12.83462287 | I39: =Summary!K58 -> 14.07839268 | J39: =Summary!L58 -> 14.9 | K39: =Summary!R58 -> 13.35649846 | L39: =Summary!S58 -> 13.40230358 | M39: =Summary!T58 -> 13.43928276 | N39: =Summary!U58 -> 13.46857107 | O39: =Summary!V58 -> 13.49060384 | P39: =Summary!W58 -> 13.50663393 | Q39: =Summary!X58 -> 13.5176893 | R39: =Summary!Y58 -> 13.52473478 | S39: =Summary!Z58 -> 13.52783639 | T39: =Summary!AA58 -> 13.52774581 | U39: =Summary!AB58 -> 13.52502565 | V39: =Summary!AC58 -> 14.81955481 | W39: =Summary!AD58 -> 14.85607201 | X39: =Summary!AE58 -> 14.8823193 | Y39: =Summary!AF58 -> 14.89957525 | Z39: =Summary!AG58 -> 14.90836329 | AA39: =Summary!AH58 -> 14.9100989 | AB39: =Summary!AI58 -> 14.90596046 | AC39: =Summary!AJ58 -> 14.89708532 | AD39: =Summary!AK58 -> 14.88365921 | AE39: =Summary!AL58 -> 14.86661644 | AF39: =Summary!AM58 -> 14.84668834 | AG39: 0.01261761769 | AI39: 705
A40: nla | B40: =Summary!D59 -> 0 | C40: =Summary!E59 -> 0 | D40: =Summary!F59 -> 0 | E40: =Summary!G59 -> 7.829818372 | F40: =Summary!H59 -> 7.253689103 | G40: =Summary!I59 -> 6.504132936 | H40: =Summary!J59 -> 6.498105903 | I40: =Summary!K59 -> 7.348488604 | J40: =Summary!L59 -> 7.1 | K40: =Summary!R59 -> 7.119420678 | L40: =Summary!S59 -> 7.141350895 | M40: =Summary!T59 -> 7.163639747 | N40: =Summary!U59 -> 7.194439502 | O40: =Summary!V59 -> 7.236981651 | P40: =Summary!W59 -> 7.265953211 | Q40: =Summary!X59 -> 7.292951068 | R40: =Summary!Y59 -> 7.318098164 | S40: =Summary!Z59 -> 7.341518278 | T40: =Summary!AA59 -> 7.362664395 | U40: =Summary!AB59 -> 7.380216583 | V40: =Summary!AC59 -> 7.492756058 | W40: =Summary!AD59 -> 7.510700212 | X40: =Summary!AE59 -> 7.528732921 | Y40: =Summary!AF59 -> 7.555729018 | Z40: =Summary!AG59 -> 7.595243121 | AA40: =Summary!AH59 -> 7.619808947 | AB40: =Summary!AI59 -> 7.642031248 | AC40: =Summary!AJ59 -> 7.662075275 | AD40: =Summary!AK59 -> 7.680125764 | AE40: =Summary!AL59 -> 7.695640016 | AF40: =Summary!AM59 -> 7.707236494 | AG40: 0.03663161888 | AI40: 727
A41: nrn | B41: =Summary!D60 -> 0 | C41: =Summary!E60 -> 0 | D41: =Summary!F60 -> 0 | E41: =Summary!G60 -> 39.03853197 | F41: =Summary!H60 -> 39.27279624 | G41: =Summary!I60 -> 18.2204493 | H41: =Summary!J60 -> 19.22840899 | I41: =Summary!K60 -> 23.04861179 | J41: =Summary!L60 -> 24.7 | K41: =Summary!R60 -> 21.49700134 | L41: =Summary!S60 -> 21.56112642 | M41: =Summary!T60 -> 21.6144158 | N41: =Summary!U60 -> 21.66155998 | O41: =Summary!V60 -> 21.7043717 | P41: =Summary!W60 -> 21.74802757 | Q41: =Summary!X60 -> 21.79493907 | R41: =Summary!Y60 -> 21.84696591 | S41: =Summary!Z60 -> 21.90454544 | T41: =Summary!AA60 -> 21.9691819 | U41: =Summary!AB60 -> 22.04207235 | V41: =Summary!AC60 -> 25.22172215 | W41: =Summary!AD60 -> 25.27137843 | X41: =Summary!AE60 -> 25.30852159 | Y41: =Summary!AF60 -> 25.33819822 | Z41: =Summary!AG60 -> 25.36242126 | AA41: =Summary!AH60 -> 25.38677898 | AB41: =Summary!AI60 -> 25.4139321 | AC41: =Summary!AJ60 -> 25.44598292 | AD41: =Summary!AK60 -> 25.48355535 | AE41: =Summary!AL60 -> 25.52841044 | AF41: =Summary!AM60 -> 25.58198674 | AG41: 0.02535567675 | AI41: 749
A42: ofr | B42: =Summary!D61 -> 0 | C42: =Summary!E61 -> 0 | D42: =Summary!F61 -> 0 | E42: =Summary!G61 -> 0 | F42: =Summary!H61 -> 29.48219764 | G42: =Summary!I61 -> 30.70846752 | H42: =Summary!J61 -> 32.10436104 | I42: =Summary!K61 -> 42.37381571 | J42: =Summary!L61 -> 38.8 | K42: =Summary!R61 -> 40.75203778 | L42: =Summary!S61 -> 42.9259684 | M42: =Summary!T61 -> 45.26250191 | N42: =Summary!U61 -> 47.48227038 | O42: =Summary!V61 -> 49.61870216 | P42: =Summary!W61 -> 51.70593326 | Q42: =Summary!X61 -> 53.78078337 | R42: =Summary!Y61 -> 55.85193443 | S42: =Summary!Z61 -> 57.92057401 | T42: =Summary!AA61 -> 59.98772392 | U42: =Summary!AB61 -> 62.05449486 | V42: =Summary!AC61 -> 46.65201832 | W42: =Summary!AD61 -> 48.91190323 | X42: =Summary!AE61 -> 51.34478686 | Y42: =Summary!AF61 -> 53.65490066 | Z42: =Summary!AG61 -> 55.87700851 | AA42: =Summary!AH61 -> 58.04664866 | AB42: =Summary!AI61 -> 60.20222808 | AC42: =Summary!AJ61 -> 62.35279054 | AD42: =Summary!AK61 -> 64.49992448 | AE42: =Summary!AL61 -> 66.6450524 | AF42: =Summary!AM61 -> 68.78969828 | AG42: 0.5227335427 | AI42: 771
A43: phi | B43: =Summary!D62 -> 0 | C43: =Summary!E62 -> 0 | D43: =Summary!F62 -> 0 | E43: =Summary!G62 -> 14.89744735 | F43: =Summary!H62 -> 19.30504544 | G43: =Summary!I62 -> 16.8098077 | H43: =Summary!J62 -> 16.72715351 | I43: =Summary!K62 -> 19.18012901 | J43: =Summary!L62 -> 19.1 | K43: =Summary!R62 -> 17.75431157 | L43: =Summary!S62 -> 17.93112191 | M43: =Summary!T62 -> 18.07053299 | N43: =Summary!U62 -> 18.19484814 | O43: =Summary!V62 -> 18.31004947 | P43: =Summary!W62 -> 18.41846379 | Q43: =Summary!X62 -> 18.52194025 | R43: =Summary!Y62 -> 18.62221499 | S43: =Summary!Z62 -> 18.71870626 | T43: =Summary!AA62 -> 18.81250433 | U43: =Summary!AB62 -> 18.90416905 | V43: =Summary!AC62 -> 19.77683754 | W43: =Summary!AD62 -> 19.9413188 | X43: =Summary!AE62 -> 20.06508998 | Y43: =Summary!AF62 -> 20.1717922 | Z43: =Summary!AG62 -> 20.26784285 | AA43: =Summary!AH62 -> 20.35579733 | AB43: =Summary!AI62 -> 20.43771101 | AC43: =Summary!AJ62 -> 20.51557162 | AD43: =Summary!AK62 -> 20.58895871 | AE43: =Summary!AL62 -> 20.65923232 | AF43: =Summary!AM62 -> 20.72719386 | AG43: 0.0647649715 | AI43: 793
A44: phm | B44: =Summary!D63 -> 0 | C44: =Summary!E63 -> 0 | D44: =Summary!F63 -> 0 | E44: =Summary!G63 -> 48.029391 | F44: =Summary!H63 -> 33.43326084 | G44: =Summary!I63 -> 32.9419793 | H44: =Summary!J63 -> 33.72577645 | I44: =Summary!K63 -> 39.87546131 | J44: =Summary!L63 -> 42.7 | K44: =Summary!R63 -> 38.99267971 | L44: =Summary!S63 -> 41.19407446 | M44: =Summary!T63 -> 43.11194852 | N44: =Summary!U63 -> 45.03014745 | O44: =Summary!V63 -> 46.94349837 | P44: =Summary!W63 -> 48.84840387 | Q44: =Summary!X63 -> 50.7406787 | R44: =Summary!Y63 -> 52.62855828 | S44: =Summary!Z63 -> 54.51349884 | T44: =Summary!AA63 -> 56.39664013 | U44: =Summary!AB63 -> 58.27926623 | V44: =Summary!AC63 -> 43.76221419 | W44: =Summary!AD63 -> 46.04864186 | X44: =Summary!AE63 -> 48.03590449 | Y44: =Summary!AF63 -> 50.02377906 | Z44: =Summary!AG63 -> 52.00646843 | AA44: =Summary!AH63 -> 53.97969563 | AB44: =Summary!AI63 -> 55.9384705 | AC44: =Summary!AJ63 -> 57.8914183 | AD44: =Summary!AK63 -> 59.84043401 | AE44: =Summary!AL63 -> 61.78708737 | AF44: =Summary!AM63 -> 63.73310889 | AG44: 0.4946206994 | AI44: 815
A45: RUB | B45: =Summary!D64 -> 0 | C45: =Summary!E64 -> 0 | D45: =Summary!F64 -> 0 | E45: =Summary!G64 -> 0 | F45: =Summary!H64 -> 8.939132967 | G45: =Summary!I64 -> 8.303663878 | H45: =Summary!J64 -> 9.390970053 | I45: =Summary!K64 -> 9.50787232 | J45: =Summary!L64 -> 9.5 | K45: =Summary!R64 -> 9.107172643 | L45: =Summary!S64 -> 9.227515194 | M45: =Summary!T64 -> 9.342292359 | N45: =Summary!U64 -> 9.457478698 | O45: =Summary!V64 -> 9.573291694 | P45: =Summary!W64 -> 9.691314179 | Q45: =Summary!X64 -> 9.812912151 | R45: =Summary!Y64 -> 9.939481759 | S45: =Summary!Z64 -> 10.07059876 | T45: =Summary!AA64 -> 10.20715897 | U45: =Summary!AB64 -> 10.34964463 | V45: =Summary!AC64 -> 10.1316124 | W45: =Summary!AD64 -> 10.24749747 | X45: =Summary!AE64 -> 10.35733934 | Y45: =Summary!AF64 -> 10.46731559 | Z45: =Summary!AG64 -> 10.57766707 | AA45: =Summary!AH64 -> 10.69003707 | AB45: =Summary!AI64 -> 10.80583876 | AC45: =Summary!AJ64 -> 10.92654893 | AD45: =Summary!AK64 -> 11.05179918 | AE45: =Summary!AL64 -> 11.18258874 | AF45: =Summary!AM64 -> 11.31949058 | AG45: 0.13642785 | AI45: 837
A46: rwn | B46: =Summary!D65 -> 0 | C46: =Summary!E65 -> 0 | D46: =Summary!F65 -> 0 | E46: =Summary!G65 -> 55.37835253 | F46: =Summary!H65 -> 58.25782515 | G46: =Summary!I65 -> 44.25219802 | H46: =Summary!J65 -> 50.47075523 | I46: =Summary!K65 -> 54.44617377 | J46: =Summary!L65 -> 58.1 | K46: =Summary!R65 -> 54.0436863 | L46: =Summary!S65 -> 54.60789274 | M46: =Summary!T65 -> 55.0785573 | N46: =Summary!U65 -> 55.46511473 | O46: =Summary!V65 -> 55.77157858 | P46: =Summary!W65 -> 56.00924895 | Q46: =Summary!X65 -> 56.18989164 | R46: =Summary!Y65 -> 56.32977721 | S46: =Summary!Z65 -> 56.46842502 | T46: =Summary!AA65 -> 56.61994212 | U46: =Summary!AB65 -> 56.78658525 | V46: =Summary!AC65 -> 64.72016526 | W46: =Summary!AD65 -> 65.29715098 | X46: =Summary!AE65 -> 65.76810492 | Y46: =Summary!AF65 -> 66.1433929 | Z46: =Summary!AG65 -> 66.42740731 | AA46: =Summary!AH65 -> 66.63275375 | AB46: =Summary!AI65 -> 66.7726698 | AC46: =Summary!AJ65 -> 66.86562281 | AD46: =Summary!AK65 -> 66.95617919 | AE46: =Summary!AL65 -> 67.06054133 | AF46: =Summary!AM65 -> 67.18168816 | AG46: 0.05075336518 | AI46: 859
A47: rwt | B47: =Summary!D66 -> 0 | C47: =Summary!E66 -> 0 | D47: =Summary!F66 -> 0 | E47: =Summary!G66 -> 0 | F47: =Summary!H66 -> 0 | G47: =Summary!I66 -> 0 | H47: =Summary!J66 -> 0 | I47: =Summary!K66 -> 0 | J47: =Summary!L66 -> 0 | K47: =Summary!R66 -> 73.87370866 | L47: =Summary!S66 -> 74.09850744 | M47: =Summary!T66 -> 74.34134957 | N47: =Summary!U66 -> 74.49569445 | O47: =Summary!V66 -> 74.59943075 | P47: =Summary!W66 -> 74.65132338 | Q47: =Summary!X66 -> 74.65699643 | R47: =Summary!Y66 -> 74.62595626 | S47: =Summary!Z66 -> 74.56788705 | T47: =Summary!AA66 -> 74.49274254 | U47: =Summary!AB66 -> 74.41098674 | V47: =Summary!AC66 -> 81.51839565 | W47: =Summary!AD66 -> 81.68431573 | X47: =Summary!AE66 -> 81.86547275 | Y47: =Summary!AF66 -> 81.94942809 | Z47: =Summary!AG66 -> 81.97654876 | AA47: =Summary!AH66 -> 81.94580354 | AB47: =Summary!AI66 -> 81.8634919 | AC47: =Summary!AJ66 -> 81.74017933 | AD47: =Summary!AK66 -> 81.58676349 | AE47: =Summary!AL66 -> 81.41442729 | AF47: =Summary!AM66 -> 81.23491489 | AG47: 0.007272926783 | AJ47: TS
A48: sfs | B48: =Summary!D67 -> 0 | C48: =Summary!E67 -> 0 | D48: =Summary!F67 -> 0 | E48: =Summary!G67 -> 0 | F48: =Summary!H67 -> 0 | G48: =Summary!I67 -> 1.520394199 | H48: =Summary!J67 -> 1.520394199 | I48: =Summary!K67 -> 1.428941916 | J48: =Summary!L67 -> 1.54325727 | K48: =Summary!R67 -> 1.454025763 | L48: =Summary!S67 -> 1.456172169 | M48: =Summary!T67 -> 1.457793233 | N48: =Summary!U67 -> 1.458978472 | O48: =Summary!V67 -> 1.459767012 | P48: =Summary!W67 -> 1.460265664 | Q48: =Summary!X67 -> 1.460567296 | R48: =Summary!Y67 -> 1.460763371 | S48: =Summary!Z67 -> 1.460863065 | T48: =Summary!AA67 -> 1.460936244 | U48: =Summary!AB67 -> 1.461034126 | V48: =Summary!AC67 -> 1.638194012 | W48: =Summary!AD67 -> 1.638805494 | X48: =Summary!AE67 -> 1.638759749 | Y48: =Summary!AF67 -> 1.638160682 | Z48: =Summary!AG67 -> 1.637059278 | AA48: =Summary!AH67 -> 1.635578725 | AB48: =Summary!AI67 -> 1.633827966 | AC48: =Summary!AJ67 -> 1.631916571 | AD48: =Summary!AK67 -> 1.629868893 | AE48: =Summary!AL67 -> 1.627774139 | AF48: =Summary!AM67 -> 1.625702048 | AG48: 0.004819971921 | AI48: 881
A49: sle | B49: =Summary!D68 -> 0 | C49: =Summary!E68 -> 0 | D49: =Summary!F68 -> 0 | E49: =Summary!G68 -> 25.46036131 | F49: =Summary!H68 -> 24.19580923 | G49: =Summary!I68 -> 22.4178504 | H49: =Summary!J68 -> 24.00940616 | I49: =Summary!K68 -> 25.55696897 | J49: =Summary!L68 -> 30.1 | K49: =Summary!R68 -> 24.53153327 | L49: =Summary!S68 -> 24.65523952 | M49: =Summary!T68 -> 24.73121931 | N49: =Summary!U68 -> 24.78214425 | O49: =Summary!V68 -> 24.82079515 | P49: =Summary!W68 -> 24.84958667 | Q49: =Summary!X68 -> 24.8705236 | R49: =Summary!Y68 -> 24.88553544 | S49: =Summary!Z68 -> 24.89455166 | T49: =Summary!AA68 -> 24.8990211 | U49: =Summary!AB68 -> 24.89996315 | V49: =Summary!AC68 -> 26.57964274 | W49: =Summary!AD68 -> 26.66934117 | X49: =Summary!AE68 -> 26.70827677 | Y49: =Summary!AF68 -> 26.71967844 | Z49: =Summary!AG68 -> 26.71676729 | AA49: =Summary!AH68 -> 26.7022231 | AB49: =Summary!AI68 -> 26.67832218 | AC49: =Summary!AJ68 -> 26.64731007 | AD49: =Summary!AK68 -> 26.60943427 | AE49: =Summary!AL68 -> 26.56650302 | AF49: =Summary!AM68 -> 26.51989314 | AG49: 0.01501862402 | AI49: 903
A50: smg | B50: =Summary!D69 -> 0 | C50: =Summary!E69 -> 0 | D50: =Summary!F69 -> 0 | E50: =Summary!G69 -> 0 | F50: =Summary!H69 -> 0 | G50: =Summary!I69 -> 0 | H50: =Summary!J69 -> 0 | I50: =Summary!K69 -> 0 | J50: =Summary!L69 -> 37.47000122 | K50: =Summary!R69 -> 40.7908503 | L50: =Summary!S69 -> 45.01356344 | M50: =Summary!T69 -> 45.66561451 | N50: =Summary!U69 -> 45.77107335 | O50: =Summary!V69 -> 45.79224985 | P50: =Summary!W69 -> 45.80537632 | Q50: =Summary!X69 -> 45.81306208 | R50: =Summary!Y69 -> 45.81778646 | S50: =Summary!Z69 -> 45.81994038 | T50: =Summary!AA69 -> 45.82131575 | U50: =Summary!AB69 -> 45.82337228 | V50: =Summary!AC69 -> 47.85678237 | W50: =Summary!AD69 -> 52.32253461 | X50: =Summary!AE69 -> 52.96772961 | Y50: =Summary!AF69 -> 53.02482971 | Z50: =Summary!AG69 -> 52.98906216 | AA50: =Summary!AH69 -> 52.94248372 | AB50: =Summary!AI69 -> 52.88821355 | AC50: =Summary!AJ69 -> 52.82929408 | AD50: =Summary!AK69 -> 52.76658655 | AE50: =Summary!AL69 -> 52.70247088 | AF50: =Summary!AM69 -> 52.63897966 | AG50: 0.1233737945 | AI50: 925
A51: smr | B51: =Summary!D70 -> 0 | C51: =Summary!E70 -> 0 | D51: =Summary!F70 -> 0 | E51: =Summary!G70 -> 36.87224566 | F51: =Summary!H70 -> 36.2654712 | G51: =Summary!I70 -> 34.95227087 | H51: =Summary!J70 -> 30.27600545 | I51: =Summary!K70 -> 32.74626162 | J51: =Summary!L70 -> 35.9 | K51: =Summary!R70 -> 32.43480824 | L51: =Summary!S70 -> 32.64764175 | M51: =Summary!T70 -> 32.82292632 | N51: =Summary!U70 -> 32.94523523 | O51: =Summary!V70 -> 33.01921519 | P51: =Summary!W70 -> 33.05810408 | Q51: =Summary!X70 -> 33.08851854 | R51: =Summary!Y70 -> 33.11714103 | S51: =Summary!Z70 -> 33.14400839 | T51: =Summary!AA70 -> 33.17050258 | U51: =Summary!AB70 -> 33.19758707 | V51: =Summary!AC70 -> 37.51547658 | W51: =Summary!AD70 -> 37.71622066 | X51: =Summary!AE70 -> 37.87483448 | Y51: =Summary!AF70 -> 37.97461669 | Z51: =Summary!AG70 -> 38.02062081 | AA51: =Summary!AH70 -> 38.02729245 | AB51: =Summary!AI70 -> 38.02368613 | AC51: =Summary!AJ70 -> 38.01727205 | AD51: =Summary!AK70 -> 38.00834893 | AE51: =Summary!AL70 -> 37.99868512 | AF51: =Summary!AM70 -> 37.98959985 | AG51: 0.0235172911 | AI51: 947
A52: tgn | B52: =Summary!D71 -> 0 | C52: =Summary!E71 -> 0 | D52: =Summary!F71 -> 0 | E52: =Summary!G71 -> 43.32138671 | F52: =Summary!H71 -> 40.89660361 | G52: =Summary!I71 -> 31.65388143 | H52: =Summary!J71 -> 37.56275265 | I52: =Summary!K71 -> 41.28301782 | J52: =Summary!L71 -> 33.8 | K52: =Summary!R71 -> 33.64570516 | L52: =Summary!S71 -> 33.81537184 | M52: =Summary!T71 -> 33.91958031 | N52: =Summary!U71 -> 33.98942533 | O52: =Summary!V71 -> 34.04243616 | P52: =Summary!W71 -> 34.08192456 | Q52: =Summary!X71 -> 34.11064016 | R52: =Summary!Y71 -> 34.13122933 | S52: =Summary!Z71 -> 34.14359534 | T52: =Summary!AA71 -> 34.1497253 | U52: =Summary!AB71 -> 34.15101735 | V52: =Summary!AC71 -> 36.45474634 | W52: =Summary!AD71 -> 36.57777032 | X52: =Summary!AE71 -> 36.63117162 | Y52: =Summary!AF71 -> 36.64680935 | Z52: =Summary!AG71 -> 36.64281662 | AA52: =Summary!AH71 -> 36.62286883 | AB52: =Summary!AI71 -> 36.59008803 | AC52: =Summary!AJ71 -> 36.54755403 | AD52: =Summary!AK71 -> 36.49560628 | AE52: =Summary!AL71 -> 36.43672484 | AF52: =Summary!AM71 -> 36.37279805 | AG52: 0.01501862402 | AI52: 969
A53: trc | B53: =Summary!D72 -> 0 | C53: =Summary!E72 -> 0 | D53: =Summary!F72 -> 0 | E53: =Summary!G72 -> 0 | F53: =Summary!H72 -> 0 | G53: =Summary!I72 -> 0 | H53: =Summary!J72 -> 0 | I53: =Summary!K72 -> 0 | J53: =Summary!L72 -> 0 | K53: =Summary!R72 -> 0 | L53: =Summary!S72 -> 0 | M53: =Summary!T72 -> 0 | N53: =Summary!U72 -> 0 | O53: =Summary!V72 -> 0 | P53: =Summary!W72 -> 0 | Q53: =Summary!X72 -> 0 | R53: =Summary!Y72 -> 0 | S53: =Summary!Z72 -> 0 | T53: =Summary!AA72 -> 0 | U53: =Summary!AB72 -> 0 | V53: =Summary!AC72 -> 0 | W53: =Summary!AD72 -> 0 | X53: =Summary!AE72 -> 0 | Y53: =Summary!AF72 -> 0 | Z53: =Summary!AG72 -> 0 | AA53: =Summary!AH72 -> 0 | AB53: =Summary!AI72 -> 0 | AC53: =Summary!AJ72 -> 0 | AD53: =Summary!AK72 -> 0 | AE53: =Summary!AL72 -> 0 | AF53: =Summary!AM72 -> 0 | AI53: No demand
A54: tt | B54: =Summary!D73 -> 0 | C54: =Summary!E73 -> 0 | D54: =Summary!F73 -> 0 | E54: =Summary!G73 -> 88.86990495 | F54: =Summary!H73 -> 78.91831372 | G54: =Summary!I73 -> 72.52234138 | H54: =Summary!J73 -> 69.74847363 | I54: =Summary!K73 -> 71.5118172 | J54: =Summary!L73 -> 76.6 | K54: =Summary!R73 -> 72.44149876 | L54: =Summary!S73 -> 73.19966469 | M54: =Summary!T73 -> 74.67240727 | N54: =Summary!U73 -> 75.7551512 | O54: =Summary!V73 -> 77.1231865 | P54: =Summary!W73 -> 78.32192439 | Q54: =Summary!X73 -> 79.35798733 | R54: =Summary!Y73 -> 80.24695937 | S54: =Summary!Z73 -> 81.00616103 | T54: =Summary!AA73 -> 81.6542836 | U54: =Summary!AB73 -> 82.2130535 | V54: =Summary!AC73 -> 82.94673283 | W54: =Summary!AD73 -> 83.76269851 | X54: =Summary!AE73 -> 85.37362561 | Y54: =Summary!AF73 -> 86.55111716 | Z54: =Summary!AG73 -> 88.04706968 | AA54: =Summary!AH73 -> 89.35408129 | AB54: =Summary!AI73 -> 90.47884392 | AC54: =Summary!AJ73 -> 91.43859857 | AD54: =Summary!AK73 -> 92.25291376 | AE54: =Summary!AL73 -> 92.94289556 | AF54: =Summary!AM73 -> 93.53304428 | AG54: 0.1348889092 | AI54: 991
A55: uwy | B55: =Summary!D74 -> 0 | C55: =Summary!E74 -> 0 | D55: =Summary!F74 -> 0 | E55: =Summary!G74 -> 0 | F55: =Summary!H74 -> 0 | G55: =Summary!I74 -> 1.577551876 | H55: =Summary!J74 -> 1.497531128 | I55: =Summary!K74 -> 1.486099593 | J55: =Summary!L74 -> 1.600414946 | K55: =Summary!R74 -> 1.536112356 | L55: =Summary!S74 -> 1.539264022 | M55: =Summary!T74 -> 1.540951322 | N55: =Summary!U74 -> 1.542193642 | O55: =Summary!V74 -> 1.543030887 | P55: =Summary!W74 -> 1.543572296 | Q55: =Summary!X74 -> 1.543912807 | R55: =Summary!Y74 -> 1.544145913 | S55: =Summary!Z74 -> 1.544280792 | T55: =Summary!AA74 -> 1.544388793 | U55: =Summary!AB74 -> 1.544522158 | V55: =Summary!AC74 -> 1.679679131 | W55: =Summary!AD74 -> 1.681677701 | X55: =Summary!AE74 -> 1.682049344 | Y55: =Summary!AF74 -> 1.681878263 | Z55: =Summary!AG74 -> 1.681213843 | AA55: =Summary!AH74 -> 1.680179249 | AB55: =Summary!AI74 -> 1.678882872 | AC55: =Summary!AJ74 -> 1.677433595 | AD55: =Summary!AK74 -> 1.675852857 | AE55: =Summary!AL74 -> 1.674228436 | AF55: =Summary!AM74 -> 1.672628088 | AG55: 0.005474730856
A56: wgi | B56: =Summary!D75 -> 0 | C56: =Summary!E75 -> 0 | D56: =Summary!F75 -> 0 | E56: =Summary!G75 -> 33.9614035 | F56: =Summary!H75 -> 36.20879045 | G56: =Summary!I75 -> 32.13201694 | H56: =Summary!J75 -> 32.1046176 | I56: =Summary!K75 -> 35.9353935 | J56: =Summary!L75 -> 41.1 | K56: =Summary!R75 -> 36.42102378 | L56: =Summary!S75 -> 36.38069272 | M56: =Summary!T75 -> 36.31788437 | N56: =Summary!U75 -> 36.2443186 | O56: =Summary!V75 -> 36.16112515 | P56: =Summary!W75 -> 36.07035285 | Q56: =Summary!X75 -> 35.97389979 | R56: =Summary!Y75 -> 35.8736749 | S56: =Summary!Z75 -> 35.77051017 | T56: =Summary!AA75 -> 35.66607167 | U56: =Summary!AB75 -> 35.56179133 | V56: =Summary!AC75 -> 42.30704649 | W56: =Summary!AD75 -> 42.2168043 | X56: =Summary!AE75 -> 42.09923493 | Y56: =Summary!AF75 -> 41.96729848 | Z56: =Summary!AG75 -> 41.82251932 | AA56: =Summary!AH75 -> 41.66743676 | AB56: =Summary!AI75 -> 41.50444412 | AC56: =Summary!AJ75 -> 41.33598709 | AD56: =Summary!AK75 -> 41.16338039 | AE56: =Summary!AL75 -> 40.98885757 | AF56: =Summary!AM75 -> 40.81440671 | AG56: -0.02359166122 | AI56: 1013
A57: wgl | B57: =Summary!D76 -> 0 | C57: =Summary!E76 -> 0 | D57: =Summary!F76 -> 0 | E57: =Summary!G76 -> 56.5240637 | F57: =Summary!H76 -> 58.31845884 | G57: =Summary!I76 -> 45.49734149 | H57: =Summary!J76 -> 49.05097259 | I57: =Summary!K76 -> 58.9834708 | J57: =Summary!L76 -> 63.4 | K57: =Summary!R76 -> 60.9671651 | L57: =Summary!S76 -> 62.31719318 | M57: =Summary!T76 -> 63.62670733 | N57: =Summary!U76 -> 64.89425753 | O57: =Summary!V76 -> 65.34235695 | P57: =Summary!W76 -> 65.66639167 | Q57: =Summary!X76 -> 65.89511886 | R57: =Summary!Y76 -> 66.0537781 | S57: =Summary!Z76 -> 66.19307176 | T57: =Summary!AA76 -> 66.33447544 | U57: =Summary!AB76 -> 66.47983796 | V57: =Summary!AC76 -> 67.52456648 | W57: =Summary!AD76 -> 68.84189004 | X57: =Summary!AE76 -> 70.11600796 | Y57: =Summary!AF76 -> 71.34549867 | Z57: =Summary!AG76 -> 71.73720005 | AA57: =Summary!AH76 -> 72.00004015 | AB57: =Summary!AI76 -> 72.16356564 | AC57: =Summary!AJ76 -> 72.25392109 | AD57: =Summary!AK76 -> 72.32335901 | AE57: =Summary!AL76 -> 72.39431121 | AF57: =Summary!AM76 -> 72.46918458 | AG57: 0.09042035755 | AI57: 1035
A58: wn | B58: =Summary!D77 -> 0 | C58: =Summary!E77 -> 0 | D58: =Summary!F77 -> 0 | E58: =Summary!G77 -> 52.51604284 | F58: =Summary!H77 -> 49.43162532 | G58: =Summary!I77 -> 47.89340547 | H58: =Summary!J77 -> 42.16685565 | I58: =Summary!K77 -> 46.75882911 | J58: =Summary!L77 -> 47.6 | K58: =Summary!R77 -> 44.33384264 | L58: =Summary!S77 -> 44.49320009 | M58: =Summary!T77 -> 44.62380128 | N58: =Summary!U77 -> 44.738841 | O58: =Summary!V77 -> 44.83953181 | P58: =Summary!W77 -> 44.92983197 | Q58: =Summary!X77 -> 45.01309252 | R58: =Summary!Y77 -> 45.09258122 | S58: =Summary!Z77 -> 45.16854752 | T58: =Summary!AA77 -> 45.24343694 | U58: =Summary!AB77 -> 45.31875775 | V58: =Summary!AC77 -> 51.13936016 | W58: =Summary!AD77 -> 51.27030454 | X58: =Summary!AE77 -> 51.36784423 | Y58: =Summary!AF77 -> 51.44643662 | Z58: =Summary!AG77 -> 51.50757878 | AA58: =Summary!AH77 -> 51.5557527 | AB58: =Summary!AI77 -> 51.59479201 | AC58: =Summary!AJ77 -> 51.62852501 | AD58: =Summary!AK77 -> 51.65758584 | AE58: =Summary!AL77 -> 51.6850061 | AF58: =Summary!AM77 -> 51.7128068 | AG58: 0.02221587521 | AI58: 1057
A59: wo | B59: =Summary!D78 -> 0 | C59: =Summary!E78 -> 0 | D59: =Summary!F78 -> 0 | E59: =Summary!G78 -> 57.73268139 | F59: =Summary!H78 -> 54.2753397 | G59: =Summary!I78 -> 54.29530359 | H59: =Summary!J78 -> 46.25083777 | I59: =Summary!K78 -> 49.39068736 | J59: =Summary!L78 -> 47.1 | K59: =Summary!R78 -> 47.75134294 | L59: =Summary!S78 -> 47.99931762 | M59: =Summary!T78 -> 48.17968097 | N59: =Summary!U78 -> 48.3022686 | O59: =Summary!V78 -> 48.38830145 | P59: =Summary!W78 -> 48.46446039 | Q59: =Summary!X78 -> 48.53377687 | R59: =Summary!Y78 -> 48.59892752 | S59: =Summary!Z78 -> 48.65991425 | T59: =Summary!AA78 -> 48.71878819 | U59: =Summary!AB78 -> 48.77702832 | V59: =Summary!AC78 -> 52.36133085 | W59: =Summary!AD78 -> 52.60158749 | X59: =Summary!AE78 -> 52.76737395 | Y59: =Summary!AF78 -> 52.86927899 | Z59: =Summary!AG78 -> 52.93031991 | AA59: =Summary!AH78 -> 52.97953917 | AB59: =Summary!AI78 -> 53.0203371 | AC59: =Summary!AJ78 -> 53.05579754 | AD59: =Summary!AK78 -> 53.08616625 | AE59: =Summary!AL78 -> 53.11392328 | AF59: =Summary!AM78 -> 53.14093224 | AG59: 0.02147971801 | AI59: 1079
A60: wots | B60: =Summary!D79 -> 0 | C60: =Summary!E79 -> 0 | D60: =Summary!F79 -> 0 | E60: =Summary!G79 -> 0 | F60: =Summary!H79 -> 0 | G60: =Summary!I79 -> 0 | H60: =Summary!J79 -> 0 | I60: =Summary!K79 -> 0 | J60: =Summary!L79 -> 0 | K60: =Summary!R79 -> 43.96027923 | L60: =Summary!S79 -> 44.06194602 | M60: =Summary!T79 -> 44.17841236 | N60: =Summary!U79 -> 44.53203265 | O60: =Summary!V79 -> 44.70665619 | P60: =Summary!W79 -> 44.7617172 | Q60: =Summary!X79 -> 44.78968948 | R60: =Summary!Y79 -> 44.81481348 | S60: =Summary!Z79 -> 44.83724352 | T60: =Summary!AA79 -> 44.85901844 | U60: =Summary!AB79 -> 44.88159397 | V60: =Summary!AC79 -> 48.19819296 | W60: =Summary!AD79 -> 48.24625085 | X60: =Summary!AE79 -> 48.32015454 | Y60: =Summary!AF79 -> 48.65694583 | Z60: =Summary!AG79 -> 48.79888147 | AA60: =Summary!AH79 -> 48.80958169 | AB60: =Summary!AI79 -> 48.78956572 | AC60: =Summary!AJ79 -> 48.76537743 | AD60: =Summary!AK79 -> 48.73752962 | AE60: =Summary!AL79 -> 48.70853654 | AF60: =Summary!AM79 -> 48.68030412 | AG60: 0.02095789112 | AJ60: TS
A61: wt | B61: =Summary!D80 -> 0 | C61: =Summary!E80 -> 0 | D61: =Summary!F80 -> 0 | E61: =Summary!G80 -> 0 | F61: =Summary!H80 -> 67.37704756 | G61: =Summary!I80 -> 59.85910952 | H61: =Summary!J80 -> 58.67176307 | I61: =Summary!K80 -> 65.67315407 | J61: =Summary!L80 -> 67.7 | K61: =Summary!R80 -> 63.98983984 | L61: =Summary!S80 -> 64.54680572 | M61: =Summary!T80 -> 65.32573355 | N61: =Summary!U80 -> 66.02872376 | O61: =Summary!V80 -> 66.61820645 | P61: =Summary!W80 -> 67.13664627 | Q61: =Summary!X80 -> 67.62953263 | R61: =Summary!Y80 -> 68.11897359 | S61: =Summary!Z80 -> 68.61930786 | T61: =Summary!AA80 -> 69.54006468 | U61: =Summary!AB80 -> 70.47584963 | V61: =Summary!AC80 -> 73.36512022 | W61: =Summary!AD80 -> 73.89153977 | X61: =Summary!AE80 -> 74.64975098 | Y61: =Summary!AF80 -> 75.32501212 | Z61: =Summary!AG80 -> 75.87750432 | AA61: =Summary!AH80 -> 76.35228705 | AB61: =Summary!AI80 -> 76.79776767 | AC61: =Summary!AJ80 -> 77.23776963 | AD61: =Summary!AK80 -> 77.68805863 | AE61: =Summary!AL80 -> 78.58383788 | AF61: =Summary!AM80 -> 79.49543337 | AG61: 0.1013599941 | AI61: 1101
A62: wyk | B62: =Summary!D81 -> 0 | C62: =Summary!E81 -> 0 | D62: =Summary!F81 -> 0 | E62: =Summary!G81 -> 32.81059794 | F62: =Summary!H81 -> 32.66327288 | G62: =Summary!I81 -> 24.29887946 | H62: =Summary!J81 -> 27.09285319 | I62: =Summary!K81 -> 28.16663607 | J62: =Summary!L81 -> 32.3 | K62: =Summary!R81 -> 28.07267331 | L62: =Summary!S81 -> 28.17928525 | M62: =Summary!T81 -> 28.30645077 | N62: =Summary!U81 -> 28.46049701 | O62: =Summary!V81 -> 28.64666504 | P62: =Summary!W81 -> 28.87378415 | Q62: =Summary!X81 -> 29.37883489 | R62: =Summary!Y81 -> 29.8981997 | S62: =Summary!Z81 -> 30.42195117 | T62: =Summary!AA81 -> 30.94579815 | U62: =Summary!AB81 -> 31.47043618 | V62: =Summary!AC81 -> 33.16607724 | W62: =Summary!AD81 -> 33.25613272 | X62: =Summary!AE81 -> 33.36752285 | Y62: =Summary!AF81 -> 33.5075231 | Z62: =Summary!AG81 -> 33.68218073 | AA62: =Summary!AH81 -> 33.90150525 | AB62: =Summary!AI81 -> 34.43021884 | AC62: =Summary!AJ81 -> 34.97408888 | AD62: =Summary!AK81 -> 35.52227858 | AE62: =Summary!AL81 -> 36.07025251 | AF62: =Summary!AM81 -> 36.61904923 | AG62: 0.1210345318 | AI62: 1123
A63: yn
K65: =+COUNTIF(K3:K62,"<>0") -> 56

Sheet Summary - No EE
AN17: 24 | AO17: =AN17+1 -> 25 | AP17: =AO17+1 -> 26 | AQ17: 27 | AR17: 28 | AS17: 29 | AT17: 30 | AU17: 31 | AV17: 32 | AW17: 33 | AX17: 34 | AY17: 35 | AZ17: 36 | BA17: 37 | BB17: 38 | BC17: 39
L19: =ABS(SUMPRODUCT(I16:L16,I18:L18)) -> 0
D20: Planner Actuals | L20: =L6/M8 ->  | M20: Extracted Actuals | R20: P50 | AC20: P10 | AN20: Customers
B21: STD | C21: Locked | D21: 2006 | E21: 2007 | F21: 2008 | G21: 2009 | H21: 2010 | I21: 2011 | J21: 2012 | K21: 2013 | L21: 2014 | M21: 2010 | N21: 2011 | O21: 2012 | P21: 2013 | Q21: 2014 | R21: 2015 | S21: 2016 | T21: 2017 | U21: 2018 | V21: 2019 | W21: 2020 | X21: 2021 | Y21: 2022 | Z21: 2023 | AA21: 2024 | AB21: 2025 | AC21: =R21 -> 2015 | AD21: 2016 | AE21: 2017 | AF21: 2018 | AG21: 2019 | AH21: 2020 | AI21: 2021 | AJ21: 2022 | AK21: 2023 | AL21: 2024 | AM21: 2025 | AN21: 2010 | AO21: =AN21+1 -> 2011 | AP21: =AO21+1 -> 2012 | AQ21: 2013 | AR21: 2014 | AS21: 2015 | AT21: 2016 | AU21: 2017 | AV21: 2018 | AW21: 2019 | AX21: 2020 | AY21: 2021 | AZ21: 2022 | BA21: 2023 | BB21: 2024 | BC21: 2025
A22: bdl | C22: N | D22: 0 | E22: 0 | F22: 0 | G22: 56.00942853 | H22: 47.44369852 | I22: 44.16043038 | J22: 37.84059618 | K22: 51.2412663 | L22: 55.5 | M22: 0 | N22: 0 | O22: 42.64 | P22: 51.24 | Q22: 55.56 | R22: 52.11028415 | S22: 52.72645713 | T22: 53.23927893 | U22: 53.66966834 | V22: 54.03809497 | W22: 54.35952686 | X22: 54.64274342 | Y22: 54.91215555 | Z22: 55.17352189 | AA22: 55.42810584 | AB22: 55.68095309 | AC22: 57.7669502 | AD22: 58.43328027 | AE22: 58.98872732 | AF22: 59.45552669 | AG22: 59.85554193 | AH22: 60.20476522 | AI22: 60.51253902 | AJ22: 60.80531144 | AK22: 61.08934043 | AL22: 61.36599895 | AM22: 61.64077018 | AN22: 18657 | AO22: 21015 | AP22: 21401 | AQ22: 21606 | AR22: 21874 | AS22: 22136.3224 | AT22: 22398.64479 | AU22: 22622.68602 | AV22: 22814.84478 | AW22: 22982.06828 | AX22: 23129.46778 | AY22: 23259.79716 | AZ22: 23383.77407 | BA22: 23504.04851 | BB22: 23621.20186 | BC22: 23737.55602
A23: bge | C23: N | D23: 0 | E23: 0 | F23: 0 | G23: 33.03248515 | H23: 29.25535981 | I23: 25.00262212 | J23: 26.68304586 | K23: 29.54418533 | L23: 34.7 | M23: 0 | N23: 0 | O23: 30.168 | P23: 29.472 | Q23: 34.608 | R23: 31.99995213 | S23: 32.13105693 | T23: 32.2593482 | U23: 32.38583766 | V23: 32.5105301 | W23: 32.63455746 | X23: 32.75876869 | Y23: 32.88394541 | Z23: 33.0094067 | AA23: 33.13549686 | AB23: 33.26221905 | AC23: 36.74892857 | AD23: 36.8945327 | AE23: 37.03726457 | AF23: 37.17820609 | AG23: 37.3173084 | AH23: 37.4557714 | AI23: 37.59447487 | AJ23: 37.73425647 | AK23: 37.87435585 | AL23: 38.01515748 | AM23: 38.15666487 | AN23: 8590 | AO23: 12136 | AP23: 12178 | AQ23: 12177 | AR23: 12185 | AS23: 12234.8019 | AT23: 12284.60379 | AU23: 12334.6225 | AV23: 12385.02999 | AW23: 12435.55209 | AX23: 12486.32742 | AY23: 12537.35726 | AZ23: 12588.78375 | BA23: 12640.32716 | BB23: 12692.12892 | BC23: 12744.19034
A24: bn | C24: N | D24: 0 | E24: 0 | F24: 0 | G24: 39.69883037 | H24: 37.41331963 | I24: 36.20904483 | J24: 32.01484964 | K24: 33.04014757 | L24: 34.9 | M24: 0 | N24: 0 | O24: 31.08 | P24: 32.55 | Q24: 34.98 | R24: 32.58663716 | S24: 32.75815398 | T24: 32.92371353 | U24: 33.08596289 | V24: 33.24492924 | W24: 33.4020771 | X24: 33.55908845 | Y24: 33.71732023 | Z24: 33.87591173 | AA24: 34.03529817 | AB24: 34.19548353 | AC24: 37.01489261 | AD24: 37.20037108 | AE24: 37.37969178 | AF24: 37.55566707 | AG24: 37.72826307 | AH24: 37.89899813 | AI24: 38.06962368 | AJ24: 38.24157547 | AK24: 38.41391819 | AL24: 38.58712477 | AM24: 38.76119954 | AN24: 10551 | AO24: 11723 | AP24: 11823 | AQ24: 11835 | AR24: 11856 | AS24: 11917.35029 | AT24: 11978.70058 | AU24: 12039.47109 | AV24: 12100.33485 | AW24: 12160.95663 | AX24: 12221.50364 | AY24: 12282.20968 | AZ24: 12343.38758 | BA24: 12404.70456 | BB24: 12466.3289 | BC24: 12528.26212
A25: bra | C25: N | D25: 0 | E25: 0 | F25: 0 | G25: 78.86110985 | H25: 74.62245998 | I25: 65.09665539 | J25: 65.17608919 | K25: 69.93892858 | L25: 73.7 | M25: 73.4745 | N25: 57.9195 | O25: 68.8995 | P25: 69.21975 | Q25: 75.396 | R25: 71.704008 | S25: 72.35967058 | T25: 72.87685021 | U25: 73.4672369 | V25: 74.15021503 | W25: 74.56380358 | X25: 74.97239695 | Y25: 75.41476574 | Z25: 75.85780132 | AA25: 76.30094965 | AB25: 76.74353245 | AC25: 80.37888643 | AD25: 81.0716827 | AE25: 81.61893636 | AF25: 82.24442356 | AG25: 82.96869407 | AH25: 83.407551 | AI25: 83.84119652 | AJ25: 84.31068834 | AK25: 84.78088784 | AL25: 85.251207 | AM25: 85.72092595 | AN25: 20869 | AO25: 22239 | AP25: 22558 | AQ25: 22774 | AR25: 22901 | AS25: 23105.59767 | AT25: 23310.19534 | AU25: 23475.78116 | AV25: 23668.93242 | AW25: 23896.06046 | AX25: 24035.01252 | AY25: 24172.76351 | AZ25: 24321.90136 | BA25: 24471.26401 | BB25: 24620.66467 | BC25: 24769.87467
A26: brt | C26: N | D26: 0 | E26: 0 | F26: 0 | G26: 0 | H26: 8.121988758 | I26: 7.700244243 | J26: 8.716778802 | K26: 9.291729288 | L26: 8.8 | M26: 0 | N26: 0 | O26: 6.93 | P26: 9.566 | Q26: 8.533 | R26: 8.037263143 | S26: 8.083727465 | T26: 8.123148662 | U26: 8.161781909 | V26: 8.199870924 | W26: 8.237759687 | X26: 8.275705623 | Y26: 8.313946507 | Z26: 8.352274328 | AA26: 8.390794267 | AB26: 8.429507286 | AC26: 8.974717565 | AD26: 9.024964129 | AE26: 9.067661978 | AF26: 9.109563509 | AG26: 9.150918247 | AH26: 9.192082919 | AI26: 9.233319086 | AJ26: 9.274875775 | AK26: 9.316526939 | AL26: 9.358386879 | AM26: 9.400456642 | AN26: 2484 | AO26: 3985 | AP26: 4048 | AQ26: 4060 | AR26: 4077 | AS26: 4100.585844 | AT26: 4124.171687 | AU26: 4144.706482 | AV26: 4165.272911 | AW26: 4185.886097 | AX26: 4206.602606 | AY26: 4227.422957 | AZ26: 4248.405141 | BA26: 4269.435025 | BB26: 4290.570322 | BC26: 4311.81156
A27: bwa | C27: N | D27: 0 | E27: 0 | F27: 0 | G27: 13.61524138 | H27: 13.24651237 | I27: 11.513006 | J27: 10.73632229 | K27: 12.26999953 | L27: 12.4 | M27: 9.42 | N27: 11.43 | O27: 10.44 | P27: 11.73 | Q27: 11.76 | R27: 12.35767353 | S27: 12.40484159 | T27: 12.45141094 | U27: 12.49679861 | V27: 12.54154689 | W27: 12.58605991 | X27: 12.6306401 | Y27: 12.67556681 | Z27: 12.72059565 | AA27: 12.76585019 | AB27: 12.81133158 | AC27: 13.50392996 | AD27: 13.55493754 | AE27: 13.60537769 | AF27: 13.65460505 | AG27: 13.70319002 | AH27: 13.75155169 | AI27: 13.79999736 | AJ27: 13.84881958 | AK27: 13.8977528 | AL27: 13.9469313 | AM27: 13.9963563 | AN27: 1768 | AO27: 1780 | AP27: 1802 | AQ27: 1812 | AR27: 1814 | AS27: 1821.066761 | AT27: 1828.133522 | AU27: 1835.293328 | AV27: 1842.42475 | AW27: 1849.572385 | AX27: 1856.755847 | AY27: 1863.975315 | AZ27: 1871.2509 | BA27: 1878.543025 | BB27: 1885.871702 | BC27: 1893.237113
A28: bwn | C28: N | D28: 0 | E28: 0 | F28: 0 | G28: 32.24570193 | H28: 23.93610664 | I28: 18.05481815 | J28: 19.06221429 | K28: 23.39818419 | L28: 22.3 | M28: 0 | N28: 0 | O28: 19.2125 | P28: 22.32969 | Q28: 22.3375 | R28: 22.18041357 | S28: 22.29299057 | T28: 22.39268806 | U28: 22.49019634 | V28: 22.58631934 | W28: 22.68192963 | X28: 22.77768167 | Y28: 22.87417799 | Z28: 22.97089367 | AA28: 23.06809415 | AB28: 23.16578184 | AC28: 23.47948722 | AD28: 23.60451449 | AE28: 23.71543403 | AF28: 23.82408313 | AG28: 23.93131442 | AH28: 24.03805287 | AI28: 24.1449767 | AJ28: 24.25273163 | AK28: 24.36073154 | AL28: 24.46927279 | AM28: 24.57835811 | AN28: 4173 | AO28: 7023 | AP28: 7084 | AQ28: 7110 | AR28: 7173 | AS28: 7212.456567 | AT28: 7251.913134 | AU28: 7287.777398 | AV28: 7323.630326 | AW28: 7359.564762 | AX28: 7395.679319 | AY28: 7431.9749 | AZ28: 7468.5526 | BA28: 7505.213458 | BB28: 7542.058077 | BC28: 7579.087379
A29: bwr | C29: N | D29: 0 | E29: 0 | F29: 0 | G29: 62.9194899 | H29: 67.85578889 | I29: 69.77025785 | J29: 62.8028554 | K29: 64.85876908 | L29: 64.8 | M29: 0 | N29: 0 | O29: 0 | P29: 53.6 | Q29: 63.40625 | R29: 60.79057702 | S29: 61.26432494 | T29: 61.75234656 | U29: 61.76202436 | V29: 62.06048338 | W29: 62.46754735 | X29: 62.86552297 | Y29: 63.27804008 | Z29: 63.68637696 | AA29: 64.09137313 | AB29: 64.49342549 | AC29: 66.12551539 | AD29: 66.62609419 | AE29: 67.14249431 | AF29: 67.15274749 | AG29: 67.46925113 | AH29: 67.90118484 | AI29: 68.32356161 | AJ29: 68.76137146 | AK29: 69.19474477 | AL29: 69.62457254 | AM29: 70.051276 | AN29: 15658 | AO29: 15785 | AP29: 16084 | AQ29: 16158 | AR29: 16329 | AS29: 16456.98931 | AT29: 16584.97862 | AU29: 16720.25653 | AV29: 16722.99775 | AW29: 16808.92972 | AX29: 16927.3334 | AY29: 17043.49591 | AZ29: 17163.90284 | BA29: 17283.08962 | BB29: 17401.30131 | BC29: 17518.65375
A30: cf | C30: N | M30: 0 | N30: 0 | O30: 0 | P30: 0 | Q30: 0 | AN30: 702 | AO30: 703 | AP30: 0 | AQ30: 709 | AR30: 715 | AS30: 718.6916211 | AT30: 722.3832422 | AU30: 726.0046375 | AV30: 729.6541813 | AW30: 733.3120221 | AX30: 736.9979277 | AY30: 740.7754244 | AZ30: 744.6743149 | BA30: 748.6823951 | BB30: 752.8193012 | BC30: 757.0942795
A31: cln | C31: N | D31: 0 | E31: 0 | F31: 0 | G31: 60.16598495 | H31: 70.18948252 | I31: 52.10172899 | J31: 59.77276816 | K31: 42.08784737 | L31: 47.3 | M31: 0 | N31: 0 | O31: 37.4 | P31: 41.975 | Q31: 47.3125 | R31: 46.97939709 | S31: 51.11526656 | T31: 55.45966863 | U31: 59.78701638 | V31: 63.72871936 | W31: 66.93653437 | X31: 70.3133559 | Y31: 73.86248524 | Z31: 77.54749155 | AA31: 81.36242995 | AB31: 85.30480214 | AC31: 55.36380751 | AD31: 59.95707689 | AE31: 64.79048935 | AF31: 69.61225861 | AG31: 74.00947762 | AH31: 77.59065281 | AI31: 81.36146207 | AJ31: 85.32468301 | AK31: 89.43963425 | AL31: 93.69967729 | AM31: 98.10202236 | AN31: 12773 | AO31: 14882 | AP31: 15889 | AQ31: 16908 | AR31: 18399 | AS31: 20113.3535 | AT31: 21827.707 | AU31: 23676.00348 | AV31: 25557.78353 | AW31: 27300.51856 | AX31: 28733.5341 | AY31: 30247.36628 | AZ31: 31838.44421 | BA31: 33490.43591 | BB31: 35200.67628 | BC31: 36968.04534
A32: cnr | C32: N | D32: 0 | E32: 0 | F32: 0 | G32: 3.155326108 | H32: 2.891364277 | I32: 2.319156076 | J32: 2.561667625 | K32: 2.974538816 | L32: 2.7 | M32: 0 | N32: 0 | O32: 0 | P32: 0 | Q32: 0 | R32: 3.078423862 | S32: 3.120510633 | T32: 3.158189384 | U32: 3.191925133 | V32: 3.221908542 | W32: 3.248590935 | X32: 3.272294159 | Y32: 3.293279499 | Z32: 3.311562317 | AA32: 3.327365812 | AB32: 3.342291363 | AC32: 3.315759191 | AD32: 3.361271868 | AE32: 3.40208244 | AF32: 3.438672155 | AG32: 3.471226318 | AH32: 3.500215704 | AI32: 3.525974196 | AJ32: 3.548779142 | AK32: 3.568647233 | AL32: 3.585821023 | AM32: 3.602040745 | AN32: 1376 | AO32: 1386 | AP32: 1403 | AQ32: 1409 | AR32: 1409 | AS32: 1417.161536 | AT32: 1425.323073 | AU32: 1432.469808 | AV32: 1439.672094 | AW32: 1446.890754 | AX32: 1454.145597 | AY32: 1461.436805 | AZ32: 1468.784687 | BA32: 1476.149273 | BB32: 1483.550774 | BC32: 1490.989375
A33: cre | C33: N | D33: 0 | E33: 0 | F33: 0 | G33: 0 | H33: 0 | I33: 0 | J33: 14.73881978 | K33: 42.34301134 | L33: 45.7 | M33: 0 | N33: 0 | O33: 32.77 | P33: 41.59 | Q33: 46.16 | R33: 42.98767279 | S33: 44.28930968 | T33: 45.24330667 | U33: 46.02175871 | V33: 46.86102189 | W33: 47.7573471 | X33: 48.0423595 | Y33: 48.27296134 | Z33: 48.50408742 | AA33: 48.73637203 | AB33: 48.96982096 | AC33: 50.92081704 | AD33: 52.36640639 | AE33: 53.42778627 | AF33: 54.29518041 | AG33: 55.23143158 | AH33: 56.2320808 | AI33: 56.55034678 | AJ33: 56.80785388 | AK33: 57.06594641 | AL33: 57.32533262 | AM33: 57.586019 | AN33: 0 | AO33: 0 | AP33: 0 | AQ33: 15532 | AR33: 15913 | AS33: 16391.05335 | AT33: 16869.10671 | AU33: 17228.72485 | AV33: 17528.66312 | AW33: 17857.43798 | AX33: 18212.21882 | AY33: 18325.42923 | AZ33: 18417.02709 | BA33: 18508.83319 | BB33: 18601.09947 | BC33: 18693.82824
A34: cyn | C34: N | D34: 0 | E34: 0 | F34: 0 | G34: 91.19460208 | H34: 83.18307407 | I34: 82.09252333 | J34: 77.1298255 | K34: 78.04947432 | L34: 80.4 | M34: 0 | N34: 0 | O34: 0 | P34: 61.5 | Q34: 79.65 | R34: 74.74644369 | S34: 75.21926749 | T34: 75.78082346 | U34: 76.40465399 | V34: 77.08845542 | W34: 77.82974917 | X34: 78.6264971 | Y34: 79.46934118 | Z34: 80.32238788 | AA34: 81.17352382 | AB34: 82.02273943 | AC34: 83.99328748 | AD34: 84.49288983 | AE34: 85.08710033 | AF34: 85.7480197 | AG34: 86.47316329 | AH34: 87.25974671 | AI34: 88.10534577 | AJ34: 88.9998673 | AK34: 89.90521701 | AL34: 90.80853879 | AM34: 91.7098225 | AN34: 23736 | AO34: 23959 | AP34: 24475 | AQ34: 26955 | AR34: 27095 | AS34: 27261.5908 | AT34: 27428.1816 | AU34: 27631.18634 | AV34: 27861.62694 | AW34: 28118.38575 | AX34: 28399.58761 | AY34: 28702.87597 | AZ34: 29023.7112 | BA34: 29348.43013 | BB34: 29672.42171 | BC34: 29995.68231
A35: drn | C35: N | D35: 0 | E35: 0 | F35: 0 | G35: 25.77256353 | H35: 41.43394349 | I35: 40.05241828 | J35: 52.75624262 | K35: 63.68600958 | L35: 54.5 | M35: 0 | N35: 0 | O35: 0 | P35: 41.58 | Q35: 54.42 | R35: 55.07830331 | S35: 56.29107698 | T35: 58.07360321 | U35: 59.87656772 | V35: 61.73619864 | W35: 63.6074471 | X35: 65.46154606 | Y35: 67.25625319 | Z35: 68.9967511 | AA35: 70.56387359 | AB35: 72.04112448 | AC35: 64.86461924 | AD35: 66.14607877 | AE35: 68.03225906 | AF35: 69.94241595 | AG35: 71.91447888 | AH35: 73.90005206 | AI35: 75.86783172 | AJ35: 77.77257803 | AK35: 79.61979139 | AL35: 81.28299914 | AM35: 82.85082496 | AN35: 10376 | AO35: 12321 | AP35: 14557 | AQ35: 15917 | AR35: 16945 | AS35: 17296.0458 | AT35: 17647.09159 | AU35: 18176.4885 | AV35: 18723.64541 | AW35: 19297.30526 | AX35: 19880.47052 | AY35: 20460.29968 | AZ35: 21021.55533 | BA35: 21565.85823 | BB35: 22055.94173 | BC35: 22517.91984
A36: elm | C36: N | D36: 0 | E36: 0 | F36: 0 | G36: 76.27871831 | H36: 75.54584808 | I36: 61.08538952 | J36: 65.18179735 | K36: 69.37895919 | L36: 71.5 | M36: 0 | N36: 0 | O36: 70.05 | P36: 69.2 | Q36: 72.2 | R36: 65.66403992 | S36: 66.22759429 | T36: 66.76838457 | U36: 67.30963971 | V36: 67.86845454 | W36: 68.4494766 | X36: 69.04968673 | Y36: 69.41410014 | Z36: 69.75144692 | AA36: 70.06172298 | AB36: 70.34546273 | AC36: 78.00905198 | AD36: 78.63493175 | AE36: 79.23659394 | AF36: 79.83969024 | AG36: 80.46308353 | AH36: 81.11173122 | AI36: 81.78197035 | AJ36: 82.18890137 | AK36: 82.5656078 | AL36: 82.91208505 | AM36: 83.22892989 | AN36: 25094 | AO36: 25287 | AP36: 25542 | AQ36: 25665 | AR36: 25769 | AS36: 25983.16967 | AT36: 26197.33934 | AU36: 26408.27942 | AV36: 26624.07259 | AW36: 26850.59124 | AX36: 27088.56157 | AY36: 27335.25724 | AZ36: 27485.03681 | BA36: 27623.69157 | BB36: 27751.21984 | BC36: 27867.84128
A37: epg | C37: N | D37: 0 | E37: 0 | F37: 0 | G37: 91.66112838 | H37: 81.05852858 | I37: 55.39440873 | J37: 59.15892564 | K37: 67.84983936 | L37: 49 | M37: 0 | N37: 0 | O37: 0 | P37: 39.2535 | Q37: 49.08975 | R37: 45.79973584 | S37: 46.22048652 | T37: 47.20977487 | U37: 47.91599416 | V37: 48.27720524 | W37: 48.538188 | X37: 48.7652616 | Y37: 49.05016281 | Z37: 49.30761569 | AA37: 49.57831614 | AB37: 49.86358528 | AC37: 52.19190301 | AD37: 52.63648305 | AE37: 53.6832986 | AF37: 54.43150503 | AG37: 54.81455468 | AH37: 55.0914823 | AI37: 55.3324785 | AJ37: 55.63484791 | AK37: 55.90808605 | AL37: 56.195384 | AM37: 56.49814389 | AN37: 13580 | AO37: 16142 | AP37: 17260 | AQ37: 18128 | AR37: 18855 | AS37: 19021.46027 | AT37: 19187.92055 | AU37: 19589.49876 | AV37: 19882.43024 | AW37: 20034.72695 | AX37: 20145.89342 | AY37: 20242.95236 | AZ37: 20364.72878 | BA37: 20474.77285 | BB37: 20590.47939 | BC37: 20712.41307
A38: fgy | C38: N | D38: 0 | E38: 0 | F38: 0 | G38: 77.61011829 | H38: 75.50854259 | I38: 60.17607497 | J38: 59.83518881 | K38: 64.03586963 | L38: 73.4 | M38: 0 | N38: 54.3 | O38: 59.6 | P38: 62.1 | Q38: 73.5 | R38: 68.16784641 | S38: 68.75192835 | T38: 69.34839941 | U38: 70.00984195 | V38: 70.30461803 | W38: 70.74765364 | X38: 71.18667616 | Y38: 71.67338228 | Z38: 72.1657971 | AA38: 72.66386282 | AB38: 73.16769468 | AC38: 78.34995591 | AD38: 78.96711755 | AE38: 79.59827344 | AF38: 80.299041 | AG38: 80.61163904 | AH38: 81.0817421 | AI38: 81.54768248 | AJ38: 82.0642301 | AK38: 82.58683644 | AL38: 83.11544014 | AM38: 83.65016353 | AN38: 17644 | AO38: 22403 | AP38: 22751 | AQ38: 22718 | AR38: 22782 | AS38: 22967.86634 | AT38: 23153.73268 | AU38: 23348.48282 | AV38: 23569.16119 | AW38: 23669.12963 | AX38: 23820.91914 | AY38: 23971.85654 | AZ38: 24139.18773 | BA38: 24308.48159 | BB38: 24479.71824 | BC38: 24652.93731
A39: ftr | C39: N | D39: 0 | E39: 0 | F39: 0 | G39: 18.60089471 | H39: 19.20937313 | I39: 18.57165957 | J39: 17.35789327 | K39: 19.58238175 | L39: 17.5 | M39: 0 | N39: 17.76 | O39: 17.4 | P39: 19.56 | Q39: 18.48 | R39: 19.02182263 | S39: 19.13863993 | T39: 19.25376318 | U39: 19.37619832 | V39: 19.50671365 | W39: 19.6471453 | X39: 19.79932745 | Y39: 19.96533558 | Z39: 20.14547633 | AA39: 20.34150909 | AB39: 20.55488917 | AC39: 19.99709274 | AD39: 20.12341908 | AE39: 20.24811126 | AF39: 20.38090413 | AG39: 20.52260975 | AH39: 20.67518329 | AI39: 20.84056091 | AJ39: 21.02096334 | AK39: 21.2167238 | AL39: 21.42975425 | AM39: 21.66163616 | AN39: 8538 | AO39: 8555 | AP39: 8655 | AQ39: 8680 | AR39: 8700 | AS39: 8756.832139 | AT39: 8813.664277 | AU39: 8871.139232 | AV39: 8933.607409 | AW39: 9001.303245 | AX39: 9074.894496 | AY39: 9154.922417 | AZ39: 9242.220997 | BA39: 9336.951481 | BB39: 9440.039093 | BC39: 9552.249123
A40: hpk | C40: N | D40: 0 | E40: 0 | F40: 0 | G40: 88.08860598 | H40: 75.91997765 | I40: 57.58793002 | J40: 55.18098707 | K40: 50.24351818 | L40: 53.4 | M40: 0 | N40: 0 | O40: 44.97225 | P40: 49.08975 | Q40: 54.0765 | R40: 48.76960529 | S40: 49.35006597 | T40: 49.91046598 | U40: 50.52049534 | V40: 51.34281537 | W40: 52.73008608 | X40: 54.42425427 | Y40: 55.98579284 | Z40: 57.41478167 | AA40: 58.71855232 | AB40: 59.89904191 | AC40: 59.02520683 | AD40: 59.66986265 | AE40: 60.29334186 | AF40: 60.97307018 | AG40: 61.89042019 | AH40: 63.43915645 | AI40: 65.33099026 | AJ40: 67.07471999 | AK40: 68.67043485 | AL40: 70.12632182 | AM40: 71.44454401 | AN40: 21862 | AO40: 22267 | AP40: 22622 | AQ40: 22810 | AR40: 23059 | AS40: 23320.66842 | AT40: 23582.33683 | AU40: 23841.6262 | AV40: 24130.12415 | AW40: 24525.52106 | AX40: 25199.5022 | AY40: 26025.48516 | AZ40: 26786.80523 | BA40: 27483.50136 | BB40: 28119.14801 | BC40: 28694.68962
A41: klk | C41: N | D41: 0 | E41: 0 | F41: 0 | G41: 5.682288431 | H41: 4.908462269 | I41: 3.908068522 | J41: 4.678653845 | K41: 4.816845271 | L41: 5.2 | M41: 0 | N41: 0 | O41: 4.41 | P41: 4.74 | Q41: 4.95 | R41: 4.683718294 | S41: 4.711915282 | T41: 4.733253164 | U41: 4.754291361 | V41: 4.775030672 | W41: 4.795659363 | X41: 4.816318639 | Y41: 4.837138496 | Z41: 4.858005685 | AA41: 4.878977471 | AB41: 4.900054377 | AC41: 5.196555788 | AD41: 5.227871177 | AE41: 5.251610873 | AF41: 5.275052791 | AG41: 5.298188805 | AH41: 5.321218486 | AI41: 5.344288165 | AJ41: 5.36753716 | AK41: 5.390839011 | AL41: 5.414257661 | AM41: 5.437793698 | AN41: 2065 | AO41: 2201 | AP41: 2297 | AQ41: 2320 | AR41: 2346 | AS41: 2360.61461 | AT41: 2375.22922 | AU41: 2386.580475 | AV41: 2398.019962 | AW41: 2409.485456 | AX41: 2421.00842 | AY41: 2432.589143 | AZ41: 2444.259881 | BA41: 2455.957152 | BB41: 2467.713055 | BC41: 2479.527884
A42: Klo | C42: N | D42: 0 | E42: 0 | F42: 0 | G42: 0 | H42: 0 | I42: 10.94132038 | J42: 13.51480596 | K42: 14.86659315 | L42: 21.1 | M42: 10.9 | N42: 11.5 | O42: 13.4 | P42: 14.8 | Q42: 20.6 | R42: 19.04631757 | S42: 19.33124576 | T42: 22.2359299 | U42: 26.314058 | V42: 30.68323054 | W42: 35.26377242 | X42: 40.02200182 | Y42: 44.87929901 | Z42: 49.91120356 | AA42: 54.73639351 | AB42: 59.68330279 | AC42: 22.21624343 | AD42: 22.51730863 | AE42: 25.59090041 | AF42: 29.9114871 | AG42: 34.54481682 | AH42: 39.40520886 | AI42: 44.45518041 | AJ42: 49.6102939 | AK42: 54.95072048 | AL42: 60.07175814 | AM42: 65.32197813 | AN42: 0 | AO42: 5484 | AP42: 5932 | AQ42: 6298 | AR42: 6550 | AS42: 6642.478334 | AT42: 6734.956667 | AU42: 7702.26505 | AV42: 9089.998779 | AW42: 10601.28755 | AX42: 12201.94211 | AY42: 13870.46852 | AZ42: 15573.73415 | BA42: 17338.2278 | BB42: 19030.23467 | BC42: 20764.92378
A43: kms | C43: N | D43: 0 | E43: 0 | F43: 0 | G43: 8.928606107 | H43: 8.99633795 | I43: 9.059374593 | J43: 55.30000067 | K43: 7.912016059 | L43: 8.6 | M43: 0 | N43: 0 | O43: 8.115625 | P43: 7.792593 | Q43: 8.7 | R43: 8.297871557 | S43: 8.402429 | T43: 8.505616233 | U43: 8.586037767 | V43: 8.645395798 | W43: 8.688176723 | X43: 8.728035333 | Y43: 8.768203759 | Z43: 8.808463504 | AA43: 8.84892505 | AB43: 8.889589409 | AC43: 9.181983471 | AD43: 9.295051994 | AE43: 9.40681605 | AF43: 9.494041061 | AG43: 9.558488404 | AH43: 9.60496822 | AI43: 9.648282906 | AJ43: 9.69193427 | AK43: 9.735684873 | AL43: 9.779654774 | AM43: 9.823845074 | AN43: 2179 | AO43: 2246 | AP43: 2346 | AQ43: 3492 | AR43: 3599 | AS43: 3645.114372 | AT43: 3691.228744 | AU43: 3737.930805 | AV43: 3775.128805 | AW43: 3803.039741 | AX43: 3823.363584 | AY43: 3842.365372 | AZ43: 3861.514857 | BA43: 3880.707878 | BB43: 3899.997102 | BC43: 3919.383014
A44: ldl | C44: N | D44: 0 | E44: 0 | F44: 0 | G44: 82.76509624 | H44: 81.7404498 | I44: 66.66881576 | J44: 67.58500805 | K44: 75.05020131 | L44: 78.8 | M44: 0 | N44: 0 | O44: 73.0125 | P44: 74.65312 | Q44: 80.95313 | R44: 74.06357337 | S44: 74.90282894 | T44: 75.70992805 | U44: 76.45738913 | V44: 77.14732715 | W44: 77.79044681 | X44: 78.40083493 | Y44: 79.00234725 | Z44: 79.59543507 | AA44: 80.181915 | AB44: 80.76200369 | AC44: 87.53947152 | AD44: 88.47154323 | AE44: 89.36949025 | AF44: 90.20235257 | AG44: 90.97202207 | AH44: 91.68999494 | AI44: 92.37159957 | AJ44: 93.04329282 | AK44: 93.70557865 | AL44: 94.36048562 | AM44: 95.00825565 | AN44: 25306 | AO44: 25539 | AP44: 25951 | AQ44: 26131 | AR44: 26375 | AS44: 26666.69876 | AT44: 26958.39752 | AU44: 27246.31982 | AV44: 27518.86747 | AW44: 27774.64615 | AX44: 28015.54802 | AY44: 28244.99507 | AZ44: 28471.10569 | BA44: 28694.0495 | BB44: 28914.50939 | BC44: 29132.56678
A45: lga | C45: N | D45: 0 | E45: 0 | F45: 0 | G45: 39.58604475 | H45: 37.40302158 | I45: 33.88783885 | J45: 34.12662844 | K45: 39.82685282 | L45: 39.6 | M45: 0 | N45: 0 | O45: 28.55959 | P45: 39.81725 | Q45: 38.9115 | R45: 38.26226028 | S45: 38.44610324 | T45: 38.62615183 | U45: 38.8036996 | V45: 38.97874624 | W45: 39.15287257 | X45: 39.32726165 | Y45: 39.50300623 | Z45: 39.67915035 | AA45: 39.85617739 | AB45: 40.03409177 | AC45: 40.90020534 | AD45: 41.09901331 | AE45: 41.29402736 | AF45: 41.48659527 | AG45: 41.67665026 | AH45: 41.86583177 | AI45: 42.05534185 | AJ45: 42.24632496 | AK45: 42.43774225 | AL45: 42.63011902 | AM45: 42.82346007 | AN45: 2 | AO45: 11081 | AP45: 22345 | AQ45: 11243 | AR45: 11290 | AS45: 11346.66258 | AT45: 11403.32516 | AU45: 11460.27176 | AV45: 11517.661 | AW45: 11575.18071 | AX45: 11632.98873 | AY45: 11691.08652 | AZ45: 11749.63589 | BA45: 11808.31837 | BB45: 11867.29499 | BC45: 11926.56724
A46: llg | C46: N | D46: 0 | E46: 0 | F46: 0 | G46: 16.60534018 | H46: 17.68405858 | I46: 15.81828022 | J46: 15.61620357 | K46: 19.76253182 | L46: 19 | M46: 0 | N46: 0 | O46: 15.42 | P46: 19.56 | Q46: 15.18 | R46: 19.29708727 | S46: 19.3881629 | T46: 19.47734251 | U46: 19.56526962 | V46: 19.65194757 | W46: 19.73816318 | X46: 19.82450663 | Y46: 19.9115212 | Z46: 19.9987336 | AA46: 20.08638315 | AB46: 20.17447204 | AC46: 22.13065116 | AD46: 22.23179916 | AE46: 22.33101692 | AF46: 22.42899015 | AG46: 22.52568488 | AH46: 22.62193521 | AI46: 22.7183527 | AJ46: 22.81551962 | AK46: 22.91290745 | AL46: 23.01078344 | AM46: 23.10915002 | AN46: 5540 | AO46: 5702 | AP46: 5784 | AQ46: 5810 | AR46: 5882 | AS46: 5909.749303 | AT46: 5937.498606 | AU46: 5965.387002 | AV46: 5993.49217 | AW46: 6021.661233 | AX46: 6049.971493 | AY46: 6078.423658 | AZ46: 6107.096977 | BA46: 6135.835483 | BB46: 6164.71804 | BC46: 6193.74537
A47: lyd | C47: N | D47: 0 | E47: 0 | F47: 0 | G47: 0 | H47: 0 | I47: 16.95405629 | J47: 19.86554812 | K47: 21.3728943 | L47: 22.3 | M47: 0 | N47: 0 | O47: 19.29167 | P47: 20.4 | Q47: 22.31429 | R47: 20.08125028 | S47: 20.29840861 | T47: 20.4733547 | U47: 20.63586625 | V47: 20.80560453 | W47: 20.98479351 | X47: 21.17560209 | Y47: 21.28327068 | Z47: 21.38880326 | AA47: 21.49260437 | AB47: 21.5948719 | AC47: 24.34546187 | AD47: 24.58663647 | AE47: 24.78127467 | AF47: 24.962354 | AG47: 25.15170778 | AH47: 25.35175271 | AI47: 25.56482372 | AJ47: 25.68505445 | AK47: 25.80289996 | AL47: 25.91881197 | AM47: 26.03301147 | AN47: 0 | AO47: 7223 | AP47: 7341 | AQ47: 7361 | AR47: 7396 | AS47: 7472.045406 | AT47: 7548.090812 | AU47: 7610.970273 | AV47: 7670.673013 | AW47: 7734.073149 | AX47: 7801.699481 | AY47: 7873.964892 | AZ47: 7914.742486 | BA47: 7954.711105 | BB47: 7994.023957 | BC47: 8032.755993
A48: lys | C48: N | M48: 0 | N48: 0 | O48: 0 | P48: 0 | Q48: 0 | R48: 0 | S48: 0 | T48: 0 | U48: 0 | V48: 0 | W48: 0 | X48: 0 | Y48: 0 | Z48: 0 | AA48: 0 | AB48: 0 | AC48: 0 | AD48: 0 | AE48: 0 | AF48: 0 | AG48: 0 | AH48: 0 | AI48: 0 | AJ48: 0 | AK48: 0 | AL48: 0 | AM48: 0 | AN48: 1 | AO48: 1 | AP48: 1 | AQ48: 1 | AR48: 2 | AS48: 59.92902877 | AT48: 117.8580575 | AU48: 154.0137048 | AV48: 154.478342 | AW48: 154.562948 | AX48: 155.4444853 | AY48: 156.7897427 | AZ48: 159.0297358 | BA48: 163.1684223 | BB48: 171.5170162 | BC48: 189.5893774
A49: mby | B49: msd | C49: N | D49: 0 | E49: 0 | F49: 0 | G49: 0 | H49: 0 | I49: 4.488909979 | J49: 4.007993138 | K49: 5.463363638 | L49: 5.1 | M49: 0 | N49: 0 | O49: 3.943 | P49: 6.844 | Q49: 4.094 | R49: 5.312064297 | S49: 5.396993584 | T49: 5.479705904 | U49: 5.563576455 | V49: 5.648623233 | W49: 5.735651174 | X49: 5.825332342 | Y49: 5.918350385 | Z49: 6.01432483 | AA49: 6.113639124 | AB49: 6.216433178 | AC49: 6.211624429 | AD49: 6.303467045 | AE49: 6.393054332 | AF49: 6.48402014 | AG49: 6.576358763 | AH49: 6.670911246 | AI49: 6.768368524 | AJ49: 6.869452011 | AK49: 6.973748245 | AL49: 7.08167392 | AM49: 7.19338108 | AN49: 1293 | AO49: 2012 | AP49: 2039 | AQ49: 2025 | AR49: 2033 | AS49: 2043.825684 | AT49: 2054.651367 | AU49: 2065.239588 | AV49: 2075.653001 | AW49: 2086.026105 | AX49: 2096.451205 | AY49: 2106.92856 | AZ49: 2117.487355 | BA49: 2128.070153 | BB49: 2138.705998 | BC49: 2149.395155
A50: mdg | C50: N | D50: 0 | E50: 0 | F50: 0 | G50: 0 | H50: 0 | I50: 1.154585068 | J50: 1.166016604 | K50: 1.143153533 | L50: 1.314626563 | M50: 0 | N50: 0 | O50: 0 | P50: 0 | Q50: 0 | R50: 1.252264365 | S50: 1.258515318 | T50: 1.264636138 | U50: 1.270670993 | V50: 1.276620112 | W50: 1.282537499 | X50: 1.288463659 | Y50: 1.294435882 | Z50: 1.300421683 | AA50: 1.306437488 | AB50: 1.312483446 | AC50: 1.431174408 | AD50: 1.438116675 | AE50: 1.444926461 | AF50: 1.451650829 | AG50: 1.458287447 | AH50: 1.464893563 | AI50: 1.471511153 | AJ50: 1.478180181 | AK50: 1.48486437 | AL50: 1.491582063 | AM50: 1.498333428 | AN50: 764 | AO50: 762 | AP50: 774 | AQ50: 762 | AR50: 760 | AS50: 763.8225135 | AT50: 767.6450271 | AU50: 771.4867009 | AV50: 775.3582355 | AW50: 779.2385717 | AX50: 783.512241 | AY50: 788.8235966 | AZ50: 795.3105752 | BA50: 803.0510817 | BB50: 812.1758391 | BC50: 822.8017505
A51: mdi | C51: N | M51: 0 | N51: 0 | O51: 0 | P51: 0 | Q51: 0 | R51: 0.1622930039 | S51: 0.1631143244 | T51: 0.1639186935 | U51: 0.1647118902 | V51: 0.165493913 | W51: 0.1662718243 | X51: 0.1670509095 | Y51: 0.1678360504 | Z51: 0.1686229762 | AA51: 0.1694138465 | AB51: 0.170208681 | AC51: 0.1827888526 | AD51: 0.1836770294 | AE51: 0.1845482568 | AF51: 0.1854085561 | AG51: 0.186257629 | AH51: 0.1871027995 | AI51: 0.1879494379 | AJ51: 0.1888026571 | AK51: 0.189657816 | AL51: 0.1905172613 | AM51: 0.1913810147 | AN51: 57 | AO51: 59 | AP51: 57 | AQ51: 56 | AR51: 56 | AS51: 56.28095132 | AT51: 56.56190264 | AU51: 56.84426222 | AV51: 57.12881654 | AW51: 57.41401777 | AX51: 57.70064857 | AY51: 57.98871611 | AZ51: 58.27902274 | BA51: 58.56998937 | BB51: 58.86241446 | BC51: 59.15630533
A52: mfa | C52: N | D52: 0 | E52: 0 | F52: 0 | G52: 26.36904773 | H52: 30 | I52: 27.07378989 | J52: 25.86015639 | K52: 30.22593427 | L52: 26.8 | M52: 26.82 | N52: 26.982 | O52: 27.612 | P52: 29.07 | Q52: 27.738 | R52: 28.12357997 | S52: 28.29292334 | T52: 28.45014053 | U52: 28.60585025 | V52: 28.76011474 | W52: 28.91441305 | X52: 29.05182484 | Y52: 29.19275076 | Z52: 29.33907556 | AA52: 29.49032482 | AB52: 29.64674479 | AC52: 29.83437498 | AD52: 30.01750306 | AE52: 30.187788 | AF52: 30.35667041 | AG52: 30.52416141 | AH52: 30.69180054 | AI52: 30.84112708 | AJ52: 30.99427246 | AK52: 31.15328485 | AL52: 31.31764868 | AM52: 31.48763158 | AN52: 6338 | AO52: 7972 | AP52: 8032 | AQ52: 8059 | AR52: 8091 | AS52: 8142.346103 | AT52: 8193.692206 | AU52: 8242.610137 | AV52: 8292.12333 | AW52: 8341.990973 | AX52: 8392.384505 | AY52: 8437.419928 | AZ52: 8483.607075 | BA52: 8531.563658 | BB52: 8581.13418 | BC52: 8632.399358
A53: mjg | B53: msd | C53: N | D53: 0 | E53: 0 | F53: 0 | G53: 2.387529908 | H53: 2.14783637 | I53: 2.65618623 | J53: 2.734695849 | K53: 2.993129662 | L53: 1.7 | M53: 0 | N53: 0 | O53: 2.505 | P53: 12.51 | Q53: 1.59 | R53: 2.910239602 | S53: 2.956768514 | T53: 3.00208285 | U53: 3.048031729 | V53: 3.09462501 | W53: 3.14230368 | X53: 3.191435933 | Y53: 3.242396308 | Z53: 3.294976363 | AA53: 3.349386169 | AB53: 3.405702379 | AC53: 3.403067883 | AD53: 3.453384296 | AE53: 3.502465116 | AF53: 3.552301164 | AG53: 3.602889317 | AH53: 3.654690343 | AI53: 3.708082774 | AJ53: 3.763461842 | AK53: 3.820601028 | AL53: 3.87972862 | AM53: 3.940927918 | AN53: 1266 | AO53: 1277 | AP53: 1288 | AQ53: 1309 | AR53: 1329 | AS53: 1356.551189 | AT53: 1384.102379 | AU53: 1399.661046 | AV53: 1407.20895 | AW53: 1414.173189 | AX53: 1421.172337 | AY53: 1428.206567 | AZ53: 1435.295474 | BA53: 1442.400496 | BB53: 1449.541132 | BC53: 1456.717561
A54: moe | C54: N | D54: 0 | E54: 0 | F54: 0 | G54: 34.71082956 | H54: 32.34877465 | I54: 26.94003797 | J54: 28.2038839 | K54: 31.01320263 | L54: 33.3 | M54: 0 | N54: 23.37 | O54: 28.2 | P54: 30.69 | Q54: 33.48 | R54: 32.00924315 | S54: 32.21756414 | T54: 32.39792029 | U54: 32.56409702 | V54: 32.72759249 | W54: 32.89025585 | X54: 33.05317407 | Y54: 33.21735864 | Z54: 33.38191647 | AA54: 33.54729914 | AB54: 33.71351079 | AC54: 36.06227371 | AD54: 36.27415938 | AE54: 36.45781925 | AF54: 36.62721236 | AG54: 36.79400319 | AH54: 36.96002744 | AI54: 37.12634004 | AJ54: 37.29394537 | AK54: 37.46193173 | AL54: 37.63076012 | AM54: 37.80043477 | AN54: 11773 | AO54: 14347 | AP54: 14490 | AQ54: 14540 | AR54: 14597 | AS54: 14685.64648 | AT54: 14774.29295 | AU54: 14853.0181 | AV54: 14927.12175 | AW54: 15001.21981 | AX54: 15075.68929 | AY54: 15150.53204 | AZ54: 15225.95653 | BA54: 15301.5525 | BB54: 15377.52739 | BC54: 15453.8831
A55: msd | C55: N | D55: 0 | E55: 0 | F55: 0 | G55: 14.03303114 | H55: 9.379274981 | I55: 15.09325312 | J55: 15.35932033 | K55: 17.48105985 | L55: 16.1 | M55: 0 | N55: 0 | O55: 11.042 | P55: 15.877 | Q55: 15.04 | R55: 15.65413559 | S55: 15.90441392 | T55: 16.14815906 | U55: 16.3953174 | V55: 16.64594197 | W55: 16.90240482 | X55: 17.16668648 | Y55: 17.44080159 | Z55: 17.72362892 | AA55: 18.01629846 | AB55: 18.31922252 | AC55: 18.3050516 | AD55: 18.57570284 | AE55: 18.83970784 | AF55: 19.10777521 | AG55: 19.37988813 | AH55: 19.65852508 | AI55: 19.94572217 | AJ55: 20.24360535 | AK55: 20.55095619 | AL55: 20.86900263 | AM55: 21.19819274 | AN55: 5642.86367 | AO55: 5722.757388 | AP55: 5844.077477 | AQ55: 5931.368761 | AR55: 5958 | AS55: 6049.898209 | AT55: 6141.796418 | AU55: 6233.639936 | AV55: 6328.81539 | AW55: 6426.927135 | AX55: 6528.360915 | AY55: 6633.252775 | AZ55: 6742.047471 | BA55: 6854.300001 | BB55: 6970.458845 | BC55: 7090.687648
A56: mwe | C56: N | M56: 0 | N56: 0 | O56: 0 | P56: 0 | Q56: 0 | R56: 0 | S56: 0 | T56: 0 | U56: 0 | V56: 0 | W56: 0 | X56: 0 | Y56: 0 | Z56: 0 | AA56: 0 | AB56: 0 | AC56: 0 | AD56: 0 | AE56: 0 | AF56: 0 | AG56: 0 | AH56: 0 | AI56: 0 | AJ56: 0 | AK56: 0 | AL56: 0 | AM56: 0 | AN56: 27 | AO56: 33 | AP56: 34 | AQ56: 33 | AR56: 35 | AS56: 35.30009702 | AT56: 35.60019404 | AU56: 35.77988364 | AV56: 35.95349862 | AW56: 36.12752883 | AX56: 36.3061941 | AY56: 36.49280513 | AZ56: 36.68869396 | BA56: 36.89358473 | BB56: 37.1088069 | BC56: 37.33518651
A57: mwts | C57: N | M57: 0 | N57: 0 | O57: 0 | P57: 0 | Q57: 0 | R57: 44.9402159 | S57: 45.36330301 | T57: 45.94197923 | U57: 46.71221216 | V57: 47.71021522 | W57: 48.50837582 | X57: 49.29284722 | Y57: 50.05911465 | Z57: 50.80629376 | AA57: 51.51960273 | AB57: 52.17229989 | AC57: 49.90646979 | AD57: 50.35716739 | AE57: 50.9771984 | AF57: 51.80589313 | AG57: 52.88282411 | AH57: 53.7433666 | AI57: 54.58921235 | AJ57: 55.41522404 | AK57: 56.22047706 | AL57: 56.98888948 | AM57: 57.6914007 | AN57: 110436 | AO57: 135988 | AP57: 149591 | AQ57: 139367 | AR57: 147025 | AS57: 148518.4185 | AT57: 150011.837 | AU57: 151396.1681 | AV57: 152705.4011 | AW57: 153725.1954 | AX57: 154683.0636 | AY57: 155594.0078 | AZ57: 156485.1582 | BA57: 157375.224 | BB57: 158275.3079 | BC57: 159193.0198
A58: myt | C58: N | D58: 0 | E58: 0 | F58: 0 | G58: 15.66919892 | H58: 14.36231224 | I58: 13.21226737 | J58: 12.83462287 | K58: 14.07839268 | L58: 14.9 | M58: 0 | N58: 0 | O58: 11.88 | P58: 14.04 | Q58: 14.16 | R58: 13.40773098 | S58: 13.50889927 | T58: 13.60502999 | U58: 13.69688485 | V58: 13.78449638 | W58: 13.86868732 | X58: 13.95003052 | Y58: 14.02901359 | Z58: 14.10520651 | AA58: 14.17884989 | AB58: 14.2499844 | AC58: 14.88700303 | AD58: 14.99640652 | AE58: 15.10052754 | AF58: 15.2001531 | AG58: 15.29527639 | AH58: 15.38674657 | AI58: 15.47514291 | AJ58: 15.56097447 | AK58: 15.64377396 | AL58: 15.72380284 | AM58: 15.80110531 | AN58: 4916 | AO58: 5653 | AP58: 5720 | AQ58: 5739 | AR58: 5754 | AS58: 5797.772872 | AT58: 5841.545743 | AU58: 5884.228411 | AV58: 5925.908498 | AW58: 5966.322837 | AX58: 6005.560242 | AY58: 6043.603072 | AZ58: 6080.54211 | BA58: 6116.176245 | BB58: 6150.618 | BC58: 6183.886399
A59: nla | C59: N | D59: 0 | E59: 0 | F59: 0 | G59: 7.829818372 | H59: 7.253689103 | I59: 6.504132936 | J59: 6.498105903 | K59: 7.348488604 | L59: 7.1 | M59: 0 | N59: 0 | O59: 5.664 | P59: 7.332 | Q59: 7.368 | R59: 7.148328781 | S59: 7.20149784 | T59: 7.257163133 | U59: 7.323266253 | V59: 7.402811424 | W59: 7.470242952 | X59: 7.53690093 | Y59: 7.602639031 | Z59: 7.667301147 | AA59: 7.730051876 | AB59: 7.789276787 | AC59: 7.529357922 | AD59: 7.586854995 | AE59: 7.647147134 | AF59: 7.718842426 | AG59: 7.805207739 | AH59: 7.878469478 | AI59: 7.950907262 | AJ59: 8.022345408 | AK59: 8.092614272 | AL59: 8.160806015 | AM59: 8.225166222 | AN59: 2079 | AO59: 3569 | AP59: 3600 | AQ59: 3605 | AR59: 3586 | AS59: 3614.355584 | AT59: 3642.711168 | AU59: 3673.175585 | AV59: 3710.147119 | AW59: 3755.37508 | AX59: 3794.111275 | AY59: 3832.537057 | AZ59: 3870.432566 | BA59: 3907.70781 | BB59: 3943.881212 | BC59: 3978.022115
A60: nrn | C60: N | D60: 0 | E60: 0 | F60: 0 | G60: 39.03853197 | H60: 39.27279624 | I60: 18.2204493 | J60: 19.22840899 | K60: 23.04861179 | L60: 24.7 | M60: 9.3 | N60: 16.35 | O60: 18.45 | P60: 20.76 | Q60: 23.61 | R60: 21.55081551 | S60: 21.67309358 | T60: 21.78851522 | U60: 21.90137874 | V60: 22.01307381 | W60: 22.12832523 | X60: 22.24906644 | Y60: 22.37665588 | Z60: 22.51100989 | AA60: 22.65309584 | AB60: 22.80356258 | AC60: 25.29533418 | AD60: 25.4245375 | AE60: 25.54667092 | AF60: 25.66624456 | AG60: 25.78469264 | AH60: 25.9069854 | AI60: 26.03512963 | AJ60: 26.17054199 | AK60: 26.31313366 | AL60: 26.46393135 | AM60: 26.62362369 | AN60: 5715 | AO60: 5743 | AP60: 5757 | AQ60: 5674 | AR60: 5680 | AS60: 5709.963083 | AT60: 5739.926166 | AU60: 5768.945446 | AV60: 5797.941055 | AW60: 5827.109659 | AX60: 5857.515736 | AY60: 5889.480875 | AZ60: 5923.25902 | BA60: 5958.828022 | BB60: 5996.443987 | BC60: 6036.278689
A61: ofr | C61: N | D61: 0 | E61: 0 | F61: 0 | G61: 0 | H61: 29.48219764 | I61: 30.70846752 | J61: 32.10436104 | K61: 42.37381571 | L61: 38.8 | M61: 25.3 | N61: 28 | O61: 31.4 | P61: 34.3 | Q61: 41.9 | R61: 40.86112456 | S61: 43.15293717 | T61: 45.61541905 | U61: 47.96840728 | V61: 50.24447259 | W61: 52.47683511 | X61: 54.7013455 | Y61: 56.92566962 | Z61: 59.14993882 | AA61: 61.37408669 | AB61: 63.59811261 | AC61: 46.80167727 | AD61: 49.22328749 | AE61: 51.82896291 | AF61: 54.3218443 | AG61: 56.73551896 | AH61: 59.10426862 | AI61: 61.46517081 | AJ61: 63.82587529 | AK61: 66.18652149 | AL61: 68.54703892 | AM61: 70.90742693 | AN61: 8465 | AO61: 11882 | AP61: 12630 | AQ61: 13164 | AR61: 13725 | AS61: 14495.54367 | AT61: 15266.08735 | AU61: 16115.56635 | AV61: 16944.99419 | AW61: 17760.5366 | AX61: 18568.62533 | AY61: 19376.67065 | AZ61: 20184.64829 | BA61: 20992.606 | BB61: 21800.51963 | BC61: 22608.38896
A62: phi | C62: N | D62: 0 | E62: 0 | F62: 0 | G62: 14.89744735 | H62: 19.30504544 | I62: 16.8098077 | J62: 16.72715351 | K62: 19.18012901 | L62: 19.1 | M62: 0 | N62: 0 | O62: 14.76 | P62: 18.72 | Q62: 19.08 | R62: 17.82577663 | S62: 18.07981395 | T62: 18.30173647 | U62: 18.5133267 | V62: 18.72000491 | W62: 18.92349789 | X62: 19.12501997 | Y62: 19.3256416 | Z62: 19.52408913 | AA62: 19.72073988 | AB62: 19.91542567 | AC62: 19.87302583 | AD62: 20.14145065 | AE62: 20.37627798 | AF62: 20.60044797 | AG62: 20.8196218 | AH62: 21.03554727 | AI62: 21.24942531 | AJ62: 21.46234769 | AK62: 21.67296267 | AL62: 21.8816707 | AM62: 22.08829329 | AN62: 9102 | AO62: 9255 | AP62: 9458 | AQ62: 9555 | AR62: 9723 | AS62: 9859.819358 | AT62: 9996.638716 | AU62: 10119.27327 | AV62: 10238.75083 | AW62: 10357.37915 | AX62: 10475.37742 | AY62: 10592.63901 | AZ62: 10709.37665 | BA62: 10824.84922 | BB62: 10939.27629 | BC62: 11052.55998
A63: phm | C63: N | D63: 0 | E63: 0 | F63: 0 | G63: 48.029391 | H63: 33.43326084 | I63: 32.9419793 | J63: 33.72577645 | K63: 39.87546131 | L63: 42.7 | M63: 23.91 | N63: 27.57 | O63: 33 | P63: 38.1 | Q63: 39.45 | R63: 39.11883147 | S63: 41.45654907 | T63: 43.52007421 | U63: 45.59233311 | V63: 47.66716112 | W63: 49.73990166 | X63: 51.80524886 | Y63: 53.87026309 | Z63: 55.93517918 | AA63: 57.99987839 | AB63: 60.06435962 | AC63: 43.93219661 | AD63: 46.40231167 | AE63: 48.58583099 | AF63: 50.78129272 | AG63: 52.98156342 | AH63: 55.18093892 | AI63: 57.37291911 | AJ63: 59.56454592 | AK63: 61.75606857 | AL63: 63.94736103 | AM63: 66.13842217 | AN63: 5720 | AO63: 11787 | AP63: 12837 | AQ63: 13398 | AR63: 13674 | AS63: 14512.2815 | AT63: 15350.56301 | AU63: 16109.78549 | AV63: 16888.86637 | AW63: 17681.77586 | AX63: 18482.01346 | AY63: 19282.16829 | AZ63: 20082.19413 | BA63: 20882.18194 | BB63: 21682.08572 | BC63: 22481.90506
A64: RUB | B64: msd | C64: N | H64: 8.939132967 | I64: 8.303663878 | J64: 9.390970053 | K64: 9.50787232 | L64: 9.5 | M64: 0 | N64: 0 | O64: 0 | P64: 0 | Q64: 0 | R64: 9.130901775 | S64: 9.276886638 | T64: 9.419060757 | U64: 9.56322576 | V64: 9.709412579 | W64: 9.859004815 | X64: 10.01315768 | Y64: 10.1730463 | Z64: 10.33801667 | AA64: 10.50872791 | AB64: 10.6854205 | AC64: 10.16343418 | AD64: 10.31370668 | AE64: 10.46028903 | AF64: 10.60912691 | AG64: 10.76021098 | AH64: 10.91491737 | AI64: 11.07437656 | AJ64: 11.23976894 | AK64: 11.41041801 | AL64: 11.58700555 | AM64: 11.76978035 | AN64: 4387 | AO64: 4533 | AP64: 4667 | AQ64: 4694 | AR64: 4724 | AS64: 4749.989343 | AT64: 4775.978685 | AU64: 4799.925888 | AV64: 4824.059229 | AW64: 4848.247435 | AX64: 4872.556884 | AY64: 4896.988184 | AZ64: 4921.609385 | BA64: 4946.28656 | BB64: 4971.087428 | BC64: 4996.012611
A65: rwn | C65: N | D65: 0 | E65: 0 | F65: 0 | G65: 55.37835253 | H65: 58.25782515 | I65: 44.25219802 | J65: 50.47075523 | K65: 54.44617377 | L65: 58.1 | M65: 0 | N65: 0 | O65: 53.07 | P65: 53.43 | Q65: 23.43 | R65: 54.18647665 | S65: 54.90498603 | T65: 55.54051211 | U65: 56.10144901 | V65: 56.59068772 | W65: 57.01832947 | X65: 57.39487165 | Y65: 57.73525476 | Z65: 58.0776157 | AA65: 58.43463702 | AB65: 58.80712079 | AC65: 64.92466348 | AD65: 65.72263527 | AE65: 66.42969682 | AF65: 67.05472361 | AG65: 67.60050035 | AH65: 68.07791566 | AI65: 68.49839057 | AJ65: 68.87848759 | AK65: 69.26079319 | AL65: 69.65946968 | AM65: 70.07541267 | AN65: 19204 | AO65: 19368 | AP65: 19569 | AQ65: 19761 | AR65: 19853 | AS65: 20106.88826 | AT65: 20360.77652 | AU65: 20591.26627 | AV65: 20799.2061 | AW65: 20983.5993 | AX65: 21146.45326 | AY65: 21290.35295 | AZ65: 21420.43407 | BA65: 21551.27103 | BB65: 21687.71062 | BC65: 21830.05935
A66: rwt | C66: N | M66: 0 | N66: 0 | O66: 0 | P66: 0 | Q66: 0 | R66: 74.16522226 | S66: 74.70503815 | T66: 75.28445324 | U66: 75.79480249 | V66: 76.27168274 | W66: 76.71141138 | X66: 77.11702295 | Y66: 77.49530849 | Z66: 77.85312975 | AA66: 78.19753231 | AB66: 78.53601041 | AC66: 81.89046922 | AD66: 82.45846161 | AE66: 83.06920377 | AF66: 83.60754551 | AG66: 84.11092872 | AH66: 84.57519825 | AI66: 85.00334843 | AJ66: 85.40247902 | AK66: 85.77988525 | AL66: 86.14303824 | AM66: 86.49989167 | AN66: 11841 | AO66: 14193 | AP66: 14348 | AQ66: 14359 | AR66: 14683 | AS66: 14792.49115 | AT66: 14901.98231 | AU66: 15015.55474 | AV66: 15116.95894 | AW66: 15213.43881 | AX66: 15303.5456 | AY66: 15387.20149 | AZ66: 15465.46085 | BA66: 15539.66754 | BB66: 15611.22819 | BC66: 15681.62968
A67: sfs | C67: N | D67: 0 | E67: 0 | F67: 0 | G67: 0 | H67: 0 | I67: 1.520394199 | J67: 1.520394199 | K67: 1.428941916 | L67: 1.54325727 | R67: 1.459035628 | S67: 1.466595822 | T67: 1.474001128 | U67: 1.48130455 | V67: 1.488505829 | W67: 1.495669713 | X67: 1.502844568 | Y67: 1.510075191 | Z67: 1.517322253 | AA67: 1.52460564 | AB67: 1.531925536 | AC67: 1.645020507 | AD67: 1.653008876 | AE67: 1.660844801 | AF67: 1.668582436 | AG67: 1.676219099 | AH67: 1.683820664 | AI67: 1.691435432 | AJ67: 1.699109388 | AK67: 1.70680079 | AL67: 1.714530745 | AM67: 1.722299446 | AN67: 0 | AO67: 0 | AP67: 0 | AQ67: 0 | AR67: 0 | AS67: 0 | AT67: 0 | AU67: 0 | AV67: 0 | AW67: 0 | AX67: 0 | AY67: 0 | AZ67: 0 | BA67: 0 | BB67: 0 | BC67: 0
A68: sle | C68: N | D68: 0 | E68: 0 | F68: 0 | G68: 25.46036131 | H68: 24.19580923 | I68: 22.4178504 | J68: 24.00940616 | K68: 25.55696897 | L68: 30.1 | M68: 0 | N68: 0 | O68: 24 | P68: 24 | Q68: 24 | R68: 24.64681987 | S68: 24.89510779 | T68: 25.10419406 | U68: 25.29591014 | V68: 25.48213047 | W68: 25.66430178 | X68: 25.84340475 | Y68: 26.02029504 | Z68: 26.19378591 | AA68: 26.36417609 | AB68: 26.53131051 | AC68: 26.7303314 | AD68: 26.98286788 | AE68: 27.19578415 | AF68: 27.39121093 | AG68: 27.58118465 | AH68: 27.76711992 | AI68: 27.94995447 | AJ68: 28.13053024 | AK68: 28.30763576 | AL68: 28.481576 | AM68: 28.65219264 | AN68: 9914 | AO68: 11797 | AP68: 11979 | AQ68: 12036 | AR68: 12214 | AS68: 12333.71084 | AT68: 12453.42168 | AU68: 12556.83048 | AV68: 12653.69783 | AW68: 12749.3242 | AX68: 12843.82119 | AY68: 12937.04618 | AZ68: 13029.11944 | BA68: 13119.42326 | BB68: 13208.11315 | BC68: 13295.10838
A69: smg | C69: N | D69: 0 | E69: 0 | F69: 0 | G69: 0 | H69: 0 | I69: 0 | J69: 0 | K69: 0 | L69: 37.47000122 | M69: 0 | N69: 0 | O69: 0 | P69: 0 | Q69: 0 | R69: 40.92917239 | S69: 45.30135994 | T69: 46.11311361 | U69: 46.38749516 | V69: 46.58572704 | W69: 46.78288022 | X69: 46.98033528 | Y69: 47.17928315 | Z69: 47.37877551 | AA69: 47.57922437 | AB69: 47.78068028 | AC69: 48.05097107 | AD69: 52.72656863 | AE69: 53.59596817 | AF69: 53.89021681 | AG69: 54.10301516 | AH69: 54.31478958 | AI69: 54.52693424 | AJ69: 54.74068276 | AK69: 54.95501628 | AL69: 55.17037745 | AM69: 55.38682061 | AN69: 0 | AO69: 0 | AP69: 0 | AQ69: 0 | AR69: 10846 | AS69: 12051.18441 | AT69: 13256.36882 | AU69: 13485.97053 | AV69: 13565.27813 | AW69: 13623.52323 | AX69: 13682.0476 | AY69: 13740.866 | AZ69: 13800.12908 | BA69: 13859.55435 | BB69: 13919.26455 | BC69: 13979.27473
A70: smr | C70: N | D70: 0 | E70: 0 | F70: 0 | G70: 36.87224566 | H70: 36.2654712 | I70: 34.95227087 | J70: 30.27600545 | K70: 32.74626162 | L70: 35.9 | M70: 0 | N70: 0 | O70: 30.6 | P70: 32.7 | Q70: 34.29 | R70: 32.52898603 | S70: 32.84359049 | T70: 33.12760994 | U70: 33.36493135 | V70: 33.559461 | W70: 33.72364606 | X70: 33.88326659 | Y70: 34.04412782 | Z70: 34.20535476 | AA70: 34.36738985 | AB70: 34.53023714 | AC70: 37.64454022 | AD70: 37.98475379 | AE70: 38.29238067 | AF70: 38.54977891 | AG70: 38.76098739 | AH70: 38.93936809 | AI70: 39.11282906 | AJ70: 39.28763831 | AK70: 39.46284498 | AL70: 39.63892987 | AM70: 39.81589738 | AN70: 8025 | AO70: 10860 | AP70: 11062 | AQ70: 11120 | AR70: 11165 | AS70: 11269.63559 | AT70: 11374.27119 | AU70: 11471.20859 | AV70: 11553.98706 | AW70: 11622.96559 | AX70: 11681.78525 | AY70: 11739.16971 | AZ70: 11797.00021 | BA70: 11854.96218 | BB70: 11913.21468 | BC70: 11971.75917
A71: tgn | B71: sle | C71: N | D71: 0 | E71: 0 | F71: 0 | G71: 43.32138671 | H71: 40.89660361 | I71: 31.65388143 | J71: 37.56275265 | K71: 41.28301782 | L71: 33.8 | M71: 0 | N71: 0 | O71: 33.69 | P71: 41.01 | Q71: 0 | R71: 33.80382405 | S71: 34.14435808 | T71: 34.43112594 | U71: 34.69407007 | V71: 34.94947662 | W71: 35.19932982 | X71: 35.44497471 | Y71: 35.68758484 | Z71: 35.92553257 | AA71: 36.15922761 | AB71: 36.38845729 | AC71: 36.66142018 | AD71: 37.00778125 | AE71: 37.29980205 | AF71: 37.56783552 | AG71: 37.82838995 | AH71: 38.08340553 | AI71: 38.33416839 | AJ71: 38.58183326 | AK71: 38.82473859 | AL71: 39.06330264 | AM71: 39.29730828 | AN71: 9912 | AO71: 10137 | AP71: 10323 | AQ71: 10341 | AR71: 16601 | AS71: 16678.31141 | AT71: 16755.62282 | AU71: 16825.74002 | AV71: 16889.19082 | AW71: 16946.15456 | AX71: 16998.77001 | AY71: 17051.36234 | AZ71: 17104.36345 | BA71: 17157.48506 | BB71: 17210.87294 | BC71: 17264.52842
A72: trc | C72: N | M72: 0 | N72: 0 | O72: 0 | P72: 0 | Q72: 0 | AN72: 231 | AO72: 233 | AP72: 239 | AQ72: 239 | AR72: 234 | AS72: 235.2075138 | AT72: 236.4150276 | AU72: 237.6285941 | AV72: 238.8515934 | AW72: 240.0773731 | AX72: 241.3092971 | AY72: 242.547396 | AZ72: 243.7951185 | BA72: 245.0456775 | BB72: 246.302505 | BC72: 247.5656323
A73: tt | C73: N | D73: 0 | E73: 0 | F73: 0 | G73: 88.86990495 | H73: 78.91831372 | I73: 72.52234138 | J73: 69.74847363 | K73: 71.5118172 | L73: 76.6 | M73: 0 | N73: 0 | O73: 68.7 | P73: 71.5 | Q73: 77.7 | R73: 72.54799086 | S73: 73.4212349 | T73: 75.01693012 | U73: 76.22972512 | V73: 77.7340727 | W73: 79.07449 | X73: 80.25665349 | Y73: 81.29515528 | Z73: 82.20628484 | AA73: 83.00767111 | AB73: 83.71995562 | AC73: 83.08910718 | AD73: 84.05892626 | AE73: 85.83423458 | AF73: 87.18559758 | AG73: 88.86379247 | AH73: 90.36022202 | AI73: 91.68031341 | AJ73: 92.8399815 | AK73: 93.85741632 | AL73: 94.75230364 | AM73: 95.54769332 | AN73: 12272 | AO73: 12466 | AP73: 12788 | AQ73: 12985 | AR73: 13228 | AS73: 13388.54618 | AT73: 13549.09236 | AU73: 13850.20041 | AV73: 14084.11927 | AW73: 14379.12229 | AX73: 14644.7127 | AY73: 14879.77228 | AZ73: 15086.26639 | BA73: 15267.434 | BB73: 15426.78042 | BC73: 15568.40999
A74: uwy | C74: N | D74: 0 | E74: 0 | F74: 0 | G74: 0 | H74: 0 | I74: 1.577551876 | J74: 1.497531128 | K74: 1.486099593 | L74: 1.600414946 | R74: 1.541222082 | S74: 1.549895449 | T74: 1.557482287 | U74: 1.564964743 | V74: 1.572342552 | W74: 1.57968205 | X74: 1.587032787 | Y74: 1.594440661 | Z74: 1.601865375 | AA74: 1.609327306 | AB74: 1.616826639 | AC74: 1.686310489 | AD74: 1.695475075 | AE74: 1.703503088 | AF74: 1.711430401 | AG74: 1.719254268 | AH74: 1.727042176 | AI74: 1.73484361 | AJ74: 1.742705683 | AK74: 1.75058563 | AL74: 1.758505076 | AM74: 1.766464217 | AN74: 0 | AO74: 0 | AP74: 0 | AQ74: 0 | AR74: 0 | AS74: 0 | AT74: 0 | AU74: 0 | AV74: 0 | AW74: 0 | AX74: 0 | AY74: 0 | AZ74: 0 | BA74: 0 | BB74: 0 | BC74: 0
A75: wgi | C75: N | D75: 0 | E75: 0 | F75: 0 | G75: 33.9614035 | H75: 36.20879045 | I75: 32.13201694 | J75: 32.1046176 | K75: 35.9353935 | L75: 41.1 | M75: 0 | N75: 0 | O75: 25.35 | P75: 35.4 | Q75: 39.9 | R75: 36.56134211 | S75: 36.67264266 | T75: 36.77184171 | U75: 36.86963652 | V75: 36.96605368 | W75: 37.06196393 | X75: 37.1580189 | Y75: 37.2548205 | Z75: 37.35184216 | AA75: 37.44935015 | AB75: 37.54734689 | AC75: 42.50193607 | AD75: 42.6222966 | AE75: 42.72974097 | AF75: 42.835809 | AG75: 42.94049289 | AH75: 43.04469566 | AI75: 43.14907941 | AJ75: 43.25427451 | AK75: 43.35970877 | AL75: 43.46567151 | AM75: 43.5721654 | AN75: 14222 | AO75: 17785 | AP75: 18211 | AQ75: 18260 | AR75: 18537 | AS75: 18591.0879 | AT75: 18645.17579 | AU75: 18694.64546 | AV75: 18744.4862 | AW75: 18794.44025 | AX75: 18844.64469 | AY75: 18895.10078 | AZ75: 18945.94906 | BA75: 18996.91294 | BB75: 19048.13227 | BC75: 19099.60834
A76: wgl | C76: N | D76: 0 | E76: 0 | F76: 0 | G76: 56.5240637 | H76: 58.31845884 | I76: 45.49734149 | J76: 49.05097259 | K76: 58.9834708 | L76: 63.4 | M76: 0 | N76: 0 | O76: 51.55 | P76: 57.6 | Q76: 62.5 | R76: 61.13986141 | S76: 62.67650958 | T76: 64.18541378 | U76: 65.66386543 | V76: 66.33302 | W76: 66.88681363 | X76: 67.35246943 | Y76: 67.75361835 | Z76: 68.13929073 | AA76: 68.52923937 | AB76: 68.92355372 | AC76: 67.7518597 | AD76: 69.31480216 | AE76: 70.8513461 | AF76: 72.35841349 | AG76: 73.0410553 | AH76: 73.60629122 | AI76: 74.08164888 | AJ76: 74.49115568 | AK76: 74.88486348 | AL76: 75.28293663 | AM76: 75.68546646 | AN76: 18522 | AO76: 19088 | AP76: 19693 | AQ76: 20032 | AR76: 20401 | AS76: 20896.23314 | AT76: 21391.46628 | AU76: 21890.2945 | AV76: 22389.61956 | AW76: 22619.30549 | AX76: 22811.3241 | AY76: 22973.33786 | AZ76: 23112.90801 | BA76: 23247.09346 | BB76: 23382.76674 | BC76: 23519.95896
A77: wn | C77: N | D77: 0 | E77: 0 | F77: 0 | G77: 52.51604284 | H77: 49.43162532 | I77: 47.89340547 | J77: 42.16685565 | K77: 46.75882911 | L77: 47.6 | M77: 35.64 | N77: 46.86 | O77: 42.3 | P77: 46.38 | Q77: 46.92 | R77: 44.4850129 | S77: 44.80772884 | T77: 45.11286675 | U77: 45.41251971 | V77: 45.70671186 | W77: 45.99813222 | X77: 46.28878898 | Y77: 46.58054179 | Z77: 46.87217649 | AA77: 47.16463052 | AB77: 47.45787211 | AC77: 51.34113302 | AD77: 51.69011836 | AE77: 52.02061904 | AF77: 52.34562196 | AG77: 52.66503792 | AH77: 52.98165483 | AI77: 53.29751397 | AJ77: 53.61456419 | AK77: 53.93148607 | AL77: 54.24929832 | AM77: 54.56796641 | AN77: 13996 | AO77: 16590 | AP77: 16850 | AQ77: 16888 | AR77: 17021 | AS77: 17140.69891 | AT77: 17260.39781 | AU77: 17376.54125 | AV77: 17493.10251 | AW77: 17609.43859 | AX77: 17725.86834 | AY77: 17842.39926 | AZ77: 17959.3696 | BA77: 18076.2926 | BB77: 18193.54408 | BC77: 18311.11131
A78: wo | C78: N | D78: 0 | E78: 0 | F78: 0 | G78: 57.73268139 | H78: 54.2753397 | I78: 54.29530359 | J78: 46.25083777 | K78: 49.39068736 | L78: 47.1 | M78: 42.65 | N78: 53.35 | O78: 46.7 | P78: 49 | Q78: 46.85 | R78: 47.87449049 | S78: 48.2555416 | T78: 48.57808747 | U78: 48.85106624 | V78: 49.09473073 | W78: 49.33472785 | X78: 49.57299512 | Y78: 49.81106209 | Z78: 50.04773837 | AA78: 50.28384657 | AB78: 50.5196111 | AC78: 52.52032428 | AD78: 52.93239332 | AE78: 53.2817489 | AF78: 53.57782105 | AG78: 53.84237714 | AH78: 54.10312471 | AI78: 54.36205174 | AJ78: 54.62076111 | AK78: 54.87795922 | AL78: 55.13453997 | AM78: 55.39074726 | AN78: 11327 | AO78: 11555 | AP78: 11792 | AQ78: 11839 | AR78: 11929 | AS78: 12025.93517 | AT78: 12122.87034 | AU78: 12207.07156 | AV78: 12279.89864 | AW78: 12345.9838 | AX78: 12411.74633 | AY78: 12477.26326 | AZ78: 12542.7251 | BA78: 12607.80455 | BB78: 12672.72779 | BC78: 12737.55653
A79: wots | C79: N | M79: 0 | N79: 0 | O79: 0 | P79: 0 | Q79: 0 | R79: 44.10262032 | S79: 44.35810457 | T79: 44.63891373 | U79: 45.16636485 | V79: 45.52318819 | W79: 45.76762288 | X79: 45.99087829 | Y79: 46.21586903 | Z79: 46.44137126 | AA79: 46.66800382 | AB79: 46.89577237 | AC79: 48.38469188 | AD79: 48.63428532 | AE79: 48.92351516 | AF79: 49.48806402 | AG79: 49.86872248 | AH79: 50.1275449 | AI79: 50.36339387 | AJ79: 50.60107606 | AK79: 50.8392986 | AL79: 51.07871522 | AM79: 51.31933192 | AN79: 13326 | AO79: 13568 | AP79: 13833 | AQ79: 13890 | AR79: 13977 | AS79: 14082.20944 | AT79: 14187.41889 | AU79: 14279.99348 | AV79: 14361.17499 | AW79: 14435.63356 | AX79: 14509.81148 | AY79: 14583.78597 | AZ79: 14657.77112 | BA79: 14731.39325 | BB79: 14804.902 | BC79: 14878.35927
A80: wt | C80: N | D80: 0 | E80: 0 | F80: 0 | G80: 0 | H80: 67.37704756 | I80: 59.85910952 | J80: 58.67176307 | K80: 65.67315407 | L80: 67.7 | M80: 49.82 | N80: 51.75312 | O80: 57.15562 | P80: 64.32813 | Q80: 68.89125 | R80: 64.17717213 | S80: 64.93657411 | T80: 65.93179026 | U80: 66.86355577 | V80: 67.692828 | W80: 68.46049876 | X80: 69.21039337 | Y80: 69.96287497 | Z80: 70.73046851 | AA80: 71.92083442 | AB80: 73.12666982 | AC80: 73.62051984 | AD80: 74.42293082 | AE80: 75.47601888 | AF80: 76.46318102 | AG80: 77.34259048 | AH80: 78.15716242 | AI80: 78.95303544 | AJ80: 79.75165408 | AK80: 80.56631122 | AL80: 81.82966223 | AM80: 83.10943123 | AN80: 18984 | AO80: 21769 | AP80: 21979 | AQ80: 22139 | AR80: 22546 | AS80: 22801.31587 | AT80: 23056.63175 | AU80: 23399.94057 | AV80: 23728.37859 | AW80: 24025.50885 | AX80: 24303.38884 | AY80: 24575.77777 | AZ80: 24849.10638 | BA80: 25127.92421 | BB80: 25560.30829 | BC80: 25998.31145
A81: wyk | C81: N | D81: 0 | E81: 0 | F81: 0 | G81: 32.81059794 | H81: 32.66327288 | I81: 24.29887946 | J81: 27.09285319 | K81: 28.16663607 | L81: 32.3 | M81: 0 | N81: 21.24 | O81: 26.304 | P81: 27.312 | Q81: 30.912 | R81: 28.15960919 | S81: 28.36016629 | T81: 28.58770541 | U81: 28.84792012 | V81: 29.14536804 | W81: 29.48814854 | X81: 30.1124699 | Y81: 30.7539048 | Z81: 31.40168412 | AA81: 32.05064944 | AB81: 32.70061063 | AC81: 33.28885973 | AD81: 33.51159711 | AE81: 33.76474827 | AF81: 34.05469384 | AG81: 34.38651581 | AH81: 34.7691928 | AI81: 35.46635633 | AJ81: 36.18263009 | AK81: 36.90598851 | AL81: 37.63067129 | AM81: 38.35646614 | AN81: 12357 | AO81: 12434 | AP81: 12533 | AQ81: 12552 | AR81: 12595 | AS81: 12682.17822 | AT81: 12769.35643 | AU81: 12870.87234 | AV81: 12989.53534 | AW81: 13127.44503 | AX81: 13288.026 | AY81: 13581.53013 | AZ81: 13883.07963 | BA81: 14187.61175 | BB81: 14492.70142 | BC81: 14798.25927
A82: yn | C82: N | M82: 0 | N82: 0 | O82: 0 | P82: 0 | Q82: 0 | AN82: 23 | AO82: 24 | AP82: 24 | AQ82: 24 | AR82: 24 | AS82: 24.12030136 | AT82: 24.24060273 | AU82: 24.3615071 | AV82: 24.48335125 | AW82: 24.6054724 | AX82: 24.72820567 | AY82: 24.85155415 | AZ82: 24.9758614 | BA82: 25.10045124 | BB82: 25.2256656 | BC82: 25.35150759
R106: 12
R107: 18 | S107: =R107+1 -> 19 | T107: =S107+1 -> 20 | U107: 21 | V107: 22 | W107: 23 | X107: 24 | Y107: 25 | Z107: 26 | AA107: 27 | AB107: 28 | AC107: 29 | AD107: 30 | AE107: 31 | AF107: 32 | AG107: 33 | AH107: 34 | AI107: 35 | AJ107: 36 | AK107: 37 | AL107: 38 | AM107: 39
I110: =SUM(IF(#REF!<>0,#REF!)) ->  | J110: =SUM(IF(#REF!<>0,#REF!)) ->  | K110: =SUM(IF(#REF!<>0,#REF!)) ->  | L110: =SUM(IF(#REF!<>0,#REF!)) ->  | M110: =SUM(#REF!) ->  | N110: =SUM(#REF!) ->  | O110: =SUM(#REF!) ->  | P110: =SUM(#REF!) ->  | Q110: =SUM(#REF!) ->  | R110: =SUM(#REF!) ->  | S110: =SUM(#REF!) ->  | T110: =SUM(#REF!) ->  | U110: =SUM(#REF!) ->  | V110: =SUM(#REF!) ->  | W110: =SUM(#REF!) ->  | X110: =SUM(#REF!) ->  | Y110: =SUM(#REF!) ->  | Z110: =SUM(#REF!) ->  | AA110: =SUM(#REF!) ->  | AB110: =SUM(#REF!) ->  | AC110: =SUM(#REF!) ->  | AD110: =SUM(#REF!) ->  | AE110: =SUM(#REF!) ->  | AF110: =SUM(#REF!) ->  | AG110: =SUM(#REF!) ->  | AH110: =SUM(#REF!) ->  | AI110: =SUM(#REF!) ->  | AJ110: =SUM(#REF!) ->  | AK110: =SUM(#REF!) ->  | AL110: =SUM(#REF!) ->  | AM110: =SUM(#REF!) -> 
I111: =22*SQRT(3) -> 38.10511777 | J111: =22*SQRT(3) -> 38.10511777 | K111: =22*SQRT(3) -> 38.10511777 | L111: =22*SQRT(3) -> 38.10511777 | M111: =22*SQRT(3) -> 38.10511777 | N111: 38.10511777 | O111: 38.10511777 | P111: 38.10511777 | Q111: 38.10511777 | R111: 38.10511777 | S111: 38.10511777 | T111: 38.10511777 | U111: 38.10511777 | V111: 38.10511777 | W111: 38.10511777 | X111: 38.10511777 | Y111: 38.10511777 | Z111: 38.10511777 | AA111: 38.10511777 | AB111: 38.10511777 | AC111: 38.10511777 | AD111: 38.10511777 | AE111: 38.10511777 | AF111: 38.10511777 | AG111: 38.10511777 | AH111: 38.10511777 | AI111: 38.10511777 | AJ111: 38.10511777 | AK111: 38.10511777 | AL111: 38.10511777 | AM111: 38.10511777
I112: =I110/I111 ->  | J112: =J110/J111 ->  | K112: =K110/K111 ->  | L112: =L110/L111 ->  | M112: =M110/M111 -> 
R114: =(R112/L112)-1 ->  | S114: =(S112/R112)-1 ->  | T114: =(T112/S112)-1 ->  | AC114: =(AC112/L112)-1 -> 
I115: =I112/$R$112 ->  | J115: =J112/$R$112 ->  | K115: =K112/$R$112 ->  | L115: =L112/$R$112 -> 
I116: =$K$112/I112 ->  | J116: =$K$112/J112 ->  | K116: =$K$112/K112 ->  | L116: =$K$112/L112 -> 
H120: =SUM(H22:H82) -> 1740.300577 | I120: =SUM(I22:I82) -> 1541.106198 | J120: =SUM(J22:J82) -> 1615.658399 | K120: =SUM(K22:K82) -> 1734.522661 | L120: =SUM(L22:L82) -> 1812.5283 | M120: =SUM(M22:M82) -> 307.2345 | N120: 448.38462 | O120: 1281.647255 | P120: 1618.221783 | Q120: 1675.98167 | R120: =SUM(R22:R82) -> 1887.508582 | S120: =SUM(S22:S82) -> 1918.429171 | T120: =SUM(T22:T82) -> 1949.798324 | U120: 1980.523082 | V120: 2010.22203 | W120: 2039.095721 | X120: 2067.832374 | Y120: 2096.227989 | Z120: 2124.558215 | AA120: 2152.813045 | AB120: 2181.008781 | AC120: =SUM(AC22:AC82) -> 2147.086394 | AD120: 2180.305774 | AE120: 2214.042431 | AF120: 2247.115863 | AG120: 2279.171951 | AH120: 2310.350651 | AI120: 2341.388884 | AJ120: 2372.039919 | AK120: 2402.613903 | AL120: 2433.100824 | AM120: 2463.518705
L121: =R120/S123 -> 1857.08636 | S121: =S120-R120 -> 30.92058917 | T121: =T120-S120 -> 31.36915265 | U121: 30.7247581 | V121: 29.6989477 | W121: 28.8736917 | X121: 28.73665258 | Y121: 28.39561515 | Z121: 28.33022633 | AA121: 28.25482908 | AB121: 28.19573654 | AD121: 33.21938006 | AE121: 33.73665622 | AF121: 33.07343214 | AG121: 32.05608836 | AH121: 31.17870016 | AI121: 31.03823221 | AJ121: 30.65103499 | AK121: 30.57398429 | AL121: 30.48692129 | AM121: 30.41788087
R122: =R21 -> 2015 | S122: 2016 | T122: 2017 | U122: 2018 | V122: 2019 | W122: 2020 | X122: 2021 | Y122: 2022 | Z122: 2023 | AA122: 2024 | AB122: 2025 | AD122: =AD120/AC120 -> 1.015471841 | AE122: =AE120/AD120 -> 1.01547336 | AF122: 1.01493803 | AG122: 1.014265436 | AH122: 1.013679837 | AI122: 1.013434425 | AJ122: 1.013090963 | AK122: 1.012889321 | AL122: 1.012689064 | AM122: 1.012501694
R123: =R120/L121 -> 1.016381695 | S123: =S120/R120 -> 1.016381695 | T123: 1.016351478 | U123: 1.015757916 | V123: 1.014995507 | W123: 1.014363434 | X123: 1.014092841 | Y123: 1.013732068 | Z123: 1.013514859 | AA123: 1.013299155 | AB123: 1.01309716
AB124: =AB120/L121 -> 1.174425071

Sheet Summary - Average Customer
R16: Low Case
B17: 0.9 | N17: =M17+1 -> 1 | O17: =N17+1 -> 2 | P17: =O17+1 -> 3 | Q17: =P17+1 -> 4 | R17: 113 | S17: =R17+1 -> 114 | T17: =S17+1 -> 115 | U17: 116 | V17: 117 | W17: 118 | X17: 119 | Y17: 120 | Z17: 121 | AA17: 122 | AB17: 123 | AC17: =R17 -> 113 | AD17: =S17 -> 114 | AE17: 115 | AF17: 116 | AG17: 117 | AH17: 118 | AI17: 119 | AJ17: 120 | AK17: 121 | AL17: 122 | AM17: 123 | AN17: 24 | AO17: =AN17+1 -> 25 | AP17: =AO17+1 -> 26 | AQ17: 27 | AR17: 28 | AS17: 29 | AT17: 30 | AU17: 31 | AV17: 32 | AW17: 33 | AX17: 34 | AY17: 35 | AZ17: 36 | BA17: 37 | BB17: 38 | BC17: 39
A18: 403
D20: Planner Actuals | L20: =L6/M8 ->  | M20: Extracted Actuals | R20: P50 | AC20: P10 | AN20: Customers
B21: STD | C21: Locked | D21: 2006 | E21: 2007 | F21: 2008 | G21: 2009 | H21: 2010 | I21: 2011 | J21: 2012 | K21: 2013 | L21: 2014 | M21: 2010 | N21: 2011 | O21: 2012 | P21: 2013 | Q21: 2014 | R21: 2015 | S21: 2016 | T21: 2017 | U21: 2018 | V21: 2019 | W21: 2020 | X21: 2021 | Y21: 2022 | Z21: 2023 | AA21: 2024 | AB21: 2025 | AC21: =R21 -> 2015 | AD21: 2016 | AE21: 2017 | AF21: 2018 | AG21: 2019 | AH21: 2020 | AI21: 2021 | AJ21: 2022 | AK21: 2023 | AL21: 2024 | AM21: 2025 | AN21: 2010 | AO21: =AN21+1 -> 2011 | AP21: =AO21+1 -> 2012 | AQ21: 2013 | AR21: 2014 | AS21: 2015 | AT21: 2016 | AU21: 2017 | AV21: 2018 | AW21: 2019 | AX21: 2020 | AY21: 2021 | AZ21: 2022 | BA21: 2023 | BB21: 2024 | BC21: 2025
A22: bdl | C22: N | D22: 0 | E22: 0 | F22: 0 | G22: 56.00942853 | H22: 47.44369852 | I22: 44.16043038 | J22: 37.84059618 | K22: 51.2412663 | L22: 55.5 | M22: 0 | N22: 0 | O22: 42.64 | P22: 51.24 | Q22: 55.56 | R22: 52.11028415 | S22: 52.74439999 | T22: 53.28597818 | U22: 53.75048642 | V22: 54.15471827 | W22: 54.51102928 | X22: 54.82607642 | Y22: 55.12576767 | Z22: 55.41650886 | AA22: 55.69970539 | AB22: 55.98097004 | AC22: 57.7669502 | AD22: 58.45150676 | AE22: 59.03616477 | AF22: 59.53762231 | AG22: 59.97400877 | AH22: 60.35866254 | AI22: 60.6987701 | AJ22: 61.02230027 | AK22: 61.33616846 | AL22: 61.64189186 | AM22: 61.9455297 | AN22: 18657 | AO22: 21015 | AP22: 21401 | AQ22: 21606 | AR22: 21874 | AS22: 22136.3224 | AT22: 22398.64479 | AU22: 22622.68602 | AV22: 22814.84478 | AW22: 22982.06828 | AX22: 23129.46778 | AY22: 23259.79716 | AZ22: 23383.77407 | BA22: 23504.04851 | BB22: 23621.20186 | BC22: 23737.55602
A23: bge | C23: N | D23: 0 | E23: 0 | F23: 0 | G23: 33.03248515 | H23: 29.25535981 | I23: 25.00262212 | J23: 26.68304586 | K23: 29.54418533 | L23: 34.7 | M23: 0 | N23: 0 | O23: 30.168 | P23: 29.472 | Q23: 34.608 | R23: 31.99995213 | S23: 32.13490131 | T23: 32.27043798 | U23: 32.40702815 | V23: 32.54392886 | W23: 32.68151577 | X23: 32.81979234 | Y23: 32.95914371 | Z23: 33.09881189 | AA23: 33.23918015 | AB23: 33.380252 | AC23: 36.74892857 | AD23: 36.89851549 | AE23: 37.04875363 | AF23: 37.20015955 | AG23: 37.35190968 | AH23: 37.50442045 | AI23: 37.65769568 | AJ23: 37.8121623 | AK23: 37.96698008 | AL23: 38.12257388 | AM23: 38.2789476 | AN23: 8590 | AO23: 12136 | AP23: 12178 | AQ23: 12177 | AR23: 12185 | AS23: 12234.8019 | AT23: 12284.60379 | AU23: 12334.6225 | AV23: 12385.02999 | AW23: 12435.55209 | AX23: 12486.32742 | AY23: 12537.35726 | AZ23: 12588.78375 | BA23: 12640.32716 | BB23: 12692.12892 | BC23: 12744.19034
A24: bn | C24: N | D24: 0 | E24: 0 | F24: 0 | G24: 39.69883037 | H24: 37.41331963 | I24: 36.20904483 | J24: 32.01484964 | K24: 33.04014757 | L24: 34.9 | M24: 0 | N24: 0 | O24: 31.08 | P24: 32.55 | Q24: 34.98 | R24: 32.58663716 | S24: 32.76314852 | T24: 32.9379918 | U24: 33.11310337 | V24: 33.28751872 | W24: 33.46171897 | X24: 33.63637675 | Y24: 33.81239213 | Z24: 33.98880766 | AA24: 34.16610747 | AB24: 34.344296 | AC24: 37.01489261 | AD24: 37.20544457 | AE24: 37.39419575 | AF24: 37.58323657 | AG24: 37.77152579 | AH24: 37.95958279 | AI24: 38.14813372 | AJ24: 38.33815024 | AK24: 38.52859874 | AL24: 38.72000186 | AM24: 38.91236439 | AN24: 10551 | AO24: 11723 | AP24: 11823 | AQ24: 11835 | AR24: 11856 | AS24: 11917.35029 | AT24: 11978.70058 | AU24: 12039.47109 | AV24: 12100.33485 | AW24: 12160.95663 | AX24: 12221.50364 | AY24: 12282.20968 | AZ24: 12343.38758 | BA24: 12404.70456 | BB24: 12466.3289 | BC24: 12528.26212
A25: bra | C25: N | D25: 0 | E25: 0 | F25: 0 | G25: 78.86110985 | H25: 74.62245998 | I25: 65.09665539 | J25: 65.17608919 | K25: 69.93892858 | L25: 73.7 | M25: 73.4745 | N25: 57.9195 | O25: 68.8995 | P25: 69.21975 | Q25: 75.396 | R25: 71.704008 | S25: 72.37865042 | T25: 72.92465478 | U25: 73.56155368 | V25: 74.31048797 | W25: 74.76866988 | X25: 75.22289138 | Y25: 75.71466003 | Z25: 76.20716994 | AA25: 76.69980519 | AB25: 77.19181176 | AC25: 80.37888643 | AD25: 81.09063313 | AE25: 81.66666688 | AF25: 82.33859423 | AG25: 83.12871873 | AH25: 83.61209993 | AI25: 84.0913029 | AJ25: 84.61011807 | AK25: 85.12971525 | AL25: 85.64944467 | AM25: 86.16851084 | AN25: 20869 | AO25: 22239 | AP25: 22558 | AQ25: 22774 | AR25: 22901 | AS25: 23105.59767 | AT25: 23310.19534 | AU25: 23475.78116 | AV25: 23668.93242 | AW25: 23896.06046 | AX25: 24035.01252 | AY25: 24172.76351 | AZ25: 24321.90136 | BA25: 24471.26401 | BB25: 24620.66467 | BC25: 24769.87467
A26: brt | C26: N | D26: 0 | E26: 0 | F26: 0 | G26: 0 | H26: 8.121988758 | I26: 7.700244243 | J26: 8.716778802 | K26: 9.291729288 | L26: 8.8 | M26: 0 | N26: 0 | O26: 6.93 | P26: 9.566 | Q26: 8.533 | R26: 8.037263143 | S26: 8.085080498 | T26: 8.126712232 | U26: 8.168408103 | V26: 8.210198766 | W26: 8.252198904 | X26: 8.294409567 | Y26: 8.336948327 | Z26: 8.379583796 | AA26: 8.422432974 | AB26: 8.465496933 | AC26: 8.974717565 | AD26: 9.026338551 | AE26: 9.07128188 | AF26: 9.116294448 | AG26: 9.161409348 | AH26: 9.206750386 | AI26: 9.252318695 | AJ26: 9.2982412 | AK26: 9.344268106 | AL26: 9.390525721 | AM26: 9.437015202 | AN26: 2484 | AO26: 3985 | AP26: 4048 | AQ26: 4060 | AR26: 4077 | AS26: 4100.585844 | AT26: 4124.171687 | AU26: 4144.706482 | AV26: 4165.272911 | AW26: 4185.886097 | AX26: 4206.602606 | AY26: 4227.422957 | AZ26: 4248.405141 | BA26: 4269.435025 | BB26: 4290.570322 | BC26: 4311.81156
A27: bwa | C27: N | D27: 0 | E27: 0 | F27: 0 | G27: 13.61524138 | H27: 13.24651237 | I27: 11.513006 | J27: 10.73632229 | K27: 12.26999953 | L27: 12.4 | M27: 9.42 | N27: 11.43 | O27: 10.44 | P27: 11.73 | Q27: 11.76 | R27: 12.35767353 | S27: 12.40621512 | T27: 12.45539583 | U27: 12.50438158 | V27: 12.55347868 | W27: 12.60282189 | X27: 12.65241243 | Y27: 12.70238843 | Z27: 12.75247804 | AA27: 12.80281872 | AB27: 12.85341174 | AC27: 13.50392996 | AD27: 13.55633278 | AE27: 13.60942557 | AF27: 13.66230789 | AG27: 13.71531042 | AH27: 13.76857863 | AI27: 13.82211385 | AJ27: 13.87606519 | AK27: 13.93013918 | AL27: 13.98448421 | AM27: 14.03910165 | AN27: 1768 | AO27: 1780 | AP27: 1802 | AQ27: 1812 | AR27: 1814 | AS27: 1821.066761 | AT27: 1828.133522 | AU27: 1835.293328 | AV27: 1842.42475 | AW27: 1849.572385 | AX27: 1856.755847 | AY27: 1863.975315 | AZ27: 1871.2509 | BA27: 1878.543025 | BB27: 1885.871702 | BC27: 1893.237113
A28: bwn | C28: N | D28: 0 | E28: 0 | F28: 0 | G28: 32.24570193 | H28: 23.93610664 | I28: 18.05481815 | J28: 19.06221429 | K28: 23.39818419 | L28: 22.3 | M28: 0 | N28: 0 | O28: 19.2125 | P28: 22.32969 | Q28: 22.3375 | R28: 22.18041357 | S28: 22.29629165 | T28: 22.40161968 | U28: 22.50691441 | V28: 22.61244852 | W28: 22.71851161 | X28: 22.82510635 | Y28: 22.93252963 | Z28: 23.04019713 | AA28: 23.14840431 | AB28: 23.25715388 | AC28: 23.47948722 | AD28: 23.60793443 | AE28: 23.72468723 | AF28: 23.84140313 | AG28: 23.95838438 | AH28: 24.07595199 | AI28: 24.1941089 | AJ28: 24.31318423 | AK28: 24.43253027 | AL28: 24.55247453 | AM28: 24.67302001 | AN28: 4173 | AO28: 7023 | AP28: 7084 | AQ28: 7110 | AR28: 7173 | AS28: 7212.456567 | AT28: 7251.913134 | AU28: 7287.777398 | AV28: 7323.630326 | AW28: 7359.564762 | AX28: 7395.679319 | AY28: 7431.9749 | AZ28: 7468.5526 | BA28: 7505.213458 | BB28: 7542.058077 | BC28: 7579.087379
